Workbook

Sheet Master Sheet - Project Info
B6: HOW TO USE PROJECT INFORMATION TABLE
B7: Projects | C7: Project ID | D7: Company | E7: Industry | F7: Value | G7: Status | H7: Construction Commencement Year | I7: Quarter | J7: Construction Duration (Quarters) | K7: Total Workforce | L7: Operational Commencement Year | M7: Duration of Operation | N7: Operational Workforce | O7: Percentage of Operational FIFO
B8: Step 1. Enter Name of Project | C8: Step 2: Enter unique project ID number | D8: Optional. Enter company name | E8: Step 3. Please select relevant industry to your project from the drop down list | F8: Step 4. Please enter dollar value of the project in $million | G8: Step 5. Please select status of your project from the drop down list | H8: Step 6. Please select construction commencement year for your project from the drop down list | I8: Step 7. Please select quarter construction would commence, if unknown leave blank. | J8: Step 8. Enter number of quarters construction is expected to last. e.g. 1 year = 4 quarters | K8: Step 9. Enter total number of personnel required during construction. | L8: Step 10. Please select year the project is expected to be operational. | M8: Step 11. Enter the duration (years) the project is expected to operational. | N8: Step 12. Enter the total number of personnel required for operations | O8: Step 13. Enter in percentage (decimal) the amount of FIFO personnel. e.g. 55% = 0.55 If no number is entered FIFO percentage will default to the FIFO value located in the Master Sheet - Infrastructure Tab.
B12: Projects | C12: Project ID | D12: Company | E12: Industry | F12: Value | G12: Status | H12: Construction Commencement Year | I12: Quarter | J12: Construction Duration (Quarters) | K12: Total Workforce | L12: Operational Commencement Year | M12: Duration of Operation | N12: Operational Workforce | O12: Percentage of Operational FIFO | P12: Percentage of Residential | AO12: Project | AP12: Construction Commencement Year | AQ12: Quarter | AR12: Construction term | AS12: Total Workforce | AT12: Start Year Quarter | AU12: 2023 | AV12: 2023.25 | AW12: 2023.5 | AX12: 2023.75 | AY12: 2024 | AZ12: 2024.25 | BA12: 2024.5 | BB12: 2024.75 | BC12: 2025 | BD12: 2025.25 | BE12: 2025.5 | BF12: 2025.75 | BG12: 2026 | BH12: 2026.25 | BI12: 2026.5 | BJ12: 2026.75 | BK12: 2027 | BL12: 2027.25 | BM12: 2027.5 | BN12: 2027.75 | BO12: 2028 | CK12: 2028.25 | CL12: 2028.5 | CM12: 2028.75 | CN12: 2029 | CO12: 2029.25 | CP12: 2029.5 | CQ12: 2029.75 | CR12: 2030 | CS12: 2030.25 | CT12: 2030.5 | CU12: 2030.75 | CV12: 2031 | CW12: 2031.25 | CX12: 2031.5 | CY12: 2031.75 | CZ12: 2032 | DA12: 2032.25 | DB12: 2032.5 | DC12: 2032.75 | DD12: 2033 | DE12: 2033.25 | DF12: 2033.5 | DG12: 2033.75 | DH12: 2034 | DI12: 2034.25 | DJ12: 2034.5 | DK12: 2034.75 | DL12: 2035 | DM12: 2035.25 | DN12: 2035.5 | DO12: 2035.75 | DP12: 2036 | DQ12: 2036.25 | DR12: 2036.5 | DS12: 2036.75 | DT12: 2037 | DU12: 2037.25 | DV12: 2037.5 | DW12: 2037.75 | DX12: 2038 | DY12: 2038.25 | DZ12: 2038.5 | EA12: 2038.75 | EB12: 2039 | EC12: 2039.25 | ED12: 2039.5 | EE12: 2039.75 | EF12: 2040 | EG12: 2040.25 | EH12: 2040.5 | EI12: 2040.75
B14: Please select | T14: Peak Workforce Distribution over quarters | AP14: Construction Commencement Year | AQ14: Quarter | AR14: Construction term | AS14: Total Workforce | AT14: start_year_qtr | AU14: 1 | AV14: 2 | AW14: 3 | AX14: 4 | AY14: 5 | AZ14: 6 | BA14: 7 | BB14: 8 | BC14: 9 | BD14: 10 | BE14: 11 | BF14: 12 | BG14: 13 | BH14: 14 | BI14: 15 | BJ14: 16 | BK14: 17 | BL14: 18 | BM14: 19 | BN14: 20 | BP14: 2023 | BQ14: 2023.25 | BR14: 2023.5 | BS14: 2023.75 | BT14: 2024 | BU14: 2024.25 | BV14: 2024.5 | BW14: 2024.75 | BX14: 2025 | BY14: 2025.25 | BZ14: 2025.5 | CA14: 2025.75 | CB14: 2026 | CC14: 2026.25 | CD14: 2026.5 | CE14: 2026.75 | CF14: 2027 | CG14: 2027.25 | CH14: 2027.5 | CI14: 2027.75 | CJ14: 2028 | CK14: 2028.25 | CL14: 2028.5 | CM14: 2028.75 | CN14: 2029 | CO14: 2029.25 | CP14: 2029.5 | CQ14: 2029.75 | CR14: 2030 | CS14: 2030.25 | CT14: 2030.5 | CU14: 2030.75 | CV14: 2031 | CW14: 2031.25 | CX14: 2031.5 | CY14: 2031.75 | CZ14: 2032 | DA14: 2032.25 | DB14: 2032.5 | DC14: 2032.75 | DD14: 2033 | DE14: 2033.25 | DF14: 2033.5 | DG14: 2033.75 | DH14: 2034 | DI14: 2034.25 | DJ14: 2034.5 | DK14: 2034.75 | DL14: 2035 | DM14: 2035.25 | DN14: 2035.5 | DO14: 2035.75 | DP14: 2036 | DQ14: 2036.25 | DR14: 2036.5 | DS14: 2036.75 | DT14: 2037 | DU14: 2037.25 | DV14: 2037.5 | DW14: 2037.75 | DX14: 2038 | DY14: 2038.25 | DZ14: 2038.5 | EA14: 2038.75 | EB14: 2039 | EC14: 2039.25 | ED14: 2039.5 | EE14: 2039.75 | EF14: 2040 | EG14: 2040.25 | EH14: 2040.5 | EI14: 2040.75 | EK14: Operational Commencement Year | EL14: Operational Duration | EM14: Operational Workforce | EN14: 2023 | EO14: 2024 | EP14: 2025 | EQ14: 2026 | ER14: 2027 | ES14: 2028 | ET14: 2029 | EU14: 2030 | EV14: 2031 | EW14: 2032 | EX14: 2033 | EY14: 2034 | EZ14: 2035 | FA14: 2036 | FB14: 2037 | FC14: 2038 | FD14: 2039 | FE14: 2040 | FG14: Please select relevant industry
B15: Project 1 | C15: Project 1 | D15: Company 1 | E15: Manufacturing | F15: 6500 | G15: Construction | H15: 2023 | I15: 2 | J15: 12 | K15: 2500 | L15: 2026 | M15: 25 | N15: 150 | O15: 0.01 | P15: =1-O15 -> 0.99 | T15: 1 | U15: 2 | V15: 3 | W15: 4 | X15: 5 | Y15: 6 | Z15: 7 | AA15: 8 | AB15: 9 | AC15: 10 | AD15: 11 | AE15: 12 | AF15: 13 | AG15: 14 | AH15: 15 | AI15: 16 | AJ15: 17 | AK15: 18 | AL15: 19 | AM15: 20 | AO15: =B15 -> Project 1 | AP15: ='Master Sheet - Project Info'!$H15 -> 2023 | AQ15: ='Master Sheet - Project Info'!$I15 -> 2 | AR15: ='Master Sheet - Project Info'!$J15 -> 12 | AS15: ='Master Sheet - Project Info'!$K15 -> 2500 | AT15: =IF(OR(AP15="",AQ15=""),"",($AP15+($AQ15-1)/4)) -> 2023.25 | AU15: =(VLOOKUP($AR15,$S$16:$AM$35,2,FALSE))*$AS15 -> 1000 | AV15: =(VLOOKUP($AR15,$S$16:$AM$35,3,FALSE))*$AS15 -> 1250 | AW15: =(VLOOKUP($AR15,$S$16:$AM$35,4,FALSE))*$AS15 -> 1500 | AX15: =(VLOOKUP($AR15,$S$16:$AM$35,5,FALSE))*$AS15 -> 2250 | AY15: =(VLOOKUP($AR15,$S$16:$AM$35,6,FALSE))*$AS15 -> 2500 | AZ15: =(VLOOKUP($AR15,$S$16:$AM$35,7,FALSE))*$AS15 -> 2500 | BA15: =(VLOOKUP($AR15,$S$16:$AM$35,8,FALSE))*$AS15 -> 2500 | BB15: =(VLOOKUP($AR15,$S$16:$AM$35,9,FALSE))*$AS15 -> 2250 | BC15: =(VLOOKUP($AR15,$S$16:$AM$35,10,FALSE))*$AS15 -> 2000 | BD15: =(VLOOKUP($AR15,$S$16:$AM$35,11,FALSE))*$AS15 -> 1500 | BE15: =(VLOOKUP($AR15,$S$16:$AM$35,12,FALSE))*$AS15 -> 1250 | BF15: =(VLOOKUP($AR15,$S$16:$AM$35,13,FALSE))*$AS15 -> 1000 | BG15: =(VLOOKUP($AR15,$S$16:$AM$35,14,FALSE))*$AS15 -> 0 | BH15: =(VLOOKUP($AR15,$S$16:$AM$35,15,FALSE))*$AS15 -> 0 | BI15: =(VLOOKUP($AR15,$S$16:$AM$35,16,FALSE))*$AS15 -> 0 | BJ15: =(VLOOKUP($AR15,$S$16:$AM$35,17,FALSE))*$AS15 -> 0 | BK15: =(VLOOKUP($AR15,$S$16:$AM$35,18,FALSE))*$AS15 -> 0 | BL15: =(VLOOKUP($AR15,$S$16:$AM$35,19,FALSE))*$AS15 -> 0 | BM15: =(VLOOKUP($AR15,$S$16:$AM$35,20,FALSE))*$AS15 -> 0 | BN15: =(VLOOKUP($AR15,$S$16:$AM$35,21,FALSE))*$AS15 -> 0 | BP15: =IF($BP$14>=AT15,INDEX(Break,1),"") ->  | BQ15: =IF($BQ$14>=$AT15,INDEX(Break,COLUMNS($BP15:BP15)-COUNTIF($BP15:BP15,"")+1),"") -> 1000 | BR15: =IF($BQ$14>=$AT15,INDEX(Break,COLUMNS($BP15:BQ15)-COUNTIF($BP15:BQ15,"")+1),"") -> 1250 | BS15: =IF($BQ$14>=$AT15,INDEX(Break,COLUMNS($BP15:BR15)-COUNTIF($BP15:BR15,"")+1),"") -> 1500 | BT15: =IF($BQ$14>=$AT15,INDEX(Break,COLUMNS($BP15:BS15)-COUNTIF($BP15:BS15,"")+1),"") -> 2250 | BU15: =IF($BQ$14>=$AT15,INDEX(Break,COLUMNS($BP15:BT15)-COUNTIF($BP15:BT15,"")+1),"") -> 2500 | BV15: =IF($BQ$14>=$AT15,INDEX(Break,COLUMNS($BP15:BU15)-COUNTIF($BP15:BU15,"")+1),"") -> 2500 | BW15: =IF($BQ$14>=$AT15,INDEX(Break,COLUMNS($BP15:BV15)-COUNTIF($BP15:BV15,"")+1),"") -> 2500 | BX15: =IF($BQ$14>=$AT15,INDEX(Break,COLUMNS($BP15:BW15)-COUNTIF($BP15:BW15,"")+1),"") -> 2250 | BY15: =IF($BQ$14>=$AT15,INDEX(Break,COLUMNS($BP15:BX15)-COUNTIF($BP15:BX15,"")+1),"") -> 2000 | BZ15: =IF($BQ$14>=$AT15,INDEX(Break,COLUMNS($BP15:BY15)-COUNTIF($BP15:BY15,"")+1),"") -> 1500 | CA15: =IF($BQ$14>=$AT15,INDEX(Break,COLUMNS($BP15:BZ15)-COUNTIF($BP15:BZ15,"")+1),"") -> 1250 | CB15: =IF($BQ$14>=$AT15,INDEX(Break,COLUMNS($BP15:CA15)-COUNTIF($BP15:CA15,"")+1),"") -> 1000 | CC15: =IF($BQ$14>=$AT15,INDEX(Break,COLUMNS($BP15:CB15)-COUNTIF($BP15:CB15,"")+1),"") -> 0 | CD15: =IF($BQ$14>=$AT15,INDEX(Break,COLUMNS($BP15:CC15)-COUNTIF($BP15:CC15,"")+1),"") -> 0 | CE15: =IF($BQ$14>=$AT15,INDEX(Break,COLUMNS($BP15:CD15)-COUNTIF($BP15:CD15,"")+1),"") -> 0 | CF15: =IF($BQ$14>=$AT15,INDEX(Break,COLUMNS($BP15:CE15)-COUNTIF($BP15:CE15,"")+1),"") -> 0 | CG15: =IF($BQ$14>=$AT15,INDEX(Break,COLUMNS($BP15:CF15)-COUNTIF($BP15:CF15,"")+1),"") -> 0 | CH15: =IF($BQ$14>=$AT15,INDEX(Break,COLUMNS($BP15:CG15)-COUNTIF($BP15:CG15,"")+1),"") -> 0 | CI15: =IF($BQ$14>=$AT15,INDEX(Break,COLUMNS($BP15:CH15)-COUNTIF($BP15:CH15,"")+1),"") -> 0 | CJ15: =IF($BQ$14>=$AT15,INDEX(Break,COLUMNS($BP15:CI15)-COUNTIF($BP15:CI15,"")+1),"") -> 0 | CK15: =IF($BQ$14>=$AT15,INDEX(Break,COLUMNS($BP15:CJ15)-COUNTIF($BP15:CJ15,"")+1),"") ->  | CL15: =IF($BQ$14>=$AT15,INDEX(Break,COLUMNS($BP15:CK15)-COUNTIF($BP15:CK15,"")+1),"") ->  | CM15: =IF($BQ$14>=$AT15,INDEX(Break,COLUMNS($BP15:CL15)-COUNTIF($BP15:CL15,"")+1),"") ->  | CN15: =IF($BQ$14>=$AT15,INDEX(Break,COLUMNS($BP15:CM15)-COUNTIF($BP15:CM15,"")+1),"") ->  | CO15: =IF($BQ$14>=$AT15,INDEX(Break,COLUMNS($BP15:CN15)-COUNTIF($BP15:CN15,"")+1),"") ->  | CP15: =IF($BQ$14>=$AT15,INDEX(Break,COLUMNS($BP15:CO15)-COUNTIF($BP15:CO15,"")+1),"") ->  | CQ15: =IF($BQ$14>=$AT15,INDEX(Break,COLUMNS($BP15:CP15)-COUNTIF($BP15:CP15,"")+1),"") ->  | CR15: =IF($BQ$14>=$AT15,INDEX(Break,COLUMNS($BP15:CQ15)-COUNTIF($BP15:CQ15,"")+1),"") ->  | CS15: =IF($BQ$14>=$AT15,INDEX(Break,COLUMNS($BP15:CR15)-COUNTIF($BP15:CR15,"")+1),"") ->  | CT15: =IF($BQ$14>=$AT15,INDEX(Break,COLUMNS($BP15:CS15)-COUNTIF($BP15:CS15,"")+1),"") ->  | CU15: =IF($BQ$14>=$AT15,INDEX(Break,COLUMNS($BP15:CT15)-COUNTIF($BP15:CT15,"")+1),"") ->  | CV15: =IF($BQ$14>=$AT15,INDEX(Break,COLUMNS($BP15:CU15)-COUNTIF($BP15:CU15,"")+1),"") ->  | CW15: =IF($BQ$14>=$AT15,INDEX(Break,COLUMNS($BP15:CV15)-COUNTIF($BP15:CV15,"")+1),"") ->  | CX15: =IF($BQ$14>=$AT15,INDEX(Break,COLUMNS($BP15:CW15)-COUNTIF($BP15:CW15,"")+1),"") ->  | CY15: =IF($BQ$14>=$AT15,INDEX(Break,COLUMNS($BP15:CX15)-COUNTIF($BP15:CX15,"")+1),"") ->  | CZ15: =IF($BQ$14>=$AT15,INDEX(Break,COLUMNS($BP15:CY15)-COUNTIF($BP15:CY15,"")+1),"") ->  | DA15: =IF($BQ$14>=$AT15,INDEX(Break,COLUMNS($BP15:CZ15)-COUNTIF($BP15:CZ15,"")+1),"") ->  | DB15: =IF($BQ$14>=$AT15,INDEX(Break,COLUMNS($BP15:DA15)-COUNTIF($BP15:DA15,"")+1),"") ->  | DC15: =IF($BQ$14>=$AT15,INDEX(Break,COLUMNS($BP15:DB15)-COUNTIF($BP15:DB15,"")+1),"") ->  | DD15: =IF($BQ$14>=$AT15,INDEX(Break,COLUMNS($BP15:DC15)-COUNTIF($BP15:DC15,"")+1),"") ->  | DE15: =IF($BQ$14>=$AT15,INDEX(Break,COLUMNS($BP15:DD15)-COUNTIF($BP15:DD15,"")+1),"") ->  | DF15: =IF($BQ$14>=$AT15,INDEX(Break,COLUMNS($BP15:DE15)-COUNTIF($BP15:DE15,"")+1),"") ->  | DG15: =IF($BQ$14>=$AT15,INDEX(Break,COLUMNS($BP15:DF15)-COUNTIF($BP15:DF15,"")+1),"") ->  | DH15: =IF($BQ$14>=$AT15,INDEX(Break,COLUMNS($BP15:DG15)-COUNTIF($BP15:DG15,"")+1),"") ->  | DI15: =IF($BQ$14>=$AT15,INDEX(Break,COLUMNS($BP15:DH15)-COUNTIF($BP15:DH15,"")+1),"") ->  | DJ15: =IF($BQ$14>=$AT15,INDEX(Break,COLUMNS($BP15:DI15)-COUNTIF($BP15:DI15,"")+1),"") ->  | DK15: =IF($BQ$14>=$AT15,INDEX(Break,COLUMNS($BP15:DJ15)-COUNTIF($BP15:DJ15,"")+1),"") ->  | DL15: =IF($BQ$14>=$AT15,INDEX(Break,COLUMNS($BP15:DK15)-COUNTIF($BP15:DK15,"")+1),"") ->  | DM15: =IF($BQ$14>=$AT15,INDEX(Break,COLUMNS($BP15:DL15)-COUNTIF($BP15:DL15,"")+1),"") ->  | DN15: =IF($BQ$14>=$AT15,INDEX(Break,COLUMNS($BP15:DM15)-COUNTIF($BP15:DM15,"")+1),"") ->  | DO15: =IF($BQ$14>=$AT15,INDEX(Break,COLUMNS($BP15:DN15)-COUNTIF($BP15:DN15,"")+1),"") ->  | DP15: =IF($BQ$14>=$AT15,INDEX(Break,COLUMNS($BP15:DO15)-COUNTIF($BP15:DO15,"")+1),"") ->  | DQ15: =IF($BQ$14>=$AT15,INDEX(Break,COLUMNS($BP15:DP15)-COUNTIF($BP15:DP15,"")+1),"") ->  | DR15: =IF($BQ$14>=$AT15,INDEX(Break,COLUMNS($BP15:DQ15)-COUNTIF($BP15:DQ15,"")+1),"") ->  | DS15: =IF($BQ$14>=$AT15,INDEX(Break,COLUMNS($BP15:DR15)-COUNTIF($BP15:DR15,"")+1),"") ->  | DT15: =IF($BQ$14>=$AT15,INDEX(Break,COLUMNS($BP15:DS15)-COUNTIF($BP15:DS15,"")+1),"") ->  | DU15: =IF($BQ$14>=$AT15,INDEX(Break,COLUMNS($BP15:DT15)-COUNTIF($BP15:DT15,"")+1),"") ->  | DV15: =IF($BQ$14>=$AT15,INDEX(Break,COLUMNS($BP15:DU15)-COUNTIF($BP15:DU15,"")+1),"") ->  | DW15: =IF($BQ$14>=$AT15,INDEX(Break,COLUMNS($BP15:DV15)-COUNTIF($BP15:DV15,"")+1),"") ->  | DX15: =IF($BQ$14>=$AT15,INDEX(Break,COLUMNS($BP15:DW15)-COUNTIF($BP15:DW15,"")+1),"") ->  | DY15: =IF($BQ$14>=$AT15,INDEX(Break,COLUMNS($BP15:DX15)-COUNTIF($BP15:DX15,"")+1),"") ->  | DZ15: =IF($BQ$14>=$AT15,INDEX(Break,COLUMNS($BP15:DY15)-COUNTIF($BP15:DY15,"")+1),"") ->  | EA15: =IF($BQ$14>=$AT15,INDEX(Break,COLUMNS($BP15:DZ15)-COUNTIF($BP15:DZ15,"")+1),"") ->  | EB15: =IF($BQ$14>=$AT15,INDEX(Break,COLUMNS($BP15:EA15)-COUNTIF($BP15:EA15,"")+1),"") ->  | EC15: =IF($BQ$14>=$AT15,INDEX(Break,COLUMNS($BP15:EB15)-COUNTIF($BP15:EB15,"")+1),"") ->  | ED15: =IF($BQ$14>=$AT15,INDEX(Break,COLUMNS($BP15:EC15)-COUNTIF($BP15:EC15,"")+1),"") ->  | EE15: =IF($BQ$14>=$AT15,INDEX(Break,COLUMNS($BP15:ED15)-COUNTIF($BP15:ED15,"")+1),"") ->  | EF15: =IF($BQ$14>=$AT15,INDEX(Break,COLUMNS($BP15:EE15)-COUNTIF($BP15:EE15,"")+1),"") ->  | EG15: =IF($BQ$14>=$AT15,INDEX(Break,COLUMNS($BP15:EF15)-COUNTIF($BP15:EF15,"")+1),"") ->  | EH15: =IF($BQ$14>=$AT15,INDEX(Break,COLUMNS($BP15:EG15)-COUNTIF($BP15:EG15,"")+1),"") ->  | EI15: =IF($BQ$14>=$AT15,INDEX(Break,COLUMNS($BP15:EH15)-COUNTIF($BP15:EH15,"")+1),"") ->  | EK15: =L15 -> 2026 | EL15: =M15 -> 25 | EM15: =N15 -> 150 | EN15: =IF($EL15>1,IF(AND(EN$14>=$EK15,EN$14<$EK15+$EL15),IF(EN$14=$EK15,$EM15,$EM15),"")) ->  | EQ15: 150 | ER15: 150 | ES15: 150 | ET15: 150 | EU15: 150 | EV15: 150 | EW15: 150 | EX15: =IF($EL15>1,IF(AND(EX$14>=$EK15,EX$14<$EK15+$EL15),IF(EX$14=$EK15,$EM15,$EM15),"")) -> 150 | EY15: 150 | EZ15: 150 | FA15: 150 | FB15: 150 | FC15: 150 | FD15: 150 | FE15: 150 | FG15: Accommodation & Food Services | FH15: =SUMPRODUCT(SUBTOTAL(3,OFFSET('Construction Workforce'!$D$15:$D$513,ROW('Construction Workforce'!$D$15:$D$513)-MIN(ROW('Construction Workforce'!$D$15:$D$513)),,1,)),N('Construction Workforce'!$D$15:$D$513=FG15)) -> 1
B16: Project 2 | C16: Project 2 | D16: Company 2 | E16: Mining | F16: 400 | G16: Construction | H16: 2023 | I16: 4 | J16: 4 | K16: 50 | L16: 2025 | M16: 25 | N16: 10 | O16: 0.22 | P16: 0.78 | R16: Number of Quarters chosen | S16: 1 | T16: 1 | AO16: Project 2 | AP16: ='Master Sheet - Project Info'!$H16 -> 2023 | AQ16: ='Master Sheet - Project Info'!$I16 -> 4 | AR16: ='Master Sheet - Project Info'!$J16 -> 4 | AS16: ='Master Sheet - Project Info'!$K16 -> 50 | AT16: 2023.75 | AU16: 35 | AV16: 50 | AW16: 50 | AX16: 35 | AY16: 0 | AZ16: 0 | BA16: 0 | BB16: 0 | BC16: 0 | BD16: 0 | BE16: 0 | BF16: 0 | BG16: 0 | BH16: 0 | BI16: 0 | BJ16: 0 | BK16: 0 | BL16: 0 | BM16: 0 | BN16: 0 | BP16: =IF($BP$14>=AT16,INDEX(Break2,1),"") ->  | BQ16: =IF(BQ$14>=$AT16,INDEX(Break2,COLUMNS($BP16:BP16)-COUNTIF($BP16:BP16,"")+1),"") ->  | BR16: =IF(BR$14>=$AT16,INDEX(Break2,COLUMNS($BP16:BQ16)-COUNTIF($BP16:BQ16,"")+1),"") ->  | BS16: =IF(BS$14>=$AT16,INDEX(Break2,COLUMNS($BP16:BR16)-COUNTIF($BP16:BR16,"")+1),"") -> 35 | BT16: =IF(BT$14>=$AT16,INDEX(Break2,COLUMNS($BP16:BS16)-COUNTIF($BP16:BS16,"")+1),"") -> 50 | BU16: =IF(BU$14>=$AT16,INDEX(Break2,COLUMNS($BP16:BT16)-COUNTIF($BP16:BT16,"")+1),"") -> 50 | BV16: =IF(BV$14>=$AT16,INDEX(Break2,COLUMNS($BP16:BU16)-COUNTIF($BP16:BU16,"")+1),"") -> 35 | BW16: =IF(BW$14>=$AT16,INDEX(Break2,COLUMNS($BP16:BV16)-COUNTIF($BP16:BV16,"")+1),"") -> 0 | BX16: =IF(BX$14>=$AT16,INDEX(Break2,COLUMNS($BP16:BW16)-COUNTIF($BP16:BW16,"")+1),"") -> 0 | BY16: =IF(BY$14>=$AT16,INDEX(Break2,COLUMNS($BP16:BX16)-COUNTIF($BP16:BX16,"")+1),"") -> 0 | BZ16: =IF(BZ$14>=$AT16,INDEX(Break2,COLUMNS($BP16:BY16)-COUNTIF($BP16:BY16,"")+1),"") -> 0 | CA16: =IF(CA$14>=$AT16,INDEX(Break2,COLUMNS($BP16:BZ16)-COUNTIF($BP16:BZ16,"")+1),"") -> 0 | CB16: =IF(CB$14>=$AT16,INDEX(Break2,COLUMNS($BP16:CA16)-COUNTIF($BP16:CA16,"")+1),"") -> 0 | CC16: =IF(CC$14>=$AT16,INDEX(Break2,COLUMNS($BP16:CB16)-COUNTIF($BP16:CB16,"")+1),"") -> 0 | CD16: =IF(CD$14>=$AT16,INDEX(Break2,COLUMNS($BP16:CC16)-COUNTIF($BP16:CC16,"")+1),"") -> 0 | CE16: =IF(CE$14>=$AT16,INDEX(Break2,COLUMNS($BP16:CD16)-COUNTIF($BP16:CD16,"")+1),"") -> 0 | CF16: =IF(CF$14>=$AT16,INDEX(Break2,COLUMNS($BP16:CE16)-COUNTIF($BP16:CE16,"")+1),"") -> 0 | CG16: =IF(CG$14>=$AT16,INDEX(Break2,COLUMNS($BP16:CF16)-COUNTIF($BP16:CF16,"")+1),"") -> 0 | CH16: =IF(CH$14>=$AT16,INDEX(Break2,COLUMNS($BP16:CG16)-COUNTIF($BP16:CG16,"")+1),"") -> 0 | CI16: =IF(CI$14>=$AT16,INDEX(Break2,COLUMNS($BP16:CH16)-COUNTIF($BP16:CH16,"")+1),"") -> 0 | CJ16: =IF(CJ$14>=$AT16,INDEX(Break2,COLUMNS($BP16:CI16)-COUNTIF($BP16:CI16,"")+1),"") -> 0 | CK16: =IF(CK$14>=$AT16,INDEX(Break2,COLUMNS($BP16:CJ16)-COUNTIF($BP16:CJ16,"")+1),"") -> 0 | CL16: =IF(CL$14>=$AT16,INDEX(Break2,COLUMNS($BP16:CK16)-COUNTIF($BP16:CK16,"")+1),"") -> 0 | CM16: =IF(CM$14>=$AT16,INDEX(Break2,COLUMNS($BP16:CL16)-COUNTIF($BP16:CL16,"")+1),"") ->  | CN16: =IF(CN$14>=$AT16,INDEX(Break2,COLUMNS($BP16:CM16)-COUNTIF($BP16:CM16,"")+1),"") ->  | CO16: =IF(CO$14>=$AT16,INDEX(Break2,COLUMNS($BP16:CN16)-COUNTIF($BP16:CN16,"")+1),"") ->  | CP16: =IF(CP$14>=$AT16,INDEX(Break2,COLUMNS($BP16:CO16)-COUNTIF($BP16:CO16,"")+1),"") ->  | CQ16: =IF(CQ$14>=$AT16,INDEX(Break2,COLUMNS($BP16:CP16)-COUNTIF($BP16:CP16,"")+1),"") ->  | CR16: =IF(CR$14>=$AT16,INDEX(Break2,COLUMNS($BP16:CQ16)-COUNTIF($BP16:CQ16,"")+1),"") ->  | CS16: =IF(CS$14>=$AT16,INDEX(Break2,COLUMNS($BP16:CR16)-COUNTIF($BP16:CR16,"")+1),"") ->  | CT16: =IF(CT$14>=$AT16,INDEX(Break2,COLUMNS($BP16:CS16)-COUNTIF($BP16:CS16,"")+1),"") ->  | CU16: =IF(CU$14>=$AT16,INDEX(Break2,COLUMNS($BP16:CT16)-COUNTIF($BP16:CT16,"")+1),"") ->  | CV16: =IF(CV$14>=$AT16,INDEX(Break2,COLUMNS($BP16:CU16)-COUNTIF($BP16:CU16,"")+1),"") ->  | CW16: =IF(CW$14>=$AT16,INDEX(Break2,COLUMNS($BP16:CV16)-COUNTIF($BP16:CV16,"")+1),"") ->  | CX16: =IF(CX$14>=$AT16,INDEX(Break2,COLUMNS($BP16:CW16)-COUNTIF($BP16:CW16,"")+1),"") ->  | CY16: =IF(CY$14>=$AT16,INDEX(Break2,COLUMNS($BP16:CX16)-COUNTIF($BP16:CX16,"")+1),"") ->  | CZ16: =IF(CZ$14>=$AT16,INDEX(Break2,COLUMNS($BP16:CY16)-COUNTIF($BP16:CY16,"")+1),"") ->  | DA16: =IF(DA$14>=$AT16,INDEX(Break2,COLUMNS($BP16:CZ16)-COUNTIF($BP16:CZ16,"")+1),"") ->  | DB16: =IF(DB$14>=$AT16,INDEX(Break2,COLUMNS($BP16:DA16)-COUNTIF($BP16:DA16,"")+1),"") ->  | DC16: =IF(DC$14>=$AT16,INDEX(Break2,COLUMNS($BP16:DB16)-COUNTIF($BP16:DB16,"")+1),"") ->  | DD16: =IF(DD$14>=$AT16,INDEX(Break2,COLUMNS($BP16:DC16)-COUNTIF($BP16:DC16,"")+1),"") ->  | DE16: =IF(DE$14>=$AT16,INDEX(Break2,COLUMNS($BP16:DD16)-COUNTIF($BP16:DD16,"")+1),"") ->  | DF16: =IF(DF$14>=$AT16,INDEX(Break2,COLUMNS($BP16:DE16)-COUNTIF($BP16:DE16,"")+1),"") ->  | DG16: =IF(DG$14>=$AT16,INDEX(Break2,COLUMNS($BP16:DF16)-COUNTIF($BP16:DF16,"")+1),"") ->  | DH16: =IF(DH$14>=$AT16,INDEX(Break2,COLUMNS($BP16:DG16)-COUNTIF($BP16:DG16,"")+1),"") ->  | DI16: =IF(DI$14>=$AT16,INDEX(Break2,COLUMNS($BP16:DH16)-COUNTIF($BP16:DH16,"")+1),"") ->  | DJ16: =IF(DJ$14>=$AT16,INDEX(Break2,COLUMNS($BP16:DI16)-COUNTIF($BP16:DI16,"")+1),"") ->  | DK16: =IF(DK$14>=$AT16,INDEX(Break2,COLUMNS($BP16:DJ16)-COUNTIF($BP16:DJ16,"")+1),"") ->  | DL16: =IF(DL$14>=$AT16,INDEX(Break2,COLUMNS($BP16:DK16)-COUNTIF($BP16:DK16,"")+1),"") ->  | DM16: =IF(DM$14>=$AT16,INDEX(Break2,COLUMNS($BP16:DL16)-COUNTIF($BP16:DL16,"")+1),"") ->  | DN16: =IF(DN$14>=$AT16,INDEX(Break2,COLUMNS($BP16:DM16)-COUNTIF($BP16:DM16,"")+1),"") ->  | DO16: =IF(DO$14>=$AT16,INDEX(Break2,COLUMNS($BP16:DN16)-COUNTIF($BP16:DN16,"")+1),"") ->  | DP16: =IF(DP$14>=$AT16,INDEX(Break2,COLUMNS($BP16:DO16)-COUNTIF($BP16:DO16,"")+1),"") ->  | DQ16: =IF(DQ$14>=$AT16,INDEX(Break2,COLUMNS($BP16:DP16)-COUNTIF($BP16:DP16,"")+1),"") ->  | DR16: =IF(DR$14>=$AT16,INDEX(Break2,COLUMNS($BP16:DQ16)-COUNTIF($BP16:DQ16,"")+1),"") ->  | DS16: =IF(DS$14>=$AT16,INDEX(Break2,COLUMNS($BP16:DR16)-COUNTIF($BP16:DR16,"")+1),"") ->  | DT16: =IF(DT$14>=$AT16,INDEX(Break2,COLUMNS($BP16:DS16)-COUNTIF($BP16:DS16,"")+1),"") ->  | DU16: =IF(DU$14>=$AT16,INDEX(Break2,COLUMNS($BP16:DT16)-COUNTIF($BP16:DT16,"")+1),"") ->  | DV16: =IF(DV$14>=$AT16,INDEX(Break2,COLUMNS($BP16:DU16)-COUNTIF($BP16:DU16,"")+1),"") ->  | DW16: =IF(DW$14>=$AT16,INDEX(Break2,COLUMNS($BP16:DV16)-COUNTIF($BP16:DV16,"")+1),"") ->  | DX16: =IF(DX$14>=$AT16,INDEX(Break2,COLUMNS($BP16:DW16)-COUNTIF($BP16:DW16,"")+1),"") ->  | DY16: =IF(DY$14>=$AT16,INDEX(Break2,COLUMNS($BP16:DX16)-COUNTIF($BP16:DX16,"")+1),"") ->  | DZ16: =IF(DZ$14>=$AT16,INDEX(Break2,COLUMNS($BP16:DY16)-COUNTIF($BP16:DY16,"")+1),"") ->  | EA16: =IF(EA$14>=$AT16,INDEX(Break2,COLUMNS($BP16:DZ16)-COUNTIF($BP16:DZ16,"")+1),"") ->  | EB16: =IF(EB$14>=$AT16,INDEX(Break2,COLUMNS($BP16:EA16)-COUNTIF($BP16:EA16,"")+1),"") ->  | EC16: =IF(EC$14>=$AT16,INDEX(Break2,COLUMNS($BP16:EB16)-COUNTIF($BP16:EB16,"")+1),"") ->  | ED16: =IF(ED$14>=$AT16,INDEX(Break2,COLUMNS($BP16:EC16)-COUNTIF($BP16:EC16,"")+1),"") ->  | EE16: =IF(EE$14>=$AT16,INDEX(Break2,COLUMNS($BP16:ED16)-COUNTIF($BP16:ED16,"")+1),"") ->  | EF16: =IF(EF$14>=$AT16,INDEX(Break2,COLUMNS($BP16:EE16)-COUNTIF($BP16:EE16,"")+1),"") ->  | EG16: =IF(EG$14>=$AT16,INDEX(Break2,COLUMNS($BP16:EF16)-COUNTIF($BP16:EF16,"")+1),"") ->  | EH16: =IF(EH$14>=$AT16,INDEX(Break2,COLUMNS($BP16:EG16)-COUNTIF($BP16:EG16,"")+1),"") ->  | EI16: =IF(EI$14>=$AT16,INDEX(Break2,COLUMNS($BP16:EH16)-COUNTIF($BP16:EH16,"")+1),"") ->  | EK16: 2025 | EL16: 25 | EM16: 10 | EP16: 10 | EQ16: 10 | ER16: 10 | ES16: 10 | ET16: 10 | EU16: 10 | EV16: 10 | EW16: 10 | EX16: 10 | EY16: 10 | EZ16: 10 | FA16: 10 | FB16: 10 | FC16: 10 | FD16: 10 | FE16: 10 | FG16: Agriculture, Forestry & Fishing | FH16: =SUMPRODUCT(SUBTOTAL(3,OFFSET('Construction Workforce'!$D$15:$D$513,ROW('Construction Workforce'!$D$15:$D$513)-MIN(ROW('Construction Workforce'!$D$15:$D$513)),,1,)),N('Construction Workforce'!$D$15:$D$513=FG16)) -> 1
B17: Project 3 | C17: Project 3 | D17: Company 3 | E17: Manufacturing | F17: 87 | G17: Construction | H17: 2023 | I17: 2 | J17: 5 | K17: 60 | L17: 2024 | M17: 25 | N17: 8 | O17: 0.01 | P17: 0.99 | S17: 2 | T17: 1 | U17: 0.7 | AO17: Project 3 | AP17: ='Master Sheet - Project Info'!$H17 -> 2023 | AQ17: ='Master Sheet - Project Info'!$I17 -> 2 | AR17: ='Master Sheet - Project Info'!$J17 -> 5 | AS17: ='Master Sheet - Project Info'!$K17 -> 60 | AT17: 2023.25 | AU17: 30 | AV17: 42 | AW17: 60 | AX17: 60 | AY17: 42 | AZ17: 0 | BA17: 0 | BB17: 0 | BC17: 0 | BD17: 0 | BE17: 0 | BF17: 0 | BG17: 0 | BH17: 0 | BI17: 0 | BJ17: 0 | BK17: 0 | BL17: 0 | BM17: 0 | BN17: 0 | BP17: =IF($BP$14>=AT17,INDEX(Break3,1),"") ->  | BQ17: =IF(BQ$14>=$AT17,INDEX(Break3,COLUMNS($BP17:BP17)-COUNTIF($BP17:BP17,"")+1),"") -> 30 | BR17: =IF(BR$14>=$AT17,INDEX(Break3,COLUMNS($BP17:BQ17)-COUNTIF($BP17:BQ17,"")+1),"") -> 42 | BS17: =IF(BS$14>=$AT17,INDEX(Break3,COLUMNS($BP17:BR17)-COUNTIF($BP17:BR17,"")+1),"") -> 60 | BT17: =IF(BT$14>=$AT17,INDEX(Break3,COLUMNS($BP17:BS17)-COUNTIF($BP17:BS17,"")+1),"") -> 60 | BU17: =IF(BU$14>=$AT17,INDEX(Break3,COLUMNS($BP17:BT17)-COUNTIF($BP17:BT17,"")+1),"") -> 42 | BV17: =IF(BV$14>=$AT17,INDEX(Break3,COLUMNS($BP17:BU17)-COUNTIF($BP17:BU17,"")+1),"") -> 0 | BW17: =IF(BW$14>=$AT17,INDEX(Break3,COLUMNS($BP17:BV17)-COUNTIF($BP17:BV17,"")+1),"") -> 0 | BX17: =IF(BX$14>=$AT17,INDEX(Break3,COLUMNS($BP17:BW17)-COUNTIF($BP17:BW17,"")+1),"") -> 0 | BY17: =IF(BY$14>=$AT17,INDEX(Break3,COLUMNS($BP17:BX17)-COUNTIF($BP17:BX17,"")+1),"") -> 0 | BZ17: =IF(BZ$14>=$AT17,INDEX(Break3,COLUMNS($BP17:BY17)-COUNTIF($BP17:BY17,"")+1),"") -> 0 | CA17: =IF(CA$14>=$AT17,INDEX(Break3,COLUMNS($BP17:BZ17)-COUNTIF($BP17:BZ17,"")+1),"") -> 0 | CB17: =IF(CB$14>=$AT17,INDEX(Break3,COLUMNS($BP17:CA17)-COUNTIF($BP17:CA17,"")+1),"") -> 0 | CC17: =IF(CC$14>=$AT17,INDEX(Break3,COLUMNS($BP17:CB17)-COUNTIF($BP17:CB17,"")+1),"") -> 0 | CD17: =IF(CD$14>=$AT17,INDEX(Break3,COLUMNS($BP17:CC17)-COUNTIF($BP17:CC17,"")+1),"") -> 0 | CE17: =IF(CE$14>=$AT17,INDEX(Break3,COLUMNS($BP17:CD17)-COUNTIF($BP17:CD17,"")+1),"") -> 0 | CF17: =IF(CF$14>=$AT17,INDEX(Break3,COLUMNS($BP17:CE17)-COUNTIF($BP17:CE17,"")+1),"") -> 0 | CG17: =IF(CG$14>=$AT17,INDEX(Break3,COLUMNS($BP17:CF17)-COUNTIF($BP17:CF17,"")+1),"") -> 0 | CH17: =IF(CH$14>=$AT17,INDEX(Break3,COLUMNS($BP17:CG17)-COUNTIF($BP17:CG17,"")+1),"") -> 0 | CI17: =IF(CI$14>=$AT17,INDEX(Break3,COLUMNS($BP17:CH17)-COUNTIF($BP17:CH17,"")+1),"") -> 0 | CJ17: =IF(CJ$14>=$AT17,INDEX(Break3,COLUMNS($BP17:CI17)-COUNTIF($BP17:CI17,"")+1),"") -> 0 | CK17: =IF(CK$14>=$AT17,INDEX(Break3,COLUMNS($BP17:CJ17)-COUNTIF($BP17:CJ17,"")+1),"") ->  | CL17: =IF(CL$14>=$AT17,INDEX(Break3,COLUMNS($BP17:CK17)-COUNTIF($BP17:CK17,"")+1),"") ->  | CM17: =IF(CM$14>=$AT17,INDEX(Break3,COLUMNS($BP17:CL17)-COUNTIF($BP17:CL17,"")+1),"") ->  | CN17: =IF(CN$14>=$AT17,INDEX(Break3,COLUMNS($BP17:CM17)-COUNTIF($BP17:CM17,"")+1),"") ->  | CO17: =IF(CO$14>=$AT17,INDEX(Break3,COLUMNS($BP17:CN17)-COUNTIF($BP17:CN17,"")+1),"") ->  | CP17: =IF(CP$14>=$AT17,INDEX(Break3,COLUMNS($BP17:CO17)-COUNTIF($BP17:CO17,"")+1),"") ->  | CQ17: =IF(CQ$14>=$AT17,INDEX(Break3,COLUMNS($BP17:CP17)-COUNTIF($BP17:CP17,"")+1),"") ->  | CR17: =IF(CR$14>=$AT17,INDEX(Break3,COLUMNS($BP17:CQ17)-COUNTIF($BP17:CQ17,"")+1),"") ->  | CS17: =IF(CS$14>=$AT17,INDEX(Break3,COLUMNS($BP17:CR17)-COUNTIF($BP17:CR17,"")+1),"") ->  | CT17: =IF(CT$14>=$AT17,INDEX(Break3,COLUMNS($BP17:CS17)-COUNTIF($BP17:CS17,"")+1),"") ->  | CU17: =IF(CU$14>=$AT17,INDEX(Break3,COLUMNS($BP17:CT17)-COUNTIF($BP17:CT17,"")+1),"") ->  | CV17: =IF(CV$14>=$AT17,INDEX(Break3,COLUMNS($BP17:CU17)-COUNTIF($BP17:CU17,"")+1),"") ->  | CW17: =IF(CW$14>=$AT17,INDEX(Break3,COLUMNS($BP17:CV17)-COUNTIF($BP17:CV17,"")+1),"") ->  | CX17: =IF(CX$14>=$AT17,INDEX(Break3,COLUMNS($BP17:CW17)-COUNTIF($BP17:CW17,"")+1),"") ->  | CY17: =IF(CY$14>=$AT17,INDEX(Break3,COLUMNS($BP17:CX17)-COUNTIF($BP17:CX17,"")+1),"") ->  | CZ17: =IF(CZ$14>=$AT17,INDEX(Break3,COLUMNS($BP17:CY17)-COUNTIF($BP17:CY17,"")+1),"") ->  | DA17: =IF(DA$14>=$AT17,INDEX(Break3,COLUMNS($BP17:CZ17)-COUNTIF($BP17:CZ17,"")+1),"") ->  | DB17: =IF(DB$14>=$AT17,INDEX(Break3,COLUMNS($BP17:DA17)-COUNTIF($BP17:DA17,"")+1),"") ->  | DC17: =IF(DC$14>=$AT17,INDEX(Break3,COLUMNS($BP17:DB17)-COUNTIF($BP17:DB17,"")+1),"") ->  | DD17: =IF(DD$14>=$AT17,INDEX(Break3,COLUMNS($BP17:DC17)-COUNTIF($BP17:DC17,"")+1),"") ->  | DE17: =IF(DE$14>=$AT17,INDEX(Break3,COLUMNS($BP17:DD17)-COUNTIF($BP17:DD17,"")+1),"") ->  | DF17: =IF(DF$14>=$AT17,INDEX(Break3,COLUMNS($BP17:DE17)-COUNTIF($BP17:DE17,"")+1),"") ->  | DG17: =IF(DG$14>=$AT17,INDEX(Break3,COLUMNS($BP17:DF17)-COUNTIF($BP17:DF17,"")+1),"") ->  | DH17: =IF(DH$14>=$AT17,INDEX(Break3,COLUMNS($BP17:DG17)-COUNTIF($BP17:DG17,"")+1),"") ->  | DI17: =IF(DI$14>=$AT17,INDEX(Break3,COLUMNS($BP17:DH17)-COUNTIF($BP17:DH17,"")+1),"") ->  | DJ17: =IF(DJ$14>=$AT17,INDEX(Break3,COLUMNS($BP17:DI17)-COUNTIF($BP17:DI17,"")+1),"") ->  | DK17: =IF(DK$14>=$AT17,INDEX(Break3,COLUMNS($BP17:DJ17)-COUNTIF($BP17:DJ17,"")+1),"") ->  | DL17: =IF(DL$14>=$AT17,INDEX(Break3,COLUMNS($BP17:DK17)-COUNTIF($BP17:DK17,"")+1),"") ->  | DM17: =IF(DM$14>=$AT17,INDEX(Break3,COLUMNS($BP17:DL17)-COUNTIF($BP17:DL17,"")+1),"") ->  | DN17: =IF(DN$14>=$AT17,INDEX(Break3,COLUMNS($BP17:DM17)-COUNTIF($BP17:DM17,"")+1),"") ->  | DO17: =IF(DO$14>=$AT17,INDEX(Break3,COLUMNS($BP17:DN17)-COUNTIF($BP17:DN17,"")+1),"") ->  | DP17: =IF(DP$14>=$AT17,INDEX(Break3,COLUMNS($BP17:DO17)-COUNTIF($BP17:DO17,"")+1),"") ->  | DQ17: =IF(DQ$14>=$AT17,INDEX(Break3,COLUMNS($BP17:DP17)-COUNTIF($BP17:DP17,"")+1),"") ->  | DR17: =IF(DR$14>=$AT17,INDEX(Break3,COLUMNS($BP17:DQ17)-COUNTIF($BP17:DQ17,"")+1),"") ->  | DS17: =IF(DS$14>=$AT17,INDEX(Break3,COLUMNS($BP17:DR17)-COUNTIF($BP17:DR17,"")+1),"") ->  | DT17: =IF(DT$14>=$AT17,INDEX(Break3,COLUMNS($BP17:DS17)-COUNTIF($BP17:DS17,"")+1),"") ->  | DU17: =IF(DU$14>=$AT17,INDEX(Break3,COLUMNS($BP17:DT17)-COUNTIF($BP17:DT17,"")+1),"") ->  | DV17: =IF(DV$14>=$AT17,INDEX(Break3,COLUMNS($BP17:DU17)-COUNTIF($BP17:DU17,"")+1),"") ->  | DW17: =IF(DW$14>=$AT17,INDEX(Break3,COLUMNS($BP17:DV17)-COUNTIF($BP17:DV17,"")+1),"") ->  | DX17: =IF(DX$14>=$AT17,INDEX(Break3,COLUMNS($BP17:DW17)-COUNTIF($BP17:DW17,"")+1),"") ->  | DY17: =IF(DY$14>=$AT17,INDEX(Break3,COLUMNS($BP17:DX17)-COUNTIF($BP17:DX17,"")+1),"") ->  | DZ17: =IF(DZ$14>=$AT17,INDEX(Break3,COLUMNS($BP17:DY17)-COUNTIF($BP17:DY17,"")+1),"") ->  | EA17: =IF(EA$14>=$AT17,INDEX(Break3,COLUMNS($BP17:DZ17)-COUNTIF($BP17:DZ17,"")+1),"") ->  | EB17: =IF(EB$14>=$AT17,INDEX(Break3,COLUMNS($BP17:EA17)-COUNTIF($BP17:EA17,"")+1),"") ->  | EC17: =IF(EC$14>=$AT17,INDEX(Break3,COLUMNS($BP17:EB17)-COUNTIF($BP17:EB17,"")+1),"") ->  | ED17: =IF(ED$14>=$AT17,INDEX(Break3,COLUMNS($BP17:EC17)-COUNTIF($BP17:EC17,"")+1),"") ->  | EE17: =IF(EE$14>=$AT17,INDEX(Break3,COLUMNS($BP17:ED17)-COUNTIF($BP17:ED17,"")+1),"") ->  | EF17: =IF(EF$14>=$AT17,INDEX(Break3,COLUMNS($BP17:EE17)-COUNTIF($BP17:EE17,"")+1),"") ->  | EG17: =IF(EG$14>=$AT17,INDEX(Break3,COLUMNS($BP17:EF17)-COUNTIF($BP17:EF17,"")+1),"") ->  | EH17: =IF(EH$14>=$AT17,INDEX(Break3,COLUMNS($BP17:EG17)-COUNTIF($BP17:EG17,"")+1),"") ->  | EI17: =IF(EI$14>=$AT17,INDEX(Break3,COLUMNS($BP17:EH17)-COUNTIF($BP17:EH17,"")+1),"") ->  | EK17: 2024 | EL17: 25 | EM17: 8 | EO17: 8 | EP17: 8 | EQ17: 8 | ER17: 8 | ES17: 8 | ET17: 8 | EU17: 8 | EV17: 8 | EW17: 8 | EX17: 8 | EY17: 8 | EZ17: 8 | FA17: 8 | FB17: 8 | FC17: 8 | FD17: 8 | FE17: 8 | FG17: Arts & Recreation Services | FH17: =SUMPRODUCT(SUBTOTAL(3,OFFSET('Construction Workforce'!$D$15:$D$513,ROW('Construction Workforce'!$D$15:$D$513)-MIN(ROW('Construction Workforce'!$D$15:$D$513)),,1,)),N('Construction Workforce'!$D$15:$D$513=FG17)) -> 0
B18: Project 4 | C18: Project 4 | D18: Company 4 | E18: Other | F18: 150 | G18: Feasibility | H18: 2025 | I18: 1 | J18: 8 | K18: 40 | L18: 2027 | M18: 25 | N18: 30 | O18: 0.01 | P18: 0.99 | S18: 3 | T18: 0.7 | U18: 1 | V18: 0.7 | AO18: Project 4 | AP18: ='Master Sheet - Project Info'!$H18 -> 2025 | AQ18: ='Master Sheet - Project Info'!$I18 -> 1 | AR18: ='Master Sheet - Project Info'!$J18 -> 8 | AS18: ='Master Sheet - Project Info'!$K18 -> 40 | AT18: 2025 | AU18: 20 | AV18: 24 | AW18: 28 | AX18: 40 | AY18: 40 | AZ18: 28 | BA18: 24 | BB18: 20 | BC18: 0 | BD18: 0 | BE18: 0 | BF18: 0 | BG18: 0 | BH18: 0 | BI18: 0 | BJ18: 0 | BK18: 0 | BL18: 0 | BM18: 0 | BN18: 0 | BP18: =IF($BP$14>=AT18,INDEX(Break4,1),"") ->  | BQ18: =IF(BQ$14>=$AT18,INDEX(Break4,COLUMNS($BP18:BP18)-COUNTIF($BP18:BP18,"")+1),"") ->  | BR18: =IF(BR$14>=$AT18,INDEX(Break4,COLUMNS($BP18:BQ18)-COUNTIF($BP18:BQ18,"")+1),"") ->  | BS18: =IF(BS$14>=$AT18,INDEX(Break4,COLUMNS($BP18:BR18)-COUNTIF($BP18:BR18,"")+1),"") ->  | BT18: =IF(BT$14>=$AT18,INDEX(Break4,COLUMNS($BP18:BS18)-COUNTIF($BP18:BS18,"")+1),"") ->  | BU18: =IF(BU$14>=$AT18,INDEX(Break4,COLUMNS($BP18:BT18)-COUNTIF($BP18:BT18,"")+1),"") ->  | BV18: =IF(BV$14>=$AT18,INDEX(Break4,COLUMNS($BP18:BU18)-COUNTIF($BP18:BU18,"")+1),"") ->  | BW18: =IF(BW$14>=$AT18,INDEX(Break4,COLUMNS($BP18:BV18)-COUNTIF($BP18:BV18,"")+1),"") ->  | BX18: =IF(BX$14>=$AT18,INDEX(Break4,COLUMNS($BP18:BW18)-COUNTIF($BP18:BW18,"")+1),"") -> 20 | BY18: =IF(BY$14>=$AT18,INDEX(Break4,COLUMNS($BP18:BX18)-COUNTIF($BP18:BX18,"")+1),"") -> 24 | BZ18: =IF(BZ$14>=$AT18,INDEX(Break4,COLUMNS($BP18:BY18)-COUNTIF($BP18:BY18,"")+1),"") -> 28 | CA18: =IF(CA$14>=$AT18,INDEX(Break4,COLUMNS($BP18:BZ18)-COUNTIF($BP18:BZ18,"")+1),"") -> 40 | CB18: =IF(CB$14>=$AT18,INDEX(Break4,COLUMNS($BP18:CA18)-COUNTIF($BP18:CA18,"")+1),"") -> 40 | CC18: =IF(CC$14>=$AT18,INDEX(Break4,COLUMNS($BP18:CB18)-COUNTIF($BP18:CB18,"")+1),"") -> 28 | CD18: =IF(CD$14>=$AT18,INDEX(Break4,COLUMNS($BP18:CC18)-COUNTIF($BP18:CC18,"")+1),"") -> 24 | CE18: =IF(CE$14>=$AT18,INDEX(Break4,COLUMNS($BP18:CD18)-COUNTIF($BP18:CD18,"")+1),"") -> 20 | CF18: =IF(CF$14>=$AT18,INDEX(Break4,COLUMNS($BP18:CE18)-COUNTIF($BP18:CE18,"")+1),"") -> 0 | CG18: =IF(CG$14>=$AT18,INDEX(Break4,COLUMNS($BP18:CF18)-COUNTIF($BP18:CF18,"")+1),"") -> 0 | CH18: =IF(CH$14>=$AT18,INDEX(Break4,COLUMNS($BP18:CG18)-COUNTIF($BP18:CG18,"")+1),"") -> 0 | CI18: =IF(CI$14>=$AT18,INDEX(Break4,COLUMNS($BP18:CH18)-COUNTIF($BP18:CH18,"")+1),"") -> 0 | CJ18: =IF(CJ$14>=$AT18,INDEX(Break4,COLUMNS($BP18:CI18)-COUNTIF($BP18:CI18,"")+1),"") -> 0 | CK18: =IF(CK$14>=$AT18,INDEX(Break4,COLUMNS($BP18:CJ18)-COUNTIF($BP18:CJ18,"")+1),"") -> 0 | CL18: =IF(CL$14>=$AT18,INDEX(Break4,COLUMNS($BP18:CK18)-COUNTIF($BP18:CK18,"")+1),"") -> 0 | CM18: =IF(CM$14>=$AT18,INDEX(Break4,COLUMNS($BP18:CL18)-COUNTIF($BP18:CL18,"")+1),"") -> 0 | CN18: =IF(CN$14>=$AT18,INDEX(Break4,COLUMNS($BP18:CM18)-COUNTIF($BP18:CM18,"")+1),"") -> 0 | CO18: =IF(CO$14>=$AT18,INDEX(Break4,COLUMNS($BP18:CN18)-COUNTIF($BP18:CN18,"")+1),"") -> 0 | CP18: =IF(CP$14>=$AT18,INDEX(Break4,COLUMNS($BP18:CO18)-COUNTIF($BP18:CO18,"")+1),"") -> 0 | CQ18: =IF(CQ$14>=$AT18,INDEX(Break4,COLUMNS($BP18:CP18)-COUNTIF($BP18:CP18,"")+1),"") -> 0 | CR18: =IF(CR$14>=$AT18,INDEX(Break4,COLUMNS($BP18:CQ18)-COUNTIF($BP18:CQ18,"")+1),"") ->  | CS18: =IF(CS$14>=$AT18,INDEX(Break4,COLUMNS($BP18:CR18)-COUNTIF($BP18:CR18,"")+1),"") ->  | CT18: =IF(CT$14>=$AT18,INDEX(Break4,COLUMNS($BP18:CS18)-COUNTIF($BP18:CS18,"")+1),"") ->  | CU18: =IF(CU$14>=$AT18,INDEX(Break4,COLUMNS($BP18:CT18)-COUNTIF($BP18:CT18,"")+1),"") ->  | CV18: =IF(CV$14>=$AT18,INDEX(Break4,COLUMNS($BP18:CU18)-COUNTIF($BP18:CU18,"")+1),"") ->  | CW18: =IF(CW$14>=$AT18,INDEX(Break4,COLUMNS($BP18:CV18)-COUNTIF($BP18:CV18,"")+1),"") ->  | CX18: =IF(CX$14>=$AT18,INDEX(Break4,COLUMNS($BP18:CW18)-COUNTIF($BP18:CW18,"")+1),"") ->  | CY18: =IF(CY$14>=$AT18,INDEX(Break4,COLUMNS($BP18:CX18)-COUNTIF($BP18:CX18,"")+1),"") ->  | CZ18: =IF(CZ$14>=$AT18,INDEX(Break4,COLUMNS($BP18:CY18)-COUNTIF($BP18:CY18,"")+1),"") ->  | DA18: =IF(DA$14>=$AT18,INDEX(Break4,COLUMNS($BP18:CZ18)-COUNTIF($BP18:CZ18,"")+1),"") ->  | DB18: =IF(DB$14>=$AT18,INDEX(Break4,COLUMNS($BP18:DA18)-COUNTIF($BP18:DA18,"")+1),"") ->  | DC18: =IF(DC$14>=$AT18,INDEX(Break4,COLUMNS($BP18:DB18)-COUNTIF($BP18:DB18,"")+1),"") ->  | DD18: =IF(DD$14>=$AT18,INDEX(Break4,COLUMNS($BP18:DC18)-COUNTIF($BP18:DC18,"")+1),"") ->  | DE18: =IF(DE$14>=$AT18,INDEX(Break4,COLUMNS($BP18:DD18)-COUNTIF($BP18:DD18,"")+1),"") ->  | DF18: =IF(DF$14>=$AT18,INDEX(Break4,COLUMNS($BP18:DE18)-COUNTIF($BP18:DE18,"")+1),"") ->  | DG18: =IF(DG$14>=$AT18,INDEX(Break4,COLUMNS($BP18:DF18)-COUNTIF($BP18:DF18,"")+1),"") ->  | DH18: =IF(DH$14>=$AT18,INDEX(Break4,COLUMNS($BP18:DG18)-COUNTIF($BP18:DG18,"")+1),"") ->  | DI18: =IF(DI$14>=$AT18,INDEX(Break4,COLUMNS($BP18:DH18)-COUNTIF($BP18:DH18,"")+1),"") ->  | DJ18: =IF(DJ$14>=$AT18,INDEX(Break4,COLUMNS($BP18:DI18)-COUNTIF($BP18:DI18,"")+1),"") ->  | DK18: =IF(DK$14>=$AT18,INDEX(Break4,COLUMNS($BP18:DJ18)-COUNTIF($BP18:DJ18,"")+1),"") ->  | DL18: =IF(DL$14>=$AT18,INDEX(Break4,COLUMNS($BP18:DK18)-COUNTIF($BP18:DK18,"")+1),"") ->  | DM18: =IF(DM$14>=$AT18,INDEX(Break4,COLUMNS($BP18:DL18)-COUNTIF($BP18:DL18,"")+1),"") ->  | DN18: =IF(DN$14>=$AT18,INDEX(Break4,COLUMNS($BP18:DM18)-COUNTIF($BP18:DM18,"")+1),"") ->  | DO18: =IF(DO$14>=$AT18,INDEX(Break4,COLUMNS($BP18:DN18)-COUNTIF($BP18:DN18,"")+1),"") ->  | DP18: =IF(DP$14>=$AT18,INDEX(Break4,COLUMNS($BP18:DO18)-COUNTIF($BP18:DO18,"")+1),"") ->  | DQ18: =IF(DQ$14>=$AT18,INDEX(Break4,COLUMNS($BP18:DP18)-COUNTIF($BP18:DP18,"")+1),"") ->  | DR18: =IF(DR$14>=$AT18,INDEX(Break4,COLUMNS($BP18:DQ18)-COUNTIF($BP18:DQ18,"")+1),"") ->  | DS18: =IF(DS$14>=$AT18,INDEX(Break4,COLUMNS($BP18:DR18)-COUNTIF($BP18:DR18,"")+1),"") ->  | DT18: =IF(DT$14>=$AT18,INDEX(Break4,COLUMNS($BP18:DS18)-COUNTIF($BP18:DS18,"")+1),"") ->  | DU18: =IF(DU$14>=$AT18,INDEX(Break4,COLUMNS($BP18:DT18)-COUNTIF($BP18:DT18,"")+1),"") ->  | DV18: =IF(DV$14>=$AT18,INDEX(Break4,COLUMNS($BP18:DU18)-COUNTIF($BP18:DU18,"")+1),"") ->  | DW18: =IF(DW$14>=$AT18,INDEX(Break4,COLUMNS($BP18:DV18)-COUNTIF($BP18:DV18,"")+1),"") ->  | DX18: =IF(DX$14>=$AT18,INDEX(Break4,COLUMNS($BP18:DW18)-COUNTIF($BP18:DW18,"")+1),"") ->  | DY18: =IF(DY$14>=$AT18,INDEX(Break4,COLUMNS($BP18:DX18)-COUNTIF($BP18:DX18,"")+1),"") ->  | DZ18: =IF(DZ$14>=$AT18,INDEX(Break4,COLUMNS($BP18:DY18)-COUNTIF($BP18:DY18,"")+1),"") ->  | EA18: =IF(EA$14>=$AT18,INDEX(Break4,COLUMNS($BP18:DZ18)-COUNTIF($BP18:DZ18,"")+1),"") ->  | EB18: =IF(EB$14>=$AT18,INDEX(Break4,COLUMNS($BP18:EA18)-COUNTIF($BP18:EA18,"")+1),"") ->  | EC18: =IF(EC$14>=$AT18,INDEX(Break4,COLUMNS($BP18:EB18)-COUNTIF($BP18:EB18,"")+1),"") ->  | ED18: =IF(ED$14>=$AT18,INDEX(Break4,COLUMNS($BP18:EC18)-COUNTIF($BP18:EC18,"")+1),"") ->  | EE18: =IF(EE$14>=$AT18,INDEX(Break4,COLUMNS($BP18:ED18)-COUNTIF($BP18:ED18,"")+1),"") ->  | EF18: =IF(EF$14>=$AT18,INDEX(Break4,COLUMNS($BP18:EE18)-COUNTIF($BP18:EE18,"")+1),"") ->  | EG18: =IF(EG$14>=$AT18,INDEX(Break4,COLUMNS($BP18:EF18)-COUNTIF($BP18:EF18,"")+1),"") ->  | EH18: =IF(EH$14>=$AT18,INDEX(Break4,COLUMNS($BP18:EG18)-COUNTIF($BP18:EG18,"")+1),"") ->  | EI18: =IF(EI$14>=$AT18,INDEX(Break4,COLUMNS($BP18:EH18)-COUNTIF($BP18:EH18,"")+1),"") ->  | EK18: 2027 | EL18: 25 | EM18: 30 | ER18: 30 | ES18: 30 | ET18: 30 | EU18: 30 | EV18: 30 | EW18: 30 | EX18: 30 | EY18: 30 | EZ18: 30 | FA18: 30 | FB18: 30 | FC18: 30 | FD18: 30 | FE18: 30 | FG18: Construction | FH18: =SUMPRODUCT(SUBTOTAL(3,OFFSET('Construction Workforce'!$D$15:$D$513,ROW('Construction Workforce'!$D$15:$D$513)-MIN(ROW('Construction Workforce'!$D$15:$D$513)),,1,)),N('Construction Workforce'!$D$15:$D$513=FG18)) -> 0
B19: Project 5 | C19: Project 5 | D19: Company 5 | E19: Other | F19: 55 | G19: Planning | H19: 2024 | I19: 1 | J19: 4 | K19: 20 | L19: 2025 | M19: 25 | N19: 20 | O19: 1 | P19: 0 | S19: 4 | T19: 0.7 | U19: 1 | V19: 1 | W19: 0.7 | AO19: Project 5 | AP19: ='Master Sheet - Project Info'!$H19 -> 2024 | AQ19: ='Master Sheet - Project Info'!$I19 -> 1 | AR19: ='Master Sheet - Project Info'!$J19 -> 4 | AS19: ='Master Sheet - Project Info'!$K19 -> 20 | AT19: 2024 | AU19: 14 | AV19: 20 | AW19: 20 | AX19: 14 | AY19: 0 | AZ19: 0 | BA19: 0 | BB19: 0 | BC19: 0 | BD19: 0 | BE19: 0 | BF19: 0 | BG19: 0 | BH19: 0 | BI19: 0 | BJ19: 0 | BK19: 0 | BL19: 0 | BM19: 0 | BN19: 0 | BP19: =IF($BP$14>=AT19,INDEX(Break5,1),"") ->  | BQ19: =IF(BQ$14>=$AT19,INDEX(Break5,COLUMNS($BP19:BP19)-COUNTIF($BP19:BP19,"")+1),"") ->  | BR19: =IF(BR$14>=$AT19,INDEX(Break5,COLUMNS($BP19:BQ19)-COUNTIF($BP19:BQ19,"")+1),"") ->  | BS19: =IF(BS$14>=$AT19,INDEX(Break5,COLUMNS($BP19:BR19)-COUNTIF($BP19:BR19,"")+1),"") ->  | BT19: =IF(BT$14>=$AT19,INDEX(Break5,COLUMNS($BP19:BS19)-COUNTIF($BP19:BS19,"")+1),"") -> 14 | BU19: =IF(BU$14>=$AT19,INDEX(Break5,COLUMNS($BP19:BT19)-COUNTIF($BP19:BT19,"")+1),"") -> 20 | BV19: =IF(BV$14>=$AT19,INDEX(Break5,COLUMNS($BP19:BU19)-COUNTIF($BP19:BU19,"")+1),"") -> 20 | BW19: =IF(BW$14>=$AT19,INDEX(Break5,COLUMNS($BP19:BV19)-COUNTIF($BP19:BV19,"")+1),"") -> 14 | BX19: =IF(BX$14>=$AT19,INDEX(Break5,COLUMNS($BP19:BW19)-COUNTIF($BP19:BW19,"")+1),"") -> 0 | BY19: =IF(BY$14>=$AT19,INDEX(Break5,COLUMNS($BP19:BX19)-COUNTIF($BP19:BX19,"")+1),"") -> 0 | BZ19: =IF(BZ$14>=$AT19,INDEX(Break5,COLUMNS($BP19:BY19)-COUNTIF($BP19:BY19,"")+1),"") -> 0 | CA19: =IF(CA$14>=$AT19,INDEX(Break5,COLUMNS($BP19:BZ19)-COUNTIF($BP19:BZ19,"")+1),"") -> 0 | CB19: =IF(CB$14>=$AT19,INDEX(Break5,COLUMNS($BP19:CA19)-COUNTIF($BP19:CA19,"")+1),"") -> 0 | CC19: =IF(CC$14>=$AT19,INDEX(Break5,COLUMNS($BP19:CB19)-COUNTIF($BP19:CB19,"")+1),"") -> 0 | CD19: =IF(CD$14>=$AT19,INDEX(Break5,COLUMNS($BP19:CC19)-COUNTIF($BP19:CC19,"")+1),"") -> 0 | CE19: =IF(CE$14>=$AT19,INDEX(Break5,COLUMNS($BP19:CD19)-COUNTIF($BP19:CD19,"")+1),"") -> 0 | CF19: =IF(CF$14>=$AT19,INDEX(Break5,COLUMNS($BP19:CE19)-COUNTIF($BP19:CE19,"")+1),"") -> 0 | CG19: =IF(CG$14>=$AT19,INDEX(Break5,COLUMNS($BP19:CF19)-COUNTIF($BP19:CF19,"")+1),"") -> 0 | CH19: =IF(CH$14>=$AT19,INDEX(Break5,COLUMNS($BP19:CG19)-COUNTIF($BP19:CG19,"")+1),"") -> 0 | CI19: =IF(CI$14>=$AT19,INDEX(Break5,COLUMNS($BP19:CH19)-COUNTIF($BP19:CH19,"")+1),"") -> 0 | CJ19: =IF(CJ$14>=$AT19,INDEX(Break5,COLUMNS($BP19:CI19)-COUNTIF($BP19:CI19,"")+1),"") -> 0 | CK19: =IF(CK$14>=$AT19,INDEX(Break5,COLUMNS($BP19:CJ19)-COUNTIF($BP19:CJ19,"")+1),"") -> 0 | CL19: =IF(CL$14>=$AT19,INDEX(Break5,COLUMNS($BP19:CK19)-COUNTIF($BP19:CK19,"")+1),"") -> 0 | CM19: =IF(CM$14>=$AT19,INDEX(Break5,COLUMNS($BP19:CL19)-COUNTIF($BP19:CL19,"")+1),"") -> 0 | CN19: =IF(CN$14>=$AT19,INDEX(Break5,COLUMNS($BP19:CM19)-COUNTIF($BP19:CM19,"")+1),"") ->  | CO19: =IF(CO$14>=$AT19,INDEX(Break5,COLUMNS($BP19:CN19)-COUNTIF($BP19:CN19,"")+1),"") ->  | CP19: =IF(CP$14>=$AT19,INDEX(Break5,COLUMNS($BP19:CO19)-COUNTIF($BP19:CO19,"")+1),"") ->  | CQ19: =IF(CQ$14>=$AT19,INDEX(Break5,COLUMNS($BP19:CP19)-COUNTIF($BP19:CP19,"")+1),"") ->  | CR19: =IF(CR$14>=$AT19,INDEX(Break5,COLUMNS($BP19:CQ19)-COUNTIF($BP19:CQ19,"")+1),"") ->  | CS19: =IF(CS$14>=$AT19,INDEX(Break5,COLUMNS($BP19:CR19)-COUNTIF($BP19:CR19,"")+1),"") ->  | CT19: =IF(CT$14>=$AT19,INDEX(Break5,COLUMNS($BP19:CS19)-COUNTIF($BP19:CS19,"")+1),"") ->  | CU19: =IF(CU$14>=$AT19,INDEX(Break5,COLUMNS($BP19:CT19)-COUNTIF($BP19:CT19,"")+1),"") ->  | CV19: =IF(CV$14>=$AT19,INDEX(Break5,COLUMNS($BP19:CU19)-COUNTIF($BP19:CU19,"")+1),"") ->  | CW19: =IF(CW$14>=$AT19,INDEX(Break5,COLUMNS($BP19:CV19)-COUNTIF($BP19:CV19,"")+1),"") ->  | CX19: =IF(CX$14>=$AT19,INDEX(Break5,COLUMNS($BP19:CW19)-COUNTIF($BP19:CW19,"")+1),"") ->  | CY19: =IF(CY$14>=$AT19,INDEX(Break5,COLUMNS($BP19:CX19)-COUNTIF($BP19:CX19,"")+1),"") ->  | CZ19: =IF(CZ$14>=$AT19,INDEX(Break5,COLUMNS($BP19:CY19)-COUNTIF($BP19:CY19,"")+1),"") ->  | DA19: =IF(DA$14>=$AT19,INDEX(Break5,COLUMNS($BP19:CZ19)-COUNTIF($BP19:CZ19,"")+1),"") ->  | DB19: =IF(DB$14>=$AT19,INDEX(Break5,COLUMNS($BP19:DA19)-COUNTIF($BP19:DA19,"")+1),"") ->  | DC19: =IF(DC$14>=$AT19,INDEX(Break5,COLUMNS($BP19:DB19)-COUNTIF($BP19:DB19,"")+1),"") ->  | DD19: =IF(DD$14>=$AT19,INDEX(Break5,COLUMNS($BP19:DC19)-COUNTIF($BP19:DC19,"")+1),"") ->  | DE19: =IF(DE$14>=$AT19,INDEX(Break5,COLUMNS($BP19:DD19)-COUNTIF($BP19:DD19,"")+1),"") ->  | DF19: =IF(DF$14>=$AT19,INDEX(Break5,COLUMNS($BP19:DE19)-COUNTIF($BP19:DE19,"")+1),"") ->  | DG19: =IF(DG$14>=$AT19,INDEX(Break5,COLUMNS($BP19:DF19)-COUNTIF($BP19:DF19,"")+1),"") ->  | DH19: =IF(DH$14>=$AT19,INDEX(Break5,COLUMNS($BP19:DG19)-COUNTIF($BP19:DG19,"")+1),"") ->  | DI19: =IF(DI$14>=$AT19,INDEX(Break5,COLUMNS($BP19:DH19)-COUNTIF($BP19:DH19,"")+1),"") ->  | DJ19: =IF(DJ$14>=$AT19,INDEX(Break5,COLUMNS($BP19:DI19)-COUNTIF($BP19:DI19,"")+1),"") ->  | DK19: =IF(DK$14>=$AT19,INDEX(Break5,COLUMNS($BP19:DJ19)-COUNTIF($BP19:DJ19,"")+1),"") ->  | DL19: =IF(DL$14>=$AT19,INDEX(Break5,COLUMNS($BP19:DK19)-COUNTIF($BP19:DK19,"")+1),"") ->  | DM19: =IF(DM$14>=$AT19,INDEX(Break5,COLUMNS($BP19:DL19)-COUNTIF($BP19:DL19,"")+1),"") ->  | DN19: =IF(DN$14>=$AT19,INDEX(Break5,COLUMNS($BP19:DM19)-COUNTIF($BP19:DM19,"")+1),"") ->  | DO19: =IF(DO$14>=$AT19,INDEX(Break5,COLUMNS($BP19:DN19)-COUNTIF($BP19:DN19,"")+1),"") ->  | DP19: =IF(DP$14>=$AT19,INDEX(Break5,COLUMNS($BP19:DO19)-COUNTIF($BP19:DO19,"")+1),"") ->  | DQ19: =IF(DQ$14>=$AT19,INDEX(Break5,COLUMNS($BP19:DP19)-COUNTIF($BP19:DP19,"")+1),"") ->  | DR19: =IF(DR$14>=$AT19,INDEX(Break5,COLUMNS($BP19:DQ19)-COUNTIF($BP19:DQ19,"")+1),"") ->  | DS19: =IF(DS$14>=$AT19,INDEX(Break5,COLUMNS($BP19:DR19)-COUNTIF($BP19:DR19,"")+1),"") ->  | DT19: =IF(DT$14>=$AT19,INDEX(Break5,COLUMNS($BP19:DS19)-COUNTIF($BP19:DS19,"")+1),"") ->  | DU19: =IF(DU$14>=$AT19,INDEX(Break5,COLUMNS($BP19:DT19)-COUNTIF($BP19:DT19,"")+1),"") ->  | DV19: =IF(DV$14>=$AT19,INDEX(Break5,COLUMNS($BP19:DU19)-COUNTIF($BP19:DU19,"")+1),"") ->  | DW19: =IF(DW$14>=$AT19,INDEX(Break5,COLUMNS($BP19:DV19)-COUNTIF($BP19:DV19,"")+1),"") ->  | DX19: =IF(DX$14>=$AT19,INDEX(Break5,COLUMNS($BP19:DW19)-COUNTIF($BP19:DW19,"")+1),"") ->  | DY19: =IF(DY$14>=$AT19,INDEX(Break5,COLUMNS($BP19:DX19)-COUNTIF($BP19:DX19,"")+1),"") ->  | DZ19: =IF(DZ$14>=$AT19,INDEX(Break5,COLUMNS($BP19:DY19)-COUNTIF($BP19:DY19,"")+1),"") ->  | EA19: =IF(EA$14>=$AT19,INDEX(Break5,COLUMNS($BP19:DZ19)-COUNTIF($BP19:DZ19,"")+1),"") ->  | EB19: =IF(EB$14>=$AT19,INDEX(Break5,COLUMNS($BP19:EA19)-COUNTIF($BP19:EA19,"")+1),"") ->  | EC19: =IF(EC$14>=$AT19,INDEX(Break5,COLUMNS($BP19:EB19)-COUNTIF($BP19:EB19,"")+1),"") ->  | ED19: =IF(ED$14>=$AT19,INDEX(Break5,COLUMNS($BP19:EC19)-COUNTIF($BP19:EC19,"")+1),"") ->  | EE19: =IF(EE$14>=$AT19,INDEX(Break5,COLUMNS($BP19:ED19)-COUNTIF($BP19:ED19,"")+1),"") ->  | EF19: =IF(EF$14>=$AT19,INDEX(Break5,COLUMNS($BP19:EE19)-COUNTIF($BP19:EE19,"")+1),"") ->  | EG19: =IF(EG$14>=$AT19,INDEX(Break5,COLUMNS($BP19:EF19)-COUNTIF($BP19:EF19,"")+1),"") ->  | EH19: =IF(EH$14>=$AT19,INDEX(Break5,COLUMNS($BP19:EG19)-COUNTIF($BP19:EG19,"")+1),"") ->  | EI19: =IF(EI$14>=$AT19,INDEX(Break5,COLUMNS($BP19:EH19)-COUNTIF($BP19:EH19,"")+1),"") ->  | EK19: 2025 | EL19: 25 | EM19: 20 | EP19: 20 | EQ19: 20 | ER19: 20 | ES19: 20 | ET19: 20 | EU19: 20 | EV19: 20 | EW19: 20 | EX19: 20 | EY19: 20 | EZ19: 20 | FA19: 20 | FB19: 20 | FC19: 20 | FD19: 20 | FE19: 20 | FG19: Energy | FH19: =SUMPRODUCT(SUBTOTAL(3,OFFSET('Construction Workforce'!$D$15:$D$513,ROW('Construction Workforce'!$D$15:$D$513)-MIN(ROW('Construction Workforce'!$D$15:$D$513)),,1,)),N('Construction Workforce'!$D$15:$D$513=FG19)) -> 3
B20: Project 6 | C20: Project 6 | D20: Company 6 | E20: Manufacturing | F20: 1200 | G20: Planning | H20: 2025 | I20: 3 | J20: 8 | K20: 1000 | L20: 2028 | M20: 25 | N20: 115 | O20: 0.5 | P20: 0.5 | S20: 5 | T20: 0.5 | U20: 0.7 | V20: 1 | W20: 1 | X20: 0.7 | AO20: Project 6 | AP20: ='Master Sheet - Project Info'!$H20 -> 2025 | AQ20: ='Master Sheet - Project Info'!$I20 -> 3 | AR20: ='Master Sheet - Project Info'!$J20 -> 8 | AS20: ='Master Sheet - Project Info'!$K20 -> 1000 | AT20: 2025.5 | AU20: 500 | AV20: 600 | AW20: 700 | AX20: 1000 | AY20: 1000 | AZ20: 700 | BA20: 600 | BB20: 500 | BC20: 0 | BD20: 0 | BE20: 0 | BF20: 0 | BG20: 0 | BH20: 0 | BI20: 0 | BJ20: 0 | BK20: 0 | BL20: 0 | BM20: 0 | BN20: 0 | BP20: =IF($BP$14>=AT20,INDEX(Break7,1),"") ->  | BQ20: =IF(BQ$14>=$AT20,INDEX(Break7,COLUMNS($BP20:BP20)-COUNTIF($BP20:BP20,"")+1),"") ->  | BR20: =IF(BR$14>=$AT20,INDEX(Break7,COLUMNS($BP20:BQ20)-COUNTIF($BP20:BQ20,"")+1),"") ->  | BS20: =IF(BS$14>=$AT20,INDEX(Break7,COLUMNS($BP20:BR20)-COUNTIF($BP20:BR20,"")+1),"") ->  | BT20: =IF(BT$14>=$AT20,INDEX(Break7,COLUMNS($BP20:BS20)-COUNTIF($BP20:BS20,"")+1),"") ->  | BU20: =IF(BU$14>=$AT20,INDEX(Break7,COLUMNS($BP20:BT20)-COUNTIF($BP20:BT20,"")+1),"") ->  | BV20: =IF(BV$14>=$AT20,INDEX(Break7,COLUMNS($BP20:BU20)-COUNTIF($BP20:BU20,"")+1),"") ->  | BW20: =IF(BW$14>=$AT20,INDEX(Break7,COLUMNS($BP20:BV20)-COUNTIF($BP20:BV20,"")+1),"") ->  | BX20: =IF(BX$14>=$AT20,INDEX(Break7,COLUMNS($BP20:BW20)-COUNTIF($BP20:BW20,"")+1),"") ->  | BY20: =IF(BY$14>=$AT20,INDEX(Break7,COLUMNS($BP20:BX20)-COUNTIF($BP20:BX20,"")+1),"") ->  | BZ20: =IF(BZ$14>=$AT20,INDEX(Break7,COLUMNS($BP20:BY20)-COUNTIF($BP20:BY20,"")+1),"") -> 500 | CA20: =IF(CA$14>=$AT20,INDEX(Break7,COLUMNS($BP20:BZ20)-COUNTIF($BP20:BZ20,"")+1),"") -> 600 | CB20: =IF(CB$14>=$AT20,INDEX(Break7,COLUMNS($BP20:CA20)-COUNTIF($BP20:CA20,"")+1),"") -> 700 | CC20: =IF(CC$14>=$AT20,INDEX(Break7,COLUMNS($BP20:CB20)-COUNTIF($BP20:CB20,"")+1),"") -> 1000 | CD20: =IF(CD$14>=$AT20,INDEX(Break7,COLUMNS($BP20:CC20)-COUNTIF($BP20:CC20,"")+1),"") -> 1000 | CE20: =IF(CE$14>=$AT20,INDEX(Break7,COLUMNS($BP20:CD20)-COUNTIF($BP20:CD20,"")+1),"") -> 700 | CF20: =IF(CF$14>=$AT20,INDEX(Break7,COLUMNS($BP20:CE20)-COUNTIF($BP20:CE20,"")+1),"") -> 600 | CG20: =IF(CG$14>=$AT20,INDEX(Break7,COLUMNS($BP20:CF20)-COUNTIF($BP20:CF20,"")+1),"") -> 500 | CH20: =IF(CH$14>=$AT20,INDEX(Break7,COLUMNS($BP20:CG20)-COUNTIF($BP20:CG20,"")+1),"") -> 0 | CI20: =IF(CI$14>=$AT20,INDEX(Break7,COLUMNS($BP20:CH20)-COUNTIF($BP20:CH20,"")+1),"") -> 0 | CJ20: =IF(CJ$14>=$AT20,INDEX(Break7,COLUMNS($BP20:CI20)-COUNTIF($BP20:CI20,"")+1),"") -> 0 | CK20: =IF(CK$14>=$AT20,INDEX(Break7,COLUMNS($BP20:CJ20)-COUNTIF($BP20:CJ20,"")+1),"") -> 0 | CL20: =IF(CL$14>=$AT20,INDEX(Break7,COLUMNS($BP20:CK20)-COUNTIF($BP20:CK20,"")+1),"") -> 0 | CM20: =IF(CM$14>=$AT20,INDEX(Break7,COLUMNS($BP20:CL20)-COUNTIF($BP20:CL20,"")+1),"") -> 0 | CN20: =IF(CN$14>=$AT20,INDEX(Break7,COLUMNS($BP20:CM20)-COUNTIF($BP20:CM20,"")+1),"") -> 0 | CO20: =IF(CO$14>=$AT20,INDEX(Break7,COLUMNS($BP20:CN20)-COUNTIF($BP20:CN20,"")+1),"") -> 0 | CP20: =IF(CP$14>=$AT20,INDEX(Break7,COLUMNS($BP20:CO20)-COUNTIF($BP20:CO20,"")+1),"") -> 0 | CQ20: =IF(CQ$14>=$AT20,INDEX(Break7,COLUMNS($BP20:CP20)-COUNTIF($BP20:CP20,"")+1),"") -> 0 | CR20: =IF(CR$14>=$AT20,INDEX(Break7,COLUMNS($BP20:CQ20)-COUNTIF($BP20:CQ20,"")+1),"") -> 0 | CS20: =IF(CS$14>=$AT20,INDEX(Break7,COLUMNS($BP20:CR20)-COUNTIF($BP20:CR20,"")+1),"") -> 0 | CT20: =IF(CT$14>=$AT20,INDEX(Break7,COLUMNS($BP20:CS20)-COUNTIF($BP20:CS20,"")+1),"") ->  | CU20: =IF(CU$14>=$AT20,INDEX(Break7,COLUMNS($BP20:CT20)-COUNTIF($BP20:CT20,"")+1),"") ->  | CV20: =IF(CV$14>=$AT20,INDEX(Break7,COLUMNS($BP20:CU20)-COUNTIF($BP20:CU20,"")+1),"") ->  | CW20: =IF(CW$14>=$AT20,INDEX(Break7,COLUMNS($BP20:CV20)-COUNTIF($BP20:CV20,"")+1),"") ->  | CX20: =IF(CX$14>=$AT20,INDEX(Break7,COLUMNS($BP20:CW20)-COUNTIF($BP20:CW20,"")+1),"") ->  | CY20: =IF(CY$14>=$AT20,INDEX(Break7,COLUMNS($BP20:CX20)-COUNTIF($BP20:CX20,"")+1),"") ->  | CZ20: =IF(CZ$14>=$AT20,INDEX(Break7,COLUMNS($BP20:CY20)-COUNTIF($BP20:CY20,"")+1),"") ->  | DA20: =IF(DA$14>=$AT20,INDEX(Break7,COLUMNS($BP20:CZ20)-COUNTIF($BP20:CZ20,"")+1),"") ->  | DB20: =IF(DB$14>=$AT20,INDEX(Break7,COLUMNS($BP20:DA20)-COUNTIF($BP20:DA20,"")+1),"") ->  | DC20: =IF(DC$14>=$AT20,INDEX(Break7,COLUMNS($BP20:DB20)-COUNTIF($BP20:DB20,"")+1),"") ->  | DD20: =IF(DD$14>=$AT20,INDEX(Break7,COLUMNS($BP20:DC20)-COUNTIF($BP20:DC20,"")+1),"") ->  | DE20: =IF(DE$14>=$AT20,INDEX(Break7,COLUMNS($BP20:DD20)-COUNTIF($BP20:DD20,"")+1),"") ->  | DF20: =IF(DF$14>=$AT20,INDEX(Break7,COLUMNS($BP20:DE20)-COUNTIF($BP20:DE20,"")+1),"") ->  | DG20: =IF(DG$14>=$AT20,INDEX(Break7,COLUMNS($BP20:DF20)-COUNTIF($BP20:DF20,"")+1),"") ->  | DH20: =IF(DH$14>=$AT20,INDEX(Break7,COLUMNS($BP20:DG20)-COUNTIF($BP20:DG20,"")+1),"") ->  | DI20: =IF(DI$14>=$AT20,INDEX(Break7,COLUMNS($BP20:DH20)-COUNTIF($BP20:DH20,"")+1),"") ->  | DJ20: =IF(DJ$14>=$AT20,INDEX(Break7,COLUMNS($BP20:DI20)-COUNTIF($BP20:DI20,"")+1),"") ->  | DK20: =IF(DK$14>=$AT20,INDEX(Break7,COLUMNS($BP20:DJ20)-COUNTIF($BP20:DJ20,"")+1),"") ->  | DL20: =IF(DL$14>=$AT20,INDEX(Break7,COLUMNS($BP20:DK20)-COUNTIF($BP20:DK20,"")+1),"") ->  | DM20: =IF(DM$14>=$AT20,INDEX(Break7,COLUMNS($BP20:DL20)-COUNTIF($BP20:DL20,"")+1),"") ->  | DN20: =IF(DN$14>=$AT20,INDEX(Break7,COLUMNS($BP20:DM20)-COUNTIF($BP20:DM20,"")+1),"") ->  | DO20: =IF(DO$14>=$AT20,INDEX(Break7,COLUMNS($BP20:DN20)-COUNTIF($BP20:DN20,"")+1),"") ->  | DP20: =IF(DP$14>=$AT20,INDEX(Break7,COLUMNS($BP20:DO20)-COUNTIF($BP20:DO20,"")+1),"") ->  | DQ20: =IF(DQ$14>=$AT20,INDEX(Break7,COLUMNS($BP20:DP20)-COUNTIF($BP20:DP20,"")+1),"") ->  | DR20: =IF(DR$14>=$AT20,INDEX(Break7,COLUMNS($BP20:DQ20)-COUNTIF($BP20:DQ20,"")+1),"") ->  | DS20: =IF(DS$14>=$AT20,INDEX(Break7,COLUMNS($BP20:DR20)-COUNTIF($BP20:DR20,"")+1),"") ->  | DT20: =IF(DT$14>=$AT20,INDEX(Break7,COLUMNS($BP20:DS20)-COUNTIF($BP20:DS20,"")+1),"") ->  | DU20: =IF(DU$14>=$AT20,INDEX(Break7,COLUMNS($BP20:DT20)-COUNTIF($BP20:DT20,"")+1),"") ->  | DV20: =IF(DV$14>=$AT20,INDEX(Break7,COLUMNS($BP20:DU20)-COUNTIF($BP20:DU20,"")+1),"") ->  | DW20: =IF(DW$14>=$AT20,INDEX(Break7,COLUMNS($BP20:DV20)-COUNTIF($BP20:DV20,"")+1),"") ->  | DX20: =IF(DX$14>=$AT20,INDEX(Break7,COLUMNS($BP20:DW20)-COUNTIF($BP20:DW20,"")+1),"") ->  | DY20: =IF(DY$14>=$AT20,INDEX(Break7,COLUMNS($BP20:DX20)-COUNTIF($BP20:DX20,"")+1),"") ->  | DZ20: =IF(DZ$14>=$AT20,INDEX(Break7,COLUMNS($BP20:DY20)-COUNTIF($BP20:DY20,"")+1),"") ->  | EA20: =IF(EA$14>=$AT20,INDEX(Break7,COLUMNS($BP20:DZ20)-COUNTIF($BP20:DZ20,"")+1),"") ->  | EB20: =IF(EB$14>=$AT20,INDEX(Break7,COLUMNS($BP20:EA20)-COUNTIF($BP20:EA20,"")+1),"") ->  | EC20: =IF(EC$14>=$AT20,INDEX(Break7,COLUMNS($BP20:EB20)-COUNTIF($BP20:EB20,"")+1),"") ->  | ED20: =IF(ED$14>=$AT20,INDEX(Break7,COLUMNS($BP20:EC20)-COUNTIF($BP20:EC20,"")+1),"") ->  | EE20: =IF(EE$14>=$AT20,INDEX(Break7,COLUMNS($BP20:ED20)-COUNTIF($BP20:ED20,"")+1),"") ->  | EF20: =IF(EF$14>=$AT20,INDEX(Break7,COLUMNS($BP20:EE20)-COUNTIF($BP20:EE20,"")+1),"") ->  | EG20: =IF(EG$14>=$AT20,INDEX(Break7,COLUMNS($BP20:EF20)-COUNTIF($BP20:EF20,"")+1),"") ->  | EH20: =IF(EH$14>=$AT20,INDEX(Break7,COLUMNS($BP20:EG20)-COUNTIF($BP20:EG20,"")+1),"") ->  | EI20: =IF(EI$14>=$AT20,INDEX(Break7,COLUMNS($BP20:EH20)-COUNTIF($BP20:EH20,"")+1),"") ->  | EK20: 2028 | EL20: 25 | EM20: 115 | ES20: 115 | ET20: 115 | EU20: 115 | EV20: 115 | EW20: 115 | EX20: 115 | EY20: 115 | EZ20: 115 | FA20: 115 | FB20: 115 | FC20: 115 | FD20: 115 | FE20: 115 | FG20: Manufacturing | FH20: =SUMPRODUCT(SUBTOTAL(3,OFFSET('Construction Workforce'!$D$15:$D$513,ROW('Construction Workforce'!$D$15:$D$513)-MIN(ROW('Construction Workforce'!$D$15:$D$513)),,1,)),N('Construction Workforce'!$D$15:$D$513=FG20)) -> 9
B21: Project 7 | C21: Project 7 | D21: Company 7 | E21: Mining | F21: 280 | G21: Planning | H21: 2025 | I21: 1 | J21: 16 | K21: 137 | L21: 2028 | M21: 25 | N21: 69 | O21: 0.9 | P21: 0.1 | S21: 6 | T21: 0.5 | U21: 0.7 | V21: 1 | W21: 1 | X21: 0.7 | Y21: 0.5 | AO21: Project 7 | AP21: ='Master Sheet - Project Info'!$H21 -> 2025 | AQ21: ='Master Sheet - Project Info'!$I21 -> 1 | AR21: ='Master Sheet - Project Info'!$J21 -> 16 | AS21: ='Master Sheet - Project Info'!$K21 -> 137 | AT21: 2025 | AU21: 27.4 | AV21: 41.1 | AW21: 54.8 | AX21: 68.5 | AY21: 95.9 | AZ21: 109.6 | BA21: 123.3 | BB21: 137 | BC21: 137 | BD21: 137 | BE21: 137 | BF21: 123.3 | BG21: 95.9 | BH21: 68.5 | BI21: 54.8 | BJ21: 27.4 | BK21: 0 | BL21: 0 | BM21: 0 | BN21: 0 | BP21: =IF($BP$14>=AT21,INDEX(Break8,1),"") ->  | BQ21: =IF(BQ$14>=$AT21,INDEX(Break8,COLUMNS($BP21:BP21)-COUNTIF($BP21:BP21,"")+1),"") ->  | BR21: =IF(BR$14>=$AT21,INDEX(Break8,COLUMNS($BP21:BQ21)-COUNTIF($BP21:BQ21,"")+1),"") ->  | BS21: =IF(BS$14>=$AT21,INDEX(Break8,COLUMNS($BP21:BR21)-COUNTIF($BP21:BR21,"")+1),"") ->  | BT21: =IF(BT$14>=$AT21,INDEX(Break8,COLUMNS($BP21:BS21)-COUNTIF($BP21:BS21,"")+1),"") ->  | BU21: =IF(BU$14>=$AT21,INDEX(Break8,COLUMNS($BP21:BT21)-COUNTIF($BP21:BT21,"")+1),"") ->  | BV21: =IF(BV$14>=$AT21,INDEX(Break8,COLUMNS($BP21:BU21)-COUNTIF($BP21:BU21,"")+1),"") ->  | BW21: =IF(BW$14>=$AT21,INDEX(Break8,COLUMNS($BP21:BV21)-COUNTIF($BP21:BV21,"")+1),"") ->  | BX21: =IF(BX$14>=$AT21,INDEX(Break8,COLUMNS($BP21:BW21)-COUNTIF($BP21:BW21,"")+1),"") -> 27.4 | BY21: =IF(BY$14>=$AT21,INDEX(Break8,COLUMNS($BP21:BX21)-COUNTIF($BP21:BX21,"")+1),"") -> 41.1 | BZ21: =IF(BZ$14>=$AT21,INDEX(Break8,COLUMNS($BP21:BY21)-COUNTIF($BP21:BY21,"")+1),"") -> 54.8 | CA21: =IF(CA$14>=$AT21,INDEX(Break8,COLUMNS($BP21:BZ21)-COUNTIF($BP21:BZ21,"")+1),"") -> 68.5 | CB21: =IF(CB$14>=$AT21,INDEX(Break8,COLUMNS($BP21:CA21)-COUNTIF($BP21:CA21,"")+1),"") -> 95.9 | CC21: =IF(CC$14>=$AT21,INDEX(Break8,COLUMNS($BP21:CB21)-COUNTIF($BP21:CB21,"")+1),"") -> 109.6 | CD21: =IF(CD$14>=$AT21,INDEX(Break8,COLUMNS($BP21:CC21)-COUNTIF($BP21:CC21,"")+1),"") -> 123.3 | CE21: =IF(CE$14>=$AT21,INDEX(Break8,COLUMNS($BP21:CD21)-COUNTIF($BP21:CD21,"")+1),"") -> 137 | CF21: =IF(CF$14>=$AT21,INDEX(Break8,COLUMNS($BP21:CE21)-COUNTIF($BP21:CE21,"")+1),"") -> 137 | CG21: =IF(CG$14>=$AT21,INDEX(Break8,COLUMNS($BP21:CF21)-COUNTIF($BP21:CF21,"")+1),"") -> 137 | CH21: =IF(CH$14>=$AT21,INDEX(Break8,COLUMNS($BP21:CG21)-COUNTIF($BP21:CG21,"")+1),"") -> 137 | CI21: =IF(CI$14>=$AT21,INDEX(Break8,COLUMNS($BP21:CH21)-COUNTIF($BP21:CH21,"")+1),"") -> 123.3 | CJ21: =IF(CJ$14>=$AT21,INDEX(Break8,COLUMNS($BP21:CI21)-COUNTIF($BP21:CI21,"")+1),"") -> 95.9 | CK21: =IF(CK$14>=$AT21,INDEX(Break8,COLUMNS($BP21:CJ21)-COUNTIF($BP21:CJ21,"")+1),"") -> 68.5 | CL21: =IF(CL$14>=$AT21,INDEX(Break8,COLUMNS($BP21:CK21)-COUNTIF($BP21:CK21,"")+1),"") -> 54.8 | CM21: =IF(CM$14>=$AT21,INDEX(Break8,COLUMNS($BP21:CL21)-COUNTIF($BP21:CL21,"")+1),"") -> 27.4 | CN21: =IF(CN$14>=$AT21,INDEX(Break8,COLUMNS($BP21:CM21)-COUNTIF($BP21:CM21,"")+1),"") -> 0 | CO21: =IF(CO$14>=$AT21,INDEX(Break8,COLUMNS($BP21:CN21)-COUNTIF($BP21:CN21,"")+1),"") -> 0 | CP21: =IF(CP$14>=$AT21,INDEX(Break8,COLUMNS($BP21:CO21)-COUNTIF($BP21:CO21,"")+1),"") -> 0 | CQ21: =IF(CQ$14>=$AT21,INDEX(Break8,COLUMNS($BP21:CP21)-COUNTIF($BP21:CP21,"")+1),"") -> 0 | CR21: =IF(CR$14>=$AT21,INDEX(Break8,COLUMNS($BP21:CQ21)-COUNTIF($BP21:CQ21,"")+1),"") ->  | CS21: =IF(CS$14>=$AT21,INDEX(Break8,COLUMNS($BP21:CR21)-COUNTIF($BP21:CR21,"")+1),"") ->  | CT21: =IF(CT$14>=$AT21,INDEX(Break8,COLUMNS($BP21:CS21)-COUNTIF($BP21:CS21,"")+1),"") ->  | CU21: =IF(CU$14>=$AT21,INDEX(Break8,COLUMNS($BP21:CT21)-COUNTIF($BP21:CT21,"")+1),"") ->  | CV21: =IF(CV$14>=$AT21,INDEX(Break8,COLUMNS($BP21:CU21)-COUNTIF($BP21:CU21,"")+1),"") ->  | CW21: =IF(CW$14>=$AT21,INDEX(Break8,COLUMNS($BP21:CV21)-COUNTIF($BP21:CV21,"")+1),"") ->  | CX21: =IF(CX$14>=$AT21,INDEX(Break8,COLUMNS($BP21:CW21)-COUNTIF($BP21:CW21,"")+1),"") ->  | CY21: =IF(CY$14>=$AT21,INDEX(Break8,COLUMNS($BP21:CX21)-COUNTIF($BP21:CX21,"")+1),"") ->  | CZ21: =IF(CZ$14>=$AT21,INDEX(Break8,COLUMNS($BP21:CY21)-COUNTIF($BP21:CY21,"")+1),"") ->  | DA21: =IF(DA$14>=$AT21,INDEX(Break8,COLUMNS($BP21:CZ21)-COUNTIF($BP21:CZ21,"")+1),"") ->  | DB21: =IF(DB$14>=$AT21,INDEX(Break8,COLUMNS($BP21:DA21)-COUNTIF($BP21:DA21,"")+1),"") ->  | DC21: =IF(DC$14>=$AT21,INDEX(Break8,COLUMNS($BP21:DB21)-COUNTIF($BP21:DB21,"")+1),"") ->  | DD21: =IF(DD$14>=$AT21,INDEX(Break8,COLUMNS($BP21:DC21)-COUNTIF($BP21:DC21,"")+1),"") ->  | DE21: =IF(DE$14>=$AT21,INDEX(Break8,COLUMNS($BP21:DD21)-COUNTIF($BP21:DD21,"")+1),"") ->  | DF21: =IF(DF$14>=$AT21,INDEX(Break8,COLUMNS($BP21:DE21)-COUNTIF($BP21:DE21,"")+1),"") ->  | DG21: =IF(DG$14>=$AT21,INDEX(Break8,COLUMNS($BP21:DF21)-COUNTIF($BP21:DF21,"")+1),"") ->  | DH21: =IF(DH$14>=$AT21,INDEX(Break8,COLUMNS($BP21:DG21)-COUNTIF($BP21:DG21,"")+1),"") ->  | DI21: =IF(DI$14>=$AT21,INDEX(Break8,COLUMNS($BP21:DH21)-COUNTIF($BP21:DH21,"")+1),"") ->  | DJ21: =IF(DJ$14>=$AT21,INDEX(Break8,COLUMNS($BP21:DI21)-COUNTIF($BP21:DI21,"")+1),"") ->  | DK21: =IF(DK$14>=$AT21,INDEX(Break8,COLUMNS($BP21:DJ21)-COUNTIF($BP21:DJ21,"")+1),"") ->  | DL21: =IF(DL$14>=$AT21,INDEX(Break8,COLUMNS($BP21:DK21)-COUNTIF($BP21:DK21,"")+1),"") ->  | DM21: =IF(DM$14>=$AT21,INDEX(Break8,COLUMNS($BP21:DL21)-COUNTIF($BP21:DL21,"")+1),"") ->  | DN21: =IF(DN$14>=$AT21,INDEX(Break8,COLUMNS($BP21:DM21)-COUNTIF($BP21:DM21,"")+1),"") ->  | DO21: =IF(DO$14>=$AT21,INDEX(Break8,COLUMNS($BP21:DN21)-COUNTIF($BP21:DN21,"")+1),"") ->  | DP21: =IF(DP$14>=$AT21,INDEX(Break8,COLUMNS($BP21:DO21)-COUNTIF($BP21:DO21,"")+1),"") ->  | DQ21: =IF(DQ$14>=$AT21,INDEX(Break8,COLUMNS($BP21:DP21)-COUNTIF($BP21:DP21,"")+1),"") ->  | DR21: =IF(DR$14>=$AT21,INDEX(Break8,COLUMNS($BP21:DQ21)-COUNTIF($BP21:DQ21,"")+1),"") ->  | DS21: =IF(DS$14>=$AT21,INDEX(Break8,COLUMNS($BP21:DR21)-COUNTIF($BP21:DR21,"")+1),"") ->  | DT21: =IF(DT$14>=$AT21,INDEX(Break8,COLUMNS($BP21:DS21)-COUNTIF($BP21:DS21,"")+1),"") ->  | DU21: =IF(DU$14>=$AT21,INDEX(Break8,COLUMNS($BP21:DT21)-COUNTIF($BP21:DT21,"")+1),"") ->  | DV21: =IF(DV$14>=$AT21,INDEX(Break8,COLUMNS($BP21:DU21)-COUNTIF($BP21:DU21,"")+1),"") ->  | DW21: =IF(DW$14>=$AT21,INDEX(Break8,COLUMNS($BP21:DV21)-COUNTIF($BP21:DV21,"")+1),"") ->  | DX21: =IF(DX$14>=$AT21,INDEX(Break8,COLUMNS($BP21:DW21)-COUNTIF($BP21:DW21,"")+1),"") ->  | DY21: =IF(DY$14>=$AT21,INDEX(Break8,COLUMNS($BP21:DX21)-COUNTIF($BP21:DX21,"")+1),"") ->  | DZ21: =IF(DZ$14>=$AT21,INDEX(Break8,COLUMNS($BP21:DY21)-COUNTIF($BP21:DY21,"")+1),"") ->  | EA21: =IF(EA$14>=$AT21,INDEX(Break8,COLUMNS($BP21:DZ21)-COUNTIF($BP21:DZ21,"")+1),"") ->  | EB21: =IF(EB$14>=$AT21,INDEX(Break8,COLUMNS($BP21:EA21)-COUNTIF($BP21:EA21,"")+1),"") ->  | EC21: =IF(EC$14>=$AT21,INDEX(Break8,COLUMNS($BP21:EB21)-COUNTIF($BP21:EB21,"")+1),"") ->  | ED21: =IF(ED$14>=$AT21,INDEX(Break8,COLUMNS($BP21:EC21)-COUNTIF($BP21:EC21,"")+1),"") ->  | EE21: =IF(EE$14>=$AT21,INDEX(Break8,COLUMNS($BP21:ED21)-COUNTIF($BP21:ED21,"")+1),"") ->  | EF21: =IF(EF$14>=$AT21,INDEX(Break8,COLUMNS($BP21:EE21)-COUNTIF($BP21:EE21,"")+1),"") ->  | EG21: =IF(EG$14>=$AT21,INDEX(Break8,COLUMNS($BP21:EF21)-COUNTIF($BP21:EF21,"")+1),"") ->  | EH21: =IF(EH$14>=$AT21,INDEX(Break8,COLUMNS($BP21:EG21)-COUNTIF($BP21:EG21,"")+1),"") ->  | EI21: =IF(EI$14>=$AT21,INDEX(Break8,COLUMNS($BP21:EH21)-COUNTIF($BP21:EH21,"")+1),"") ->  | EK21: 2028 | EL21: 25 | EM21: 69 | ES21: 69 | ET21: 69 | EU21: 69 | EV21: 69 | EW21: 69 | EX21: 69 | EY21: 69 | EZ21: 69 | FA21: 69 | FB21: 69 | FC21: 69 | FD21: 69 | FE21: 69 | FG21: Mining | FH21: =SUMPRODUCT(SUBTOTAL(3,OFFSET('Construction Workforce'!$D$15:$D$513,ROW('Construction Workforce'!$D$15:$D$513)-MIN(ROW('Construction Workforce'!$D$15:$D$513)),,1,)),N('Construction Workforce'!$D$15:$D$513=FG21)) -> 8
B22: Project 8 | C22: Project 8 | D22: Company 8 | E22: Manufacturing | F22: 2500 | G22: Planning | H22: 2026 | I22: 1 | J22: 20 | K22: 1000 | L22: 2028 | M22: 25 | N22: 115 | O22: 0.5 | P22: 0.5 | S22: 7 | T22: 0.5 | U22: 0.6 | V22: 0.7 | W22: 1 | X22: 1 | Y22: 0.7 | Z22: 0.5 | AO22: Project 8 | AP22: ='Master Sheet - Project Info'!$H22 -> 2026 | AQ22: ='Master Sheet - Project Info'!$I22 -> 1 | AR22: ='Master Sheet - Project Info'!$J22 -> 20 | AS22: ='Master Sheet - Project Info'!$K22 -> 1000 | AT22: 2026 | AU22: 100 | AV22: 200 | AW22: 300 | AX22: 400 | AY22: 500 | AZ22: 700 | BA22: 800 | BB22: 900 | BC22: 1000 | BD22: 1000 | BE22: 1000 | BF22: 1000 | BG22: 1000 | BH22: 900 | BI22: 700 | BJ22: 500 | BK22: 400 | BL22: 300 | BM22: 200 | BN22: 100 | BP22: =IF($BP$14>=AT22,INDEX(Break9,1),"") ->  | BQ22: =IF(BQ$14>=$AT22,INDEX(Break9,COLUMNS($BP22:BP22)-COUNTIF($BP22:BP22,"")+1),"") ->  | BR22: =IF(BR$14>=$AT22,INDEX(Break9,COLUMNS($BP22:BQ22)-COUNTIF($BP22:BQ22,"")+1),"") ->  | BS22: =IF(BS$14>=$AT22,INDEX(Break9,COLUMNS($BP22:BR22)-COUNTIF($BP22:BR22,"")+1),"") ->  | BT22: =IF(BT$14>=$AT22,INDEX(Break9,COLUMNS($BP22:BS22)-COUNTIF($BP22:BS22,"")+1),"") ->  | BU22: =IF(BU$14>=$AT22,INDEX(Break9,COLUMNS($BP22:BT22)-COUNTIF($BP22:BT22,"")+1),"") ->  | BV22: =IF(BV$14>=$AT22,INDEX(Break9,COLUMNS($BP22:BU22)-COUNTIF($BP22:BU22,"")+1),"") ->  | BW22: =IF(BW$14>=$AT22,INDEX(Break9,COLUMNS($BP22:BV22)-COUNTIF($BP22:BV22,"")+1),"") ->  | BX22: =IF(BX$14>=$AT22,INDEX(Break9,COLUMNS($BP22:BW22)-COUNTIF($BP22:BW22,"")+1),"") ->  | BY22: =IF(BY$14>=$AT22,INDEX(Break9,COLUMNS($BP22:BX22)-COUNTIF($BP22:BX22,"")+1),"") ->  | BZ22: =IF(BZ$14>=$AT22,INDEX(Break9,COLUMNS($BP22:BY22)-COUNTIF($BP22:BY22,"")+1),"") ->  | CA22: =IF(CA$14>=$AT22,INDEX(Break9,COLUMNS($BP22:BZ22)-COUNTIF($BP22:BZ22,"")+1),"") ->  | CB22: =IF(CB$14>=$AT22,INDEX(Break9,COLUMNS($BP22:CA22)-COUNTIF($BP22:CA22,"")+1),"") -> 100 | CC22: =IF(CC$14>=$AT22,INDEX(Break9,COLUMNS($BP22:CB22)-COUNTIF($BP22:CB22,"")+1),"") -> 200 | CD22: =IF(CD$14>=$AT22,INDEX(Break9,COLUMNS($BP22:CC22)-COUNTIF($BP22:CC22,"")+1),"") -> 300 | CE22: =IF(CE$14>=$AT22,INDEX(Break9,COLUMNS($BP22:CD22)-COUNTIF($BP22:CD22,"")+1),"") -> 400 | CF22: =IF(CF$14>=$AT22,INDEX(Break9,COLUMNS($BP22:CE22)-COUNTIF($BP22:CE22,"")+1),"") -> 500 | CG22: =IF(CG$14>=$AT22,INDEX(Break9,COLUMNS($BP22:CF22)-COUNTIF($BP22:CF22,"")+1),"") -> 700 | CH22: =IF(CH$14>=$AT22,INDEX(Break9,COLUMNS($BP22:CG22)-COUNTIF($BP22:CG22,"")+1),"") -> 800 | CI22: =IF(CI$14>=$AT22,INDEX(Break9,COLUMNS($BP22:CH22)-COUNTIF($BP22:CH22,"")+1),"") -> 900 | CJ22: =IF(CJ$14>=$AT22,INDEX(Break9,COLUMNS($BP22:CI22)-COUNTIF($BP22:CI22,"")+1),"") -> 1000 | CK22: =IF(CK$14>=$AT22,INDEX(Break9,COLUMNS($BP22:CJ22)-COUNTIF($BP22:CJ22,"")+1),"") -> 1000 | CL22: =IF(CL$14>=$AT22,INDEX(Break9,COLUMNS($BP22:CK22)-COUNTIF($BP22:CK22,"")+1),"") -> 1000 | CM22: =IF(CM$14>=$AT22,INDEX(Break9,COLUMNS($BP22:CL22)-COUNTIF($BP22:CL22,"")+1),"") -> 1000 | CN22: =IF(CN$14>=$AT22,INDEX(Break9,COLUMNS($BP22:CM22)-COUNTIF($BP22:CM22,"")+1),"") -> 1000 | CO22: =IF(CO$14>=$AT22,INDEX(Break9,COLUMNS($BP22:CN22)-COUNTIF($BP22:CN22,"")+1),"") -> 900 | CP22: =IF(CP$14>=$AT22,INDEX(Break9,COLUMNS($BP22:CO22)-COUNTIF($BP22:CO22,"")+1),"") -> 700 | CQ22: =IF(CQ$14>=$AT22,INDEX(Break9,COLUMNS($BP22:CP22)-COUNTIF($BP22:CP22,"")+1),"") -> 500 | CR22: =IF(CR$14>=$AT22,INDEX(Break9,COLUMNS($BP22:CQ22)-COUNTIF($BP22:CQ22,"")+1),"") -> 400 | CS22: =IF(CS$14>=$AT22,INDEX(Break9,COLUMNS($BP22:CR22)-COUNTIF($BP22:CR22,"")+1),"") -> 300 | CT22: =IF(CT$14>=$AT22,INDEX(Break9,COLUMNS($BP22:CS22)-COUNTIF($BP22:CS22,"")+1),"") -> 200 | CU22: =IF(CU$14>=$AT22,INDEX(Break9,COLUMNS($BP22:CT22)-COUNTIF($BP22:CT22,"")+1),"") -> 100 | CV22: =IF(CV$14>=$AT22,INDEX(Break9,COLUMNS($BP22:CU22)-COUNTIF($BP22:CU22,"")+1),"") ->  | CW22: =IF(CW$14>=$AT22,INDEX(Break9,COLUMNS($BP22:CV22)-COUNTIF($BP22:CV22,"")+1),"") ->  | CX22: =IF(CX$14>=$AT22,INDEX(Break9,COLUMNS($BP22:CW22)-COUNTIF($BP22:CW22,"")+1),"") ->  | CY22: =IF(CY$14>=$AT22,INDEX(Break9,COLUMNS($BP22:CX22)-COUNTIF($BP22:CX22,"")+1),"") ->  | CZ22: =IF(CZ$14>=$AT22,INDEX(Break9,COLUMNS($BP22:CY22)-COUNTIF($BP22:CY22,"")+1),"") ->  | DA22: =IF(DA$14>=$AT22,INDEX(Break9,COLUMNS($BP22:CZ22)-COUNTIF($BP22:CZ22,"")+1),"") ->  | DB22: =IF(DB$14>=$AT22,INDEX(Break9,COLUMNS($BP22:DA22)-COUNTIF($BP22:DA22,"")+1),"") ->  | DC22: =IF(DC$14>=$AT22,INDEX(Break9,COLUMNS($BP22:DB22)-COUNTIF($BP22:DB22,"")+1),"") ->  | DD22: =IF(DD$14>=$AT22,INDEX(Break9,COLUMNS($BP22:DC22)-COUNTIF($BP22:DC22,"")+1),"") ->  | DE22: =IF(DE$14>=$AT22,INDEX(Break9,COLUMNS($BP22:DD22)-COUNTIF($BP22:DD22,"")+1),"") ->  | DF22: =IF(DF$14>=$AT22,INDEX(Break9,COLUMNS($BP22:DE22)-COUNTIF($BP22:DE22,"")+1),"") ->  | DG22: =IF(DG$14>=$AT22,INDEX(Break9,COLUMNS($BP22:DF22)-COUNTIF($BP22:DF22,"")+1),"") ->  | DH22: =IF(DH$14>=$AT22,INDEX(Break9,COLUMNS($BP22:DG22)-COUNTIF($BP22:DG22,"")+1),"") ->  | DI22: =IF(DI$14>=$AT22,INDEX(Break9,COLUMNS($BP22:DH22)-COUNTIF($BP22:DH22,"")+1),"") ->  | DJ22: =IF(DJ$14>=$AT22,INDEX(Break9,COLUMNS($BP22:DI22)-COUNTIF($BP22:DI22,"")+1),"") ->  | DK22: =IF(DK$14>=$AT22,INDEX(Break9,COLUMNS($BP22:DJ22)-COUNTIF($BP22:DJ22,"")+1),"") ->  | DL22: =IF(DL$14>=$AT22,INDEX(Break9,COLUMNS($BP22:DK22)-COUNTIF($BP22:DK22,"")+1),"") ->  | DM22: =IF(DM$14>=$AT22,INDEX(Break9,COLUMNS($BP22:DL22)-COUNTIF($BP22:DL22,"")+1),"") ->  | DN22: =IF(DN$14>=$AT22,INDEX(Break9,COLUMNS($BP22:DM22)-COUNTIF($BP22:DM22,"")+1),"") ->  | DO22: =IF(DO$14>=$AT22,INDEX(Break9,COLUMNS($BP22:DN22)-COUNTIF($BP22:DN22,"")+1),"") ->  | DP22: =IF(DP$14>=$AT22,INDEX(Break9,COLUMNS($BP22:DO22)-COUNTIF($BP22:DO22,"")+1),"") ->  | DQ22: =IF(DQ$14>=$AT22,INDEX(Break9,COLUMNS($BP22:DP22)-COUNTIF($BP22:DP22,"")+1),"") ->  | DR22: =IF(DR$14>=$AT22,INDEX(Break9,COLUMNS($BP22:DQ22)-COUNTIF($BP22:DQ22,"")+1),"") ->  | DS22: =IF(DS$14>=$AT22,INDEX(Break9,COLUMNS($BP22:DR22)-COUNTIF($BP22:DR22,"")+1),"") ->  | DT22: =IF(DT$14>=$AT22,INDEX(Break9,COLUMNS($BP22:DS22)-COUNTIF($BP22:DS22,"")+1),"") ->  | DU22: =IF(DU$14>=$AT22,INDEX(Break9,COLUMNS($BP22:DT22)-COUNTIF($BP22:DT22,"")+1),"") ->  | DV22: =IF(DV$14>=$AT22,INDEX(Break9,COLUMNS($BP22:DU22)-COUNTIF($BP22:DU22,"")+1),"") ->  | DW22: =IF(DW$14>=$AT22,INDEX(Break9,COLUMNS($BP22:DV22)-COUNTIF($BP22:DV22,"")+1),"") ->  | DX22: =IF(DX$14>=$AT22,INDEX(Break9,COLUMNS($BP22:DW22)-COUNTIF($BP22:DW22,"")+1),"") ->  | DY22: =IF(DY$14>=$AT22,INDEX(Break9,COLUMNS($BP22:DX22)-COUNTIF($BP22:DX22,"")+1),"") ->  | DZ22: =IF(DZ$14>=$AT22,INDEX(Break9,COLUMNS($BP22:DY22)-COUNTIF($BP22:DY22,"")+1),"") ->  | EA22: =IF(EA$14>=$AT22,INDEX(Break9,COLUMNS($BP22:DZ22)-COUNTIF($BP22:DZ22,"")+1),"") ->  | EB22: =IF(EB$14>=$AT22,INDEX(Break9,COLUMNS($BP22:EA22)-COUNTIF($BP22:EA22,"")+1),"") ->  | EC22: =IF(EC$14>=$AT22,INDEX(Break9,COLUMNS($BP22:EB22)-COUNTIF($BP22:EB22,"")+1),"") ->  | ED22: =IF(ED$14>=$AT22,INDEX(Break9,COLUMNS($BP22:EC22)-COUNTIF($BP22:EC22,"")+1),"") ->  | EE22: =IF(EE$14>=$AT22,INDEX(Break9,COLUMNS($BP22:ED22)-COUNTIF($BP22:ED22,"")+1),"") ->  | EF22: =IF(EF$14>=$AT22,INDEX(Break9,COLUMNS($BP22:EE22)-COUNTIF($BP22:EE22,"")+1),"") ->  | EG22: =IF(EG$14>=$AT22,INDEX(Break9,COLUMNS($BP22:EF22)-COUNTIF($BP22:EF22,"")+1),"") ->  | EH22: =IF(EH$14>=$AT22,INDEX(Break9,COLUMNS($BP22:EG22)-COUNTIF($BP22:EG22,"")+1),"") ->  | EI22: =IF(EI$14>=$AT22,INDEX(Break9,COLUMNS($BP22:EH22)-COUNTIF($BP22:EH22,"")+1),"") ->  | EK22: 2028 | EL22: 25 | EM22: 115 | ES22: 115 | ET22: 115 | EU22: 115 | EV22: 115 | EW22: 115 | EX22: 115 | EY22: 115 | EZ22: 115 | FA22: 115 | FB22: 115 | FC22: 115 | FD22: 115 | FE22: 115 | FG22: Oil & Gas Extraction | FH22: =SUMPRODUCT(SUBTOTAL(3,OFFSET('Construction Workforce'!$D$15:$D$513,ROW('Construction Workforce'!$D$15:$D$513)-MIN(ROW('Construction Workforce'!$D$15:$D$513)),,1,)),N('Construction Workforce'!$D$15:$D$513=FG22)) -> 2
B23: Project 9 | C23: Project 9 | D23: Company 9 | E23: Transport | F23: 215 | G23: Construction | H23: 2023 | I23: 1 | J23: 4 | K23: 30 | L23: 2024 | M23: 25 | N23: 2 | O23: 1 | P23: 0 | S23: 8 | T23: 0.5 | U23: 0.6 | V23: 0.7 | W23: 1 | X23: 1 | Y23: 0.7 | Z23: 0.6 | AA23: 0.5 | AO23: Project 9 | AP23: ='Master Sheet - Project Info'!$H23 -> 2023 | AQ23: ='Master Sheet - Project Info'!$I23 -> 1 | AR23: ='Master Sheet - Project Info'!$J23 -> 4 | AS23: ='Master Sheet - Project Info'!$K23 -> 30 | AT23: 2023 | AU23: 21 | AV23: 30 | AW23: 30 | AX23: 21 | AY23: 0 | AZ23: 0 | BA23: 0 | BB23: 0 | BC23: 0 | BD23: 0 | BE23: 0 | BF23: 0 | BG23: 0 | BH23: 0 | BI23: 0 | BJ23: 0 | BK23: 0 | BL23: 0 | BM23: 0 | BN23: 0 | BP23: =IF($BP$14>=AT23,INDEX(Break10,1),"") -> 21 | BQ23: =IF(BQ$14>=$AT23,INDEX(Break10,COLUMNS($BP23:BP23)-COUNTIF($BP23:BP23,"")+1),"") -> 30 | BR23: =IF(BR$14>=$AT23,INDEX(Break10,COLUMNS($BP23:BQ23)-COUNTIF($BP23:BQ23,"")+1),"") -> 30 | BS23: =IF(BS$14>=$AT23,INDEX(Break10,COLUMNS($BP23:BR23)-COUNTIF($BP23:BR23,"")+1),"") -> 21 | BT23: =IF(BT$14>=$AT23,INDEX(Break10,COLUMNS($BP23:BS23)-COUNTIF($BP23:BS23,"")+1),"") -> 0 | BU23: =IF(BU$14>=$AT23,INDEX(Break10,COLUMNS($BP23:BT23)-COUNTIF($BP23:BT23,"")+1),"") -> 0 | BV23: =IF(BV$14>=$AT23,INDEX(Break10,COLUMNS($BP23:BU23)-COUNTIF($BP23:BU23,"")+1),"") -> 0 | BW23: =IF(BW$14>=$AT23,INDEX(Break10,COLUMNS($BP23:BV23)-COUNTIF($BP23:BV23,"")+1),"") -> 0 | BX23: =IF(BX$14>=$AT23,INDEX(Break10,COLUMNS($BP23:BW23)-COUNTIF($BP23:BW23,"")+1),"") -> 0 | BY23: =IF(BY$14>=$AT23,INDEX(Break10,COLUMNS($BP23:BX23)-COUNTIF($BP23:BX23,"")+1),"") -> 0 | BZ23: =IF(BZ$14>=$AT23,INDEX(Break10,COLUMNS($BP23:BY23)-COUNTIF($BP23:BY23,"")+1),"") -> 0 | CA23: =IF(CA$14>=$AT23,INDEX(Break10,COLUMNS($BP23:BZ23)-COUNTIF($BP23:BZ23,"")+1),"") -> 0 | CB23: =IF(CB$14>=$AT23,INDEX(Break10,COLUMNS($BP23:CA23)-COUNTIF($BP23:CA23,"")+1),"") -> 0 | CC23: =IF(CC$14>=$AT23,INDEX(Break10,COLUMNS($BP23:CB23)-COUNTIF($BP23:CB23,"")+1),"") -> 0 | CD23: =IF(CD$14>=$AT23,INDEX(Break10,COLUMNS($BP23:CC23)-COUNTIF($BP23:CC23,"")+1),"") -> 0 | CE23: =IF(CE$14>=$AT23,INDEX(Break10,COLUMNS($BP23:CD23)-COUNTIF($BP23:CD23,"")+1),"") -> 0 | CF23: =IF(CF$14>=$AT23,INDEX(Break10,COLUMNS($BP23:CE23)-COUNTIF($BP23:CE23,"")+1),"") -> 0 | CG23: =IF(CG$14>=$AT23,INDEX(Break10,COLUMNS($BP23:CF23)-COUNTIF($BP23:CF23,"")+1),"") -> 0 | CH23: =IF(CH$14>=$AT23,INDEX(Break10,COLUMNS($BP23:CG23)-COUNTIF($BP23:CG23,"")+1),"") -> 0 | CI23: =IF(CI$14>=$AT23,INDEX(Break10,COLUMNS($BP23:CH23)-COUNTIF($BP23:CH23,"")+1),"") -> 0 | CJ23: =IF(CJ$14>=$AT23,INDEX(Break10,COLUMNS($BP23:CI23)-COUNTIF($BP23:CI23,"")+1),"") ->  | CK23: =IF(CK$14>=$AT23,INDEX(Break10,COLUMNS($BP23:CJ23)-COUNTIF($BP23:CJ23,"")+1),"") ->  | CL23: =IF(CL$14>=$AT23,INDEX(Break10,COLUMNS($BP23:CK23)-COUNTIF($BP23:CK23,"")+1),"") ->  | CM23: =IF(CM$14>=$AT23,INDEX(Break10,COLUMNS($BP23:CL23)-COUNTIF($BP23:CL23,"")+1),"") ->  | CN23: =IF(CN$14>=$AT23,INDEX(Break10,COLUMNS($BP23:CM23)-COUNTIF($BP23:CM23,"")+1),"") ->  | CO23: =IF(CO$14>=$AT23,INDEX(Break10,COLUMNS($BP23:CN23)-COUNTIF($BP23:CN23,"")+1),"") ->  | CP23: =IF(CP$14>=$AT23,INDEX(Break10,COLUMNS($BP23:CO23)-COUNTIF($BP23:CO23,"")+1),"") ->  | CQ23: =IF(CQ$14>=$AT23,INDEX(Break10,COLUMNS($BP23:CP23)-COUNTIF($BP23:CP23,"")+1),"") ->  | CR23: =IF(CR$14>=$AT23,INDEX(Break10,COLUMNS($BP23:CQ23)-COUNTIF($BP23:CQ23,"")+1),"") ->  | CS23: =IF(CS$14>=$AT23,INDEX(Break10,COLUMNS($BP23:CR23)-COUNTIF($BP23:CR23,"")+1),"") ->  | CT23: =IF(CT$14>=$AT23,INDEX(Break10,COLUMNS($BP23:CS23)-COUNTIF($BP23:CS23,"")+1),"") ->  | CU23: =IF(CU$14>=$AT23,INDEX(Break10,COLUMNS($BP23:CT23)-COUNTIF($BP23:CT23,"")+1),"") ->  | CV23: =IF(CV$14>=$AT23,INDEX(Break10,COLUMNS($BP23:CU23)-COUNTIF($BP23:CU23,"")+1),"") ->  | CW23: =IF(CW$14>=$AT23,INDEX(Break10,COLUMNS($BP23:CV23)-COUNTIF($BP23:CV23,"")+1),"") ->  | CX23: =IF(CX$14>=$AT23,INDEX(Break10,COLUMNS($BP23:CW23)-COUNTIF($BP23:CW23,"")+1),"") ->  | CY23: =IF(CY$14>=$AT23,INDEX(Break10,COLUMNS($BP23:CX23)-COUNTIF($BP23:CX23,"")+1),"") ->  | CZ23: =IF(CZ$14>=$AT23,INDEX(Break10,COLUMNS($BP23:CY23)-COUNTIF($BP23:CY23,"")+1),"") ->  | DA23: =IF(DA$14>=$AT23,INDEX(Break10,COLUMNS($BP23:CZ23)-COUNTIF($BP23:CZ23,"")+1),"") ->  | DB23: =IF(DB$14>=$AT23,INDEX(Break10,COLUMNS($BP23:DA23)-COUNTIF($BP23:DA23,"")+1),"") ->  | DC23: =IF(DC$14>=$AT23,INDEX(Break10,COLUMNS($BP23:DB23)-COUNTIF($BP23:DB23,"")+1),"") ->  | DD23: =IF(DD$14>=$AT23,INDEX(Break10,COLUMNS($BP23:DC23)-COUNTIF($BP23:DC23,"")+1),"") ->  | DE23: =IF(DE$14>=$AT23,INDEX(Break10,COLUMNS($BP23:DD23)-COUNTIF($BP23:DD23,"")+1),"") ->  | DF23: =IF(DF$14>=$AT23,INDEX(Break10,COLUMNS($BP23:DE23)-COUNTIF($BP23:DE23,"")+1),"") ->  | DG23: =IF(DG$14>=$AT23,INDEX(Break10,COLUMNS($BP23:DF23)-COUNTIF($BP23:DF23,"")+1),"") ->  | DH23: =IF(DH$14>=$AT23,INDEX(Break10,COLUMNS($BP23:DG23)-COUNTIF($BP23:DG23,"")+1),"") ->  | DI23: =IF(DI$14>=$AT23,INDEX(Break10,COLUMNS($BP23:DH23)-COUNTIF($BP23:DH23,"")+1),"") ->  | DJ23: =IF(DJ$14>=$AT23,INDEX(Break10,COLUMNS($BP23:DI23)-COUNTIF($BP23:DI23,"")+1),"") ->  | DK23: =IF(DK$14>=$AT23,INDEX(Break10,COLUMNS($BP23:DJ23)-COUNTIF($BP23:DJ23,"")+1),"") ->  | DL23: =IF(DL$14>=$AT23,INDEX(Break10,COLUMNS($BP23:DK23)-COUNTIF($BP23:DK23,"")+1),"") ->  | DM23: =IF(DM$14>=$AT23,INDEX(Break10,COLUMNS($BP23:DL23)-COUNTIF($BP23:DL23,"")+1),"") ->  | DN23: =IF(DN$14>=$AT23,INDEX(Break10,COLUMNS($BP23:DM23)-COUNTIF($BP23:DM23,"")+1),"") ->  | DO23: =IF(DO$14>=$AT23,INDEX(Break10,COLUMNS($BP23:DN23)-COUNTIF($BP23:DN23,"")+1),"") ->  | DP23: =IF(DP$14>=$AT23,INDEX(Break10,COLUMNS($BP23:DO23)-COUNTIF($BP23:DO23,"")+1),"") ->  | DQ23: =IF(DQ$14>=$AT23,INDEX(Break10,COLUMNS($BP23:DP23)-COUNTIF($BP23:DP23,"")+1),"") ->  | DR23: =IF(DR$14>=$AT23,INDEX(Break10,COLUMNS($BP23:DQ23)-COUNTIF($BP23:DQ23,"")+1),"") ->  | DS23: =IF(DS$14>=$AT23,INDEX(Break10,COLUMNS($BP23:DR23)-COUNTIF($BP23:DR23,"")+1),"") ->  | DT23: =IF(DT$14>=$AT23,INDEX(Break10,COLUMNS($BP23:DS23)-COUNTIF($BP23:DS23,"")+1),"") ->  | DU23: =IF(DU$14>=$AT23,INDEX(Break10,COLUMNS($BP23:DT23)-COUNTIF($BP23:DT23,"")+1),"") ->  | DV23: =IF(DV$14>=$AT23,INDEX(Break10,COLUMNS($BP23:DU23)-COUNTIF($BP23:DU23,"")+1),"") ->  | DW23: =IF(DW$14>=$AT23,INDEX(Break10,COLUMNS($BP23:DV23)-COUNTIF($BP23:DV23,"")+1),"") ->  | DX23: =IF(DX$14>=$AT23,INDEX(Break10,COLUMNS($BP23:DW23)-COUNTIF($BP23:DW23,"")+1),"") ->  | DY23: =IF(DY$14>=$AT23,INDEX(Break10,COLUMNS($BP23:DX23)-COUNTIF($BP23:DX23,"")+1),"") ->  | DZ23: =IF(DZ$14>=$AT23,INDEX(Break10,COLUMNS($BP23:DY23)-COUNTIF($BP23:DY23,"")+1),"") ->  | EA23: =IF(EA$14>=$AT23,INDEX(Break10,COLUMNS($BP23:DZ23)-COUNTIF($BP23:DZ23,"")+1),"") ->  | EB23: =IF(EB$14>=$AT23,INDEX(Break10,COLUMNS($BP23:EA23)-COUNTIF($BP23:EA23,"")+1),"") ->  | EC23: =IF(EC$14>=$AT23,INDEX(Break10,COLUMNS($BP23:EB23)-COUNTIF($BP23:EB23,"")+1),"") ->  | ED23: =IF(ED$14>=$AT23,INDEX(Break10,COLUMNS($BP23:EC23)-COUNTIF($BP23:EC23,"")+1),"") ->  | EE23: =IF(EE$14>=$AT23,INDEX(Break10,COLUMNS($BP23:ED23)-COUNTIF($BP23:ED23,"")+1),"") ->  | EF23: =IF(EF$14>=$AT23,INDEX(Break10,COLUMNS($BP23:EE23)-COUNTIF($BP23:EE23,"")+1),"") ->  | EG23: =IF(EG$14>=$AT23,INDEX(Break10,COLUMNS($BP23:EF23)-COUNTIF($BP23:EF23,"")+1),"") ->  | EH23: =IF(EH$14>=$AT23,INDEX(Break10,COLUMNS($BP23:EG23)-COUNTIF($BP23:EG23,"")+1),"") ->  | EI23: =IF(EI$14>=$AT23,INDEX(Break10,COLUMNS($BP23:EH23)-COUNTIF($BP23:EH23,"")+1),"") ->  | EK23: 2024 | EL23: 25 | EM23: 2 | EO23: 2 | EP23: 2 | EQ23: 2 | ER23: 2 | ES23: 2 | ET23: 2 | EU23: 2 | EV23: 2 | EW23: 2 | EX23: 2 | EY23: 2 | EZ23: 2 | FA23: 2 | FB23: 2 | FC23: 2 | FD23: 2 | FE23: 2 | FG23: Professional, Scientific & Technical Services | FH23: =SUMPRODUCT(SUBTOTAL(3,OFFSET('Construction Workforce'!$D$15:$D$513,ROW('Construction Workforce'!$D$15:$D$513)-MIN(ROW('Construction Workforce'!$D$15:$D$513)),,1,)),N('Construction Workforce'!$D$15:$D$513=FG23)) -> 1
B24: Project 10 | C24: Project 10 | D24: Company 10 | E24: Energy | F24: 70 | G24: Approved | H24: 2024 | I24: 1 | J24: 4 | K24: 30 | L24: 2025 | M24: 25 | N24: 0 | O24: 0.01 | P24: 0.99 | S24: 9 | T24: 0.4 | U24: 0.5 | V24: 0.6 | W24: 0.9 | X24: 1 | Y24: 1 | Z24: 0.7 | AA24: 0.6 | AB24: 0.5 | AO24: Project 10 | AP24: ='Master Sheet - Project Info'!$H24 -> 2024 | AQ24: ='Master Sheet - Project Info'!$I24 -> 1 | AR24: ='Master Sheet - Project Info'!$J24 -> 4 | AS24: ='Master Sheet - Project Info'!$K24 -> 30 | AT24: 2024 | AU24: 21 | AV24: 30 | AW24: 30 | AX24: 21 | AY24: 0 | AZ24: 0 | BA24: 0 | BB24: 0 | BC24: 0 | BD24: 0 | BE24: 0 | BF24: 0 | BG24: 0 | BH24: 0 | BI24: 0 | BJ24: 0 | BK24: 0 | BL24: 0 | BM24: 0 | BN24: 0 | BP24: =IF($BP$14>=AT24,INDEX(Break11,1),"") ->  | BQ24: =IF(BQ$14>=$AT24,INDEX(Break11,COLUMNS($BP24:BP24)-COUNTIF($BP24:BP24,"")+1),"") ->  | BR24: =IF(BR$14>=$AT24,INDEX(Break11,COLUMNS($BP24:BQ24)-COUNTIF($BP24:BQ24,"")+1),"") ->  | BS24: =IF(BS$14>=$AT24,INDEX(Break11,COLUMNS($BP24:BR24)-COUNTIF($BP24:BR24,"")+1),"") ->  | BT24: =IF(BT$14>=$AT24,INDEX(Break11,COLUMNS($BP24:BS24)-COUNTIF($BP24:BS24,"")+1),"") -> 21 | BU24: =IF(BU$14>=$AT24,INDEX(Break11,COLUMNS($BP24:BT24)-COUNTIF($BP24:BT24,"")+1),"") -> 30 | BV24: =IF(BV$14>=$AT24,INDEX(Break11,COLUMNS($BP24:BU24)-COUNTIF($BP24:BU24,"")+1),"") -> 30 | BW24: =IF(BW$14>=$AT24,INDEX(Break11,COLUMNS($BP24:BV24)-COUNTIF($BP24:BV24,"")+1),"") -> 21 | BX24: =IF(BX$14>=$AT24,INDEX(Break11,COLUMNS($BP24:BW24)-COUNTIF($BP24:BW24,"")+1),"") -> 0 | BY24: =IF(BY$14>=$AT24,INDEX(Break11,COLUMNS($BP24:BX24)-COUNTIF($BP24:BX24,"")+1),"") -> 0 | BZ24: =IF(BZ$14>=$AT24,INDEX(Break11,COLUMNS($BP24:BY24)-COUNTIF($BP24:BY24,"")+1),"") -> 0 | CA24: =IF(CA$14>=$AT24,INDEX(Break11,COLUMNS($BP24:BZ24)-COUNTIF($BP24:BZ24,"")+1),"") -> 0 | CB24: =IF(CB$14>=$AT24,INDEX(Break11,COLUMNS($BP24:CA24)-COUNTIF($BP24:CA24,"")+1),"") -> 0 | CC24: =IF(CC$14>=$AT24,INDEX(Break11,COLUMNS($BP24:CB24)-COUNTIF($BP24:CB24,"")+1),"") -> 0 | CD24: =IF(CD$14>=$AT24,INDEX(Break11,COLUMNS($BP24:CC24)-COUNTIF($BP24:CC24,"")+1),"") -> 0 | CE24: =IF(CE$14>=$AT24,INDEX(Break11,COLUMNS($BP24:CD24)-COUNTIF($BP24:CD24,"")+1),"") -> 0 | CF24: =IF(CF$14>=$AT24,INDEX(Break11,COLUMNS($BP24:CE24)-COUNTIF($BP24:CE24,"")+1),"") -> 0 | CG24: =IF(CG$14>=$AT24,INDEX(Break11,COLUMNS($BP24:CF24)-COUNTIF($BP24:CF24,"")+1),"") -> 0 | CH24: =IF(CH$14>=$AT24,INDEX(Break11,COLUMNS($BP24:CG24)-COUNTIF($BP24:CG24,"")+1),"") -> 0 | CI24: =IF(CI$14>=$AT24,INDEX(Break11,COLUMNS($BP24:CH24)-COUNTIF($BP24:CH24,"")+1),"") -> 0 | CJ24: =IF(CJ$14>=$AT24,INDEX(Break11,COLUMNS($BP24:CI24)-COUNTIF($BP24:CI24,"")+1),"") -> 0 | CK24: =IF(CK$14>=$AT24,INDEX(Break11,COLUMNS($BP24:CJ24)-COUNTIF($BP24:CJ24,"")+1),"") -> 0 | CL24: =IF(CL$14>=$AT24,INDEX(Break11,COLUMNS($BP24:CK24)-COUNTIF($BP24:CK24,"")+1),"") -> 0 | CM24: =IF(CM$14>=$AT24,INDEX(Break11,COLUMNS($BP24:CL24)-COUNTIF($BP24:CL24,"")+1),"") -> 0 | CN24: =IF(CN$14>=$AT24,INDEX(Break11,COLUMNS($BP24:CM24)-COUNTIF($BP24:CM24,"")+1),"") ->  | CO24: =IF(CO$14>=$AT24,INDEX(Break11,COLUMNS($BP24:CN24)-COUNTIF($BP24:CN24,"")+1),"") ->  | CP24: =IF(CP$14>=$AT24,INDEX(Break11,COLUMNS($BP24:CO24)-COUNTIF($BP24:CO24,"")+1),"") ->  | CQ24: =IF(CQ$14>=$AT24,INDEX(Break11,COLUMNS($BP24:CP24)-COUNTIF($BP24:CP24,"")+1),"") ->  | CR24: =IF(CR$14>=$AT24,INDEX(Break11,COLUMNS($BP24:CQ24)-COUNTIF($BP24:CQ24,"")+1),"") ->  | CS24: =IF(CS$14>=$AT24,INDEX(Break11,COLUMNS($BP24:CR24)-COUNTIF($BP24:CR24,"")+1),"") ->  | CT24: =IF(CT$14>=$AT24,INDEX(Break11,COLUMNS($BP24:CS24)-COUNTIF($BP24:CS24,"")+1),"") ->  | CU24: =IF(CU$14>=$AT24,INDEX(Break11,COLUMNS($BP24:CT24)-COUNTIF($BP24:CT24,"")+1),"") ->  | CV24: =IF(CV$14>=$AT24,INDEX(Break11,COLUMNS($BP24:CU24)-COUNTIF($BP24:CU24,"")+1),"") ->  | CW24: =IF(CW$14>=$AT24,INDEX(Break11,COLUMNS($BP24:CV24)-COUNTIF($BP24:CV24,"")+1),"") ->  | CX24: =IF(CX$14>=$AT24,INDEX(Break11,COLUMNS($BP24:CW24)-COUNTIF($BP24:CW24,"")+1),"") ->  | CY24: =IF(CY$14>=$AT24,INDEX(Break11,COLUMNS($BP24:CX24)-COUNTIF($BP24:CX24,"")+1),"") ->  | CZ24: =IF(CZ$14>=$AT24,INDEX(Break11,COLUMNS($BP24:CY24)-COUNTIF($BP24:CY24,"")+1),"") ->  | DA24: =IF(DA$14>=$AT24,INDEX(Break11,COLUMNS($BP24:CZ24)-COUNTIF($BP24:CZ24,"")+1),"") ->  | DB24: =IF(DB$14>=$AT24,INDEX(Break11,COLUMNS($BP24:DA24)-COUNTIF($BP24:DA24,"")+1),"") ->  | DC24: =IF(DC$14>=$AT24,INDEX(Break11,COLUMNS($BP24:DB24)-COUNTIF($BP24:DB24,"")+1),"") ->  | DD24: =IF(DD$14>=$AT24,INDEX(Break11,COLUMNS($BP24:DC24)-COUNTIF($BP24:DC24,"")+1),"") ->  | DE24: =IF(DE$14>=$AT24,INDEX(Break11,COLUMNS($BP24:DD24)-COUNTIF($BP24:DD24,"")+1),"") ->  | DF24: =IF(DF$14>=$AT24,INDEX(Break11,COLUMNS($BP24:DE24)-COUNTIF($BP24:DE24,"")+1),"") ->  | DG24: =IF(DG$14>=$AT24,INDEX(Break11,COLUMNS($BP24:DF24)-COUNTIF($BP24:DF24,"")+1),"") ->  | DH24: =IF(DH$14>=$AT24,INDEX(Break11,COLUMNS($BP24:DG24)-COUNTIF($BP24:DG24,"")+1),"") ->  | DI24: =IF(DI$14>=$AT24,INDEX(Break11,COLUMNS($BP24:DH24)-COUNTIF($BP24:DH24,"")+1),"") ->  | DJ24: =IF(DJ$14>=$AT24,INDEX(Break11,COLUMNS($BP24:DI24)-COUNTIF($BP24:DI24,"")+1),"") ->  | DK24: =IF(DK$14>=$AT24,INDEX(Break11,COLUMNS($BP24:DJ24)-COUNTIF($BP24:DJ24,"")+1),"") ->  | DL24: =IF(DL$14>=$AT24,INDEX(Break11,COLUMNS($BP24:DK24)-COUNTIF($BP24:DK24,"")+1),"") ->  | DM24: =IF(DM$14>=$AT24,INDEX(Break11,COLUMNS($BP24:DL24)-COUNTIF($BP24:DL24,"")+1),"") ->  | DN24: =IF(DN$14>=$AT24,INDEX(Break11,COLUMNS($BP24:DM24)-COUNTIF($BP24:DM24,"")+1),"") ->  | DO24: =IF(DO$14>=$AT24,INDEX(Break11,COLUMNS($BP24:DN24)-COUNTIF($BP24:DN24,"")+1),"") ->  | DP24: =IF(DP$14>=$AT24,INDEX(Break11,COLUMNS($BP24:DO24)-COUNTIF($BP24:DO24,"")+1),"") ->  | DQ24: =IF(DQ$14>=$AT24,INDEX(Break11,COLUMNS($BP24:DP24)-COUNTIF($BP24:DP24,"")+1),"") ->  | DR24: =IF(DR$14>=$AT24,INDEX(Break11,COLUMNS($BP24:DQ24)-COUNTIF($BP24:DQ24,"")+1),"") ->  | DS24: =IF(DS$14>=$AT24,INDEX(Break11,COLUMNS($BP24:DR24)-COUNTIF($BP24:DR24,"")+1),"") ->  | DT24: =IF(DT$14>=$AT24,INDEX(Break11,COLUMNS($BP24:DS24)-COUNTIF($BP24:DS24,"")+1),"") ->  | DU24: =IF(DU$14>=$AT24,INDEX(Break11,COLUMNS($BP24:DT24)-COUNTIF($BP24:DT24,"")+1),"") ->  | DV24: =IF(DV$14>=$AT24,INDEX(Break11,COLUMNS($BP24:DU24)-COUNTIF($BP24:DU24,"")+1),"") ->  | DW24: =IF(DW$14>=$AT24,INDEX(Break11,COLUMNS($BP24:DV24)-COUNTIF($BP24:DV24,"")+1),"") ->  | DX24: =IF(DX$14>=$AT24,INDEX(Break11,COLUMNS($BP24:DW24)-COUNTIF($BP24:DW24,"")+1),"") ->  | DY24: =IF(DY$14>=$AT24,INDEX(Break11,COLUMNS($BP24:DX24)-COUNTIF($BP24:DX24,"")+1),"") ->  | DZ24: =IF(DZ$14>=$AT24,INDEX(Break11,COLUMNS($BP24:DY24)-COUNTIF($BP24:DY24,"")+1),"") ->  | EA24: =IF(EA$14>=$AT24,INDEX(Break11,COLUMNS($BP24:DZ24)-COUNTIF($BP24:DZ24,"")+1),"") ->  | EB24: =IF(EB$14>=$AT24,INDEX(Break11,COLUMNS($BP24:EA24)-COUNTIF($BP24:EA24,"")+1),"") ->  | EC24: =IF(EC$14>=$AT24,INDEX(Break11,COLUMNS($BP24:EB24)-COUNTIF($BP24:EB24,"")+1),"") ->  | ED24: =IF(ED$14>=$AT24,INDEX(Break11,COLUMNS($BP24:EC24)-COUNTIF($BP24:EC24,"")+1),"") ->  | EE24: =IF(EE$14>=$AT24,INDEX(Break11,COLUMNS($BP24:ED24)-COUNTIF($BP24:ED24,"")+1),"") ->  | EF24: =IF(EF$14>=$AT24,INDEX(Break11,COLUMNS($BP24:EE24)-COUNTIF($BP24:EE24,"")+1),"") ->  | EG24: =IF(EG$14>=$AT24,INDEX(Break11,COLUMNS($BP24:EF24)-COUNTIF($BP24:EF24,"")+1),"") ->  | EH24: =IF(EH$14>=$AT24,INDEX(Break11,COLUMNS($BP24:EG24)-COUNTIF($BP24:EG24,"")+1),"") ->  | EI24: =IF(EI$14>=$AT24,INDEX(Break11,COLUMNS($BP24:EH24)-COUNTIF($BP24:EH24,"")+1),"") ->  | EK24: 2025 | EL24: 25 | EM24: 0 | EN24: =IF($EL24>1,IF(AND(EN$14>=$EK24,EN$14<$EK24+$EL24),IF(EN$14=$EK24,$EM24,$EM24),"")) ->  | EP24: 0 | EQ24: 0 | ER24: 0 | ES24: 0 | ET24: 0 | EU24: 0 | EV24: 0 | EW24: 0 | EX24: =IF($EL24>1,IF(AND(EX$14>=$EK24,EX$14<$EK24+$EL24),IF(EX$14=$EK24,$EM24,$EM24),"")) -> 0 | EY24: 0 | EZ24: 0 | FA24: 0 | FB24: 0 | FC24: 0 | FD24: 0 | FE24: 0 | FG24: Transport | FH24: =SUMPRODUCT(SUBTOTAL(3,OFFSET('Construction Workforce'!$D$15:$D$513,ROW('Construction Workforce'!$D$15:$D$513)-MIN(ROW('Construction Workforce'!$D$15:$D$513)),,1,)),N('Construction Workforce'!$D$15:$D$513=FG24)) -> 6
B25: Project 11 | C25: Project 11 | D25: Company 11 | E25: Energy | F25: 200 | G25: Planning | H25: 2024 | I25: 1 | J25: 6 | K25: 145 | L25: 2026 | M25: 70 | N25: 8 | O25: 0.01 | P25: 0.99 | S25: 10 | T25: 0.4 | U25: 0.5 | V25: 0.6 | W25: 0.9 | X25: 1 | Y25: 1 | Z25: 0.7 | AA25: 0.6 | AB25: 0.5 | AC25: 0.4 | AO25: Project 11 | AP25: ='Master Sheet - Project Info'!$H25 -> 2024 | AQ25: ='Master Sheet - Project Info'!$I25 -> 1 | AR25: ='Master Sheet - Project Info'!$J25 -> 6 | AS25: ='Master Sheet - Project Info'!$K25 -> 145 | AT25: 2024 | AU25: 72.5 | AV25: 101.5 | AW25: 145 | AX25: 145 | AY25: 101.5 | AZ25: 72.5 | BA25: 0 | BB25: 0 | BC25: 0 | BD25: 0 | BE25: 0 | BF25: 0 | BG25: 0 | BH25: 0 | BI25: 0 | BJ25: 0 | BK25: 0 | BL25: 0 | BM25: 0 | BN25: 0 | BP25: =IF($BP$14>=AT25,INDEX(Break12,1),"") ->  | BQ25: =IF(BQ$14>=$AT25,INDEX(Break12,COLUMNS($BP25:BP25)-COUNTIF($BP25:BP25,"")+1),"") ->  | BR25: =IF(BR$14>=$AT25,INDEX(Break12,COLUMNS($BP25:BQ25)-COUNTIF($BP25:BQ25,"")+1),"") ->  | BS25: =IF(BS$14>=$AT25,INDEX(Break12,COLUMNS($BP25:BR25)-COUNTIF($BP25:BR25,"")+1),"") ->  | BT25: =IF(BT$14>=$AT25,INDEX(Break12,COLUMNS($BP25:BS25)-COUNTIF($BP25:BS25,"")+1),"") -> 72.5 | BU25: =IF(BU$14>=$AT25,INDEX(Break12,COLUMNS($BP25:BT25)-COUNTIF($BP25:BT25,"")+1),"") -> 101.5 | BV25: =IF(BV$14>=$AT25,INDEX(Break12,COLUMNS($BP25:BU25)-COUNTIF($BP25:BU25,"")+1),"") -> 145 | BW25: =IF(BW$14>=$AT25,INDEX(Break12,COLUMNS($BP25:BV25)-COUNTIF($BP25:BV25,"")+1),"") -> 145 | BX25: =IF(BX$14>=$AT25,INDEX(Break12,COLUMNS($BP25:BW25)-COUNTIF($BP25:BW25,"")+1),"") -> 101.5 | BY25: =IF(BY$14>=$AT25,INDEX(Break12,COLUMNS($BP25:BX25)-COUNTIF($BP25:BX25,"")+1),"") -> 72.5 | BZ25: =IF(BZ$14>=$AT25,INDEX(Break12,COLUMNS($BP25:BY25)-COUNTIF($BP25:BY25,"")+1),"") -> 0 | CA25: =IF(CA$14>=$AT25,INDEX(Break12,COLUMNS($BP25:BZ25)-COUNTIF($BP25:BZ25,"")+1),"") -> 0 | CB25: =IF(CB$14>=$AT25,INDEX(Break12,COLUMNS($BP25:CA25)-COUNTIF($BP25:CA25,"")+1),"") -> 0 | CC25: =IF(CC$14>=$AT25,INDEX(Break12,COLUMNS($BP25:CB25)-COUNTIF($BP25:CB25,"")+1),"") -> 0 | CD25: =IF(CD$14>=$AT25,INDEX(Break12,COLUMNS($BP25:CC25)-COUNTIF($BP25:CC25,"")+1),"") -> 0 | CE25: =IF(CE$14>=$AT25,INDEX(Break12,COLUMNS($BP25:CD25)-COUNTIF($BP25:CD25,"")+1),"") -> 0 | CF25: =IF(CF$14>=$AT25,INDEX(Break12,COLUMNS($BP25:CE25)-COUNTIF($BP25:CE25,"")+1),"") -> 0 | CG25: =IF(CG$14>=$AT25,INDEX(Break12,COLUMNS($BP25:CF25)-COUNTIF($BP25:CF25,"")+1),"") -> 0 | CH25: =IF(CH$14>=$AT25,INDEX(Break12,COLUMNS($BP25:CG25)-COUNTIF($BP25:CG25,"")+1),"") -> 0 | CI25: =IF(CI$14>=$AT25,INDEX(Break12,COLUMNS($BP25:CH25)-COUNTIF($BP25:CH25,"")+1),"") -> 0 | CJ25: =IF(CJ$14>=$AT25,INDEX(Break12,COLUMNS($BP25:CI25)-COUNTIF($BP25:CI25,"")+1),"") -> 0 | CK25: =IF(CK$14>=$AT25,INDEX(Break12,COLUMNS($BP25:CJ25)-COUNTIF($BP25:CJ25,"")+1),"") -> 0 | CL25: =IF(CL$14>=$AT25,INDEX(Break12,COLUMNS($BP25:CK25)-COUNTIF($BP25:CK25,"")+1),"") -> 0 | CM25: =IF(CM$14>=$AT25,INDEX(Break12,COLUMNS($BP25:CL25)-COUNTIF($BP25:CL25,"")+1),"") -> 0 | CN25: =IF(CN$14>=$AT25,INDEX(Break12,COLUMNS($BP25:CM25)-COUNTIF($BP25:CM25,"")+1),"") ->  | CO25: =IF(CO$14>=$AT25,INDEX(Break12,COLUMNS($BP25:CN25)-COUNTIF($BP25:CN25,"")+1),"") ->  | CP25: =IF(CP$14>=$AT25,INDEX(Break12,COLUMNS($BP25:CO25)-COUNTIF($BP25:CO25,"")+1),"") ->  | CQ25: =IF(CQ$14>=$AT25,INDEX(Break12,COLUMNS($BP25:CP25)-COUNTIF($BP25:CP25,"")+1),"") ->  | CR25: =IF(CR$14>=$AT25,INDEX(Break12,COLUMNS($BP25:CQ25)-COUNTIF($BP25:CQ25,"")+1),"") ->  | CS25: =IF(CS$14>=$AT25,INDEX(Break12,COLUMNS($BP25:CR25)-COUNTIF($BP25:CR25,"")+1),"") ->  | CT25: =IF(CT$14>=$AT25,INDEX(Break12,COLUMNS($BP25:CS25)-COUNTIF($BP25:CS25,"")+1),"") ->  | CU25: =IF(CU$14>=$AT25,INDEX(Break12,COLUMNS($BP25:CT25)-COUNTIF($BP25:CT25,"")+1),"") ->  | CV25: =IF(CV$14>=$AT25,INDEX(Break12,COLUMNS($BP25:CU25)-COUNTIF($BP25:CU25,"")+1),"") ->  | CW25: =IF(CW$14>=$AT25,INDEX(Break12,COLUMNS($BP25:CV25)-COUNTIF($BP25:CV25,"")+1),"") ->  | CX25: =IF(CX$14>=$AT25,INDEX(Break12,COLUMNS($BP25:CW25)-COUNTIF($BP25:CW25,"")+1),"") ->  | CY25: =IF(CY$14>=$AT25,INDEX(Break12,COLUMNS($BP25:CX25)-COUNTIF($BP25:CX25,"")+1),"") ->  | CZ25: =IF(CZ$14>=$AT25,INDEX(Break12,COLUMNS($BP25:CY25)-COUNTIF($BP25:CY25,"")+1),"") ->  | DA25: =IF(DA$14>=$AT25,INDEX(Break12,COLUMNS($BP25:CZ25)-COUNTIF($BP25:CZ25,"")+1),"") ->  | DB25: =IF(DB$14>=$AT25,INDEX(Break12,COLUMNS($BP25:DA25)-COUNTIF($BP25:DA25,"")+1),"") ->  | DC25: =IF(DC$14>=$AT25,INDEX(Break12,COLUMNS($BP25:DB25)-COUNTIF($BP25:DB25,"")+1),"") ->  | DD25: =IF(DD$14>=$AT25,INDEX(Break12,COLUMNS($BP25:DC25)-COUNTIF($BP25:DC25,"")+1),"") ->  | DE25: =IF(DE$14>=$AT25,INDEX(Break12,COLUMNS($BP25:DD25)-COUNTIF($BP25:DD25,"")+1),"") ->  | DF25: =IF(DF$14>=$AT25,INDEX(Break12,COLUMNS($BP25:DE25)-COUNTIF($BP25:DE25,"")+1),"") ->  | DG25: =IF(DG$14>=$AT25,INDEX(Break12,COLUMNS($BP25:DF25)-COUNTIF($BP25:DF25,"")+1),"") ->  | DH25: =IF(DH$14>=$AT25,INDEX(Break12,COLUMNS($BP25:DG25)-COUNTIF($BP25:DG25,"")+1),"") ->  | DI25: =IF(DI$14>=$AT25,INDEX(Break12,COLUMNS($BP25:DH25)-COUNTIF($BP25:DH25,"")+1),"") ->  | DJ25: =IF(DJ$14>=$AT25,INDEX(Break12,COLUMNS($BP25:DI25)-COUNTIF($BP25:DI25,"")+1),"") ->  | DK25: =IF(DK$14>=$AT25,INDEX(Break12,COLUMNS($BP25:DJ25)-COUNTIF($BP25:DJ25,"")+1),"") ->  | DL25: =IF(DL$14>=$AT25,INDEX(Break12,COLUMNS($BP25:DK25)-COUNTIF($BP25:DK25,"")+1),"") ->  | DM25: =IF(DM$14>=$AT25,INDEX(Break12,COLUMNS($BP25:DL25)-COUNTIF($BP25:DL25,"")+1),"") ->  | DN25: =IF(DN$14>=$AT25,INDEX(Break12,COLUMNS($BP25:DM25)-COUNTIF($BP25:DM25,"")+1),"") ->  | DO25: =IF(DO$14>=$AT25,INDEX(Break12,COLUMNS($BP25:DN25)-COUNTIF($BP25:DN25,"")+1),"") ->  | DP25: =IF(DP$14>=$AT25,INDEX(Break12,COLUMNS($BP25:DO25)-COUNTIF($BP25:DO25,"")+1),"") ->  | DQ25: =IF(DQ$14>=$AT25,INDEX(Break12,COLUMNS($BP25:DP25)-COUNTIF($BP25:DP25,"")+1),"") ->  | DR25: =IF(DR$14>=$AT25,INDEX(Break12,COLUMNS($BP25:DQ25)-COUNTIF($BP25:DQ25,"")+1),"") ->  | DS25: =IF(DS$14>=$AT25,INDEX(Break12,COLUMNS($BP25:DR25)-COUNTIF($BP25:DR25,"")+1),"") ->  | DT25: =IF(DT$14>=$AT25,INDEX(Break12,COLUMNS($BP25:DS25)-COUNTIF($BP25:DS25,"")+1),"") ->  | DU25: =IF(DU$14>=$AT25,INDEX(Break12,COLUMNS($BP25:DT25)-COUNTIF($BP25:DT25,"")+1),"") ->  | DV25: =IF(DV$14>=$AT25,INDEX(Break12,COLUMNS($BP25:DU25)-COUNTIF($BP25:DU25,"")+1),"") ->  | DW25: =IF(DW$14>=$AT25,INDEX(Break12,COLUMNS($BP25:DV25)-COUNTIF($BP25:DV25,"")+1),"") ->  | DX25: =IF(DX$14>=$AT25,INDEX(Break12,COLUMNS($BP25:DW25)-COUNTIF($BP25:DW25,"")+1),"") ->  | DY25: =IF(DY$14>=$AT25,INDEX(Break12,COLUMNS($BP25:DX25)-COUNTIF($BP25:DX25,"")+1),"") ->  | DZ25: =IF(DZ$14>=$AT25,INDEX(Break12,COLUMNS($BP25:DY25)-COUNTIF($BP25:DY25,"")+1),"") ->  | EA25: =IF(EA$14>=$AT25,INDEX(Break12,COLUMNS($BP25:DZ25)-COUNTIF($BP25:DZ25,"")+1),"") ->  | EB25: =IF(EB$14>=$AT25,INDEX(Break12,COLUMNS($BP25:EA25)-COUNTIF($BP25:EA25,"")+1),"") ->  | EC25: =IF(EC$14>=$AT25,INDEX(Break12,COLUMNS($BP25:EB25)-COUNTIF($BP25:EB25,"")+1),"") ->  | ED25: =IF(ED$14>=$AT25,INDEX(Break12,COLUMNS($BP25:EC25)-COUNTIF($BP25:EC25,"")+1),"") ->  | EE25: =IF(EE$14>=$AT25,INDEX(Break12,COLUMNS($BP25:ED25)-COUNTIF($BP25:ED25,"")+1),"") ->  | EF25: =IF(EF$14>=$AT25,INDEX(Break12,COLUMNS($BP25:EE25)-COUNTIF($BP25:EE25,"")+1),"") ->  | EG25: =IF(EG$14>=$AT25,INDEX(Break12,COLUMNS($BP25:EF25)-COUNTIF($BP25:EF25,"")+1),"") ->  | EH25: =IF(EH$14>=$AT25,INDEX(Break12,COLUMNS($BP25:EG25)-COUNTIF($BP25:EG25,"")+1),"") ->  | EI25: =IF(EI$14>=$AT25,INDEX(Break12,COLUMNS($BP25:EH25)-COUNTIF($BP25:EH25,"")+1),"") ->  | EK25: 2026 | EL25: 70 | EM25: 8 | EQ25: 8 | ER25: 8 | ES25: 8 | ET25: 8 | EU25: 8 | EV25: 8 | EW25: 8 | EX25: 8 | EY25: 8 | EZ25: 8 | FA25: 8 | FB25: 8 | FC25: 8 | FD25: 8 | FE25: 8 | FG25: Retail Trade | FH25: =SUMPRODUCT(SUBTOTAL(3,OFFSET('Construction Workforce'!$D$15:$D$513,ROW('Construction Workforce'!$D$15:$D$513)-MIN(ROW('Construction Workforce'!$D$15:$D$513)),,1,)),N('Construction Workforce'!$D$15:$D$513=FG25)) -> 1
B26: Project 12 | C26: Project 12 | D26: Company 12 | E26: Manufacturing | F26: 4440 | G26: Planning | H26: 2026 | I26: 1 | J26: 16 | K26: 1000 | L26: 2030 | M26: 25 | N26: 120 | O26: 0.1 | P26: 0.9 | S26: 11 | T26: 0.4 | U26: 0.5 | V26: 0.6 | W26: 0.9 | X26: 1 | Y26: 1 | Z26: 1 | AA26: 0.9 | AB26: 0.6 | AC26: 0.5 | AD26: 0.4 | AO26: Project 12 | AP26: ='Master Sheet - Project Info'!$H26 -> 2026 | AQ26: ='Master Sheet - Project Info'!$I26 -> 1 | AR26: ='Master Sheet - Project Info'!$J26 -> 16 | AS26: ='Master Sheet - Project Info'!$K26 -> 1000 | AT26: 2026 | AU26: 200 | AV26: 300 | AW26: 400 | AX26: 500 | AY26: 700 | AZ26: 800 | BA26: 900 | BB26: 1000 | BC26: 1000 | BD26: 1000 | BE26: 1000 | BF26: 900 | BG26: 700 | BH26: 500 | BI26: 400 | BJ26: 200 | BK26: 0 | BL26: 0 | BM26: 0 | BN26: 0 | BP26: =IF($BP$14>=AT26,INDEX(Break13,1),"") ->  | BQ26: =IF(BQ$14>=$AT26,INDEX(Break13,COLUMNS($BP26:BP26)-COUNTIF($BP26:BP26,"")+1),"") ->  | BR26: =IF(BR$14>=$AT26,INDEX(Break13,COLUMNS($BP26:BQ26)-COUNTIF($BP26:BQ26,"")+1),"") ->  | BS26: =IF(BS$14>=$AT26,INDEX(Break13,COLUMNS($BP26:BR26)-COUNTIF($BP26:BR26,"")+1),"") ->  | BT26: =IF(BT$14>=$AT26,INDEX(Break13,COLUMNS($BP26:BS26)-COUNTIF($BP26:BS26,"")+1),"") ->  | BU26: =IF(BU$14>=$AT26,INDEX(Break13,COLUMNS($BP26:BT26)-COUNTIF($BP26:BT26,"")+1),"") ->  | BV26: =IF(BV$14>=$AT26,INDEX(Break13,COLUMNS($BP26:BU26)-COUNTIF($BP26:BU26,"")+1),"") ->  | BW26: =IF(BW$14>=$AT26,INDEX(Break13,COLUMNS($BP26:BV26)-COUNTIF($BP26:BV26,"")+1),"") ->  | BX26: =IF(BX$14>=$AT26,INDEX(Break13,COLUMNS($BP26:BW26)-COUNTIF($BP26:BW26,"")+1),"") ->  | BY26: =IF(BY$14>=$AT26,INDEX(Break13,COLUMNS($BP26:BX26)-COUNTIF($BP26:BX26,"")+1),"") ->  | BZ26: =IF(BZ$14>=$AT26,INDEX(Break13,COLUMNS($BP26:BY26)-COUNTIF($BP26:BY26,"")+1),"") ->  | CA26: =IF(CA$14>=$AT26,INDEX(Break13,COLUMNS($BP26:BZ26)-COUNTIF($BP26:BZ26,"")+1),"") ->  | CB26: =IF(CB$14>=$AT26,INDEX(Break13,COLUMNS($BP26:CA26)-COUNTIF($BP26:CA26,"")+1),"") -> 200 | CC26: =IF(CC$14>=$AT26,INDEX(Break13,COLUMNS($BP26:CB26)-COUNTIF($BP26:CB26,"")+1),"") -> 300 | CD26: =IF(CD$14>=$AT26,INDEX(Break13,COLUMNS($BP26:CC26)-COUNTIF($BP26:CC26,"")+1),"") -> 400 | CE26: =IF(CE$14>=$AT26,INDEX(Break13,COLUMNS($BP26:CD26)-COUNTIF($BP26:CD26,"")+1),"") -> 500 | CF26: =IF(CF$14>=$AT26,INDEX(Break13,COLUMNS($BP26:CE26)-COUNTIF($BP26:CE26,"")+1),"") -> 700 | CG26: =IF(CG$14>=$AT26,INDEX(Break13,COLUMNS($BP26:CF26)-COUNTIF($BP26:CF26,"")+1),"") -> 800 | CH26: =IF(CH$14>=$AT26,INDEX(Break13,COLUMNS($BP26:CG26)-COUNTIF($BP26:CG26,"")+1),"") -> 900 | CI26: =IF(CI$14>=$AT26,INDEX(Break13,COLUMNS($BP26:CH26)-COUNTIF($BP26:CH26,"")+1),"") -> 1000 | CJ26: =IF(CJ$14>=$AT26,INDEX(Break13,COLUMNS($BP26:CI26)-COUNTIF($BP26:CI26,"")+1),"") -> 1000 | CK26: =IF(CK$14>=$AT26,INDEX(Break13,COLUMNS($BP26:CJ26)-COUNTIF($BP26:CJ26,"")+1),"") -> 1000 | CL26: =IF(CL$14>=$AT26,INDEX(Break13,COLUMNS($BP26:CK26)-COUNTIF($BP26:CK26,"")+1),"") -> 1000 | CM26: =IF(CM$14>=$AT26,INDEX(Break13,COLUMNS($BP26:CL26)-COUNTIF($BP26:CL26,"")+1),"") -> 900 | CN26: =IF(CN$14>=$AT26,INDEX(Break13,COLUMNS($BP26:CM26)-COUNTIF($BP26:CM26,"")+1),"") -> 700 | CO26: =IF(CO$14>=$AT26,INDEX(Break13,COLUMNS($BP26:CN26)-COUNTIF($BP26:CN26,"")+1),"") -> 500 | CP26: =IF(CP$14>=$AT26,INDEX(Break13,COLUMNS($BP26:CO26)-COUNTIF($BP26:CO26,"")+1),"") -> 400 | CQ26: =IF(CQ$14>=$AT26,INDEX(Break13,COLUMNS($BP26:CP26)-COUNTIF($BP26:CP26,"")+1),"") -> 200 | CR26: =IF(CR$14>=$AT26,INDEX(Break13,COLUMNS($BP26:CQ26)-COUNTIF($BP26:CQ26,"")+1),"") -> 0 | CS26: =IF(CS$14>=$AT26,INDEX(Break13,COLUMNS($BP26:CR26)-COUNTIF($BP26:CR26,"")+1),"") -> 0 | CT26: =IF(CT$14>=$AT26,INDEX(Break13,COLUMNS($BP26:CS26)-COUNTIF($BP26:CS26,"")+1),"") -> 0 | CU26: =IF(CU$14>=$AT26,INDEX(Break13,COLUMNS($BP26:CT26)-COUNTIF($BP26:CT26,"")+1),"") -> 0 | CV26: =IF(CV$14>=$AT26,INDEX(Break13,COLUMNS($BP26:CU26)-COUNTIF($BP26:CU26,"")+1),"") ->  | CW26: =IF(CW$14>=$AT26,INDEX(Break13,COLUMNS($BP26:CV26)-COUNTIF($BP26:CV26,"")+1),"") ->  | CX26: =IF(CX$14>=$AT26,INDEX(Break13,COLUMNS($BP26:CW26)-COUNTIF($BP26:CW26,"")+1),"") ->  | CY26: =IF(CY$14>=$AT26,INDEX(Break13,COLUMNS($BP26:CX26)-COUNTIF($BP26:CX26,"")+1),"") ->  | CZ26: =IF(CZ$14>=$AT26,INDEX(Break13,COLUMNS($BP26:CY26)-COUNTIF($BP26:CY26,"")+1),"") ->  | DA26: =IF(DA$14>=$AT26,INDEX(Break13,COLUMNS($BP26:CZ26)-COUNTIF($BP26:CZ26,"")+1),"") ->  | DB26: =IF(DB$14>=$AT26,INDEX(Break13,COLUMNS($BP26:DA26)-COUNTIF($BP26:DA26,"")+1),"") ->  | DC26: =IF(DC$14>=$AT26,INDEX(Break13,COLUMNS($BP26:DB26)-COUNTIF($BP26:DB26,"")+1),"") ->  | DD26: =IF(DD$14>=$AT26,INDEX(Break13,COLUMNS($BP26:DC26)-COUNTIF($BP26:DC26,"")+1),"") ->  | DE26: =IF(DE$14>=$AT26,INDEX(Break13,COLUMNS($BP26:DD26)-COUNTIF($BP26:DD26,"")+1),"") ->  | DF26: =IF(DF$14>=$AT26,INDEX(Break13,COLUMNS($BP26:DE26)-COUNTIF($BP26:DE26,"")+1),"") ->  | DG26: =IF(DG$14>=$AT26,INDEX(Break13,COLUMNS($BP26:DF26)-COUNTIF($BP26:DF26,"")+1),"") ->  | DH26: =IF(DH$14>=$AT26,INDEX(Break13,COLUMNS($BP26:DG26)-COUNTIF($BP26:DG26,"")+1),"") ->  | DI26: =IF(DI$14>=$AT26,INDEX(Break13,COLUMNS($BP26:DH26)-COUNTIF($BP26:DH26,"")+1),"") ->  | DJ26: =IF(DJ$14>=$AT26,INDEX(Break13,COLUMNS($BP26:DI26)-COUNTIF($BP26:DI26,"")+1),"") ->  | DK26: =IF(DK$14>=$AT26,INDEX(Break13,COLUMNS($BP26:DJ26)-COUNTIF($BP26:DJ26,"")+1),"") ->  | DL26: =IF(DL$14>=$AT26,INDEX(Break13,COLUMNS($BP26:DK26)-COUNTIF($BP26:DK26,"")+1),"") ->  | DM26: =IF(DM$14>=$AT26,INDEX(Break13,COLUMNS($BP26:DL26)-COUNTIF($BP26:DL26,"")+1),"") ->  | DN26: =IF(DN$14>=$AT26,INDEX(Break13,COLUMNS($BP26:DM26)-COUNTIF($BP26:DM26,"")+1),"") ->  | DO26: =IF(DO$14>=$AT26,INDEX(Break13,COLUMNS($BP26:DN26)-COUNTIF($BP26:DN26,"")+1),"") ->  | DP26: =IF(DP$14>=$AT26,INDEX(Break13,COLUMNS($BP26:DO26)-COUNTIF($BP26:DO26,"")+1),"") ->  | DQ26: =IF(DQ$14>=$AT26,INDEX(Break13,COLUMNS($BP26:DP26)-COUNTIF($BP26:DP26,"")+1),"") ->  | DR26: =IF(DR$14>=$AT26,INDEX(Break13,COLUMNS($BP26:DQ26)-COUNTIF($BP26:DQ26,"")+1),"") ->  | DS26: =IF(DS$14>=$AT26,INDEX(Break13,COLUMNS($BP26:DR26)-COUNTIF($BP26:DR26,"")+1),"") ->  | DT26: =IF(DT$14>=$AT26,INDEX(Break13,COLUMNS($BP26:DS26)-COUNTIF($BP26:DS26,"")+1),"") ->  | DU26: =IF(DU$14>=$AT26,INDEX(Break13,COLUMNS($BP26:DT26)-COUNTIF($BP26:DT26,"")+1),"") ->  | DV26: =IF(DV$14>=$AT26,INDEX(Break13,COLUMNS($BP26:DU26)-COUNTIF($BP26:DU26,"")+1),"") ->  | DW26: =IF(DW$14>=$AT26,INDEX(Break13,COLUMNS($BP26:DV26)-COUNTIF($BP26:DV26,"")+1),"") ->  | DX26: =IF(DX$14>=$AT26,INDEX(Break13,COLUMNS($BP26:DW26)-COUNTIF($BP26:DW26,"")+1),"") ->  | DY26: =IF(DY$14>=$AT26,INDEX(Break13,COLUMNS($BP26:DX26)-COUNTIF($BP26:DX26,"")+1),"") ->  | DZ26: =IF(DZ$14>=$AT26,INDEX(Break13,COLUMNS($BP26:DY26)-COUNTIF($BP26:DY26,"")+1),"") ->  | EA26: =IF(EA$14>=$AT26,INDEX(Break13,COLUMNS($BP26:DZ26)-COUNTIF($BP26:DZ26,"")+1),"") ->  | EB26: =IF(EB$14>=$AT26,INDEX(Break13,COLUMNS($BP26:EA26)-COUNTIF($BP26:EA26,"")+1),"") ->  | EC26: =IF(EC$14>=$AT26,INDEX(Break13,COLUMNS($BP26:EB26)-COUNTIF($BP26:EB26,"")+1),"") ->  | ED26: =IF(ED$14>=$AT26,INDEX(Break13,COLUMNS($BP26:EC26)-COUNTIF($BP26:EC26,"")+1),"") ->  | EE26: =IF(EE$14>=$AT26,INDEX(Break13,COLUMNS($BP26:ED26)-COUNTIF($BP26:ED26,"")+1),"") ->  | EF26: =IF(EF$14>=$AT26,INDEX(Break13,COLUMNS($BP26:EE26)-COUNTIF($BP26:EE26,"")+1),"") ->  | EG26: =IF(EG$14>=$AT26,INDEX(Break13,COLUMNS($BP26:EF26)-COUNTIF($BP26:EF26,"")+1),"") ->  | EH26: =IF(EH$14>=$AT26,INDEX(Break13,COLUMNS($BP26:EG26)-COUNTIF($BP26:EG26,"")+1),"") ->  | EI26: =IF(EI$14>=$AT26,INDEX(Break13,COLUMNS($BP26:EH26)-COUNTIF($BP26:EH26,"")+1),"") ->  | EK26: 2030 | EL26: 25 | EM26: 120 | EU26: 120 | EV26: 120 | EW26: 120 | EX26: 120 | EY26: 120 | EZ26: 120 | FA26: 120 | FB26: 120 | FC26: 120 | FD26: 120 | FE26: 120 | FG26: Other | FH26: =SUMPRODUCT(SUBTOTAL(3,OFFSET('Construction Workforce'!$D$15:$D$513,ROW('Construction Workforce'!$D$15:$D$513)-MIN(ROW('Construction Workforce'!$D$15:$D$513)),,1,)),N('Construction Workforce'!$D$15:$D$513=FG26)) -> 2
B27: Project 13 | C27: Project 13 | D27: Company 13 | E27: Mining | F27: 930 | G27: Construction | H27: 2023 | I27: 1 | J27: 12 | K27: 200 | L27: 2026 | M27: 25 | N27: 100 | O27: 0.5 | P27: 0.5 | S27: 12 | T27: 0.4 | U27: 0.5 | V27: 0.6 | W27: 0.9 | X27: 1 | Y27: 1 | Z27: 1 | AA27: 0.9 | AB27: 0.8 | AC27: 0.6 | AD27: 0.5 | AE27: 0.4 | AO27: Project 13 | AP27: ='Master Sheet - Project Info'!$H27 -> 2023 | AQ27: ='Master Sheet - Project Info'!$I27 -> 1 | AR27: ='Master Sheet - Project Info'!$J27 -> 12 | AS27: ='Master Sheet - Project Info'!$K27 -> 200 | AT27: 2023 | AU27: 80 | AV27: 100 | AW27: 120 | AX27: 180 | AY27: 200 | AZ27: 200 | BA27: 200 | BB27: 180 | BC27: 160 | BD27: 120 | BE27: 100 | BF27: 80 | BG27: 0 | BH27: 0 | BI27: 0 | BJ27: 0 | BK27: 0 | BL27: 0 | BM27: 0 | BN27: 0 | BP27: =IF($BP$14>=AT27,INDEX(Break14,1),"") -> 80 | BQ27: =IF(BQ$14>=$AT27,INDEX(Break14,COLUMNS($BP27:BP27)-COUNTIF($BP27:BP27,"")+1),"") -> 100 | BR27: =IF(BR$14>=$AT27,INDEX(Break14,COLUMNS($BP27:BQ27)-COUNTIF($BP27:BQ27,"")+1),"") -> 120 | BS27: =IF(BS$14>=$AT27,INDEX(Break14,COLUMNS($BP27:BR27)-COUNTIF($BP27:BR27,"")+1),"") -> 180 | BT27: =IF(BT$14>=$AT27,INDEX(Break14,COLUMNS($BP27:BS27)-COUNTIF($BP27:BS27,"")+1),"") -> 200 | BU27: =IF(BU$14>=$AT27,INDEX(Break14,COLUMNS($BP27:BT27)-COUNTIF($BP27:BT27,"")+1),"") -> 200 | BV27: =IF(BV$14>=$AT27,INDEX(Break14,COLUMNS($BP27:BU27)-COUNTIF($BP27:BU27,"")+1),"") -> 200 | BW27: =IF(BW$14>=$AT27,INDEX(Break14,COLUMNS($BP27:BV27)-COUNTIF($BP27:BV27,"")+1),"") -> 180 | BX27: =IF(BX$14>=$AT27,INDEX(Break14,COLUMNS($BP27:BW27)-COUNTIF($BP27:BW27,"")+1),"") -> 160 | BY27: =IF(BY$14>=$AT27,INDEX(Break14,COLUMNS($BP27:BX27)-COUNTIF($BP27:BX27,"")+1),"") -> 120 | BZ27: =IF(BZ$14>=$AT27,INDEX(Break14,COLUMNS($BP27:BY27)-COUNTIF($BP27:BY27,"")+1),"") -> 100 | CA27: =IF(CA$14>=$AT27,INDEX(Break14,COLUMNS($BP27:BZ27)-COUNTIF($BP27:BZ27,"")+1),"") -> 80 | CB27: =IF(CB$14>=$AT27,INDEX(Break14,COLUMNS($BP27:CA27)-COUNTIF($BP27:CA27,"")+1),"") -> 0 | CC27: =IF(CC$14>=$AT27,INDEX(Break14,COLUMNS($BP27:CB27)-COUNTIF($BP27:CB27,"")+1),"") -> 0 | CD27: =IF(CD$14>=$AT27,INDEX(Break14,COLUMNS($BP27:CC27)-COUNTIF($BP27:CC27,"")+1),"") -> 0 | CE27: =IF(CE$14>=$AT27,INDEX(Break14,COLUMNS($BP27:CD27)-COUNTIF($BP27:CD27,"")+1),"") -> 0 | CF27: =IF(CF$14>=$AT27,INDEX(Break14,COLUMNS($BP27:CE27)-COUNTIF($BP27:CE27,"")+1),"") -> 0 | CG27: =IF(CG$14>=$AT27,INDEX(Break14,COLUMNS($BP27:CF27)-COUNTIF($BP27:CF27,"")+1),"") -> 0 | CH27: =IF(CH$14>=$AT27,INDEX(Break14,COLUMNS($BP27:CG27)-COUNTIF($BP27:CG27,"")+1),"") -> 0 | CI27: =IF(CI$14>=$AT27,INDEX(Break14,COLUMNS($BP27:CH27)-COUNTIF($BP27:CH27,"")+1),"") -> 0 | CJ27: =IF(CJ$14>=$AT27,INDEX(Break14,COLUMNS($BP27:CI27)-COUNTIF($BP27:CI27,"")+1),"") ->  | CK27: =IF(CK$14>=$AT27,INDEX(Break14,COLUMNS($BP27:CJ27)-COUNTIF($BP27:CJ27,"")+1),"") ->  | CL27: =IF(CL$14>=$AT27,INDEX(Break14,COLUMNS($BP27:CK27)-COUNTIF($BP27:CK27,"")+1),"") ->  | CM27: =IF(CM$14>=$AT27,INDEX(Break14,COLUMNS($BP27:CL27)-COUNTIF($BP27:CL27,"")+1),"") ->  | CN27: =IF(CN$14>=$AT27,INDEX(Break14,COLUMNS($BP27:CM27)-COUNTIF($BP27:CM27,"")+1),"") ->  | CO27: =IF(CO$14>=$AT27,INDEX(Break14,COLUMNS($BP27:CN27)-COUNTIF($BP27:CN27,"")+1),"") ->  | CP27: =IF(CP$14>=$AT27,INDEX(Break14,COLUMNS($BP27:CO27)-COUNTIF($BP27:CO27,"")+1),"") ->  | CQ27: =IF(CQ$14>=$AT27,INDEX(Break14,COLUMNS($BP27:CP27)-COUNTIF($BP27:CP27,"")+1),"") ->  | CR27: =IF(CR$14>=$AT27,INDEX(Break14,COLUMNS($BP27:CQ27)-COUNTIF($BP27:CQ27,"")+1),"") ->  | CS27: =IF(CS$14>=$AT27,INDEX(Break14,COLUMNS($BP27:CR27)-COUNTIF($BP27:CR27,"")+1),"") ->  | CT27: =IF(CT$14>=$AT27,INDEX(Break14,COLUMNS($BP27:CS27)-COUNTIF($BP27:CS27,"")+1),"") ->  | CU27: =IF(CU$14>=$AT27,INDEX(Break14,COLUMNS($BP27:CT27)-COUNTIF($BP27:CT27,"")+1),"") ->  | CV27: =IF(CV$14>=$AT27,INDEX(Break14,COLUMNS($BP27:CU27)-COUNTIF($BP27:CU27,"")+1),"") ->  | CW27: =IF(CW$14>=$AT27,INDEX(Break14,COLUMNS($BP27:CV27)-COUNTIF($BP27:CV27,"")+1),"") ->  | CX27: =IF(CX$14>=$AT27,INDEX(Break14,COLUMNS($BP27:CW27)-COUNTIF($BP27:CW27,"")+1),"") ->  | CY27: =IF(CY$14>=$AT27,INDEX(Break14,COLUMNS($BP27:CX27)-COUNTIF($BP27:CX27,"")+1),"") ->  | CZ27: =IF(CZ$14>=$AT27,INDEX(Break14,COLUMNS($BP27:CY27)-COUNTIF($BP27:CY27,"")+1),"") ->  | DA27: =IF(DA$14>=$AT27,INDEX(Break14,COLUMNS($BP27:CZ27)-COUNTIF($BP27:CZ27,"")+1),"") ->  | DB27: =IF(DB$14>=$AT27,INDEX(Break14,COLUMNS($BP27:DA27)-COUNTIF($BP27:DA27,"")+1),"") ->  | DC27: =IF(DC$14>=$AT27,INDEX(Break14,COLUMNS($BP27:DB27)-COUNTIF($BP27:DB27,"")+1),"") ->  | DD27: =IF(DD$14>=$AT27,INDEX(Break14,COLUMNS($BP27:DC27)-COUNTIF($BP27:DC27,"")+1),"") ->  | DE27: =IF(DE$14>=$AT27,INDEX(Break14,COLUMNS($BP27:DD27)-COUNTIF($BP27:DD27,"")+1),"") ->  | DF27: =IF(DF$14>=$AT27,INDEX(Break14,COLUMNS($BP27:DE27)-COUNTIF($BP27:DE27,"")+1),"") ->  | DG27: =IF(DG$14>=$AT27,INDEX(Break14,COLUMNS($BP27:DF27)-COUNTIF($BP27:DF27,"")+1),"") ->  | DH27: =IF(DH$14>=$AT27,INDEX(Break14,COLUMNS($BP27:DG27)-COUNTIF($BP27:DG27,"")+1),"") ->  | DI27: =IF(DI$14>=$AT27,INDEX(Break14,COLUMNS($BP27:DH27)-COUNTIF($BP27:DH27,"")+1),"") ->  | DJ27: =IF(DJ$14>=$AT27,INDEX(Break14,COLUMNS($BP27:DI27)-COUNTIF($BP27:DI27,"")+1),"") ->  | DK27: =IF(DK$14>=$AT27,INDEX(Break14,COLUMNS($BP27:DJ27)-COUNTIF($BP27:DJ27,"")+1),"") ->  | DL27: =IF(DL$14>=$AT27,INDEX(Break14,COLUMNS($BP27:DK27)-COUNTIF($BP27:DK27,"")+1),"") ->  | DM27: =IF(DM$14>=$AT27,INDEX(Break14,COLUMNS($BP27:DL27)-COUNTIF($BP27:DL27,"")+1),"") ->  | DN27: =IF(DN$14>=$AT27,INDEX(Break14,COLUMNS($BP27:DM27)-COUNTIF($BP27:DM27,"")+1),"") ->  | DO27: =IF(DO$14>=$AT27,INDEX(Break14,COLUMNS($BP27:DN27)-COUNTIF($BP27:DN27,"")+1),"") ->  | DP27: =IF(DP$14>=$AT27,INDEX(Break14,COLUMNS($BP27:DO27)-COUNTIF($BP27:DO27,"")+1),"") ->  | DQ27: =IF(DQ$14>=$AT27,INDEX(Break14,COLUMNS($BP27:DP27)-COUNTIF($BP27:DP27,"")+1),"") ->  | DR27: =IF(DR$14>=$AT27,INDEX(Break14,COLUMNS($BP27:DQ27)-COUNTIF($BP27:DQ27,"")+1),"") ->  | DS27: =IF(DS$14>=$AT27,INDEX(Break14,COLUMNS($BP27:DR27)-COUNTIF($BP27:DR27,"")+1),"") ->  | DT27: =IF(DT$14>=$AT27,INDEX(Break14,COLUMNS($BP27:DS27)-COUNTIF($BP27:DS27,"")+1),"") ->  | DU27: =IF(DU$14>=$AT27,INDEX(Break14,COLUMNS($BP27:DT27)-COUNTIF($BP27:DT27,"")+1),"") ->  | DV27: =IF(DV$14>=$AT27,INDEX(Break14,COLUMNS($BP27:DU27)-COUNTIF($BP27:DU27,"")+1),"") ->  | DW27: =IF(DW$14>=$AT27,INDEX(Break14,COLUMNS($BP27:DV27)-COUNTIF($BP27:DV27,"")+1),"") ->  | DX27: =IF(DX$14>=$AT27,INDEX(Break14,COLUMNS($BP27:DW27)-COUNTIF($BP27:DW27,"")+1),"") ->  | DY27: =IF(DY$14>=$AT27,INDEX(Break14,COLUMNS($BP27:DX27)-COUNTIF($BP27:DX27,"")+1),"") ->  | DZ27: =IF(DZ$14>=$AT27,INDEX(Break14,COLUMNS($BP27:DY27)-COUNTIF($BP27:DY27,"")+1),"") ->  | EA27: =IF(EA$14>=$AT27,INDEX(Break14,COLUMNS($BP27:DZ27)-COUNTIF($BP27:DZ27,"")+1),"") ->  | EB27: =IF(EB$14>=$AT27,INDEX(Break14,COLUMNS($BP27:EA27)-COUNTIF($BP27:EA27,"")+1),"") ->  | EC27: =IF(EC$14>=$AT27,INDEX(Break14,COLUMNS($BP27:EB27)-COUNTIF($BP27:EB27,"")+1),"") ->  | ED27: =IF(ED$14>=$AT27,INDEX(Break14,COLUMNS($BP27:EC27)-COUNTIF($BP27:EC27,"")+1),"") ->  | EE27: =IF(EE$14>=$AT27,INDEX(Break14,COLUMNS($BP27:ED27)-COUNTIF($BP27:ED27,"")+1),"") ->  | EF27: =IF(EF$14>=$AT27,INDEX(Break14,COLUMNS($BP27:EE27)-COUNTIF($BP27:EE27,"")+1),"") ->  | EG27: =IF(EG$14>=$AT27,INDEX(Break14,COLUMNS($BP27:EF27)-COUNTIF($BP27:EF27,"")+1),"") ->  | EH27: =IF(EH$14>=$AT27,INDEX(Break14,COLUMNS($BP27:EG27)-COUNTIF($BP27:EG27,"")+1),"") ->  | EI27: =IF(EI$14>=$AT27,INDEX(Break14,COLUMNS($BP27:EH27)-COUNTIF($BP27:EH27,"")+1),"") ->  | EK27: 2026 | EL27: 25 | EM27: 100 | EQ27: 100 | ER27: 100 | ES27: 100 | ET27: 100 | EU27: 100 | EV27: 100 | EW27: 100 | EX27: 100 | EY27: 100 | EZ27: 100 | FA27: 100 | FB27: 100 | FC27: 100 | FD27: 100 | FE27: 100
B28: Project 14 | C28: Project 14 | D28: Company 14 | E28: Oil & Gas Extraction | F28: 16200 | G28: Construction | H28: 2023 | I28: 2 | J28: 16 | K28: 3200 | L28: 2026 | M28: 40 | N28: 70 | O28: 0.5 | P28: 0.5 | S28: 13 | T28: 0.3 | U28: 0.5 | V28: 0.6 | W28: 0.9 | X28: 1 | Y28: 1 | Z28: 1 | AA28: 1 | AB28: 0.9 | AC28: 0.6 | AD28: 0.5 | AE28: 0.4 | AF28: 0.3 | AO28: Project 14 | AP28: ='Master Sheet - Project Info'!$H28 -> 2023 | AQ28: ='Master Sheet - Project Info'!$I28 -> 2 | AR28: ='Master Sheet - Project Info'!$J28 -> 16 | AS28: ='Master Sheet - Project Info'!$K28 -> 3200 | AT28: 2023.25 | AU28: 640 | AV28: 960 | AW28: 1280 | AX28: 1600 | AY28: 2240 | AZ28: 2560 | BA28: 2880 | BB28: 3200 | BC28: 3200 | BD28: 3200 | BE28: 3200 | BF28: 2880 | BG28: 2240 | BH28: 1600 | BI28: 1280 | BJ28: 640 | BK28: 0 | BL28: 0 | BM28: 0 | BN28: 0 | BP28: =IF($BP$14>=AT28,INDEX(Break15,1),"") ->  | BQ28: =IF(BQ$14>=$AT28,INDEX(Break15,COLUMNS($BP28:BP28)-COUNTIF($BP28:BP28,"")+1),"") -> 640 | BR28: =IF(BR$14>=$AT28,INDEX(Break15,COLUMNS($BP28:BQ28)-COUNTIF($BP28:BQ28,"")+1),"") -> 960 | BS28: =IF(BS$14>=$AT28,INDEX(Break15,COLUMNS($BP28:BR28)-COUNTIF($BP28:BR28,"")+1),"") -> 1280 | BT28: =IF(BT$14>=$AT28,INDEX(Break15,COLUMNS($BP28:BS28)-COUNTIF($BP28:BS28,"")+1),"") -> 1600 | BU28: =IF(BU$14>=$AT28,INDEX(Break15,COLUMNS($BP28:BT28)-COUNTIF($BP28:BT28,"")+1),"") -> 2240 | BV28: =IF(BV$14>=$AT28,INDEX(Break15,COLUMNS($BP28:BU28)-COUNTIF($BP28:BU28,"")+1),"") -> 2560 | BW28: =IF(BW$14>=$AT28,INDEX(Break15,COLUMNS($BP28:BV28)-COUNTIF($BP28:BV28,"")+1),"") -> 2880 | BX28: =IF(BX$14>=$AT28,INDEX(Break15,COLUMNS($BP28:BW28)-COUNTIF($BP28:BW28,"")+1),"") -> 3200 | BY28: =IF(BY$14>=$AT28,INDEX(Break15,COLUMNS($BP28:BX28)-COUNTIF($BP28:BX28,"")+1),"") -> 3200 | BZ28: =IF(BZ$14>=$AT28,INDEX(Break15,COLUMNS($BP28:BY28)-COUNTIF($BP28:BY28,"")+1),"") -> 3200 | CA28: =IF(CA$14>=$AT28,INDEX(Break15,COLUMNS($BP28:BZ28)-COUNTIF($BP28:BZ28,"")+1),"") -> 3200 | CB28: =IF(CB$14>=$AT28,INDEX(Break15,COLUMNS($BP28:CA28)-COUNTIF($BP28:CA28,"")+1),"") -> 2880 | CC28: =IF(CC$14>=$AT28,INDEX(Break15,COLUMNS($BP28:CB28)-COUNTIF($BP28:CB28,"")+1),"") -> 2240 | CD28: =IF(CD$14>=$AT28,INDEX(Break15,COLUMNS($BP28:CC28)-COUNTIF($BP28:CC28,"")+1),"") -> 1600 | CE28: =IF(CE$14>=$AT28,INDEX(Break15,COLUMNS($BP28:CD28)-COUNTIF($BP28:CD28,"")+1),"") -> 1280 | CF28: =IF(CF$14>=$AT28,INDEX(Break15,COLUMNS($BP28:CE28)-COUNTIF($BP28:CE28,"")+1),"") -> 640 | CG28: =IF(CG$14>=$AT28,INDEX(Break15,COLUMNS($BP28:CF28)-COUNTIF($BP28:CF28,"")+1),"") -> 0 | CH28: =IF(CH$14>=$AT28,INDEX(Break15,COLUMNS($BP28:CG28)-COUNTIF($BP28:CG28,"")+1),"") -> 0 | CI28: =IF(CI$14>=$AT28,INDEX(Break15,COLUMNS($BP28:CH28)-COUNTIF($BP28:CH28,"")+1),"") -> 0 | CJ28: =IF(CJ$14>=$AT28,INDEX(Break15,COLUMNS($BP28:CI28)-COUNTIF($BP28:CI28,"")+1),"") -> 0 | CK28: =IF(CK$14>=$AT28,INDEX(Break15,COLUMNS($BP28:CJ28)-COUNTIF($BP28:CJ28,"")+1),"") ->  | CL28: =IF(CL$14>=$AT28,INDEX(Break15,COLUMNS($BP28:CK28)-COUNTIF($BP28:CK28,"")+1),"") ->  | CM28: =IF(CM$14>=$AT28,INDEX(Break15,COLUMNS($BP28:CL28)-COUNTIF($BP28:CL28,"")+1),"") ->  | CN28: =IF(CN$14>=$AT28,INDEX(Break15,COLUMNS($BP28:CM28)-COUNTIF($BP28:CM28,"")+1),"") ->  | CO28: =IF(CO$14>=$AT28,INDEX(Break15,COLUMNS($BP28:CN28)-COUNTIF($BP28:CN28,"")+1),"") ->  | CP28: =IF(CP$14>=$AT28,INDEX(Break15,COLUMNS($BP28:CO28)-COUNTIF($BP28:CO28,"")+1),"") ->  | CQ28: =IF(CQ$14>=$AT28,INDEX(Break15,COLUMNS($BP28:CP28)-COUNTIF($BP28:CP28,"")+1),"") ->  | CR28: =IF(CR$14>=$AT28,INDEX(Break15,COLUMNS($BP28:CQ28)-COUNTIF($BP28:CQ28,"")+1),"") ->  | CS28: =IF(CS$14>=$AT28,INDEX(Break15,COLUMNS($BP28:CR28)-COUNTIF($BP28:CR28,"")+1),"") ->  | CT28: =IF(CT$14>=$AT28,INDEX(Break15,COLUMNS($BP28:CS28)-COUNTIF($BP28:CS28,"")+1),"") ->  | CU28: =IF(CU$14>=$AT28,INDEX(Break15,COLUMNS($BP28:CT28)-COUNTIF($BP28:CT28,"")+1),"") ->  | CV28: =IF(CV$14>=$AT28,INDEX(Break15,COLUMNS($BP28:CU28)-COUNTIF($BP28:CU28,"")+1),"") ->  | CW28: =IF(CW$14>=$AT28,INDEX(Break15,COLUMNS($BP28:CV28)-COUNTIF($BP28:CV28,"")+1),"") ->  | CX28: =IF(CX$14>=$AT28,INDEX(Break15,COLUMNS($BP28:CW28)-COUNTIF($BP28:CW28,"")+1),"") ->  | CY28: =IF(CY$14>=$AT28,INDEX(Break15,COLUMNS($BP28:CX28)-COUNTIF($BP28:CX28,"")+1),"") ->  | CZ28: =IF(CZ$14>=$AT28,INDEX(Break15,COLUMNS($BP28:CY28)-COUNTIF($BP28:CY28,"")+1),"") ->  | DA28: =IF(DA$14>=$AT28,INDEX(Break15,COLUMNS($BP28:CZ28)-COUNTIF($BP28:CZ28,"")+1),"") ->  | DB28: =IF(DB$14>=$AT28,INDEX(Break15,COLUMNS($BP28:DA28)-COUNTIF($BP28:DA28,"")+1),"") ->  | DC28: =IF(DC$14>=$AT28,INDEX(Break15,COLUMNS($BP28:DB28)-COUNTIF($BP28:DB28,"")+1),"") ->  | DD28: =IF(DD$14>=$AT28,INDEX(Break15,COLUMNS($BP28:DC28)-COUNTIF($BP28:DC28,"")+1),"") ->  | DE28: =IF(DE$14>=$AT28,INDEX(Break15,COLUMNS($BP28:DD28)-COUNTIF($BP28:DD28,"")+1),"") ->  | DF28: =IF(DF$14>=$AT28,INDEX(Break15,COLUMNS($BP28:DE28)-COUNTIF($BP28:DE28,"")+1),"") ->  | DG28: =IF(DG$14>=$AT28,INDEX(Break15,COLUMNS($BP28:DF28)-COUNTIF($BP28:DF28,"")+1),"") ->  | DH28: =IF(DH$14>=$AT28,INDEX(Break15,COLUMNS($BP28:DG28)-COUNTIF($BP28:DG28,"")+1),"") ->  | DI28: =IF(DI$14>=$AT28,INDEX(Break15,COLUMNS($BP28:DH28)-COUNTIF($BP28:DH28,"")+1),"") ->  | DJ28: =IF(DJ$14>=$AT28,INDEX(Break15,COLUMNS($BP28:DI28)-COUNTIF($BP28:DI28,"")+1),"") ->  | DK28: =IF(DK$14>=$AT28,INDEX(Break15,COLUMNS($BP28:DJ28)-COUNTIF($BP28:DJ28,"")+1),"") ->  | DL28: =IF(DL$14>=$AT28,INDEX(Break15,COLUMNS($BP28:DK28)-COUNTIF($BP28:DK28,"")+1),"") ->  | DM28: =IF(DM$14>=$AT28,INDEX(Break15,COLUMNS($BP28:DL28)-COUNTIF($BP28:DL28,"")+1),"") ->  | DN28: =IF(DN$14>=$AT28,INDEX(Break15,COLUMNS($BP28:DM28)-COUNTIF($BP28:DM28,"")+1),"") ->  | DO28: =IF(DO$14>=$AT28,INDEX(Break15,COLUMNS($BP28:DN28)-COUNTIF($BP28:DN28,"")+1),"") ->  | DP28: =IF(DP$14>=$AT28,INDEX(Break15,COLUMNS($BP28:DO28)-COUNTIF($BP28:DO28,"")+1),"") ->  | DQ28: =IF(DQ$14>=$AT28,INDEX(Break15,COLUMNS($BP28:DP28)-COUNTIF($BP28:DP28,"")+1),"") ->  | DR28: =IF(DR$14>=$AT28,INDEX(Break15,COLUMNS($BP28:DQ28)-COUNTIF($BP28:DQ28,"")+1),"") ->  | DS28: =IF(DS$14>=$AT28,INDEX(Break15,COLUMNS($BP28:DR28)-COUNTIF($BP28:DR28,"")+1),"") ->  | DT28: =IF(DT$14>=$AT28,INDEX(Break15,COLUMNS($BP28:DS28)-COUNTIF($BP28:DS28,"")+1),"") ->  | DU28: =IF(DU$14>=$AT28,INDEX(Break15,COLUMNS($BP28:DT28)-COUNTIF($BP28:DT28,"")+1),"") ->  | DV28: =IF(DV$14>=$AT28,INDEX(Break15,COLUMNS($BP28:DU28)-COUNTIF($BP28:DU28,"")+1),"") ->  | DW28: =IF(DW$14>=$AT28,INDEX(Break15,COLUMNS($BP28:DV28)-COUNTIF($BP28:DV28,"")+1),"") ->  | DX28: =IF(DX$14>=$AT28,INDEX(Break15,COLUMNS($BP28:DW28)-COUNTIF($BP28:DW28,"")+1),"") ->  | DY28: =IF(DY$14>=$AT28,INDEX(Break15,COLUMNS($BP28:DX28)-COUNTIF($BP28:DX28,"")+1),"") ->  | DZ28: =IF(DZ$14>=$AT28,INDEX(Break15,COLUMNS($BP28:DY28)-COUNTIF($BP28:DY28,"")+1),"") ->  | EA28: =IF(EA$14>=$AT28,INDEX(Break15,COLUMNS($BP28:DZ28)-COUNTIF($BP28:DZ28,"")+1),"") ->  | EB28: =IF(EB$14>=$AT28,INDEX(Break15,COLUMNS($BP28:EA28)-COUNTIF($BP28:EA28,"")+1),"") ->  | EC28: =IF(EC$14>=$AT28,INDEX(Break15,COLUMNS($BP28:EB28)-COUNTIF($BP28:EB28,"")+1),"") ->  | ED28: =IF(ED$14>=$AT28,INDEX(Break15,COLUMNS($BP28:EC28)-COUNTIF($BP28:EC28,"")+1),"") ->  | EE28: =IF(EE$14>=$AT28,INDEX(Break15,COLUMNS($BP28:ED28)-COUNTIF($BP28:ED28,"")+1),"") ->  | EF28: =IF(EF$14>=$AT28,INDEX(Break15,COLUMNS($BP28:EE28)-COUNTIF($BP28:EE28,"")+1),"") ->  | EG28: =IF(EG$14>=$AT28,INDEX(Break15,COLUMNS($BP28:EF28)-COUNTIF($BP28:EF28,"")+1),"") ->  | EH28: =IF(EH$14>=$AT28,INDEX(Break15,COLUMNS($BP28:EG28)-COUNTIF($BP28:EG28,"")+1),"") ->  | EI28: =IF(EI$14>=$AT28,INDEX(Break15,COLUMNS($BP28:EH28)-COUNTIF($BP28:EH28,"")+1),"") ->  | EK28: 2026 | EL28: 40 | EM28: 70 | EQ28: 70 | ER28: 70 | ES28: 70 | ET28: 70 | EU28: 70 | EV28: 70 | EW28: 70 | EX28: 70 | EY28: 70 | EZ28: 70 | FA28: 70 | FB28: 70 | FC28: 70 | FD28: 70 | FE28: 70
B29: Project 15 | C29: Project 15 | D29: Company 15 | E29: Energy | F29: 600 | G29: Planning | H29: 2024 | I29: 1 | J29: 4 | K29: 100 | L29: 2025 | M29: 25 | N29: 5 | O29: 0.5 | P29: 0.5 | S29: 14 | T29: 0.3 | U29: 0.4 | V29: 0.5 | W29: 0.7 | X29: 0.9 | Y29: 1 | Z29: 1 | AA29: 1 | AB29: 1 | AC29: 0.9 | AD29: 0.7 | AE29: 0.5 | AF29: 0.4 | AG29: 0.3 | AO29: Project 15 | AP29: ='Master Sheet - Project Info'!$H29 -> 2024 | AQ29: ='Master Sheet - Project Info'!$I29 -> 1 | AR29: ='Master Sheet - Project Info'!$J29 -> 4 | AS29: ='Master Sheet - Project Info'!$K29 -> 100 | AT29: 2024 | AU29: 70 | AV29: 100 | AW29: 100 | AX29: 70 | AY29: 0 | AZ29: 0 | BA29: 0 | BB29: 0 | BC29: 0 | BD29: 0 | BE29: 0 | BF29: 0 | BG29: 0 | BH29: 0 | BI29: 0 | BJ29: 0 | BK29: 0 | BL29: 0 | BM29: 0 | BN29: 0 | BP29: =IF($BP$14>=AT29,INDEX(Break16,1),"") ->  | BQ29: =IF(BQ$14>=$AT29,INDEX(Break16,COLUMNS($BP29:BP29)-COUNTIF($BP29:BP29,"")+1),"") ->  | BR29: =IF(BR$14>=$AT29,INDEX(Break16,COLUMNS($BP29:BQ29)-COUNTIF($BP29:BQ29,"")+1),"") ->  | BS29: =IF(BS$14>=$AT29,INDEX(Break16,COLUMNS($BP29:BR29)-COUNTIF($BP29:BR29,"")+1),"") ->  | BT29: =IF(BT$14>=$AT29,INDEX(Break16,COLUMNS($BP29:BS29)-COUNTIF($BP29:BS29,"")+1),"") -> 70 | BU29: =IF(BU$14>=$AT29,INDEX(Break16,COLUMNS($BP29:BT29)-COUNTIF($BP29:BT29,"")+1),"") -> 100 | BV29: =IF(BV$14>=$AT29,INDEX(Break16,COLUMNS($BP29:BU29)-COUNTIF($BP29:BU29,"")+1),"") -> 100 | BW29: =IF(BW$14>=$AT29,INDEX(Break16,COLUMNS($BP29:BV29)-COUNTIF($BP29:BV29,"")+1),"") -> 70 | BX29: =IF(BX$14>=$AT29,INDEX(Break16,COLUMNS($BP29:BW29)-COUNTIF($BP29:BW29,"")+1),"") -> 0 | BY29: =IF(BY$14>=$AT29,INDEX(Break16,COLUMNS($BP29:BX29)-COUNTIF($BP29:BX29,"")+1),"") -> 0 | BZ29: =IF(BZ$14>=$AT29,INDEX(Break16,COLUMNS($BP29:BY29)-COUNTIF($BP29:BY29,"")+1),"") -> 0 | CA29: =IF(CA$14>=$AT29,INDEX(Break16,COLUMNS($BP29:BZ29)-COUNTIF($BP29:BZ29,"")+1),"") -> 0 | CB29: =IF(CB$14>=$AT29,INDEX(Break16,COLUMNS($BP29:CA29)-COUNTIF($BP29:CA29,"")+1),"") -> 0 | CC29: =IF(CC$14>=$AT29,INDEX(Break16,COLUMNS($BP29:CB29)-COUNTIF($BP29:CB29,"")+1),"") -> 0 | CD29: =IF(CD$14>=$AT29,INDEX(Break16,COLUMNS($BP29:CC29)-COUNTIF($BP29:CC29,"")+1),"") -> 0 | CE29: =IF(CE$14>=$AT29,INDEX(Break16,COLUMNS($BP29:CD29)-COUNTIF($BP29:CD29,"")+1),"") -> 0 | CF29: =IF(CF$14>=$AT29,INDEX(Break16,COLUMNS($BP29:CE29)-COUNTIF($BP29:CE29,"")+1),"") -> 0 | CG29: =IF(CG$14>=$AT29,INDEX(Break16,COLUMNS($BP29:CF29)-COUNTIF($BP29:CF29,"")+1),"") -> 0 | CH29: =IF(CH$14>=$AT29,INDEX(Break16,COLUMNS($BP29:CG29)-COUNTIF($BP29:CG29,"")+1),"") -> 0 | CI29: =IF(CI$14>=$AT29,INDEX(Break16,COLUMNS($BP29:CH29)-COUNTIF($BP29:CH29,"")+1),"") -> 0 | CJ29: =IF(CJ$14>=$AT29,INDEX(Break16,COLUMNS($BP29:CI29)-COUNTIF($BP29:CI29,"")+1),"") -> 0 | CK29: =IF(CK$14>=$AT29,INDEX(Break16,COLUMNS($BP29:CJ29)-COUNTIF($BP29:CJ29,"")+1),"") -> 0 | CL29: =IF(CL$14>=$AT29,INDEX(Break16,COLUMNS($BP29:CK29)-COUNTIF($BP29:CK29,"")+1),"") -> 0 | CM29: =IF(CM$14>=$AT29,INDEX(Break16,COLUMNS($BP29:CL29)-COUNTIF($BP29:CL29,"")+1),"") -> 0 | CN29: =IF(CN$14>=$AT29,INDEX(Break16,COLUMNS($BP29:CM29)-COUNTIF($BP29:CM29,"")+1),"") ->  | CO29: =IF(CO$14>=$AT29,INDEX(Break16,COLUMNS($BP29:CN29)-COUNTIF($BP29:CN29,"")+1),"") ->  | CP29: =IF(CP$14>=$AT29,INDEX(Break16,COLUMNS($BP29:CO29)-COUNTIF($BP29:CO29,"")+1),"") ->  | CQ29: =IF(CQ$14>=$AT29,INDEX(Break16,COLUMNS($BP29:CP29)-COUNTIF($BP29:CP29,"")+1),"") ->  | CR29: =IF(CR$14>=$AT29,INDEX(Break16,COLUMNS($BP29:CQ29)-COUNTIF($BP29:CQ29,"")+1),"") ->  | CS29: =IF(CS$14>=$AT29,INDEX(Break16,COLUMNS($BP29:CR29)-COUNTIF($BP29:CR29,"")+1),"") ->  | CT29: =IF(CT$14>=$AT29,INDEX(Break16,COLUMNS($BP29:CS29)-COUNTIF($BP29:CS29,"")+1),"") ->  | CU29: =IF(CU$14>=$AT29,INDEX(Break16,COLUMNS($BP29:CT29)-COUNTIF($BP29:CT29,"")+1),"") ->  | CV29: =IF(CV$14>=$AT29,INDEX(Break16,COLUMNS($BP29:CU29)-COUNTIF($BP29:CU29,"")+1),"") ->  | CW29: =IF(CW$14>=$AT29,INDEX(Break16,COLUMNS($BP29:CV29)-COUNTIF($BP29:CV29,"")+1),"") ->  | CX29: =IF(CX$14>=$AT29,INDEX(Break16,COLUMNS($BP29:CW29)-COUNTIF($BP29:CW29,"")+1),"") ->  | CY29: =IF(CY$14>=$AT29,INDEX(Break16,COLUMNS($BP29:CX29)-COUNTIF($BP29:CX29,"")+1),"") ->  | CZ29: =IF(CZ$14>=$AT29,INDEX(Break16,COLUMNS($BP29:CY29)-COUNTIF($BP29:CY29,"")+1),"") ->  | DA29: =IF(DA$14>=$AT29,INDEX(Break16,COLUMNS($BP29:CZ29)-COUNTIF($BP29:CZ29,"")+1),"") ->  | DB29: =IF(DB$14>=$AT29,INDEX(Break16,COLUMNS($BP29:DA29)-COUNTIF($BP29:DA29,"")+1),"") ->  | DC29: =IF(DC$14>=$AT29,INDEX(Break16,COLUMNS($BP29:DB29)-COUNTIF($BP29:DB29,"")+1),"") ->  | DD29: =IF(DD$14>=$AT29,INDEX(Break16,COLUMNS($BP29:DC29)-COUNTIF($BP29:DC29,"")+1),"") ->  | DE29: =IF(DE$14>=$AT29,INDEX(Break16,COLUMNS($BP29:DD29)-COUNTIF($BP29:DD29,"")+1),"") ->  | DF29: =IF(DF$14>=$AT29,INDEX(Break16,COLUMNS($BP29:DE29)-COUNTIF($BP29:DE29,"")+1),"") ->  | DG29: =IF(DG$14>=$AT29,INDEX(Break16,COLUMNS($BP29:DF29)-COUNTIF($BP29:DF29,"")+1),"") ->  | DH29: =IF(DH$14>=$AT29,INDEX(Break16,COLUMNS($BP29:DG29)-COUNTIF($BP29:DG29,"")+1),"") ->  | DI29: =IF(DI$14>=$AT29,INDEX(Break16,COLUMNS($BP29:DH29)-COUNTIF($BP29:DH29,"")+1),"") ->  | DJ29: =IF(DJ$14>=$AT29,INDEX(Break16,COLUMNS($BP29:DI29)-COUNTIF($BP29:DI29,"")+1),"") ->  | DK29: =IF(DK$14>=$AT29,INDEX(Break16,COLUMNS($BP29:DJ29)-COUNTIF($BP29:DJ29,"")+1),"") ->  | DL29: =IF(DL$14>=$AT29,INDEX(Break16,COLUMNS($BP29:DK29)-COUNTIF($BP29:DK29,"")+1),"") ->  | DM29: =IF(DM$14>=$AT29,INDEX(Break16,COLUMNS($BP29:DL29)-COUNTIF($BP29:DL29,"")+1),"") ->  | DN29: =IF(DN$14>=$AT29,INDEX(Break16,COLUMNS($BP29:DM29)-COUNTIF($BP29:DM29,"")+1),"") ->  | DO29: =IF(DO$14>=$AT29,INDEX(Break16,COLUMNS($BP29:DN29)-COUNTIF($BP29:DN29,"")+1),"") ->  | DP29: =IF(DP$14>=$AT29,INDEX(Break16,COLUMNS($BP29:DO29)-COUNTIF($BP29:DO29,"")+1),"") ->  | DQ29: =IF(DQ$14>=$AT29,INDEX(Break16,COLUMNS($BP29:DP29)-COUNTIF($BP29:DP29,"")+1),"") ->  | DR29: =IF(DR$14>=$AT29,INDEX(Break16,COLUMNS($BP29:DQ29)-COUNTIF($BP29:DQ29,"")+1),"") ->  | DS29: =IF(DS$14>=$AT29,INDEX(Break16,COLUMNS($BP29:DR29)-COUNTIF($BP29:DR29,"")+1),"") ->  | DT29: =IF(DT$14>=$AT29,INDEX(Break16,COLUMNS($BP29:DS29)-COUNTIF($BP29:DS29,"")+1),"") ->  | DU29: =IF(DU$14>=$AT29,INDEX(Break16,COLUMNS($BP29:DT29)-COUNTIF($BP29:DT29,"")+1),"") ->  | DV29: =IF(DV$14>=$AT29,INDEX(Break16,COLUMNS($BP29:DU29)-COUNTIF($BP29:DU29,"")+1),"") ->  | DW29: =IF(DW$14>=$AT29,INDEX(Break16,COLUMNS($BP29:DV29)-COUNTIF($BP29:DV29,"")+1),"") ->  | DX29: =IF(DX$14>=$AT29,INDEX(Break16,COLUMNS($BP29:DW29)-COUNTIF($BP29:DW29,"")+1),"") ->  | DY29: =IF(DY$14>=$AT29,INDEX(Break16,COLUMNS($BP29:DX29)-COUNTIF($BP29:DX29,"")+1),"") ->  | DZ29: =IF(DZ$14>=$AT29,INDEX(Break16,COLUMNS($BP29:DY29)-COUNTIF($BP29:DY29,"")+1),"") ->  | EA29: =IF(EA$14>=$AT29,INDEX(Break16,COLUMNS($BP29:DZ29)-COUNTIF($BP29:DZ29,"")+1),"") ->  | EB29: =IF(EB$14>=$AT29,INDEX(Break16,COLUMNS($BP29:EA29)-COUNTIF($BP29:EA29,"")+1),"") ->  | EC29: =IF(EC$14>=$AT29,INDEX(Break16,COLUMNS($BP29:EB29)-COUNTIF($BP29:EB29,"")+1),"") ->  | ED29: =IF(ED$14>=$AT29,INDEX(Break16,COLUMNS($BP29:EC29)-COUNTIF($BP29:EC29,"")+1),"") ->  | EE29: =IF(EE$14>=$AT29,INDEX(Break16,COLUMNS($BP29:ED29)-COUNTIF($BP29:ED29,"")+1),"") ->  | EF29: =IF(EF$14>=$AT29,INDEX(Break16,COLUMNS($BP29:EE29)-COUNTIF($BP29:EE29,"")+1),"") ->  | EG29: =IF(EG$14>=$AT29,INDEX(Break16,COLUMNS($BP29:EF29)-COUNTIF($BP29:EF29,"")+1),"") ->  | EH29: =IF(EH$14>=$AT29,INDEX(Break16,COLUMNS($BP29:EG29)-COUNTIF($BP29:EG29,"")+1),"") ->  | EI29: =IF(EI$14>=$AT29,INDEX(Break16,COLUMNS($BP29:EH29)-COUNTIF($BP29:EH29,"")+1),"") ->  | EK29: 2025 | EL29: 25 | EM29: 5 | EP29: 5 | EQ29: 5 | ER29: 5 | ES29: 5 | ET29: 5 | EU29: 5 | EV29: 5 | EW29: 5 | EX29: 5 | EY29: 5 | EZ29: 5 | FA29: 5 | FB29: 5 | FC29: 5 | FD29: 5 | FE29: 5
B30: Project 16 | C30: Project 16 | D30: Company 16 | E30: Mining | F30: 20 | G30: Feasibility | H30: 2027 | I30: 1 | J30: 4 | K30: 150 | L30: 2028 | M30: 25 | N30: 100 | O30: 0.5 | P30: 0.5 | S30: 15 | T30: 0.3 | U30: 0.4 | V30: 0.5 | W30: 0.7 | X30: 0.8 | Y30: 0.9 | Z30: 1 | AA30: 1 | AB30: 1 | AC30: 1 | AD30: 0.9 | AE30: 0.7 | AF30: 0.5 | AG30: 0.4 | AH30: 0.3 | AO30: Project 16 | AP30: ='Master Sheet - Project Info'!$H30 -> 2027 | AQ30: ='Master Sheet - Project Info'!$I30 -> 1 | AR30: ='Master Sheet - Project Info'!$J30 -> 4 | AS30: ='Master Sheet - Project Info'!$K30 -> 150 | AT30: 2027 | AU30: 105 | AV30: 150 | AW30: 150 | AX30: 105 | AY30: 0 | AZ30: 0 | BA30: 0 | BB30: 0 | BC30: 0 | BD30: 0 | BE30: 0 | BF30: 0 | BG30: 0 | BH30: 0 | BI30: 0 | BJ30: 0 | BK30: 0 | BL30: 0 | BM30: 0 | BN30: 0 | BP30: =IF($BP$14>=AT30,INDEX(Break17,1),"") ->  | BQ30: =IF(BQ$14>=$AT30,INDEX(Break17,COLUMNS($BP30:BP30)-COUNTIF($BP30:BP30,"")+1),"") ->  | BR30: =IF(BR$14>=$AT30,INDEX(Break17,COLUMNS($BP30:BQ30)-COUNTIF($BP30:BQ30,"")+1),"") ->  | BS30: =IF(BS$14>=$AT30,INDEX(Break17,COLUMNS($BP30:BR30)-COUNTIF($BP30:BR30,"")+1),"") ->  | BT30: =IF(BT$14>=$AT30,INDEX(Break17,COLUMNS($BP30:BS30)-COUNTIF($BP30:BS30,"")+1),"") ->  | BU30: =IF(BU$14>=$AT30,INDEX(Break17,COLUMNS($BP30:BT30)-COUNTIF($BP30:BT30,"")+1),"") ->  | BV30: =IF(BV$14>=$AT30,INDEX(Break17,COLUMNS($BP30:BU30)-COUNTIF($BP30:BU30,"")+1),"") ->  | BW30: =IF(BW$14>=$AT30,INDEX(Break17,COLUMNS($BP30:BV30)-COUNTIF($BP30:BV30,"")+1),"") ->  | BX30: =IF(BX$14>=$AT30,INDEX(Break17,COLUMNS($BP30:BW30)-COUNTIF($BP30:BW30,"")+1),"") ->  | BY30: =IF(BY$14>=$AT30,INDEX(Break17,COLUMNS($BP30:BX30)-COUNTIF($BP30:BX30,"")+1),"") ->  | BZ30: =IF(BZ$14>=$AT30,INDEX(Break17,COLUMNS($BP30:BY30)-COUNTIF($BP30:BY30,"")+1),"") ->  | CA30: =IF(CA$14>=$AT30,INDEX(Break17,COLUMNS($BP30:BZ30)-COUNTIF($BP30:BZ30,"")+1),"") ->  | CB30: =IF(CB$14>=$AT30,INDEX(Break17,COLUMNS($BP30:CA30)-COUNTIF($BP30:CA30,"")+1),"") ->  | CC30: =IF(CC$14>=$AT30,INDEX(Break17,COLUMNS($BP30:CB30)-COUNTIF($BP30:CB30,"")+1),"") ->  | CD30: =IF(CD$14>=$AT30,INDEX(Break17,COLUMNS($BP30:CC30)-COUNTIF($BP30:CC30,"")+1),"") ->  | CE30: =IF(CE$14>=$AT30,INDEX(Break17,COLUMNS($BP30:CD30)-COUNTIF($BP30:CD30,"")+1),"") ->  | CF30: =IF(CF$14>=$AT30,INDEX(Break17,COLUMNS($BP30:CE30)-COUNTIF($BP30:CE30,"")+1),"") -> 105 | CG30: =IF(CG$14>=$AT30,INDEX(Break17,COLUMNS($BP30:CF30)-COUNTIF($BP30:CF30,"")+1),"") -> 150 | CH30: =IF(CH$14>=$AT30,INDEX(Break17,COLUMNS($BP30:CG30)-COUNTIF($BP30:CG30,"")+1),"") -> 150 | CI30: =IF(CI$14>=$AT30,INDEX(Break17,COLUMNS($BP30:CH30)-COUNTIF($BP30:CH30,"")+1),"") -> 105 | CJ30: =IF(CJ$14>=$AT30,INDEX(Break17,COLUMNS($BP30:CI30)-COUNTIF($BP30:CI30,"")+1),"") -> 0 | CK30: =IF(CK$14>=$AT30,INDEX(Break17,COLUMNS($BP30:CJ30)-COUNTIF($BP30:CJ30,"")+1),"") -> 0 | CL30: =IF(CL$14>=$AT30,INDEX(Break17,COLUMNS($BP30:CK30)-COUNTIF($BP30:CK30,"")+1),"") -> 0 | CM30: =IF(CM$14>=$AT30,INDEX(Break17,COLUMNS($BP30:CL30)-COUNTIF($BP30:CL30,"")+1),"") -> 0 | CN30: =IF(CN$14>=$AT30,INDEX(Break17,COLUMNS($BP30:CM30)-COUNTIF($BP30:CM30,"")+1),"") -> 0 | CO30: =IF(CO$14>=$AT30,INDEX(Break17,COLUMNS($BP30:CN30)-COUNTIF($BP30:CN30,"")+1),"") -> 0 | CP30: =IF(CP$14>=$AT30,INDEX(Break17,COLUMNS($BP30:CO30)-COUNTIF($BP30:CO30,"")+1),"") -> 0 | CQ30: =IF(CQ$14>=$AT30,INDEX(Break17,COLUMNS($BP30:CP30)-COUNTIF($BP30:CP30,"")+1),"") -> 0 | CR30: =IF(CR$14>=$AT30,INDEX(Break17,COLUMNS($BP30:CQ30)-COUNTIF($BP30:CQ30,"")+1),"") -> 0 | CS30: =IF(CS$14>=$AT30,INDEX(Break17,COLUMNS($BP30:CR30)-COUNTIF($BP30:CR30,"")+1),"") -> 0 | CT30: =IF(CT$14>=$AT30,INDEX(Break17,COLUMNS($BP30:CS30)-COUNTIF($BP30:CS30,"")+1),"") -> 0 | CU30: =IF(CU$14>=$AT30,INDEX(Break17,COLUMNS($BP30:CT30)-COUNTIF($BP30:CT30,"")+1),"") -> 0 | CV30: =IF(CV$14>=$AT30,INDEX(Break17,COLUMNS($BP30:CU30)-COUNTIF($BP30:CU30,"")+1),"") -> 0 | CW30: =IF(CW$14>=$AT30,INDEX(Break17,COLUMNS($BP30:CV30)-COUNTIF($BP30:CV30,"")+1),"") -> 0 | CX30: =IF(CX$14>=$AT30,INDEX(Break17,COLUMNS($BP30:CW30)-COUNTIF($BP30:CW30,"")+1),"") -> 0 | CY30: =IF(CY$14>=$AT30,INDEX(Break17,COLUMNS($BP30:CX30)-COUNTIF($BP30:CX30,"")+1),"") -> 0 | CZ30: =IF(CZ$14>=$AT30,INDEX(Break17,COLUMNS($BP30:CY30)-COUNTIF($BP30:CY30,"")+1),"") ->  | DA30: =IF(DA$14>=$AT30,INDEX(Break17,COLUMNS($BP30:CZ30)-COUNTIF($BP30:CZ30,"")+1),"") ->  | DB30: =IF(DB$14>=$AT30,INDEX(Break17,COLUMNS($BP30:DA30)-COUNTIF($BP30:DA30,"")+1),"") ->  | DC30: =IF(DC$14>=$AT30,INDEX(Break17,COLUMNS($BP30:DB30)-COUNTIF($BP30:DB30,"")+1),"") ->  | DD30: =IF(DD$14>=$AT30,INDEX(Break17,COLUMNS($BP30:DC30)-COUNTIF($BP30:DC30,"")+1),"") ->  | DE30: =IF(DE$14>=$AT30,INDEX(Break17,COLUMNS($BP30:DD30)-COUNTIF($BP30:DD30,"")+1),"") ->  | DF30: =IF(DF$14>=$AT30,INDEX(Break17,COLUMNS($BP30:DE30)-COUNTIF($BP30:DE30,"")+1),"") ->  | DG30: =IF(DG$14>=$AT30,INDEX(Break17,COLUMNS($BP30:DF30)-COUNTIF($BP30:DF30,"")+1),"") ->  | DH30: =IF(DH$14>=$AT30,INDEX(Break17,COLUMNS($BP30:DG30)-COUNTIF($BP30:DG30,"")+1),"") ->  | DI30: =IF(DI$14>=$AT30,INDEX(Break17,COLUMNS($BP30:DH30)-COUNTIF($BP30:DH30,"")+1),"") ->  | DJ30: =IF(DJ$14>=$AT30,INDEX(Break17,COLUMNS($BP30:DI30)-COUNTIF($BP30:DI30,"")+1),"") ->  | DK30: =IF(DK$14>=$AT30,INDEX(Break17,COLUMNS($BP30:DJ30)-COUNTIF($BP30:DJ30,"")+1),"") ->  | DL30: =IF(DL$14>=$AT30,INDEX(Break17,COLUMNS($BP30:DK30)-COUNTIF($BP30:DK30,"")+1),"") ->  | DM30: =IF(DM$14>=$AT30,INDEX(Break17,COLUMNS($BP30:DL30)-COUNTIF($BP30:DL30,"")+1),"") ->  | DN30: =IF(DN$14>=$AT30,INDEX(Break17,COLUMNS($BP30:DM30)-COUNTIF($BP30:DM30,"")+1),"") ->  | DO30: =IF(DO$14>=$AT30,INDEX(Break17,COLUMNS($BP30:DN30)-COUNTIF($BP30:DN30,"")+1),"") ->  | DP30: =IF(DP$14>=$AT30,INDEX(Break17,COLUMNS($BP30:DO30)-COUNTIF($BP30:DO30,"")+1),"") ->  | DQ30: =IF(DQ$14>=$AT30,INDEX(Break17,COLUMNS($BP30:DP30)-COUNTIF($BP30:DP30,"")+1),"") ->  | DR30: =IF(DR$14>=$AT30,INDEX(Break17,COLUMNS($BP30:DQ30)-COUNTIF($BP30:DQ30,"")+1),"") ->  | DS30: =IF(DS$14>=$AT30,INDEX(Break17,COLUMNS($BP30:DR30)-COUNTIF($BP30:DR30,"")+1),"") ->  | DT30: =IF(DT$14>=$AT30,INDEX(Break17,COLUMNS($BP30:DS30)-COUNTIF($BP30:DS30,"")+1),"") ->  | DU30: =IF(DU$14>=$AT30,INDEX(Break17,COLUMNS($BP30:DT30)-COUNTIF($BP30:DT30,"")+1),"") ->  | DV30: =IF(DV$14>=$AT30,INDEX(Break17,COLUMNS($BP30:DU30)-COUNTIF($BP30:DU30,"")+1),"") ->  | DW30: =IF(DW$14>=$AT30,INDEX(Break17,COLUMNS($BP30:DV30)-COUNTIF($BP30:DV30,"")+1),"") ->  | DX30: =IF(DX$14>=$AT30,INDEX(Break17,COLUMNS($BP30:DW30)-COUNTIF($BP30:DW30,"")+1),"") ->  | DY30: =IF(DY$14>=$AT30,INDEX(Break17,COLUMNS($BP30:DX30)-COUNTIF($BP30:DX30,"")+1),"") ->  | DZ30: =IF(DZ$14>=$AT30,INDEX(Break17,COLUMNS($BP30:DY30)-COUNTIF($BP30:DY30,"")+1),"") ->  | EA30: =IF(EA$14>=$AT30,INDEX(Break17,COLUMNS($BP30:DZ30)-COUNTIF($BP30:DZ30,"")+1),"") ->  | EB30: =IF(EB$14>=$AT30,INDEX(Break17,COLUMNS($BP30:EA30)-COUNTIF($BP30:EA30,"")+1),"") ->  | EC30: =IF(EC$14>=$AT30,INDEX(Break17,COLUMNS($BP30:EB30)-COUNTIF($BP30:EB30,"")+1),"") ->  | ED30: =IF(ED$14>=$AT30,INDEX(Break17,COLUMNS($BP30:EC30)-COUNTIF($BP30:EC30,"")+1),"") ->  | EE30: =IF(EE$14>=$AT30,INDEX(Break17,COLUMNS($BP30:ED30)-COUNTIF($BP30:ED30,"")+1),"") ->  | EF30: =IF(EF$14>=$AT30,INDEX(Break17,COLUMNS($BP30:EE30)-COUNTIF($BP30:EE30,"")+1),"") ->  | EG30: =IF(EG$14>=$AT30,INDEX(Break17,COLUMNS($BP30:EF30)-COUNTIF($BP30:EF30,"")+1),"") ->  | EH30: =IF(EH$14>=$AT30,INDEX(Break17,COLUMNS($BP30:EG30)-COUNTIF($BP30:EG30,"")+1),"") ->  | EI30: =IF(EI$14>=$AT30,INDEX(Break17,COLUMNS($BP30:EH30)-COUNTIF($BP30:EH30,"")+1),"") ->  | EK30: 2028 | EL30: 25 | EM30: 100 | ES30: 100 | ET30: 100 | EU30: 100 | EV30: 100 | EW30: 100 | EX30: 100 | EY30: 100 | EZ30: 100 | FA30: 100 | FB30: 100 | FC30: 100 | FD30: 100 | FE30: 100
B31: Project 17 | C31: Project 17 | D31: Company 17 | E31: Manufacturing | F31: 150 | G31: Planning | H31: 2025 | I31: 1 | J31: 4 | K31: 110 | L31: 2026 | M31: 25 | N31: 25 | O31: 0.3 | P31: 0.7 | S31: 16 | T31: 0.2 | U31: 0.3 | V31: 0.4 | W31: 0.5 | X31: 0.7 | Y31: 0.8 | Z31: 0.9 | AA31: 1 | AB31: 1 | AC31: 1 | AD31: 1 | AE31: 0.9 | AF31: 0.7 | AG31: 0.5 | AH31: 0.4 | AI31: 0.2 | AO31: Project 17 | AP31: ='Master Sheet - Project Info'!$H31 -> 2025 | AQ31: ='Master Sheet - Project Info'!$I31 -> 1 | AR31: ='Master Sheet - Project Info'!$J31 -> 4 | AS31: ='Master Sheet - Project Info'!$K31 -> 110 | AT31: 2025 | AU31: 77 | AV31: 110 | AW31: 110 | AX31: 77 | AY31: 0 | AZ31: 0 | BA31: 0 | BB31: 0 | BC31: 0 | BD31: 0 | BE31: 0 | BF31: 0 | BG31: 0 | BH31: 0 | BI31: 0 | BJ31: 0 | BK31: 0 | BL31: 0 | BM31: 0 | BN31: 0 | BP31: =IF($BP$14>=AT31,INDEX(Break18,1),"") ->  | BQ31: =IF(BQ$14>=$AT31,INDEX(Break18,COLUMNS($BP31:BP31)-COUNTIF($BP31:BP31,"")+1),"") ->  | BR31: =IF(BR$14>=$AT31,INDEX(Break18,COLUMNS($BP31:BQ31)-COUNTIF($BP31:BQ31,"")+1),"") ->  | BS31: =IF(BS$14>=$AT31,INDEX(Break18,COLUMNS($BP31:BR31)-COUNTIF($BP31:BR31,"")+1),"") ->  | BT31: =IF(BT$14>=$AT31,INDEX(Break18,COLUMNS($BP31:BS31)-COUNTIF($BP31:BS31,"")+1),"") ->  | BU31: =IF(BU$14>=$AT31,INDEX(Break18,COLUMNS($BP31:BT31)-COUNTIF($BP31:BT31,"")+1),"") ->  | BV31: =IF(BV$14>=$AT31,INDEX(Break18,COLUMNS($BP31:BU31)-COUNTIF($BP31:BU31,"")+1),"") ->  | BW31: =IF(BW$14>=$AT31,INDEX(Break18,COLUMNS($BP31:BV31)-COUNTIF($BP31:BV31,"")+1),"") ->  | BX31: =IF(BX$14>=$AT31,INDEX(Break18,COLUMNS($BP31:BW31)-COUNTIF($BP31:BW31,"")+1),"") -> 77 | BY31: =IF(BY$14>=$AT31,INDEX(Break18,COLUMNS($BP31:BX31)-COUNTIF($BP31:BX31,"")+1),"") -> 110 | BZ31: =IF(BZ$14>=$AT31,INDEX(Break18,COLUMNS($BP31:BY31)-COUNTIF($BP31:BY31,"")+1),"") -> 110 | CA31: =IF(CA$14>=$AT31,INDEX(Break18,COLUMNS($BP31:BZ31)-COUNTIF($BP31:BZ31,"")+1),"") -> 77 | CB31: =IF(CB$14>=$AT31,INDEX(Break18,COLUMNS($BP31:CA31)-COUNTIF($BP31:CA31,"")+1),"") -> 0 | CC31: =IF(CC$14>=$AT31,INDEX(Break18,COLUMNS($BP31:CB31)-COUNTIF($BP31:CB31,"")+1),"") -> 0 | CD31: =IF(CD$14>=$AT31,INDEX(Break18,COLUMNS($BP31:CC31)-COUNTIF($BP31:CC31,"")+1),"") -> 0 | CE31: =IF(CE$14>=$AT31,INDEX(Break18,COLUMNS($BP31:CD31)-COUNTIF($BP31:CD31,"")+1),"") -> 0 | CF31: =IF(CF$14>=$AT31,INDEX(Break18,COLUMNS($BP31:CE31)-COUNTIF($BP31:CE31,"")+1),"") -> 0 | CG31: =IF(CG$14>=$AT31,INDEX(Break18,COLUMNS($BP31:CF31)-COUNTIF($BP31:CF31,"")+1),"") -> 0 | CH31: =IF(CH$14>=$AT31,INDEX(Break18,COLUMNS($BP31:CG31)-COUNTIF($BP31:CG31,"")+1),"") -> 0 | CI31: =IF(CI$14>=$AT31,INDEX(Break18,COLUMNS($BP31:CH31)-COUNTIF($BP31:CH31,"")+1),"") -> 0 | CJ31: =IF(CJ$14>=$AT31,INDEX(Break18,COLUMNS($BP31:CI31)-COUNTIF($BP31:CI31,"")+1),"") -> 0 | CK31: =IF(CK$14>=$AT31,INDEX(Break18,COLUMNS($BP31:CJ31)-COUNTIF($BP31:CJ31,"")+1),"") -> 0 | CL31: =IF(CL$14>=$AT31,INDEX(Break18,COLUMNS($BP31:CK31)-COUNTIF($BP31:CK31,"")+1),"") -> 0 | CM31: =IF(CM$14>=$AT31,INDEX(Break18,COLUMNS($BP31:CL31)-COUNTIF($BP31:CL31,"")+1),"") -> 0 | CN31: =IF(CN$14>=$AT31,INDEX(Break18,COLUMNS($BP31:CM31)-COUNTIF($BP31:CM31,"")+1),"") -> 0 | CO31: =IF(CO$14>=$AT31,INDEX(Break18,COLUMNS($BP31:CN31)-COUNTIF($BP31:CN31,"")+1),"") -> 0 | CP31: =IF(CP$14>=$AT31,INDEX(Break18,COLUMNS($BP31:CO31)-COUNTIF($BP31:CO31,"")+1),"") -> 0 | CQ31: =IF(CQ$14>=$AT31,INDEX(Break18,COLUMNS($BP31:CP31)-COUNTIF($BP31:CP31,"")+1),"") -> 0 | CR31: =IF(CR$14>=$AT31,INDEX(Break18,COLUMNS($BP31:CQ31)-COUNTIF($BP31:CQ31,"")+1),"") ->  | CS31: =IF(CS$14>=$AT31,INDEX(Break18,COLUMNS($BP31:CR31)-COUNTIF($BP31:CR31,"")+1),"") ->  | CT31: =IF(CT$14>=$AT31,INDEX(Break18,COLUMNS($BP31:CS31)-COUNTIF($BP31:CS31,"")+1),"") ->  | CU31: =IF(CU$14>=$AT31,INDEX(Break18,COLUMNS($BP31:CT31)-COUNTIF($BP31:CT31,"")+1),"") ->  | CV31: =IF(CV$14>=$AT31,INDEX(Break18,COLUMNS($BP31:CU31)-COUNTIF($BP31:CU31,"")+1),"") ->  | CW31: =IF(CW$14>=$AT31,INDEX(Break18,COLUMNS($BP31:CV31)-COUNTIF($BP31:CV31,"")+1),"") ->  | CX31: =IF(CX$14>=$AT31,INDEX(Break18,COLUMNS($BP31:CW31)-COUNTIF($BP31:CW31,"")+1),"") ->  | CY31: =IF(CY$14>=$AT31,INDEX(Break18,COLUMNS($BP31:CX31)-COUNTIF($BP31:CX31,"")+1),"") ->  | CZ31: =IF(CZ$14>=$AT31,INDEX(Break18,COLUMNS($BP31:CY31)-COUNTIF($BP31:CY31,"")+1),"") ->  | DA31: =IF(DA$14>=$AT31,INDEX(Break18,COLUMNS($BP31:CZ31)-COUNTIF($BP31:CZ31,"")+1),"") ->  | DB31: =IF(DB$14>=$AT31,INDEX(Break18,COLUMNS($BP31:DA31)-COUNTIF($BP31:DA31,"")+1),"") ->  | DC31: =IF(DC$14>=$AT31,INDEX(Break18,COLUMNS($BP31:DB31)-COUNTIF($BP31:DB31,"")+1),"") ->  | DD31: =IF(DD$14>=$AT31,INDEX(Break18,COLUMNS($BP31:DC31)-COUNTIF($BP31:DC31,"")+1),"") ->  | DE31: =IF(DE$14>=$AT31,INDEX(Break18,COLUMNS($BP31:DD31)-COUNTIF($BP31:DD31,"")+1),"") ->  | DF31: =IF(DF$14>=$AT31,INDEX(Break18,COLUMNS($BP31:DE31)-COUNTIF($BP31:DE31,"")+1),"") ->  | DG31: =IF(DG$14>=$AT31,INDEX(Break18,COLUMNS($BP31:DF31)-COUNTIF($BP31:DF31,"")+1),"") ->  | DH31: =IF(DH$14>=$AT31,INDEX(Break18,COLUMNS($BP31:DG31)-COUNTIF($BP31:DG31,"")+1),"") ->  | DI31: =IF(DI$14>=$AT31,INDEX(Break18,COLUMNS($BP31:DH31)-COUNTIF($BP31:DH31,"")+1),"") ->  | DJ31: =IF(DJ$14>=$AT31,INDEX(Break18,COLUMNS($BP31:DI31)-COUNTIF($BP31:DI31,"")+1),"") ->  | DK31: =IF(DK$14>=$AT31,INDEX(Break18,COLUMNS($BP31:DJ31)-COUNTIF($BP31:DJ31,"")+1),"") ->  | DL31: =IF(DL$14>=$AT31,INDEX(Break18,COLUMNS($BP31:DK31)-COUNTIF($BP31:DK31,"")+1),"") ->  | DM31: =IF(DM$14>=$AT31,INDEX(Break18,COLUMNS($BP31:DL31)-COUNTIF($BP31:DL31,"")+1),"") ->  | DN31: =IF(DN$14>=$AT31,INDEX(Break18,COLUMNS($BP31:DM31)-COUNTIF($BP31:DM31,"")+1),"") ->  | DO31: =IF(DO$14>=$AT31,INDEX(Break18,COLUMNS($BP31:DN31)-COUNTIF($BP31:DN31,"")+1),"") ->  | DP31: =IF(DP$14>=$AT31,INDEX(Break18,COLUMNS($BP31:DO31)-COUNTIF($BP31:DO31,"")+1),"") ->  | DQ31: =IF(DQ$14>=$AT31,INDEX(Break18,COLUMNS($BP31:DP31)-COUNTIF($BP31:DP31,"")+1),"") ->  | DR31: =IF(DR$14>=$AT31,INDEX(Break18,COLUMNS($BP31:DQ31)-COUNTIF($BP31:DQ31,"")+1),"") ->  | DS31: =IF(DS$14>=$AT31,INDEX(Break18,COLUMNS($BP31:DR31)-COUNTIF($BP31:DR31,"")+1),"") ->  | DT31: =IF(DT$14>=$AT31,INDEX(Break18,COLUMNS($BP31:DS31)-COUNTIF($BP31:DS31,"")+1),"") ->  | DU31: =IF(DU$14>=$AT31,INDEX(Break18,COLUMNS($BP31:DT31)-COUNTIF($BP31:DT31,"")+1),"") ->  | DV31: =IF(DV$14>=$AT31,INDEX(Break18,COLUMNS($BP31:DU31)-COUNTIF($BP31:DU31,"")+1),"") ->  | DW31: =IF(DW$14>=$AT31,INDEX(Break18,COLUMNS($BP31:DV31)-COUNTIF($BP31:DV31,"")+1),"") ->  | DX31: =IF(DX$14>=$AT31,INDEX(Break18,COLUMNS($BP31:DW31)-COUNTIF($BP31:DW31,"")+1),"") ->  | DY31: =IF(DY$14>=$AT31,INDEX(Break18,COLUMNS($BP31:DX31)-COUNTIF($BP31:DX31,"")+1),"") ->  | DZ31: =IF(DZ$14>=$AT31,INDEX(Break18,COLUMNS($BP31:DY31)-COUNTIF($BP31:DY31,"")+1),"") ->  | EA31: =IF(EA$14>=$AT31,INDEX(Break18,COLUMNS($BP31:DZ31)-COUNTIF($BP31:DZ31,"")+1),"") ->  | EB31: =IF(EB$14>=$AT31,INDEX(Break18,COLUMNS($BP31:EA31)-COUNTIF($BP31:EA31,"")+1),"") ->  | EC31: =IF(EC$14>=$AT31,INDEX(Break18,COLUMNS($BP31:EB31)-COUNTIF($BP31:EB31,"")+1),"") ->  | ED31: =IF(ED$14>=$AT31,INDEX(Break18,COLUMNS($BP31:EC31)-COUNTIF($BP31:EC31,"")+1),"") ->  | EE31: =IF(EE$14>=$AT31,INDEX(Break18,COLUMNS($BP31:ED31)-COUNTIF($BP31:ED31,"")+1),"") ->  | EF31: =IF(EF$14>=$AT31,INDEX(Break18,COLUMNS($BP31:EE31)-COUNTIF($BP31:EE31,"")+1),"") ->  | EG31: =IF(EG$14>=$AT31,INDEX(Break18,COLUMNS($BP31:EF31)-COUNTIF($BP31:EF31,"")+1),"") ->  | EH31: =IF(EH$14>=$AT31,INDEX(Break18,COLUMNS($BP31:EG31)-COUNTIF($BP31:EG31,"")+1),"") ->  | EI31: =IF(EI$14>=$AT31,INDEX(Break18,COLUMNS($BP31:EH31)-COUNTIF($BP31:EH31,"")+1),"") ->  | EK31: 2026 | EL31: 25 | EM31: 25 | EQ31: 25 | ER31: 25 | ES31: 25 | ET31: 25 | EU31: 25 | EV31: 25 | EW31: 25 | EX31: 25 | EY31: 25 | EZ31: 25 | FA31: 25 | FB31: 25 | FC31: 25 | FD31: 25 | FE31: 25
B32: Project 18 | C32: Project 18 | D32: Company 18 | E32: Manufacturing | F32: 5 | G32: Approved | H32: 2024 | I32: 1 | J32: 4 | K32: 80 | L32: 2025 | M32: 25 | N32: 25 | O32: 0.01 | P32: =1-O32 -> 0.99 | S32: 17 | T32: 0.2 | U32: 0.3 | V32: 0.4 | W32: 0.5 | X32: 0.7 | Y32: 0.8 | Z32: 0.9 | AA32: 1 | AB32: 1 | AC32: 1 | AD32: 1 | AE32: 0.9 | AF32: 0.7 | AG32: 0.5 | AH32: 0.4 | AI32: 0.3 | AJ32: 0.2 | AO32: =B32 -> Project 18 | AP32: ='Master Sheet - Project Info'!$H32 -> 2024 | AQ32: ='Master Sheet - Project Info'!$I32 -> 1 | AR32: ='Master Sheet - Project Info'!$J32 -> 4 | AS32: ='Master Sheet - Project Info'!$K32 -> 80 | AT32: =IF(OR(AP32="",AQ32=""),"",($AP32+($AQ32-1)/4)) -> 2024 | AU32: 56 | AV32: 80 | AW32: 80 | AX32: 56 | AY32: 0 | AZ32: 0 | BA32: 0 | BB32: 0 | BC32: 0 | BD32: 0 | BE32: 0 | BF32: 0 | BG32: 0 | BH32: 0 | BI32: 0 | BJ32: 0 | BK32: 0 | BL32: 0 | BM32: 0 | BN32: 0 | BP32: =IF($BP$14>=AT32,INDEX(Break19,1),"") ->  | BQ32: =IF(BQ$14>=$AT32,INDEX(Break19,COLUMNS($BP32:BP32)-COUNTIF($BP32:BP32,"")+1),"") ->  | BR32: =IF(BR$14>=$AT32,INDEX(Break19,COLUMNS($BP32:BQ32)-COUNTIF($BP32:BQ32,"")+1),"") ->  | BS32: =IF(BS$14>=$AT32,INDEX(Break19,COLUMNS($BP32:BR32)-COUNTIF($BP32:BR32,"")+1),"") ->  | BT32: =IF(BT$14>=$AT32,INDEX(Break19,COLUMNS($BP32:BS32)-COUNTIF($BP32:BS32,"")+1),"") -> 56 | BU32: =IF(BU$14>=$AT32,INDEX(Break19,COLUMNS($BP32:BT32)-COUNTIF($BP32:BT32,"")+1),"") -> 80 | BV32: =IF(BV$14>=$AT32,INDEX(Break19,COLUMNS($BP32:BU32)-COUNTIF($BP32:BU32,"")+1),"") -> 80 | BW32: =IF(BW$14>=$AT32,INDEX(Break19,COLUMNS($BP32:BV32)-COUNTIF($BP32:BV32,"")+1),"") -> 56 | BX32: =IF(BX$14>=$AT32,INDEX(Break19,COLUMNS($BP32:BW32)-COUNTIF($BP32:BW32,"")+1),"") -> 0 | BY32: =IF(BY$14>=$AT32,INDEX(Break19,COLUMNS($BP32:BX32)-COUNTIF($BP32:BX32,"")+1),"") -> 0 | BZ32: =IF(BZ$14>=$AT32,INDEX(Break19,COLUMNS($BP32:BY32)-COUNTIF($BP32:BY32,"")+1),"") -> 0 | CA32: =IF(CA$14>=$AT32,INDEX(Break19,COLUMNS($BP32:BZ32)-COUNTIF($BP32:BZ32,"")+1),"") -> 0 | CB32: =IF(CB$14>=$AT32,INDEX(Break19,COLUMNS($BP32:CA32)-COUNTIF($BP32:CA32,"")+1),"") -> 0 | CC32: =IF(CC$14>=$AT32,INDEX(Break19,COLUMNS($BP32:CB32)-COUNTIF($BP32:CB32,"")+1),"") -> 0 | CD32: =IF(CD$14>=$AT32,INDEX(Break19,COLUMNS($BP32:CC32)-COUNTIF($BP32:CC32,"")+1),"") -> 0 | CE32: =IF(CE$14>=$AT32,INDEX(Break19,COLUMNS($BP32:CD32)-COUNTIF($BP32:CD32,"")+1),"") -> 0 | CF32: =IF(CF$14>=$AT32,INDEX(Break19,COLUMNS($BP32:CE32)-COUNTIF($BP32:CE32,"")+1),"") -> 0 | CG32: =IF(CG$14>=$AT32,INDEX(Break19,COLUMNS($BP32:CF32)-COUNTIF($BP32:CF32,"")+1),"") -> 0 | CH32: =IF(CH$14>=$AT32,INDEX(Break19,COLUMNS($BP32:CG32)-COUNTIF($BP32:CG32,"")+1),"") -> 0 | CI32: =IF(CI$14>=$AT32,INDEX(Break19,COLUMNS($BP32:CH32)-COUNTIF($BP32:CH32,"")+1),"") -> 0 | CJ32: =IF(CJ$14>=$AT32,INDEX(Break19,COLUMNS($BP32:CI32)-COUNTIF($BP32:CI32,"")+1),"") -> 0 | CK32: =IF(CK$14>=$AT32,INDEX(Break19,COLUMNS($BP32:CJ32)-COUNTIF($BP32:CJ32,"")+1),"") -> 0 | CL32: =IF(CL$14>=$AT32,INDEX(Break19,COLUMNS($BP32:CK32)-COUNTIF($BP32:CK32,"")+1),"") -> 0 | CM32: =IF(CM$14>=$AT32,INDEX(Break19,COLUMNS($BP32:CL32)-COUNTIF($BP32:CL32,"")+1),"") -> 0 | CN32: =IF(CN$14>=$AT32,INDEX(Break19,COLUMNS($BP32:CM32)-COUNTIF($BP32:CM32,"")+1),"") ->  | CO32: =IF(CO$14>=$AT32,INDEX(Break19,COLUMNS($BP32:CN32)-COUNTIF($BP32:CN32,"")+1),"") ->  | CP32: =IF(CP$14>=$AT32,INDEX(Break19,COLUMNS($BP32:CO32)-COUNTIF($BP32:CO32,"")+1),"") ->  | CQ32: =IF(CQ$14>=$AT32,INDEX(Break19,COLUMNS($BP32:CP32)-COUNTIF($BP32:CP32,"")+1),"") ->  | CR32: =IF(CR$14>=$AT32,INDEX(Break19,COLUMNS($BP32:CQ32)-COUNTIF($BP32:CQ32,"")+1),"") ->  | CS32: =IF(CS$14>=$AT32,INDEX(Break19,COLUMNS($BP32:CR32)-COUNTIF($BP32:CR32,"")+1),"") ->  | CT32: =IF(CT$14>=$AT32,INDEX(Break19,COLUMNS($BP32:CS32)-COUNTIF($BP32:CS32,"")+1),"") ->  | CU32: =IF(CU$14>=$AT32,INDEX(Break19,COLUMNS($BP32:CT32)-COUNTIF($BP32:CT32,"")+1),"") ->  | CV32: =IF(CV$14>=$AT32,INDEX(Break19,COLUMNS($BP32:CU32)-COUNTIF($BP32:CU32,"")+1),"") ->  | CW32: =IF(CW$14>=$AT32,INDEX(Break19,COLUMNS($BP32:CV32)-COUNTIF($BP32:CV32,"")+1),"") ->  | CX32: =IF(CX$14>=$AT32,INDEX(Break19,COLUMNS($BP32:CW32)-COUNTIF($BP32:CW32,"")+1),"") ->  | CY32: =IF(CY$14>=$AT32,INDEX(Break19,COLUMNS($BP32:CX32)-COUNTIF($BP32:CX32,"")+1),"") ->  | CZ32: =IF(CZ$14>=$AT32,INDEX(Break19,COLUMNS($BP32:CY32)-COUNTIF($BP32:CY32,"")+1),"") ->  | DA32: =IF(DA$14>=$AT32,INDEX(Break19,COLUMNS($BP32:CZ32)-COUNTIF($BP32:CZ32,"")+1),"") ->  | DB32: =IF(DB$14>=$AT32,INDEX(Break19,COLUMNS($BP32:DA32)-COUNTIF($BP32:DA32,"")+1),"") ->  | DC32: =IF(DC$14>=$AT32,INDEX(Break19,COLUMNS($BP32:DB32)-COUNTIF($BP32:DB32,"")+1),"") ->  | DD32: =IF(DD$14>=$AT32,INDEX(Break19,COLUMNS($BP32:DC32)-COUNTIF($BP32:DC32,"")+1),"") ->  | DE32: =IF(DE$14>=$AT32,INDEX(Break19,COLUMNS($BP32:DD32)-COUNTIF($BP32:DD32,"")+1),"") ->  | DF32: =IF(DF$14>=$AT32,INDEX(Break19,COLUMNS($BP32:DE32)-COUNTIF($BP32:DE32,"")+1),"") ->  | DG32: =IF(DG$14>=$AT32,INDEX(Break19,COLUMNS($BP32:DF32)-COUNTIF($BP32:DF32,"")+1),"") ->  | DH32: =IF(DH$14>=$AT32,INDEX(Break19,COLUMNS($BP32:DG32)-COUNTIF($BP32:DG32,"")+1),"") ->  | DI32: =IF(DI$14>=$AT32,INDEX(Break19,COLUMNS($BP32:DH32)-COUNTIF($BP32:DH32,"")+1),"") ->  | DJ32: =IF(DJ$14>=$AT32,INDEX(Break19,COLUMNS($BP32:DI32)-COUNTIF($BP32:DI32,"")+1),"") ->  | DK32: =IF(DK$14>=$AT32,INDEX(Break19,COLUMNS($BP32:DJ32)-COUNTIF($BP32:DJ32,"")+1),"") ->  | DL32: =IF(DL$14>=$AT32,INDEX(Break19,COLUMNS($BP32:DK32)-COUNTIF($BP32:DK32,"")+1),"") ->  | DM32: =IF(DM$14>=$AT32,INDEX(Break19,COLUMNS($BP32:DL32)-COUNTIF($BP32:DL32,"")+1),"") ->  | DN32: =IF(DN$14>=$AT32,INDEX(Break19,COLUMNS($BP32:DM32)-COUNTIF($BP32:DM32,"")+1),"") ->  | DO32: =IF(DO$14>=$AT32,INDEX(Break19,COLUMNS($BP32:DN32)-COUNTIF($BP32:DN32,"")+1),"") ->  | DP32: =IF(DP$14>=$AT32,INDEX(Break19,COLUMNS($BP32:DO32)-COUNTIF($BP32:DO32,"")+1),"") ->  | DQ32: =IF(DQ$14>=$AT32,INDEX(Break19,COLUMNS($BP32:DP32)-COUNTIF($BP32:DP32,"")+1),"") ->  | DR32: =IF(DR$14>=$AT32,INDEX(Break19,COLUMNS($BP32:DQ32)-COUNTIF($BP32:DQ32,"")+1),"") ->  | DS32: =IF(DS$14>=$AT32,INDEX(Break19,COLUMNS($BP32:DR32)-COUNTIF($BP32:DR32,"")+1),"") ->  | DT32: =IF(DT$14>=$AT32,INDEX(Break19,COLUMNS($BP32:DS32)-COUNTIF($BP32:DS32,"")+1),"") ->  | DU32: =IF(DU$14>=$AT32,INDEX(Break19,COLUMNS($BP32:DT32)-COUNTIF($BP32:DT32,"")+1),"") ->  | DV32: =IF(DV$14>=$AT32,INDEX(Break19,COLUMNS($BP32:DU32)-COUNTIF($BP32:DU32,"")+1),"") ->  | DW32: =IF(DW$14>=$AT32,INDEX(Break19,COLUMNS($BP32:DV32)-COUNTIF($BP32:DV32,"")+1),"") ->  | DX32: =IF(DX$14>=$AT32,INDEX(Break19,COLUMNS($BP32:DW32)-COUNTIF($BP32:DW32,"")+1),"") ->  | DY32: =IF(DY$14>=$AT32,INDEX(Break19,COLUMNS($BP32:DX32)-COUNTIF($BP32:DX32,"")+1),"") ->  | DZ32: =IF(DZ$14>=$AT32,INDEX(Break19,COLUMNS($BP32:DY32)-COUNTIF($BP32:DY32,"")+1),"") ->  | EA32: =IF(EA$14>=$AT32,INDEX(Break19,COLUMNS($BP32:DZ32)-COUNTIF($BP32:DZ32,"")+1),"") ->  | EB32: =IF(EB$14>=$AT32,INDEX(Break19,COLUMNS($BP32:EA32)-COUNTIF($BP32:EA32,"")+1),"") ->  | EC32: =IF(EC$14>=$AT32,INDEX(Break19,COLUMNS($BP32:EB32)-COUNTIF($BP32:EB32,"")+1),"") ->  | ED32: =IF(ED$14>=$AT32,INDEX(Break19,COLUMNS($BP32:EC32)-COUNTIF($BP32:EC32,"")+1),"") ->  | EE32: =IF(EE$14>=$AT32,INDEX(Break19,COLUMNS($BP32:ED32)-COUNTIF($BP32:ED32,"")+1),"") ->  | EF32: =IF(EF$14>=$AT32,INDEX(Break19,COLUMNS($BP32:EE32)-COUNTIF($BP32:EE32,"")+1),"") ->  | EG32: =IF(EG$14>=$AT32,INDEX(Break19,COLUMNS($BP32:EF32)-COUNTIF($BP32:EF32,"")+1),"") ->  | EH32: =IF(EH$14>=$AT32,INDEX(Break19,COLUMNS($BP32:EG32)-COUNTIF($BP32:EG32,"")+1),"") ->  | EI32: =IF(EI$14>=$AT32,INDEX(Break19,COLUMNS($BP32:EH32)-COUNTIF($BP32:EH32,"")+1),"") ->  | EK32: =L32 -> 2025 | EL32: =M32 -> 25 | EM32: =N32 -> 25 | EN32: =IF($EL32>1,IF(AND(EN$14>=$EK32,EN$14<$EK32+$EL32),IF(EN$14=$EK32,$EM32,$EM32),"")) ->  | EP32: 25 | EQ32: 25 | ER32: 25 | ES32: 25 | ET32: 25 | EU32: 25 | EV32: 25 | EW32: 25 | EX32: =IF($EL32>1,IF(AND(EX$14>=$EK32,EX$14<$EK32+$EL32),IF(EX$14=$EK32,$EM32,$EM32),"")) -> 25 | EY32: 25 | EZ32: 25 | FA32: 25 | FB32: 25 | FC32: 25 | FD32: 25 | FE32: 25
B33: Project 19 | C33: Project 19 | D33: Company 19 | E33: Manufacturing | F33: 5 | G33: Construction | H33: 2023 | I33: 2 | J33: 4 | K33: 80 | L33: 2024 | M33: 25 | N33: 46 | O33: 0.8 | P33: =1-O33 -> 0.2 | S33: 18 | T33: 0.1 | U33: 0.2 | V33: 0.3 | W33: 0.4 | X33: 0.5 | Y33: 0.7 | Z33: 0.8 | AA33: 0.9 | AB33: 1 | AC33: 1 | AD33: 1 | AE33: 1 | AF33: 0.9 | AG33: 0.7 | AH33: 0.5 | AI33: 0.4 | AJ33: 0.3 | AK33: 0.2 | AO33: =B33 -> Project 19 | AP33: ='Master Sheet - Project Info'!$H33 -> 2023 | AQ33: ='Master Sheet - Project Info'!$I33 -> 2 | AR33: ='Master Sheet - Project Info'!$J33 -> 4 | AS33: ='Master Sheet - Project Info'!$K33 -> 80 | AT33: =IF(OR(AP33="",AQ33=""),"",($AP33+($AQ33-1)/4)) -> 2023.25 | AU33: 56 | AV33: 80 | AW33: 80 | AX33: 56 | AY33: 0 | AZ33: 0 | BA33: 0 | BB33: 0 | BC33: 0 | BD33: 0 | BE33: 0 | BF33: 0 | BG33: 0 | BH33: 0 | BI33: 0 | BJ33: 0 | BK33: 0 | BL33: 0 | BM33: 0 | BN33: 0 | BP33: =IF($BP$14>=AT33,INDEX(Break20,1),"") ->  | BQ33: =IF(BQ$14>=$AT33,INDEX(Break20,COLUMNS($BP33:BP33)-COUNTIF($BP33:BP33,"")+1),"") -> 56 | BR33: =IF(BR$14>=$AT33,INDEX(Break20,COLUMNS($BP33:BQ33)-COUNTIF($BP33:BQ33,"")+1),"") -> 80 | BS33: =IF(BS$14>=$AT33,INDEX(Break20,COLUMNS($BP33:BR33)-COUNTIF($BP33:BR33,"")+1),"") -> 80 | BT33: =IF(BT$14>=$AT33,INDEX(Break20,COLUMNS($BP33:BS33)-COUNTIF($BP33:BS33,"")+1),"") -> 56 | BU33: =IF(BU$14>=$AT33,INDEX(Break20,COLUMNS($BP33:BT33)-COUNTIF($BP33:BT33,"")+1),"") -> 0 | BV33: =IF(BV$14>=$AT33,INDEX(Break20,COLUMNS($BP33:BU33)-COUNTIF($BP33:BU33,"")+1),"") -> 0 | BW33: =IF(BW$14>=$AT33,INDEX(Break20,COLUMNS($BP33:BV33)-COUNTIF($BP33:BV33,"")+1),"") -> 0 | BX33: =IF(BX$14>=$AT33,INDEX(Break20,COLUMNS($BP33:BW33)-COUNTIF($BP33:BW33,"")+1),"") -> 0 | BY33: =IF(BY$14>=$AT33,INDEX(Break20,COLUMNS($BP33:BX33)-COUNTIF($BP33:BX33,"")+1),"") -> 0 | BZ33: =IF(BZ$14>=$AT33,INDEX(Break20,COLUMNS($BP33:BY33)-COUNTIF($BP33:BY33,"")+1),"") -> 0 | CA33: =IF(CA$14>=$AT33,INDEX(Break20,COLUMNS($BP33:BZ33)-COUNTIF($BP33:BZ33,"")+1),"") -> 0 | CB33: =IF(CB$14>=$AT33,INDEX(Break20,COLUMNS($BP33:CA33)-COUNTIF($BP33:CA33,"")+1),"") -> 0 | CC33: =IF(CC$14>=$AT33,INDEX(Break20,COLUMNS($BP33:CB33)-COUNTIF($BP33:CB33,"")+1),"") -> 0 | CD33: =IF(CD$14>=$AT33,INDEX(Break20,COLUMNS($BP33:CC33)-COUNTIF($BP33:CC33,"")+1),"") -> 0 | CE33: =IF(CE$14>=$AT33,INDEX(Break20,COLUMNS($BP33:CD33)-COUNTIF($BP33:CD33,"")+1),"") -> 0 | CF33: =IF(CF$14>=$AT33,INDEX(Break20,COLUMNS($BP33:CE33)-COUNTIF($BP33:CE33,"")+1),"") -> 0 | CG33: =IF(CG$14>=$AT33,INDEX(Break20,COLUMNS($BP33:CF33)-COUNTIF($BP33:CF33,"")+1),"") -> 0 | CH33: =IF(CH$14>=$AT33,INDEX(Break20,COLUMNS($BP33:CG33)-COUNTIF($BP33:CG33,"")+1),"") -> 0 | CI33: =IF(CI$14>=$AT33,INDEX(Break20,COLUMNS($BP33:CH33)-COUNTIF($BP33:CH33,"")+1),"") -> 0 | CJ33: =IF(CJ$14>=$AT33,INDEX(Break20,COLUMNS($BP33:CI33)-COUNTIF($BP33:CI33,"")+1),"") -> 0 | CK33: =IF(CK$14>=$AT33,INDEX(Break20,COLUMNS($BP33:CJ33)-COUNTIF($BP33:CJ33,"")+1),"") ->  | CL33: =IF(CL$14>=$AT33,INDEX(Break20,COLUMNS($BP33:CK33)-COUNTIF($BP33:CK33,"")+1),"") ->  | CM33: =IF(CM$14>=$AT33,INDEX(Break20,COLUMNS($BP33:CL33)-COUNTIF($BP33:CL33,"")+1),"") ->  | CN33: =IF(CN$14>=$AT33,INDEX(Break20,COLUMNS($BP33:CM33)-COUNTIF($BP33:CM33,"")+1),"") ->  | CO33: =IF(CO$14>=$AT33,INDEX(Break20,COLUMNS($BP33:CN33)-COUNTIF($BP33:CN33,"")+1),"") ->  | CP33: =IF(CP$14>=$AT33,INDEX(Break20,COLUMNS($BP33:CO33)-COUNTIF($BP33:CO33,"")+1),"") ->  | CQ33: =IF(CQ$14>=$AT33,INDEX(Break20,COLUMNS($BP33:CP33)-COUNTIF($BP33:CP33,"")+1),"") ->  | CR33: =IF(CR$14>=$AT33,INDEX(Break20,COLUMNS($BP33:CQ33)-COUNTIF($BP33:CQ33,"")+1),"") ->  | CS33: =IF(CS$14>=$AT33,INDEX(Break20,COLUMNS($BP33:CR33)-COUNTIF($BP33:CR33,"")+1),"") ->  | CT33: =IF(CT$14>=$AT33,INDEX(Break20,COLUMNS($BP33:CS33)-COUNTIF($BP33:CS33,"")+1),"") ->  | CU33: =IF(CU$14>=$AT33,INDEX(Break20,COLUMNS($BP33:CT33)-COUNTIF($BP33:CT33,"")+1),"") ->  | CV33: =IF(CV$14>=$AT33,INDEX(Break20,COLUMNS($BP33:CU33)-COUNTIF($BP33:CU33,"")+1),"") ->  | CW33: =IF(CW$14>=$AT33,INDEX(Break20,COLUMNS($BP33:CV33)-COUNTIF($BP33:CV33,"")+1),"") ->  | CX33: =IF(CX$14>=$AT33,INDEX(Break20,COLUMNS($BP33:CW33)-COUNTIF($BP33:CW33,"")+1),"") ->  | CY33: =IF(CY$14>=$AT33,INDEX(Break20,COLUMNS($BP33:CX33)-COUNTIF($BP33:CX33,"")+1),"") ->  | CZ33: =IF(CZ$14>=$AT33,INDEX(Break20,COLUMNS($BP33:CY33)-COUNTIF($BP33:CY33,"")+1),"") ->  | DA33: =IF(DA$14>=$AT33,INDEX(Break20,COLUMNS($BP33:CZ33)-COUNTIF($BP33:CZ33,"")+1),"") ->  | DB33: =IF(DB$14>=$AT33,INDEX(Break20,COLUMNS($BP33:DA33)-COUNTIF($BP33:DA33,"")+1),"") ->  | DC33: =IF(DC$14>=$AT33,INDEX(Break20,COLUMNS($BP33:DB33)-COUNTIF($BP33:DB33,"")+1),"") ->  | DD33: =IF(DD$14>=$AT33,INDEX(Break20,COLUMNS($BP33:DC33)-COUNTIF($BP33:DC33,"")+1),"") ->  | DE33: =IF(DE$14>=$AT33,INDEX(Break20,COLUMNS($BP33:DD33)-COUNTIF($BP33:DD33,"")+1),"") ->  | DF33: =IF(DF$14>=$AT33,INDEX(Break20,COLUMNS($BP33:DE33)-COUNTIF($BP33:DE33,"")+1),"") ->  | DG33: =IF(DG$14>=$AT33,INDEX(Break20,COLUMNS($BP33:DF33)-COUNTIF($BP33:DF33,"")+1),"") ->  | DH33: =IF(DH$14>=$AT33,INDEX(Break20,COLUMNS($BP33:DG33)-COUNTIF($BP33:DG33,"")+1),"") ->  | DI33: =IF(DI$14>=$AT33,INDEX(Break20,COLUMNS($BP33:DH33)-COUNTIF($BP33:DH33,"")+1),"") ->  | DJ33: =IF(DJ$14>=$AT33,INDEX(Break20,COLUMNS($BP33:DI33)-COUNTIF($BP33:DI33,"")+1),"") ->  | DK33: =IF(DK$14>=$AT33,INDEX(Break20,COLUMNS($BP33:DJ33)-COUNTIF($BP33:DJ33,"")+1),"") ->  | DL33: =IF(DL$14>=$AT33,INDEX(Break20,COLUMNS($BP33:DK33)-COUNTIF($BP33:DK33,"")+1),"") ->  | DM33: =IF(DM$14>=$AT33,INDEX(Break20,COLUMNS($BP33:DL33)-COUNTIF($BP33:DL33,"")+1),"") ->  | DN33: =IF(DN$14>=$AT33,INDEX(Break20,COLUMNS($BP33:DM33)-COUNTIF($BP33:DM33,"")+1),"") ->  | DO33: =IF(DO$14>=$AT33,INDEX(Break20,COLUMNS($BP33:DN33)-COUNTIF($BP33:DN33,"")+1),"") ->  | DP33: =IF(DP$14>=$AT33,INDEX(Break20,COLUMNS($BP33:DO33)-COUNTIF($BP33:DO33,"")+1),"") ->  | DQ33: =IF(DQ$14>=$AT33,INDEX(Break20,COLUMNS($BP33:DP33)-COUNTIF($BP33:DP33,"")+1),"") ->  | DR33: =IF(DR$14>=$AT33,INDEX(Break20,COLUMNS($BP33:DQ33)-COUNTIF($BP33:DQ33,"")+1),"") ->  | DS33: =IF(DS$14>=$AT33,INDEX(Break20,COLUMNS($BP33:DR33)-COUNTIF($BP33:DR33,"")+1),"") ->  | DT33: =IF(DT$14>=$AT33,INDEX(Break20,COLUMNS($BP33:DS33)-COUNTIF($BP33:DS33,"")+1),"") ->  | DU33: =IF(DU$14>=$AT33,INDEX(Break20,COLUMNS($BP33:DT33)-COUNTIF($BP33:DT33,"")+1),"") ->  | DV33: =IF(DV$14>=$AT33,INDEX(Break20,COLUMNS($BP33:DU33)-COUNTIF($BP33:DU33,"")+1),"") ->  | DW33: =IF(DW$14>=$AT33,INDEX(Break20,COLUMNS($BP33:DV33)-COUNTIF($BP33:DV33,"")+1),"") ->  | DX33: =IF(DX$14>=$AT33,INDEX(Break20,COLUMNS($BP33:DW33)-COUNTIF($BP33:DW33,"")+1),"") ->  | DY33: =IF(DY$14>=$AT33,INDEX(Break20,COLUMNS($BP33:DX33)-COUNTIF($BP33:DX33,"")+1),"") ->  | DZ33: =IF(DZ$14>=$AT33,INDEX(Break20,COLUMNS($BP33:DY33)-COUNTIF($BP33:DY33,"")+1),"") ->  | EA33: =IF(EA$14>=$AT33,INDEX(Break20,COLUMNS($BP33:DZ33)-COUNTIF($BP33:DZ33,"")+1),"") ->  | EB33: =IF(EB$14>=$AT33,INDEX(Break20,COLUMNS($BP33:EA33)-COUNTIF($BP33:EA33,"")+1),"") ->  | EC33: =IF(EC$14>=$AT33,INDEX(Break20,COLUMNS($BP33:EB33)-COUNTIF($BP33:EB33,"")+1),"") ->  | ED33: =IF(ED$14>=$AT33,INDEX(Break20,COLUMNS($BP33:EC33)-COUNTIF($BP33:EC33,"")+1),"") ->  | EE33: =IF(EE$14>=$AT33,INDEX(Break20,COLUMNS($BP33:ED33)-COUNTIF($BP33:ED33,"")+1),"") ->  | EF33: =IF(EF$14>=$AT33,INDEX(Break20,COLUMNS($BP33:EE33)-COUNTIF($BP33:EE33,"")+1),"") ->  | EG33: =IF(EG$14>=$AT33,INDEX(Break20,COLUMNS($BP33:EF33)-COUNTIF($BP33:EF33,"")+1),"") ->  | EH33: =IF(EH$14>=$AT33,INDEX(Break20,COLUMNS($BP33:EG33)-COUNTIF($BP33:EG33,"")+1),"") ->  | EI33: =IF(EI$14>=$AT33,INDEX(Break20,COLUMNS($BP33:EH33)-COUNTIF($BP33:EH33,"")+1),"") ->  | EK33: =L33 -> 2024 | EL33: =M33 -> 25 | EM33: =N33 -> 46 | EN33: =IF($EL33>1,IF(AND(EN$14>=$EK33,EN$14<$EK33+$EL33),IF(EN$14=$EK33,$EM33,$EM33),"")) ->  | EO33: 46 | EP33: 46 | EQ33: 46 | ER33: 46 | ES33: 46 | ET33: 46 | EU33: 46 | EV33: 46 | EW33: 46 | EX33: 46 | EY33: 46 | EZ33: 46 | FA33: 46 | FB33: 46 | FC33: 46 | FD33: 46 | FE33: 46
B34: Project 20 | C34: Project 20 | D34: Company 20 | E34: Manufacturing | F34: 50 | G34: Construction | H34: 2023 | I34: 1 | J34: 6 | K34: 80 | L34: 2024 | M34: 25 | N34: 50 | O34: 0.8 | P34: =1-O34 -> 0.2 | S34: 19 | T34: 0.1 | U34: 0.2 | V34: 0.3 | W34: 0.4 | X34: 0.5 | Y34: 0.7 | Z34: 0.8 | AA34: 0.9 | AB34: 1 | AC34: 1 | AD34: 1 | AE34: 1 | AF34: 0.9 | AG34: 0.7 | AH34: 0.5 | AI34: 0.4 | AJ34: 0.3 | AK34: 0.2 | AL34: 0.1 | AO34: =B34 -> Project 20 | AP34: ='Master Sheet - Project Info'!$H34 -> 2023 | AQ34: ='Master Sheet - Project Info'!$I34 -> 1 | AR34: ='Master Sheet - Project Info'!$J34 -> 6 | AS34: ='Master Sheet - Project Info'!$K34 -> 80 | AT34: =IF(OR(AP34="",AQ34=""),"",($AP34+($AQ34-1)/4)) -> 2023 | AU34: 40 | AV34: 56 | AW34: 80 | AX34: 80 | AY34: 56 | AZ34: 40 | BA34: 0 | BB34: 0 | BC34: 0 | BD34: 0 | BE34: 0 | BF34: 0 | BG34: 0 | BH34: 0 | BI34: 0 | BJ34: 0 | BK34: 0 | BL34: 0 | BM34: 0 | BN34: 0 | BP34: =IF($BP$14>=AT34,INDEX(Break21,1),"") -> 40 | BQ34: =IF(BQ$14>=$AT34,INDEX(Break21,COLUMNS($BP34:BP34)-COUNTIF($BP34:BP34,"")+1),"") -> 56 | BR34: =IF(BR$14>=$AT34,INDEX(Break21,COLUMNS($BP34:BQ34)-COUNTIF($BP34:BQ34,"")+1),"") -> 80 | BS34: =IF(BS$14>=$AT34,INDEX(Break21,COLUMNS($BP34:BR34)-COUNTIF($BP34:BR34,"")+1),"") -> 80 | BT34: =IF(BT$14>=$AT34,INDEX(Break21,COLUMNS($BP34:BS34)-COUNTIF($BP34:BS34,"")+1),"") -> 56 | BU34: =IF(BU$14>=$AT34,INDEX(Break21,COLUMNS($BP34:BT34)-COUNTIF($BP34:BT34,"")+1),"") -> 40 | BV34: =IF(BV$14>=$AT34,INDEX(Break21,COLUMNS($BP34:BU34)-COUNTIF($BP34:BU34,"")+1),"") -> 0 | BW34: =IF(BW$14>=$AT34,INDEX(Break21,COLUMNS($BP34:BV34)-COUNTIF($BP34:BV34,"")+1),"") -> 0 | BX34: =IF(BX$14>=$AT34,INDEX(Break21,COLUMNS($BP34:BW34)-COUNTIF($BP34:BW34,"")+1),"") -> 0 | BY34: =IF(BY$14>=$AT34,INDEX(Break21,COLUMNS($BP34:BX34)-COUNTIF($BP34:BX34,"")+1),"") -> 0 | BZ34: =IF(BZ$14>=$AT34,INDEX(Break21,COLUMNS($BP34:BY34)-COUNTIF($BP34:BY34,"")+1),"") -> 0 | CA34: =IF(CA$14>=$AT34,INDEX(Break21,COLUMNS($BP34:BZ34)-COUNTIF($BP34:BZ34,"")+1),"") -> 0 | CB34: =IF(CB$14>=$AT34,INDEX(Break21,COLUMNS($BP34:CA34)-COUNTIF($BP34:CA34,"")+1),"") -> 0 | CC34: =IF(CC$14>=$AT34,INDEX(Break21,COLUMNS($BP34:CB34)-COUNTIF($BP34:CB34,"")+1),"") -> 0 | CD34: =IF(CD$14>=$AT34,INDEX(Break21,COLUMNS($BP34:CC34)-COUNTIF($BP34:CC34,"")+1),"") -> 0 | CE34: =IF(CE$14>=$AT34,INDEX(Break21,COLUMNS($BP34:CD34)-COUNTIF($BP34:CD34,"")+1),"") -> 0 | CF34: =IF(CF$14>=$AT34,INDEX(Break21,COLUMNS($BP34:CE34)-COUNTIF($BP34:CE34,"")+1),"") -> 0 | CG34: =IF(CG$14>=$AT34,INDEX(Break21,COLUMNS($BP34:CF34)-COUNTIF($BP34:CF34,"")+1),"") -> 0 | CH34: =IF(CH$14>=$AT34,INDEX(Break21,COLUMNS($BP34:CG34)-COUNTIF($BP34:CG34,"")+1),"") -> 0 | CI34: =IF(CI$14>=$AT34,INDEX(Break21,COLUMNS($BP34:CH34)-COUNTIF($BP34:CH34,"")+1),"") -> 0 | CJ34: =IF(CJ$14>=$AT34,INDEX(Break21,COLUMNS($BP34:CI34)-COUNTIF($BP34:CI34,"")+1),"") ->  | CK34: =IF(CK$14>=$AT34,INDEX(Break21,COLUMNS($BP34:CJ34)-COUNTIF($BP34:CJ34,"")+1),"") ->  | CL34: =IF(CL$14>=$AT34,INDEX(Break21,COLUMNS($BP34:CK34)-COUNTIF($BP34:CK34,"")+1),"") ->  | CM34: =IF(CM$14>=$AT34,INDEX(Break21,COLUMNS($BP34:CL34)-COUNTIF($BP34:CL34,"")+1),"") ->  | CN34: =IF(CN$14>=$AT34,INDEX(Break21,COLUMNS($BP34:CM34)-COUNTIF($BP34:CM34,"")+1),"") ->  | CO34: =IF(CO$14>=$AT34,INDEX(Break21,COLUMNS($BP34:CN34)-COUNTIF($BP34:CN34,"")+1),"") ->  | CP34: =IF(CP$14>=$AT34,INDEX(Break21,COLUMNS($BP34:CO34)-COUNTIF($BP34:CO34,"")+1),"") ->  | CQ34: =IF(CQ$14>=$AT34,INDEX(Break21,COLUMNS($BP34:CP34)-COUNTIF($BP34:CP34,"")+1),"") ->  | CR34: =IF(CR$14>=$AT34,INDEX(Break21,COLUMNS($BP34:CQ34)-COUNTIF($BP34:CQ34,"")+1),"") ->  | CS34: =IF(CS$14>=$AT34,INDEX(Break21,COLUMNS($BP34:CR34)-COUNTIF($BP34:CR34,"")+1),"") ->  | CT34: =IF(CT$14>=$AT34,INDEX(Break21,COLUMNS($BP34:CS34)-COUNTIF($BP34:CS34,"")+1),"") ->  | CU34: =IF(CU$14>=$AT34,INDEX(Break21,COLUMNS($BP34:CT34)-COUNTIF($BP34:CT34,"")+1),"") ->  | CV34: =IF(CV$14>=$AT34,INDEX(Break21,COLUMNS($BP34:CU34)-COUNTIF($BP34:CU34,"")+1),"") ->  | CW34: =IF(CW$14>=$AT34,INDEX(Break21,COLUMNS($BP34:CV34)-COUNTIF($BP34:CV34,"")+1),"") ->  | CX34: =IF(CX$14>=$AT34,INDEX(Break21,COLUMNS($BP34:CW34)-COUNTIF($BP34:CW34,"")+1),"") ->  | CY34: =IF(CY$14>=$AT34,INDEX(Break21,COLUMNS($BP34:CX34)-COUNTIF($BP34:CX34,"")+1),"") ->  | CZ34: =IF(CZ$14>=$AT34,INDEX(Break21,COLUMNS($BP34:CY34)-COUNTIF($BP34:CY34,"")+1),"") ->  | DA34: =IF(DA$14>=$AT34,INDEX(Break21,COLUMNS($BP34:CZ34)-COUNTIF($BP34:CZ34,"")+1),"") ->  | DB34: =IF(DB$14>=$AT34,INDEX(Break21,COLUMNS($BP34:DA34)-COUNTIF($BP34:DA34,"")+1),"") ->  | DC34: =IF(DC$14>=$AT34,INDEX(Break21,COLUMNS($BP34:DB34)-COUNTIF($BP34:DB34,"")+1),"") ->  | DD34: =IF(DD$14>=$AT34,INDEX(Break21,COLUMNS($BP34:DC34)-COUNTIF($BP34:DC34,"")+1),"") ->  | DE34: =IF(DE$14>=$AT34,INDEX(Break21,COLUMNS($BP34:DD34)-COUNTIF($BP34:DD34,"")+1),"") ->  | DF34: =IF(DF$14>=$AT34,INDEX(Break21,COLUMNS($BP34:DE34)-COUNTIF($BP34:DE34,"")+1),"") ->  | DG34: =IF(DG$14>=$AT34,INDEX(Break21,COLUMNS($BP34:DF34)-COUNTIF($BP34:DF34,"")+1),"") ->  | DH34: =IF(DH$14>=$AT34,INDEX(Break21,COLUMNS($BP34:DG34)-COUNTIF($BP34:DG34,"")+1),"") ->  | DI34: =IF(DI$14>=$AT34,INDEX(Break21,COLUMNS($BP34:DH34)-COUNTIF($BP34:DH34,"")+1),"") ->  | DJ34: =IF(DJ$14>=$AT34,INDEX(Break21,COLUMNS($BP34:DI34)-COUNTIF($BP34:DI34,"")+1),"") ->  | DK34: =IF(DK$14>=$AT34,INDEX(Break21,COLUMNS($BP34:DJ34)-COUNTIF($BP34:DJ34,"")+1),"") ->  | DL34: =IF(DL$14>=$AT34,INDEX(Break21,COLUMNS($BP34:DK34)-COUNTIF($BP34:DK34,"")+1),"") ->  | DM34: =IF(DM$14>=$AT34,INDEX(Break21,COLUMNS($BP34:DL34)-COUNTIF($BP34:DL34,"")+1),"") ->  | DN34: =IF(DN$14>=$AT34,INDEX(Break21,COLUMNS($BP34:DM34)-COUNTIF($BP34:DM34,"")+1),"") ->  | DO34: =IF(DO$14>=$AT34,INDEX(Break21,COLUMNS($BP34:DN34)-COUNTIF($BP34:DN34,"")+1),"") ->  | DP34: =IF(DP$14>=$AT34,INDEX(Break21,COLUMNS($BP34:DO34)-COUNTIF($BP34:DO34,"")+1),"") ->  | DQ34: =IF(DQ$14>=$AT34,INDEX(Break21,COLUMNS($BP34:DP34)-COUNTIF($BP34:DP34,"")+1),"") ->  | DR34: =IF(DR$14>=$AT34,INDEX(Break21,COLUMNS($BP34:DQ34)-COUNTIF($BP34:DQ34,"")+1),"") ->  | DS34: =IF(DS$14>=$AT34,INDEX(Break21,COLUMNS($BP34:DR34)-COUNTIF($BP34:DR34,"")+1),"") ->  | DT34: =IF(DT$14>=$AT34,INDEX(Break21,COLUMNS($BP34:DS34)-COUNTIF($BP34:DS34,"")+1),"") ->  | DU34: =IF(DU$14>=$AT34,INDEX(Break21,COLUMNS($BP34:DT34)-COUNTIF($BP34:DT34,"")+1),"") ->  | DV34: =IF(DV$14>=$AT34,INDEX(Break21,COLUMNS($BP34:DU34)-COUNTIF($BP34:DU34,"")+1),"") ->  | DW34: =IF(DW$14>=$AT34,INDEX(Break21,COLUMNS($BP34:DV34)-COUNTIF($BP34:DV34,"")+1),"") ->  | DX34: =IF(DX$14>=$AT34,INDEX(Break21,COLUMNS($BP34:DW34)-COUNTIF($BP34:DW34,"")+1),"") ->  | DY34: =IF(DY$14>=$AT34,INDEX(Break21,COLUMNS($BP34:DX34)-COUNTIF($BP34:DX34,"")+1),"") ->  | DZ34: =IF(DZ$14>=$AT34,INDEX(Break21,COLUMNS($BP34:DY34)-COUNTIF($BP34:DY34,"")+1),"") ->  | EA34: =IF(EA$14>=$AT34,INDEX(Break21,COLUMNS($BP34:DZ34)-COUNTIF($BP34:DZ34,"")+1),"") ->  | EB34: =IF(EB$14>=$AT34,INDEX(Break21,COLUMNS($BP34:EA34)-COUNTIF($BP34:EA34,"")+1),"") ->  | EC34: =IF(EC$14>=$AT34,INDEX(Break21,COLUMNS($BP34:EB34)-COUNTIF($BP34:EB34,"")+1),"") ->  | ED34: =IF(ED$14>=$AT34,INDEX(Break21,COLUMNS($BP34:EC34)-COUNTIF($BP34:EC34,"")+1),"") ->  | EE34: =IF(EE$14>=$AT34,INDEX(Break21,COLUMNS($BP34:ED34)-COUNTIF($BP34:ED34,"")+1),"") ->  | EF34: =IF(EF$14>=$AT34,INDEX(Break21,COLUMNS($BP34:EE34)-COUNTIF($BP34:EE34,"")+1),"") ->  | EG34: =IF(EG$14>=$AT34,INDEX(Break21,COLUMNS($BP34:EF34)-COUNTIF($BP34:EF34,"")+1),"") ->  | EH34: =IF(EH$14>=$AT34,INDEX(Break21,COLUMNS($BP34:EG34)-COUNTIF($BP34:EG34,"")+1),"") ->  | EI34: =IF(EI$14>=$AT34,INDEX(Break21,COLUMNS($BP34:EH34)-COUNTIF($BP34:EH34,"")+1),"") ->  | EK34: =L34 -> 2024 | EL34: =M34 -> 25 | EM34: =N34 -> 50 | EO34: 50 | EP34: 50 | EQ34: 50 | ER34: 50 | ES34: 50 | ET34: 50 | EU34: 50 | EV34: 50 | EW34: 50 | EX34: 50 | EY34: 50 | EZ34: 50 | FA34: 50 | FB34: 50 | FC34: 50 | FD34: 50 | FE34: 50
B35: Project 21 | C35: Project 21 | D35: Company 21 | E35: Retail Trade | F35: 30 | G35: Planning | H35: 2028 | I35: 1 | J35: 6 | K35: 80 | L35: 2029 | M35: 25 | N35: 100 | O35: 0.01 | P35: 0.99 | S35: 20 | T35: 0.1 | U35: 0.2 | V35: 0.3 | W35: 0.4 | X35: 0.5 | Y35: 0.7 | Z35: 0.8 | AA35: 0.9 | AB35: 1 | AC35: 1 | AD35: 1 | AE35: 1 | AF35: 1 | AG35: 0.9 | AH35: 0.7 | AI35: 0.5 | AJ35: 0.4 | AK35: 0.3 | AL35: 0.2 | AM35: 0.1 | AO35: Project 21 | AP35: ='Master Sheet - Project Info'!$H35 -> 2028 | AQ35: ='Master Sheet - Project Info'!$I35 -> 1 | AR35: ='Master Sheet - Project Info'!$J35 -> 6 | AS35: ='Master Sheet - Project Info'!$K35 -> 80 | AT35: =IF(OR(AP35="",AQ35=""),"",($AP35+($AQ35-1)/4)) -> 2028 | AU35: 40 | AV35: 56 | AW35: 80 | AX35: 80 | AY35: 56 | AZ35: 40 | BA35: 0 | BB35: 0 | BC35: 0 | BD35: 0 | BE35: 0 | BF35: 0 | BG35: 0 | BH35: 0 | BI35: 0 | BJ35: 0 | BK35: 0 | BL35: 0 | BM35: 0 | BN35: 0 | BP35: =IF($BP$14>=AT35,INDEX(Break22,1),"") ->  | BQ35: =IF(BQ$14>=$AT35,INDEX(Break22,COLUMNS($BP35:BP35)-COUNTIF($BP35:BP35,"")+1),"") ->  | BR35: =IF(BR$14>=$AT35,INDEX(Break22,COLUMNS($BP35:BQ35)-COUNTIF($BP35:BQ35,"")+1),"") ->  | BS35: =IF(BS$14>=$AT35,INDEX(Break22,COLUMNS($BP35:BR35)-COUNTIF($BP35:BR35,"")+1),"") ->  | BT35: =IF(BT$14>=$AT35,INDEX(Break22,COLUMNS($BP35:BS35)-COUNTIF($BP35:BS35,"")+1),"") ->  | BU35: =IF(BU$14>=$AT35,INDEX(Break22,COLUMNS($BP35:BT35)-COUNTIF($BP35:BT35,"")+1),"") ->  | BV35: =IF(BV$14>=$AT35,INDEX(Break22,COLUMNS($BP35:BU35)-COUNTIF($BP35:BU35,"")+1),"") ->  | BW35: =IF(BW$14>=$AT35,INDEX(Break22,COLUMNS($BP35:BV35)-COUNTIF($BP35:BV35,"")+1),"") ->  | BX35: =IF(BX$14>=$AT35,INDEX(Break22,COLUMNS($BP35:BW35)-COUNTIF($BP35:BW35,"")+1),"") ->  | BY35: =IF(BY$14>=$AT35,INDEX(Break22,COLUMNS($BP35:BX35)-COUNTIF($BP35:BX35,"")+1),"") ->  | BZ35: =IF(BZ$14>=$AT35,INDEX(Break22,COLUMNS($BP35:BY35)-COUNTIF($BP35:BY35,"")+1),"") ->  | CA35: =IF(CA$14>=$AT35,INDEX(Break22,COLUMNS($BP35:BZ35)-COUNTIF($BP35:BZ35,"")+1),"") ->  | CB35: =IF(CB$14>=$AT35,INDEX(Break22,COLUMNS($BP35:CA35)-COUNTIF($BP35:CA35,"")+1),"") ->  | CC35: =IF(CC$14>=$AT35,INDEX(Break22,COLUMNS($BP35:CB35)-COUNTIF($BP35:CB35,"")+1),"") ->  | CD35: =IF(CD$14>=$AT35,INDEX(Break22,COLUMNS($BP35:CC35)-COUNTIF($BP35:CC35,"")+1),"") ->  | CE35: =IF(CE$14>=$AT35,INDEX(Break22,COLUMNS($BP35:CD35)-COUNTIF($BP35:CD35,"")+1),"") ->  | CF35: =IF(CF$14>=$AT35,INDEX(Break22,COLUMNS($BP35:CE35)-COUNTIF($BP35:CE35,"")+1),"") ->  | CG35: =IF(CG$14>=$AT35,INDEX(Break22,COLUMNS($BP35:CF35)-COUNTIF($BP35:CF35,"")+1),"") ->  | CH35: =IF(CH$14>=$AT35,INDEX(Break22,COLUMNS($BP35:CG35)-COUNTIF($BP35:CG35,"")+1),"") ->  | CI35: =IF(CI$14>=$AT35,INDEX(Break22,COLUMNS($BP35:CH35)-COUNTIF($BP35:CH35,"")+1),"") ->  | CJ35: =IF(CJ$14>=$AT35,INDEX(Break22,COLUMNS($BP35:CI35)-COUNTIF($BP35:CI35,"")+1),"") -> 40 | CK35: =IF(CK$14>=$AT35,INDEX(Break22,COLUMNS($BP35:CJ35)-COUNTIF($BP35:CJ35,"")+1),"") -> 56 | CL35: =IF(CL$14>=$AT35,INDEX(Break22,COLUMNS($BP35:CK35)-COUNTIF($BP35:CK35,"")+1),"") -> 80 | CM35: =IF(CM$14>=$AT35,INDEX(Break22,COLUMNS($BP35:CL35)-COUNTIF($BP35:CL35,"")+1),"") -> 80 | CN35: =IF(CN$14>=$AT35,INDEX(Break22,COLUMNS($BP35:CM35)-COUNTIF($BP35:CM35,"")+1),"") -> 56 | CO35: =IF(CO$14>=$AT35,INDEX(Break22,COLUMNS($BP35:CN35)-COUNTIF($BP35:CN35,"")+1),"") -> 40 | CP35: =IF(CP$14>=$AT35,INDEX(Break22,COLUMNS($BP35:CO35)-COUNTIF($BP35:CO35,"")+1),"") -> 0 | CQ35: =IF(CQ$14>=$AT35,INDEX(Break22,COLUMNS($BP35:CP35)-COUNTIF($BP35:CP35,"")+1),"") -> 0 | CR35: =IF(CR$14>=$AT35,INDEX(Break22,COLUMNS($BP35:CQ35)-COUNTIF($BP35:CQ35,"")+1),"") -> 0 | CS35: =IF(CS$14>=$AT35,INDEX(Break22,COLUMNS($BP35:CR35)-COUNTIF($BP35:CR35,"")+1),"") -> 0 | CT35: =IF(CT$14>=$AT35,INDEX(Break22,COLUMNS($BP35:CS35)-COUNTIF($BP35:CS35,"")+1),"") -> 0 | CU35: =IF(CU$14>=$AT35,INDEX(Break22,COLUMNS($BP35:CT35)-COUNTIF($BP35:CT35,"")+1),"") -> 0 | CV35: =IF(CV$14>=$AT35,INDEX(Break22,COLUMNS($BP35:CU35)-COUNTIF($BP35:CU35,"")+1),"") -> 0 | CW35: =IF(CW$14>=$AT35,INDEX(Break22,COLUMNS($BP35:CV35)-COUNTIF($BP35:CV35,"")+1),"") -> 0 | CX35: =IF(CX$14>=$AT35,INDEX(Break22,COLUMNS($BP35:CW35)-COUNTIF($BP35:CW35,"")+1),"") -> 0 | CY35: =IF(CY$14>=$AT35,INDEX(Break22,COLUMNS($BP35:CX35)-COUNTIF($BP35:CX35,"")+1),"") -> 0 | CZ35: =IF(CZ$14>=$AT35,INDEX(Break22,COLUMNS($BP35:CY35)-COUNTIF($BP35:CY35,"")+1),"") -> 0 | DA35: =IF(DA$14>=$AT35,INDEX(Break22,COLUMNS($BP35:CZ35)-COUNTIF($BP35:CZ35,"")+1),"") -> 0 | DB35: =IF(DB$14>=$AT35,INDEX(Break22,COLUMNS($BP35:DA35)-COUNTIF($BP35:DA35,"")+1),"") -> 0 | DC35: =IF(DC$14>=$AT35,INDEX(Break22,COLUMNS($BP35:DB35)-COUNTIF($BP35:DB35,"")+1),"") -> 0 | DD35: =IF(DD$14>=$AT35,INDEX(Break22,COLUMNS($BP35:DC35)-COUNTIF($BP35:DC35,"")+1),"") ->  | DE35: =IF(DE$14>=$AT35,INDEX(Break22,COLUMNS($BP35:DD35)-COUNTIF($BP35:DD35,"")+1),"") ->  | DF35: =IF(DF$14>=$AT35,INDEX(Break22,COLUMNS($BP35:DE35)-COUNTIF($BP35:DE35,"")+1),"") ->  | DG35: =IF(DG$14>=$AT35,INDEX(Break22,COLUMNS($BP35:DF35)-COUNTIF($BP35:DF35,"")+1),"") ->  | DH35: =IF(DH$14>=$AT35,INDEX(Break22,COLUMNS($BP35:DG35)-COUNTIF($BP35:DG35,"")+1),"") ->  | DI35: =IF(DI$14>=$AT35,INDEX(Break22,COLUMNS($BP35:DH35)-COUNTIF($BP35:DH35,"")+1),"") ->  | DJ35: =IF(DJ$14>=$AT35,INDEX(Break22,COLUMNS($BP35:DI35)-COUNTIF($BP35:DI35,"")+1),"") ->  | DK35: =IF(DK$14>=$AT35,INDEX(Break22,COLUMNS($BP35:DJ35)-COUNTIF($BP35:DJ35,"")+1),"") ->  | DL35: =IF(DL$14>=$AT35,INDEX(Break22,COLUMNS($BP35:DK35)-COUNTIF($BP35:DK35,"")+1),"") ->  | DM35: =IF(DM$14>=$AT35,INDEX(Break22,COLUMNS($BP35:DL35)-COUNTIF($BP35:DL35,"")+1),"") ->  | DN35: =IF(DN$14>=$AT35,INDEX(Break22,COLUMNS($BP35:DM35)-COUNTIF($BP35:DM35,"")+1),"") ->  | DO35: =IF(DO$14>=$AT35,INDEX(Break22,COLUMNS($BP35:DN35)-COUNTIF($BP35:DN35,"")+1),"") ->  | DP35: =IF(DP$14>=$AT35,INDEX(Break22,COLUMNS($BP35:DO35)-COUNTIF($BP35:DO35,"")+1),"") ->  | DQ35: =IF(DQ$14>=$AT35,INDEX(Break22,COLUMNS($BP35:DP35)-COUNTIF($BP35:DP35,"")+1),"") ->  | DR35: =IF(DR$14>=$AT35,INDEX(Break22,COLUMNS($BP35:DQ35)-COUNTIF($BP35:DQ35,"")+1),"") ->  | DS35: =IF(DS$14>=$AT35,INDEX(Break22,COLUMNS($BP35:DR35)-COUNTIF($BP35:DR35,"")+1),"") ->  | DT35: =IF(DT$14>=$AT35,INDEX(Break22,COLUMNS($BP35:DS35)-COUNTIF($BP35:DS35,"")+1),"") ->  | DU35: =IF(DU$14>=$AT35,INDEX(Break22,COLUMNS($BP35:DT35)-COUNTIF($BP35:DT35,"")+1),"") ->  | DV35: =IF(DV$14>=$AT35,INDEX(Break22,COLUMNS($BP35:DU35)-COUNTIF($BP35:DU35,"")+1),"") ->  | DW35: =IF(DW$14>=$AT35,INDEX(Break22,COLUMNS($BP35:DV35)-COUNTIF($BP35:DV35,"")+1),"") ->  | DX35: =IF(DX$14>=$AT35,INDEX(Break22,COLUMNS($BP35:DW35)-COUNTIF($BP35:DW35,"")+1),"") ->  | DY35: =IF(DY$14>=$AT35,INDEX(Break22,COLUMNS($BP35:DX35)-COUNTIF($BP35:DX35,"")+1),"") ->  | DZ35: =IF(DZ$14>=$AT35,INDEX(Break22,COLUMNS($BP35:DY35)-COUNTIF($BP35:DY35,"")+1),"") ->  | EA35: =IF(EA$14>=$AT35,INDEX(Break22,COLUMNS($BP35:DZ35)-COUNTIF($BP35:DZ35,"")+1),"") ->  | EB35: =IF(EB$14>=$AT35,INDEX(Break22,COLUMNS($BP35:EA35)-COUNTIF($BP35:EA35,"")+1),"") ->  | EC35: =IF(EC$14>=$AT35,INDEX(Break22,COLUMNS($BP35:EB35)-COUNTIF($BP35:EB35,"")+1),"") ->  | ED35: =IF(ED$14>=$AT35,INDEX(Break22,COLUMNS($BP35:EC35)-COUNTIF($BP35:EC35,"")+1),"") ->  | EE35: =IF(EE$14>=$AT35,INDEX(Break22,COLUMNS($BP35:ED35)-COUNTIF($BP35:ED35,"")+1),"") ->  | EF35: =IF(EF$14>=$AT35,INDEX(Break22,COLUMNS($BP35:EE35)-COUNTIF($BP35:EE35,"")+1),"") ->  | EG35: =IF(EG$14>=$AT35,INDEX(Break22,COLUMNS($BP35:EF35)-COUNTIF($BP35:EF35,"")+1),"") ->  | EH35: =IF(EH$14>=$AT35,INDEX(Break22,COLUMNS($BP35:EG35)-COUNTIF($BP35:EG35,"")+1),"") ->  | EI35: =IF(EI$14>=$AT35,INDEX(Break22,COLUMNS($BP35:EH35)-COUNTIF($BP35:EH35,"")+1),"") ->  | EK35: 2029 | EL35: 25 | EM35: 100 | ET35: 100 | EU35: 100 | EV35: 100 | EW35: 100 | EX35: 100 | EY35: 100 | EZ35: 100 | FA35: 100 | FB35: 100 | FC35: 100 | FD35: 100 | FE35: 100
B36: Project 22 | C36: Project 22 | D36: Company 22 | E36: Transport | F36: 20 | G36: Approved | H36: 2024 | I36: 1 | J36: 4 | K36: 28 | L36: 2025 | M36: 25 | N36: 25 | O36: 0.5 | P36: 0.5 | AO36: Project 22 | AP36: ='Master Sheet - Project Info'!$H36 -> 2024 | AQ36: ='Master Sheet - Project Info'!$I36 -> 1 | AR36: ='Master Sheet - Project Info'!$J36 -> 4 | AS36: ='Master Sheet - Project Info'!$K36 -> 28 | AT36: 2024 | AU36: 19.6 | AV36: 28 | AW36: 28 | AX36: 19.6 | AY36: 0 | AZ36: 0 | BA36: 0 | BB36: 0 | BC36: 0 | BD36: 0 | BE36: 0 | BF36: 0 | BG36: 0 | BH36: 0 | BI36: 0 | BJ36: 0 | BK36: 0 | BL36: 0 | BM36: 0 | BN36: 0 | BP36: =IF($BP$14>=AT36,INDEX(Break23,1),"") ->  | BQ36: =IF(BQ$14>=$AT36,INDEX(Break23,COLUMNS($BP36:BP36)-COUNTIF($BP36:BP36,"")+1),"") ->  | BR36: =IF(BR$14>=$AT36,INDEX(Break23,COLUMNS($BP36:BQ36)-COUNTIF($BP36:BQ36,"")+1),"") ->  | BS36: =IF(BS$14>=$AT36,INDEX(Break23,COLUMNS($BP36:BR36)-COUNTIF($BP36:BR36,"")+1),"") ->  | BT36: =IF(BT$14>=$AT36,INDEX(Break23,COLUMNS($BP36:BS36)-COUNTIF($BP36:BS36,"")+1),"") -> 19.6 | BU36: =IF(BU$14>=$AT36,INDEX(Break23,COLUMNS($BP36:BT36)-COUNTIF($BP36:BT36,"")+1),"") -> 28 | BV36: =IF(BV$14>=$AT36,INDEX(Break23,COLUMNS($BP36:BU36)-COUNTIF($BP36:BU36,"")+1),"") -> 28 | BW36: =IF(BW$14>=$AT36,INDEX(Break23,COLUMNS($BP36:BV36)-COUNTIF($BP36:BV36,"")+1),"") -> 19.6 | BX36: =IF(BX$14>=$AT36,INDEX(Break23,COLUMNS($BP36:BW36)-COUNTIF($BP36:BW36,"")+1),"") -> 0 | BY36: =IF(BY$14>=$AT36,INDEX(Break23,COLUMNS($BP36:BX36)-COUNTIF($BP36:BX36,"")+1),"") -> 0 | BZ36: =IF(BZ$14>=$AT36,INDEX(Break23,COLUMNS($BP36:BY36)-COUNTIF($BP36:BY36,"")+1),"") -> 0 | CA36: =IF(CA$14>=$AT36,INDEX(Break23,COLUMNS($BP36:BZ36)-COUNTIF($BP36:BZ36,"")+1),"") -> 0 | CB36: =IF(CB$14>=$AT36,INDEX(Break23,COLUMNS($BP36:CA36)-COUNTIF($BP36:CA36,"")+1),"") -> 0 | CC36: =IF(CC$14>=$AT36,INDEX(Break23,COLUMNS($BP36:CB36)-COUNTIF($BP36:CB36,"")+1),"") -> 0 | CD36: =IF(CD$14>=$AT36,INDEX(Break23,COLUMNS($BP36:CC36)-COUNTIF($BP36:CC36,"")+1),"") -> 0 | CE36: =IF(CE$14>=$AT36,INDEX(Break23,COLUMNS($BP36:CD36)-COUNTIF($BP36:CD36,"")+1),"") -> 0 | CF36: =IF(CF$14>=$AT36,INDEX(Break23,COLUMNS($BP36:CE36)-COUNTIF($BP36:CE36,"")+1),"") -> 0 | CG36: =IF(CG$14>=$AT36,INDEX(Break23,COLUMNS($BP36:CF36)-COUNTIF($BP36:CF36,"")+1),"") -> 0 | CH36: =IF(CH$14>=$AT36,INDEX(Break23,COLUMNS($BP36:CG36)-COUNTIF($BP36:CG36,"")+1),"") -> 0 | CI36: =IF(CI$14>=$AT36,INDEX(Break23,COLUMNS($BP36:CH36)-COUNTIF($BP36:CH36,"")+1),"") -> 0 | CJ36: =IF(CJ$14>=$AT36,INDEX(Break23,COLUMNS($BP36:CI36)-COUNTIF($BP36:CI36,"")+1),"") -> 0 | CK36: =IF(CK$14>=$AT36,INDEX(Break23,COLUMNS($BP36:CJ36)-COUNTIF($BP36:CJ36,"")+1),"") -> 0 | CL36: =IF(CL$14>=$AT36,INDEX(Break23,COLUMNS($BP36:CK36)-COUNTIF($BP36:CK36,"")+1),"") -> 0 | CM36: =IF(CM$14>=$AT36,INDEX(Break23,COLUMNS($BP36:CL36)-COUNTIF($BP36:CL36,"")+1),"") -> 0 | CN36: =IF(CN$14>=$AT36,INDEX(Break23,COLUMNS($BP36:CM36)-COUNTIF($BP36:CM36,"")+1),"") ->  | CO36: =IF(CO$14>=$AT36,INDEX(Break23,COLUMNS($BP36:CN36)-COUNTIF($BP36:CN36,"")+1),"") ->  | CP36: =IF(CP$14>=$AT36,INDEX(Break23,COLUMNS($BP36:CO36)-COUNTIF($BP36:CO36,"")+1),"") ->  | CQ36: =IF(CQ$14>=$AT36,INDEX(Break23,COLUMNS($BP36:CP36)-COUNTIF($BP36:CP36,"")+1),"") ->  | CR36: =IF(CR$14>=$AT36,INDEX(Break23,COLUMNS($BP36:CQ36)-COUNTIF($BP36:CQ36,"")+1),"") ->  | CS36: =IF(CS$14>=$AT36,INDEX(Break23,COLUMNS($BP36:CR36)-COUNTIF($BP36:CR36,"")+1),"") ->  | CT36: =IF(CT$14>=$AT36,INDEX(Break23,COLUMNS($BP36:CS36)-COUNTIF($BP36:CS36,"")+1),"") ->  | CU36: =IF(CU$14>=$AT36,INDEX(Break23,COLUMNS($BP36:CT36)-COUNTIF($BP36:CT36,"")+1),"") ->  | CV36: =IF(CV$14>=$AT36,INDEX(Break23,COLUMNS($BP36:CU36)-COUNTIF($BP36:CU36,"")+1),"") ->  | CW36: =IF(CW$14>=$AT36,INDEX(Break23,COLUMNS($BP36:CV36)-COUNTIF($BP36:CV36,"")+1),"") ->  | CX36: =IF(CX$14>=$AT36,INDEX(Break23,COLUMNS($BP36:CW36)-COUNTIF($BP36:CW36,"")+1),"") ->  | CY36: =IF(CY$14>=$AT36,INDEX(Break23,COLUMNS($BP36:CX36)-COUNTIF($BP36:CX36,"")+1),"") ->  | CZ36: =IF(CZ$14>=$AT36,INDEX(Break23,COLUMNS($BP36:CY36)-COUNTIF($BP36:CY36,"")+1),"") ->  | DA36: =IF(DA$14>=$AT36,INDEX(Break23,COLUMNS($BP36:CZ36)-COUNTIF($BP36:CZ36,"")+1),"") ->  | DB36: =IF(DB$14>=$AT36,INDEX(Break23,COLUMNS($BP36:DA36)-COUNTIF($BP36:DA36,"")+1),"") ->  | DC36: =IF(DC$14>=$AT36,INDEX(Break23,COLUMNS($BP36:DB36)-COUNTIF($BP36:DB36,"")+1),"") ->  | DD36: =IF(DD$14>=$AT36,INDEX(Break23,COLUMNS($BP36:DC36)-COUNTIF($BP36:DC36,"")+1),"") ->  | DE36: =IF(DE$14>=$AT36,INDEX(Break23,COLUMNS($BP36:DD36)-COUNTIF($BP36:DD36,"")+1),"") ->  | DF36: =IF(DF$14>=$AT36,INDEX(Break23,COLUMNS($BP36:DE36)-COUNTIF($BP36:DE36,"")+1),"") ->  | DG36: =IF(DG$14>=$AT36,INDEX(Break23,COLUMNS($BP36:DF36)-COUNTIF($BP36:DF36,"")+1),"") ->  | DH36: =IF(DH$14>=$AT36,INDEX(Break23,COLUMNS($BP36:DG36)-COUNTIF($BP36:DG36,"")+1),"") ->  | DI36: =IF(DI$14>=$AT36,INDEX(Break23,COLUMNS($BP36:DH36)-COUNTIF($BP36:DH36,"")+1),"") ->  | DJ36: =IF(DJ$14>=$AT36,INDEX(Break23,COLUMNS($BP36:DI36)-COUNTIF($BP36:DI36,"")+1),"") ->  | DK36: =IF(DK$14>=$AT36,INDEX(Break23,COLUMNS($BP36:DJ36)-COUNTIF($BP36:DJ36,"")+1),"") ->  | DL36: =IF(DL$14>=$AT36,INDEX(Break23,COLUMNS($BP36:DK36)-COUNTIF($BP36:DK36,"")+1),"") ->  | DM36: =IF(DM$14>=$AT36,INDEX(Break23,COLUMNS($BP36:DL36)-COUNTIF($BP36:DL36,"")+1),"") ->  | DN36: =IF(DN$14>=$AT36,INDEX(Break23,COLUMNS($BP36:DM36)-COUNTIF($BP36:DM36,"")+1),"") ->  | DO36: =IF(DO$14>=$AT36,INDEX(Break23,COLUMNS($BP36:DN36)-COUNTIF($BP36:DN36,"")+1),"") ->  | DP36: =IF(DP$14>=$AT36,INDEX(Break23,COLUMNS($BP36:DO36)-COUNTIF($BP36:DO36,"")+1),"") ->  | DQ36: =IF(DQ$14>=$AT36,INDEX(Break23,COLUMNS($BP36:DP36)-COUNTIF($BP36:DP36,"")+1),"") ->  | DR36: =IF(DR$14>=$AT36,INDEX(Break23,COLUMNS($BP36:DQ36)-COUNTIF($BP36:DQ36,"")+1),"") ->  | DS36: =IF(DS$14>=$AT36,INDEX(Break23,COLUMNS($BP36:DR36)-COUNTIF($BP36:DR36,"")+1),"") ->  | DT36: =IF(DT$14>=$AT36,INDEX(Break23,COLUMNS($BP36:DS36)-COUNTIF($BP36:DS36,"")+1),"") ->  | DU36: =IF(DU$14>=$AT36,INDEX(Break23,COLUMNS($BP36:DT36)-COUNTIF($BP36:DT36,"")+1),"") ->  | DV36: =IF(DV$14>=$AT36,INDEX(Break23,COLUMNS($BP36:DU36)-COUNTIF($BP36:DU36,"")+1),"") ->  | DW36: =IF(DW$14>=$AT36,INDEX(Break23,COLUMNS($BP36:DV36)-COUNTIF($BP36:DV36,"")+1),"") ->  | DX36: =IF(DX$14>=$AT36,INDEX(Break23,COLUMNS($BP36:DW36)-COUNTIF($BP36:DW36,"")+1),"") ->  | DY36: =IF(DY$14>=$AT36,INDEX(Break23,COLUMNS($BP36:DX36)-COUNTIF($BP36:DX36,"")+1),"") ->  | DZ36: =IF(DZ$14>=$AT36,INDEX(Break23,COLUMNS($BP36:DY36)-COUNTIF($BP36:DY36,"")+1),"") ->  | EA36: =IF(EA$14>=$AT36,INDEX(Break23,COLUMNS($BP36:DZ36)-COUNTIF($BP36:DZ36,"")+1),"") ->  | EB36: =IF(EB$14>=$AT36,INDEX(Break23,COLUMNS($BP36:EA36)-COUNTIF($BP36:EA36,"")+1),"") ->  | EC36: =IF(EC$14>=$AT36,INDEX(Break23,COLUMNS($BP36:EB36)-COUNTIF($BP36:EB36,"")+1),"") ->  | ED36: =IF(ED$14>=$AT36,INDEX(Break23,COLUMNS($BP36:EC36)-COUNTIF($BP36:EC36,"")+1),"") ->  | EE36: =IF(EE$14>=$AT36,INDEX(Break23,COLUMNS($BP36:ED36)-COUNTIF($BP36:ED36,"")+1),"") ->  | EF36: =IF(EF$14>=$AT36,INDEX(Break23,COLUMNS($BP36:EE36)-COUNTIF($BP36:EE36,"")+1),"") ->  | EG36: =IF(EG$14>=$AT36,INDEX(Break23,COLUMNS($BP36:EF36)-COUNTIF($BP36:EF36,"")+1),"") ->  | EH36: =IF(EH$14>=$AT36,INDEX(Break23,COLUMNS($BP36:EG36)-COUNTIF($BP36:EG36,"")+1),"") ->  | EI36: =IF(EI$14>=$AT36,INDEX(Break23,COLUMNS($BP36:EH36)-COUNTIF($BP36:EH36,"")+1),"") ->  | EK36: 2025 | EL36: 25 | EM36: 25 | EP36: 25 | EQ36: 25 | ER36: 25 | ES36: 25 | ET36: 25 | EU36: 25 | EV36: 25 | EW36: 25 | EX36: 25 | EY36: 25 | EZ36: 25 | FA36: 25 | FB36: 25 | FC36: 25 | FD36: 25 | FE36: 25
B37: Project 23 | C37: Project 23 | D37: Company 23 | E37: Transport | F37: 50 | G37: Planning | H37: 2025 | I37: 1 | J37: 4 | K37: 40 | L37: 2026 | M37: 25 | N37: 0 | O37: 1 | P37: 0 | AO37: =B37 -> Project 23 | AP37: ='Master Sheet - Project Info'!$H37 -> 2025 | AQ37: ='Master Sheet - Project Info'!$I37 -> 1 | AR37: ='Master Sheet - Project Info'!$J37 -> 4 | AS37: ='Master Sheet - Project Info'!$K37 -> 40 | AT37: =IF(OR(AP37="",AQ37=""),"",($AP37+($AQ37-1)/4)) -> 2025 | AU37: 28 | AV37: 40 | AW37: 40 | AX37: 28 | AY37: 0 | AZ37: 0 | BA37: 0 | BB37: 0 | BC37: 0 | BD37: 0 | BE37: 0 | BF37: 0 | BG37: 0 | BH37: 0 | BI37: 0 | BJ37: 0 | BK37: 0 | BL37: 0 | BM37: 0 | BN37: 0 | BP37: =IF($BP$14>=AT37,INDEX(Break24,1),"") ->  | BQ37: =IF(BQ$14>=$AT37,INDEX(Break24,COLUMNS($BP37:BP37)-COUNTIF($BP37:BP37,"")+1),"") ->  | BR37: =IF(BR$14>=$AT37,INDEX(Break24,COLUMNS($BP37:BQ37)-COUNTIF($BP37:BQ37,"")+1),"") ->  | BS37: =IF(BS$14>=$AT37,INDEX(Break24,COLUMNS($BP37:BR37)-COUNTIF($BP37:BR37,"")+1),"") ->  | BT37: =IF(BT$14>=$AT37,INDEX(Break24,COLUMNS($BP37:BS37)-COUNTIF($BP37:BS37,"")+1),"") ->  | BU37: =IF(BU$14>=$AT37,INDEX(Break24,COLUMNS($BP37:BT37)-COUNTIF($BP37:BT37,"")+1),"") ->  | BV37: =IF(BV$14>=$AT37,INDEX(Break24,COLUMNS($BP37:BU37)-COUNTIF($BP37:BU37,"")+1),"") ->  | BW37: =IF(BW$14>=$AT37,INDEX(Break24,COLUMNS($BP37:BV37)-COUNTIF($BP37:BV37,"")+1),"") ->  | BX37: =IF(BX$14>=$AT37,INDEX(Break24,COLUMNS($BP37:BW37)-COUNTIF($BP37:BW37,"")+1),"") -> 28 | BY37: =IF(BY$14>=$AT37,INDEX(Break24,COLUMNS($BP37:BX37)-COUNTIF($BP37:BX37,"")+1),"") -> 40 | BZ37: =IF(BZ$14>=$AT37,INDEX(Break24,COLUMNS($BP37:BY37)-COUNTIF($BP37:BY37,"")+1),"") -> 40 | CA37: =IF(CA$14>=$AT37,INDEX(Break24,COLUMNS($BP37:BZ37)-COUNTIF($BP37:BZ37,"")+1),"") -> 28 | CB37: =IF(CB$14>=$AT37,INDEX(Break24,COLUMNS($BP37:CA37)-COUNTIF($BP37:CA37,"")+1),"") -> 0 | CC37: =IF(CC$14>=$AT37,INDEX(Break24,COLUMNS($BP37:CB37)-COUNTIF($BP37:CB37,"")+1),"") -> 0 | CD37: =IF(CD$14>=$AT37,INDEX(Break24,COLUMNS($BP37:CC37)-COUNTIF($BP37:CC37,"")+1),"") -> 0 | CE37: =IF(CE$14>=$AT37,INDEX(Break24,COLUMNS($BP37:CD37)-COUNTIF($BP37:CD37,"")+1),"") -> 0 | CF37: =IF(CF$14>=$AT37,INDEX(Break24,COLUMNS($BP37:CE37)-COUNTIF($BP37:CE37,"")+1),"") -> 0 | CG37: =IF(CG$14>=$AT37,INDEX(Break24,COLUMNS($BP37:CF37)-COUNTIF($BP37:CF37,"")+1),"") -> 0 | CH37: =IF(CH$14>=$AT37,INDEX(Break24,COLUMNS($BP37:CG37)-COUNTIF($BP37:CG37,"")+1),"") -> 0 | CI37: =IF(CI$14>=$AT37,INDEX(Break24,COLUMNS($BP37:CH37)-COUNTIF($BP37:CH37,"")+1),"") -> 0 | CJ37: =IF(CJ$14>=$AT37,INDEX(Break24,COLUMNS($BP37:CI37)-COUNTIF($BP37:CI37,"")+1),"") -> 0 | CK37: =IF(CK$14>=$AT37,INDEX(Break24,COLUMNS($BP37:CJ37)-COUNTIF($BP37:CJ37,"")+1),"") -> 0 | CL37: =IF(CL$14>=$AT37,INDEX(Break24,COLUMNS($BP37:CK37)-COUNTIF($BP37:CK37,"")+1),"") -> 0 | CM37: =IF(CM$14>=$AT37,INDEX(Break24,COLUMNS($BP37:CL37)-COUNTIF($BP37:CL37,"")+1),"") -> 0 | CN37: =IF(CN$14>=$AT37,INDEX(Break24,COLUMNS($BP37:CM37)-COUNTIF($BP37:CM37,"")+1),"") -> 0 | CO37: =IF(CO$14>=$AT37,INDEX(Break24,COLUMNS($BP37:CN37)-COUNTIF($BP37:CN37,"")+1),"") -> 0 | CP37: =IF(CP$14>=$AT37,INDEX(Break24,COLUMNS($BP37:CO37)-COUNTIF($BP37:CO37,"")+1),"") -> 0 | CQ37: =IF(CQ$14>=$AT37,INDEX(Break24,COLUMNS($BP37:CP37)-COUNTIF($BP37:CP37,"")+1),"") -> 0 | CR37: =IF(CR$14>=$AT37,INDEX(Break24,COLUMNS($BP37:CQ37)-COUNTIF($BP37:CQ37,"")+1),"") ->  | CS37: =IF(CS$14>=$AT37,INDEX(Break24,COLUMNS($BP37:CR37)-COUNTIF($BP37:CR37,"")+1),"") ->  | CT37: =IF(CT$14>=$AT37,INDEX(Break24,COLUMNS($BP37:CS37)-COUNTIF($BP37:CS37,"")+1),"") ->  | CU37: =IF(CU$14>=$AT37,INDEX(Break24,COLUMNS($BP37:CT37)-COUNTIF($BP37:CT37,"")+1),"") ->  | CV37: =IF(CV$14>=$AT37,INDEX(Break24,COLUMNS($BP37:CU37)-COUNTIF($BP37:CU37,"")+1),"") ->  | CW37: =IF(CW$14>=$AT37,INDEX(Break24,COLUMNS($BP37:CV37)-COUNTIF($BP37:CV37,"")+1),"") ->  | CX37: =IF(CX$14>=$AT37,INDEX(Break24,COLUMNS($BP37:CW37)-COUNTIF($BP37:CW37,"")+1),"") ->  | CY37: =IF(CY$14>=$AT37,INDEX(Break24,COLUMNS($BP37:CX37)-COUNTIF($BP37:CX37,"")+1),"") ->  | CZ37: =IF(CZ$14>=$AT37,INDEX(Break24,COLUMNS($BP37:CY37)-COUNTIF($BP37:CY37,"")+1),"") ->  | DA37: =IF(DA$14>=$AT37,INDEX(Break24,COLUMNS($BP37:CZ37)-COUNTIF($BP37:CZ37,"")+1),"") ->  | DB37: =IF(DB$14>=$AT37,INDEX(Break24,COLUMNS($BP37:DA37)-COUNTIF($BP37:DA37,"")+1),"") ->  | DC37: =IF(DC$14>=$AT37,INDEX(Break24,COLUMNS($BP37:DB37)-COUNTIF($BP37:DB37,"")+1),"") ->  | DD37: =IF(DD$14>=$AT37,INDEX(Break24,COLUMNS($BP37:DC37)-COUNTIF($BP37:DC37,"")+1),"") ->  | DE37: =IF(DE$14>=$AT37,INDEX(Break24,COLUMNS($BP37:DD37)-COUNTIF($BP37:DD37,"")+1),"") ->  | DF37: =IF(DF$14>=$AT37,INDEX(Break24,COLUMNS($BP37:DE37)-COUNTIF($BP37:DE37,"")+1),"") ->  | DG37: =IF(DG$14>=$AT37,INDEX(Break24,COLUMNS($BP37:DF37)-COUNTIF($BP37:DF37,"")+1),"") ->  | DH37: =IF(DH$14>=$AT37,INDEX(Break24,COLUMNS($BP37:DG37)-COUNTIF($BP37:DG37,"")+1),"") ->  | DI37: =IF(DI$14>=$AT37,INDEX(Break24,COLUMNS($BP37:DH37)-COUNTIF($BP37:DH37,"")+1),"") ->  | DJ37: =IF(DJ$14>=$AT37,INDEX(Break24,COLUMNS($BP37:DI37)-COUNTIF($BP37:DI37,"")+1),"") ->  | DK37: =IF(DK$14>=$AT37,INDEX(Break24,COLUMNS($BP37:DJ37)-COUNTIF($BP37:DJ37,"")+1),"") ->  | DL37: =IF(DL$14>=$AT37,INDEX(Break24,COLUMNS($BP37:DK37)-COUNTIF($BP37:DK37,"")+1),"") ->  | DM37: =IF(DM$14>=$AT37,INDEX(Break24,COLUMNS($BP37:DL37)-COUNTIF($BP37:DL37,"")+1),"") ->  | DN37: =IF(DN$14>=$AT37,INDEX(Break24,COLUMNS($BP37:DM37)-COUNTIF($BP37:DM37,"")+1),"") ->  | DO37: =IF(DO$14>=$AT37,INDEX(Break24,COLUMNS($BP37:DN37)-COUNTIF($BP37:DN37,"")+1),"") ->  | DP37: =IF(DP$14>=$AT37,INDEX(Break24,COLUMNS($BP37:DO37)-COUNTIF($BP37:DO37,"")+1),"") ->  | DQ37: =IF(DQ$14>=$AT37,INDEX(Break24,COLUMNS($BP37:DP37)-COUNTIF($BP37:DP37,"")+1),"") ->  | DR37: =IF(DR$14>=$AT37,INDEX(Break24,COLUMNS($BP37:DQ37)-COUNTIF($BP37:DQ37,"")+1),"") ->  | DS37: =IF(DS$14>=$AT37,INDEX(Break24,COLUMNS($BP37:DR37)-COUNTIF($BP37:DR37,"")+1),"") ->  | DT37: =IF(DT$14>=$AT37,INDEX(Break24,COLUMNS($BP37:DS37)-COUNTIF($BP37:DS37,"")+1),"") ->  | DU37: =IF(DU$14>=$AT37,INDEX(Break24,COLUMNS($BP37:DT37)-COUNTIF($BP37:DT37,"")+1),"") ->  | DV37: =IF(DV$14>=$AT37,INDEX(Break24,COLUMNS($BP37:DU37)-COUNTIF($BP37:DU37,"")+1),"") ->  | DW37: =IF(DW$14>=$AT37,INDEX(Break24,COLUMNS($BP37:DV37)-COUNTIF($BP37:DV37,"")+1),"") ->  | DX37: =IF(DX$14>=$AT37,INDEX(Break24,COLUMNS($BP37:DW37)-COUNTIF($BP37:DW37,"")+1),"") ->  | DY37: =IF(DY$14>=$AT37,INDEX(Break24,COLUMNS($BP37:DX37)-COUNTIF($BP37:DX37,"")+1),"") ->  | DZ37: =IF(DZ$14>=$AT37,INDEX(Break24,COLUMNS($BP37:DY37)-COUNTIF($BP37:DY37,"")+1),"") ->  | EA37: =IF(EA$14>=$AT37,INDEX(Break24,COLUMNS($BP37:DZ37)-COUNTIF($BP37:DZ37,"")+1),"") ->  | EB37: =IF(EB$14>=$AT37,INDEX(Break24,COLUMNS($BP37:EA37)-COUNTIF($BP37:EA37,"")+1),"") ->  | EC37: =IF(EC$14>=$AT37,INDEX(Break24,COLUMNS($BP37:EB37)-COUNTIF($BP37:EB37,"")+1),"") ->  | ED37: =IF(ED$14>=$AT37,INDEX(Break24,COLUMNS($BP37:EC37)-COUNTIF($BP37:EC37,"")+1),"") ->  | EE37: =IF(EE$14>=$AT37,INDEX(Break24,COLUMNS($BP37:ED37)-COUNTIF($BP37:ED37,"")+1),"") ->  | EF37: =IF(EF$14>=$AT37,INDEX(Break24,COLUMNS($BP37:EE37)-COUNTIF($BP37:EE37,"")+1),"") ->  | EG37: =IF(EG$14>=$AT37,INDEX(Break24,COLUMNS($BP37:EF37)-COUNTIF($BP37:EF37,"")+1),"") ->  | EH37: =IF(EH$14>=$AT37,INDEX(Break24,COLUMNS($BP37:EG37)-COUNTIF($BP37:EG37,"")+1),"") ->  | EI37: =IF(EI$14>=$AT37,INDEX(Break24,COLUMNS($BP37:EH37)-COUNTIF($BP37:EH37,"")+1),"") ->  | EK37: 2026 | EL37: 25 | EM37: 0 | EQ37: 0 | ER37: 0 | ES37: 0 | ET37: 0 | EU37: 0 | EV37: 0 | EW37: 0 | EX37: 0 | EY37: 0 | EZ37: 0 | FA37: 0 | FB37: 0 | FC37: 0 | FD37: 0 | FE37: 0
B38: Project 24 | C38: Project 24 | D38: Company 24 | E38: Infrastructure | F38: 9 | G38: Approved | H38: 2024 | I38: 1 | J38: 4 | K38: 30 | L38: 2025 | M38: 25 | N38: 15 | O38: 0.01 | P38: 0.99 | AO38: Project 24 | AP38: ='Master Sheet - Project Info'!$H38 -> 2024 | AQ38: ='Master Sheet - Project Info'!$I38 -> 1 | AR38: ='Master Sheet - Project Info'!$J38 -> 4 | AS38: ='Master Sheet - Project Info'!$K38 -> 30 | AT38: 2024 | AU38: 21 | AV38: 30 | AW38: 30 | AX38: 21 | AY38: 0 | AZ38: 0 | BA38: 0 | BB38: 0 | BC38: 0 | BD38: 0 | BE38: 0 | BF38: 0 | BG38: 0 | BH38: 0 | BI38: 0 | BJ38: 0 | BK38: 0 | BL38: 0 | BM38: 0 | BN38: 0 | BP38: =IF($BP$14>=AT38,INDEX(Break25,1),"") ->  | BQ38: =IF(BQ$14>=$AT38,INDEX(Break25,COLUMNS($BP38:BP38)-COUNTIF($BP38:BP38,"")+1),"") ->  | BR38: =IF(BR$14>=$AT38,INDEX(Break25,COLUMNS($BP38:BQ38)-COUNTIF($BP38:BQ38,"")+1),"") ->  | BS38: =IF(BS$14>=$AT38,INDEX(Break25,COLUMNS($BP38:BR38)-COUNTIF($BP38:BR38,"")+1),"") ->  | BT38: =IF(BT$14>=$AT38,INDEX(Break25,COLUMNS($BP38:BS38)-COUNTIF($BP38:BS38,"")+1),"") -> 21 | BU38: =IF(BU$14>=$AT38,INDEX(Break25,COLUMNS($BP38:BT38)-COUNTIF($BP38:BT38,"")+1),"") -> 30 | BV38: =IF(BV$14>=$AT38,INDEX(Break25,COLUMNS($BP38:BU38)-COUNTIF($BP38:BU38,"")+1),"") -> 30 | BW38: =IF(BW$14>=$AT38,INDEX(Break25,COLUMNS($BP38:BV38)-COUNTIF($BP38:BV38,"")+1),"") -> 21 | BX38: =IF(BX$14>=$AT38,INDEX(Break25,COLUMNS($BP38:BW38)-COUNTIF($BP38:BW38,"")+1),"") -> 0 | BY38: =IF(BY$14>=$AT38,INDEX(Break25,COLUMNS($BP38:BX38)-COUNTIF($BP38:BX38,"")+1),"") -> 0 | BZ38: =IF(BZ$14>=$AT38,INDEX(Break25,COLUMNS($BP38:BY38)-COUNTIF($BP38:BY38,"")+1),"") -> 0 | CA38: =IF(CA$14>=$AT38,INDEX(Break25,COLUMNS($BP38:BZ38)-COUNTIF($BP38:BZ38,"")+1),"") -> 0 | CB38: =IF(CB$14>=$AT38,INDEX(Break25,COLUMNS($BP38:CA38)-COUNTIF($BP38:CA38,"")+1),"") -> 0 | CC38: =IF(CC$14>=$AT38,INDEX(Break25,COLUMNS($BP38:CB38)-COUNTIF($BP38:CB38,"")+1),"") -> 0 | CD38: =IF(CD$14>=$AT38,INDEX(Break25,COLUMNS($BP38:CC38)-COUNTIF($BP38:CC38,"")+1),"") -> 0 | CE38: =IF(CE$14>=$AT38,INDEX(Break25,COLUMNS($BP38:CD38)-COUNTIF($BP38:CD38,"")+1),"") -> 0 | CF38: =IF(CF$14>=$AT38,INDEX(Break25,COLUMNS($BP38:CE38)-COUNTIF($BP38:CE38,"")+1),"") -> 0 | CG38: =IF(CG$14>=$AT38,INDEX(Break25,COLUMNS($BP38:CF38)-COUNTIF($BP38:CF38,"")+1),"") -> 0 | CH38: =IF(CH$14>=$AT38,INDEX(Break25,COLUMNS($BP38:CG38)-COUNTIF($BP38:CG38,"")+1),"") -> 0 | CI38: =IF(CI$14>=$AT38,INDEX(Break25,COLUMNS($BP38:CH38)-COUNTIF($BP38:CH38,"")+1),"") -> 0 | CJ38: =IF(CJ$14>=$AT38,INDEX(Break25,COLUMNS($BP38:CI38)-COUNTIF($BP38:CI38,"")+1),"") -> 0 | CK38: =IF(CK$14>=$AT38,INDEX(Break25,COLUMNS($BP38:CJ38)-COUNTIF($BP38:CJ38,"")+1),"") -> 0 | CL38: =IF(CL$14>=$AT38,INDEX(Break25,COLUMNS($BP38:CK38)-COUNTIF($BP38:CK38,"")+1),"") -> 0 | CM38: =IF(CM$14>=$AT38,INDEX(Break25,COLUMNS($BP38:CL38)-COUNTIF($BP38:CL38,"")+1),"") -> 0 | CN38: =IF(CN$14>=$AT38,INDEX(Break25,COLUMNS($BP38:CM38)-COUNTIF($BP38:CM38,"")+1),"") ->  | CO38: =IF(CO$14>=$AT38,INDEX(Break25,COLUMNS($BP38:CN38)-COUNTIF($BP38:CN38,"")+1),"") ->  | CP38: =IF(CP$14>=$AT38,INDEX(Break25,COLUMNS($BP38:CO38)-COUNTIF($BP38:CO38,"")+1),"") ->  | CQ38: =IF(CQ$14>=$AT38,INDEX(Break25,COLUMNS($BP38:CP38)-COUNTIF($BP38:CP38,"")+1),"") ->  | CR38: =IF(CR$14>=$AT38,INDEX(Break25,COLUMNS($BP38:CQ38)-COUNTIF($BP38:CQ38,"")+1),"") ->  | CS38: =IF(CS$14>=$AT38,INDEX(Break25,COLUMNS($BP38:CR38)-COUNTIF($BP38:CR38,"")+1),"") ->  | CT38: =IF(CT$14>=$AT38,INDEX(Break25,COLUMNS($BP38:CS38)-COUNTIF($BP38:CS38,"")+1),"") ->  | CU38: =IF(CU$14>=$AT38,INDEX(Break25,COLUMNS($BP38:CT38)-COUNTIF($BP38:CT38,"")+1),"") ->  | CV38: =IF(CV$14>=$AT38,INDEX(Break25,COLUMNS($BP38:CU38)-COUNTIF($BP38:CU38,"")+1),"") ->  | CW38: =IF(CW$14>=$AT38,INDEX(Break25,COLUMNS($BP38:CV38)-COUNTIF($BP38:CV38,"")+1),"") ->  | CX38: =IF(CX$14>=$AT38,INDEX(Break25,COLUMNS($BP38:CW38)-COUNTIF($BP38:CW38,"")+1),"") ->  | CY38: =IF(CY$14>=$AT38,INDEX(Break25,COLUMNS($BP38:CX38)-COUNTIF($BP38:CX38,"")+1),"") ->  | CZ38: =IF(CZ$14>=$AT38,INDEX(Break25,COLUMNS($BP38:CY38)-COUNTIF($BP38:CY38,"")+1),"") ->  | DA38: =IF(DA$14>=$AT38,INDEX(Break25,COLUMNS($BP38:CZ38)-COUNTIF($BP38:CZ38,"")+1),"") ->  | DB38: =IF(DB$14>=$AT38,INDEX(Break25,COLUMNS($BP38:DA38)-COUNTIF($BP38:DA38,"")+1),"") ->  | DC38: =IF(DC$14>=$AT38,INDEX(Break25,COLUMNS($BP38:DB38)-COUNTIF($BP38:DB38,"")+1),"") ->  | DD38: =IF(DD$14>=$AT38,INDEX(Break25,COLUMNS($BP38:DC38)-COUNTIF($BP38:DC38,"")+1),"") ->  | DE38: =IF(DE$14>=$AT38,INDEX(Break25,COLUMNS($BP38:DD38)-COUNTIF($BP38:DD38,"")+1),"") ->  | DF38: =IF(DF$14>=$AT38,INDEX(Break25,COLUMNS($BP38:DE38)-COUNTIF($BP38:DE38,"")+1),"") ->  | DG38: =IF(DG$14>=$AT38,INDEX(Break25,COLUMNS($BP38:DF38)-COUNTIF($BP38:DF38,"")+1),"") ->  | DH38: =IF(DH$14>=$AT38,INDEX(Break25,COLUMNS($BP38:DG38)-COUNTIF($BP38:DG38,"")+1),"") ->  | DI38: =IF(DI$14>=$AT38,INDEX(Break25,COLUMNS($BP38:DH38)-COUNTIF($BP38:DH38,"")+1),"") ->  | DJ38: =IF(DJ$14>=$AT38,INDEX(Break25,COLUMNS($BP38:DI38)-COUNTIF($BP38:DI38,"")+1),"") ->  | DK38: =IF(DK$14>=$AT38,INDEX(Break25,COLUMNS($BP38:DJ38)-COUNTIF($BP38:DJ38,"")+1),"") ->  | DL38: =IF(DL$14>=$AT38,INDEX(Break25,COLUMNS($BP38:DK38)-COUNTIF($BP38:DK38,"")+1),"") ->  | DM38: =IF(DM$14>=$AT38,INDEX(Break25,COLUMNS($BP38:DL38)-COUNTIF($BP38:DL38,"")+1),"") ->  | DN38: =IF(DN$14>=$AT38,INDEX(Break25,COLUMNS($BP38:DM38)-COUNTIF($BP38:DM38,"")+1),"") ->  | DO38: =IF(DO$14>=$AT38,INDEX(Break25,COLUMNS($BP38:DN38)-COUNTIF($BP38:DN38,"")+1),"") ->  | DP38: =IF(DP$14>=$AT38,INDEX(Break25,COLUMNS($BP38:DO38)-COUNTIF($BP38:DO38,"")+1),"") ->  | DQ38: =IF(DQ$14>=$AT38,INDEX(Break25,COLUMNS($BP38:DP38)-COUNTIF($BP38:DP38,"")+1),"") ->  | DR38: =IF(DR$14>=$AT38,INDEX(Break25,COLUMNS($BP38:DQ38)-COUNTIF($BP38:DQ38,"")+1),"") ->  | DS38: =IF(DS$14>=$AT38,INDEX(Break25,COLUMNS($BP38:DR38)-COUNTIF($BP38:DR38,"")+1),"") ->  | DT38: =IF(DT$14>=$AT38,INDEX(Break25,COLUMNS($BP38:DS38)-COUNTIF($BP38:DS38,"")+1),"") ->  | DU38: =IF(DU$14>=$AT38,INDEX(Break25,COLUMNS($BP38:DT38)-COUNTIF($BP38:DT38,"")+1),"") ->  | DV38: =IF(DV$14>=$AT38,INDEX(Break25,COLUMNS($BP38:DU38)-COUNTIF($BP38:DU38,"")+1),"") ->  | DW38: =IF(DW$14>=$AT38,INDEX(Break25,COLUMNS($BP38:DV38)-COUNTIF($BP38:DV38,"")+1),"") ->  | DX38: =IF(DX$14>=$AT38,INDEX(Break25,COLUMNS($BP38:DW38)-COUNTIF($BP38:DW38,"")+1),"") ->  | DY38: =IF(DY$14>=$AT38,INDEX(Break25,COLUMNS($BP38:DX38)-COUNTIF($BP38:DX38,"")+1),"") ->  | DZ38: =IF(DZ$14>=$AT38,INDEX(Break25,COLUMNS($BP38:DY38)-COUNTIF($BP38:DY38,"")+1),"") ->  | EA38: =IF(EA$14>=$AT38,INDEX(Break25,COLUMNS($BP38:DZ38)-COUNTIF($BP38:DZ38,"")+1),"") ->  | EB38: =IF(EB$14>=$AT38,INDEX(Break25,COLUMNS($BP38:EA38)-COUNTIF($BP38:EA38,"")+1),"") ->  | EC38: =IF(EC$14>=$AT38,INDEX(Break25,COLUMNS($BP38:EB38)-COUNTIF($BP38:EB38,"")+1),"") ->  | ED38: =IF(ED$14>=$AT38,INDEX(Break25,COLUMNS($BP38:EC38)-COUNTIF($BP38:EC38,"")+1),"") ->  | EE38: =IF(EE$14>=$AT38,INDEX(Break25,COLUMNS($BP38:ED38)-COUNTIF($BP38:ED38,"")+1),"") ->  | EF38: =IF(EF$14>=$AT38,INDEX(Break25,COLUMNS($BP38:EE38)-COUNTIF($BP38:EE38,"")+1),"") ->  | EG38: =IF(EG$14>=$AT38,INDEX(Break25,COLUMNS($BP38:EF38)-COUNTIF($BP38:EF38,"")+1),"") ->  | EH38: =IF(EH$14>=$AT38,INDEX(Break25,COLUMNS($BP38:EG38)-COUNTIF($BP38:EG38,"")+1),"") ->  | EI38: =IF(EI$14>=$AT38,INDEX(Break25,COLUMNS($BP38:EH38)-COUNTIF($BP38:EH38,"")+1),"") ->  | EK38: 2025 | EL38: 25 | EM38: 15 | EP38: 15 | EQ38: 15 | ER38: 15 | ES38: 15 | ET38: 15 | EU38: 15 | EV38: 15 | EW38: 15 | EX38: 15 | EY38: 15 | EZ38: 15 | FA38: 15 | FB38: 15 | FC38: 15 | FD38: 15 | FE38: 15
B39: Project 25 | C39: Project 25 | D39: Company 25 | E39: Infrastructure | F39: 4 | G39: Planning | H39: 2025 | I39: 1 | J39: 4 | K39: 25 | L39: 2026 | M39: 25 | N39: 0 | O39: 0.01 | P39: 0.99 | AO39: Project 25 | AP39: ='Master Sheet - Project Info'!$H39 -> 2025 | AQ39: ='Master Sheet - Project Info'!$I39 -> 1 | AR39: ='Master Sheet - Project Info'!$J39 -> 4 | AS39: ='Master Sheet - Project Info'!$K39 -> 25 | AT39: 2025 | AU39: 17.5 | AV39: 25 | AW39: 25 | AX39: 17.5 | AY39: 0 | AZ39: 0 | BA39: 0 | BB39: 0 | BC39: 0 | BD39: 0 | BE39: 0 | BF39: 0 | BG39: 0 | BH39: 0 | BI39: 0 | BJ39: 0 | BK39: 0 | BL39: 0 | BM39: 0 | BN39: 0 | BP39: =IF($BP$14>=AT39,INDEX(Break26,1),"") ->  | BQ39: =IF(BQ$14>=$AT39,INDEX(Break26,COLUMNS($BP39:BP39)-COUNTIF($BP39:BP39,"")+1),"") ->  | BR39: =IF(BR$14>=$AT39,INDEX(Break26,COLUMNS($BP39:BQ39)-COUNTIF($BP39:BQ39,"")+1),"") ->  | BS39: =IF(BS$14>=$AT39,INDEX(Break26,COLUMNS($BP39:BR39)-COUNTIF($BP39:BR39,"")+1),"") ->  | BT39: =IF(BT$14>=$AT39,INDEX(Break26,COLUMNS($BP39:BS39)-COUNTIF($BP39:BS39,"")+1),"") ->  | BU39: =IF(BU$14>=$AT39,INDEX(Break26,COLUMNS($BP39:BT39)-COUNTIF($BP39:BT39,"")+1),"") ->  | BV39: =IF(BV$14>=$AT39,INDEX(Break26,COLUMNS($BP39:BU39)-COUNTIF($BP39:BU39,"")+1),"") ->  | BW39: =IF(BW$14>=$AT39,INDEX(Break26,COLUMNS($BP39:BV39)-COUNTIF($BP39:BV39,"")+1),"") ->  | BX39: =IF(BX$14>=$AT39,INDEX(Break26,COLUMNS($BP39:BW39)-COUNTIF($BP39:BW39,"")+1),"") -> 17.5 | BY39: =IF(BY$14>=$AT39,INDEX(Break26,COLUMNS($BP39:BX39)-COUNTIF($BP39:BX39,"")+1),"") -> 25 | BZ39: =IF(BZ$14>=$AT39,INDEX(Break26,COLUMNS($BP39:BY39)-COUNTIF($BP39:BY39,"")+1),"") -> 25 | CA39: =IF(CA$14>=$AT39,INDEX(Break26,COLUMNS($BP39:BZ39)-COUNTIF($BP39:BZ39,"")+1),"") -> 17.5 | CB39: =IF(CB$14>=$AT39,INDEX(Break26,COLUMNS($BP39:CA39)-COUNTIF($BP39:CA39,"")+1),"") -> 0 | CC39: =IF(CC$14>=$AT39,INDEX(Break26,COLUMNS($BP39:CB39)-COUNTIF($BP39:CB39,"")+1),"") -> 0 | CD39: =IF(CD$14>=$AT39,INDEX(Break26,COLUMNS($BP39:CC39)-COUNTIF($BP39:CC39,"")+1),"") -> 0 | CE39: =IF(CE$14>=$AT39,INDEX(Break26,COLUMNS($BP39:CD39)-COUNTIF($BP39:CD39,"")+1),"") -> 0 | CF39: =IF(CF$14>=$AT39,INDEX(Break26,COLUMNS($BP39:CE39)-COUNTIF($BP39:CE39,"")+1),"") -> 0 | CG39: =IF(CG$14>=$AT39,INDEX(Break26,COLUMNS($BP39:CF39)-COUNTIF($BP39:CF39,"")+1),"") -> 0 | CH39: =IF(CH$14>=$AT39,INDEX(Break26,COLUMNS($BP39:CG39)-COUNTIF($BP39:CG39,"")+1),"") -> 0 | CI39: =IF(CI$14>=$AT39,INDEX(Break26,COLUMNS($BP39:CH39)-COUNTIF($BP39:CH39,"")+1),"") -> 0 | CJ39: =IF(CJ$14>=$AT39,INDEX(Break26,COLUMNS($BP39:CI39)-COUNTIF($BP39:CI39,"")+1),"") -> 0 | CK39: =IF(CK$14>=$AT39,INDEX(Break26,COLUMNS($BP39:CJ39)-COUNTIF($BP39:CJ39,"")+1),"") -> 0 | CL39: =IF(CL$14>=$AT39,INDEX(Break26,COLUMNS($BP39:CK39)-COUNTIF($BP39:CK39,"")+1),"") -> 0 | CM39: =IF(CM$14>=$AT39,INDEX(Break26,COLUMNS($BP39:CL39)-COUNTIF($BP39:CL39,"")+1),"") -> 0 | CN39: =IF(CN$14>=$AT39,INDEX(Break26,COLUMNS($BP39:CM39)-COUNTIF($BP39:CM39,"")+1),"") -> 0 | CO39: =IF(CO$14>=$AT39,INDEX(Break26,COLUMNS($BP39:CN39)-COUNTIF($BP39:CN39,"")+1),"") -> 0 | CP39: =IF(CP$14>=$AT39,INDEX(Break26,COLUMNS($BP39:CO39)-COUNTIF($BP39:CO39,"")+1),"") -> 0 | CQ39: =IF(CQ$14>=$AT39,INDEX(Break26,COLUMNS($BP39:CP39)-COUNTIF($BP39:CP39,"")+1),"") -> 0 | CR39: =IF(CR$14>=$AT39,INDEX(Break26,COLUMNS($BP39:CQ39)-COUNTIF($BP39:CQ39,"")+1),"") ->  | CS39: =IF(CS$14>=$AT39,INDEX(Break26,COLUMNS($BP39:CR39)-COUNTIF($BP39:CR39,"")+1),"") ->  | CT39: =IF(CT$14>=$AT39,INDEX(Break26,COLUMNS($BP39:CS39)-COUNTIF($BP39:CS39,"")+1),"") ->  | CU39: =IF(CU$14>=$AT39,INDEX(Break26,COLUMNS($BP39:CT39)-COUNTIF($BP39:CT39,"")+1),"") ->  | CV39: =IF(CV$14>=$AT39,INDEX(Break26,COLUMNS($BP39:CU39)-COUNTIF($BP39:CU39,"")+1),"") ->  | CW39: =IF(CW$14>=$AT39,INDEX(Break26,COLUMNS($BP39:CV39)-COUNTIF($BP39:CV39,"")+1),"") ->  | CX39: =IF(CX$14>=$AT39,INDEX(Break26,COLUMNS($BP39:CW39)-COUNTIF($BP39:CW39,"")+1),"") ->  | CY39: =IF(CY$14>=$AT39,INDEX(Break26,COLUMNS($BP39:CX39)-COUNTIF($BP39:CX39,"")+1),"") ->  | CZ39: =IF(CZ$14>=$AT39,INDEX(Break26,COLUMNS($BP39:CY39)-COUNTIF($BP39:CY39,"")+1),"") ->  | DA39: =IF(DA$14>=$AT39,INDEX(Break26,COLUMNS($BP39:CZ39)-COUNTIF($BP39:CZ39,"")+1),"") ->  | DB39: =IF(DB$14>=$AT39,INDEX(Break26,COLUMNS($BP39:DA39)-COUNTIF($BP39:DA39,"")+1),"") ->  | DC39: =IF(DC$14>=$AT39,INDEX(Break26,COLUMNS($BP39:DB39)-COUNTIF($BP39:DB39,"")+1),"") ->  | DD39: =IF(DD$14>=$AT39,INDEX(Break26,COLUMNS($BP39:DC39)-COUNTIF($BP39:DC39,"")+1),"") ->  | DE39: =IF(DE$14>=$AT39,INDEX(Break26,COLUMNS($BP39:DD39)-COUNTIF($BP39:DD39,"")+1),"") ->  | DF39: =IF(DF$14>=$AT39,INDEX(Break26,COLUMNS($BP39:DE39)-COUNTIF($BP39:DE39,"")+1),"") ->  | DG39: =IF(DG$14>=$AT39,INDEX(Break26,COLUMNS($BP39:DF39)-COUNTIF($BP39:DF39,"")+1),"") ->  | DH39: =IF(DH$14>=$AT39,INDEX(Break26,COLUMNS($BP39:DG39)-COUNTIF($BP39:DG39,"")+1),"") ->  | DI39: =IF(DI$14>=$AT39,INDEX(Break26,COLUMNS($BP39:DH39)-COUNTIF($BP39:DH39,"")+1),"") ->  | DJ39: =IF(DJ$14>=$AT39,INDEX(Break26,COLUMNS($BP39:DI39)-COUNTIF($BP39:DI39,"")+1),"") ->  | DK39: =IF(DK$14>=$AT39,INDEX(Break26,COLUMNS($BP39:DJ39)-COUNTIF($BP39:DJ39,"")+1),"") ->  | DL39: =IF(DL$14>=$AT39,INDEX(Break26,COLUMNS($BP39:DK39)-COUNTIF($BP39:DK39,"")+1),"") ->  | DM39: =IF(DM$14>=$AT39,INDEX(Break26,COLUMNS($BP39:DL39)-COUNTIF($BP39:DL39,"")+1),"") ->  | DN39: =IF(DN$14>=$AT39,INDEX(Break26,COLUMNS($BP39:DM39)-COUNTIF($BP39:DM39,"")+1),"") ->  | DO39: =IF(DO$14>=$AT39,INDEX(Break26,COLUMNS($BP39:DN39)-COUNTIF($BP39:DN39,"")+1),"") ->  | DP39: =IF(DP$14>=$AT39,INDEX(Break26,COLUMNS($BP39:DO39)-COUNTIF($BP39:DO39,"")+1),"") ->  | DQ39: =IF(DQ$14>=$AT39,INDEX(Break26,COLUMNS($BP39:DP39)-COUNTIF($BP39:DP39,"")+1),"") ->  | DR39: =IF(DR$14>=$AT39,INDEX(Break26,COLUMNS($BP39:DQ39)-COUNTIF($BP39:DQ39,"")+1),"") ->  | DS39: =IF(DS$14>=$AT39,INDEX(Break26,COLUMNS($BP39:DR39)-COUNTIF($BP39:DR39,"")+1),"") ->  | DT39: =IF(DT$14>=$AT39,INDEX(Break26,COLUMNS($BP39:DS39)-COUNTIF($BP39:DS39,"")+1),"") ->  | DU39: =IF(DU$14>=$AT39,INDEX(Break26,COLUMNS($BP39:DT39)-COUNTIF($BP39:DT39,"")+1),"") ->  | DV39: =IF(DV$14>=$AT39,INDEX(Break26,COLUMNS($BP39:DU39)-COUNTIF($BP39:DU39,"")+1),"") ->  | DW39: =IF(DW$14>=$AT39,INDEX(Break26,COLUMNS($BP39:DV39)-COUNTIF($BP39:DV39,"")+1),"") ->  | DX39: =IF(DX$14>=$AT39,INDEX(Break26,COLUMNS($BP39:DW39)-COUNTIF($BP39:DW39,"")+1),"") ->  | DY39: =IF(DY$14>=$AT39,INDEX(Break26,COLUMNS($BP39:DX39)-COUNTIF($BP39:DX39,"")+1),"") ->  | DZ39: =IF(DZ$14>=$AT39,INDEX(Break26,COLUMNS($BP39:DY39)-COUNTIF($BP39:DY39,"")+1),"") ->  | EA39: =IF(EA$14>=$AT39,INDEX(Break26,COLUMNS($BP39:DZ39)-COUNTIF($BP39:DZ39,"")+1),"") ->  | EB39: =IF(EB$14>=$AT39,INDEX(Break26,COLUMNS($BP39:EA39)-COUNTIF($BP39:EA39,"")+1),"") ->  | EC39: =IF(EC$14>=$AT39,INDEX(Break26,COLUMNS($BP39:EB39)-COUNTIF($BP39:EB39,"")+1),"") ->  | ED39: =IF(ED$14>=$AT39,INDEX(Break26,COLUMNS($BP39:EC39)-COUNTIF($BP39:EC39,"")+1),"") ->  | EE39: =IF(EE$14>=$AT39,INDEX(Break26,COLUMNS($BP39:ED39)-COUNTIF($BP39:ED39,"")+1),"") ->  | EF39: =IF(EF$14>=$AT39,INDEX(Break26,COLUMNS($BP39:EE39)-COUNTIF($BP39:EE39,"")+1),"") ->  | EG39: =IF(EG$14>=$AT39,INDEX(Break26,COLUMNS($BP39:EF39)-COUNTIF($BP39:EF39,"")+1),"") ->  | EH39: =IF(EH$14>=$AT39,INDEX(Break26,COLUMNS($BP39:EG39)-COUNTIF($BP39:EG39,"")+1),"") ->  | EI39: =IF(EI$14>=$AT39,INDEX(Break26,COLUMNS($BP39:EH39)-COUNTIF($BP39:EH39,"")+1),"") ->  | EK39: 2026 | EL39: 25 | EM39: 0 | EQ39: 0 | ER39: 0 | ES39: 0 | ET39: 0 | EU39: 0 | EV39: 0 | EW39: 0 | EX39: 0 | EY39: 0 | EZ39: 0 | FA39: 0 | FB39: 0 | FC39: 0 | FD39: 0 | FE39: 0
B40: Project 26 | C40: Project 26 | D40: Company 26 | E40: Infrastructure | F40: 12 | G40: Approved | H40: 2023 | I40: 1 | J40: 20 | K40: 20 | L40: 2028 | M40: 25 | N40: 0 | O40: 0.01 | P40: 0.99 | AO40: Project 26 | AP40: ='Master Sheet - Project Info'!$H40 -> 2023 | AQ40: ='Master Sheet - Project Info'!$I40 -> 1 | AR40: ='Master Sheet - Project Info'!$J40 -> 20 | AS40: ='Master Sheet - Project Info'!$K40 -> 20 | AT40: 2023 | AU40: 2 | AV40: 4 | AW40: 6 | AX40: 8 | AY40: 10 | AZ40: 14 | BA40: 16 | BB40: 18 | BC40: 20 | BD40: 20 | BE40: 20 | BF40: 20 | BG40: 20 | BH40: 18 | BI40: 14 | BJ40: 10 | BK40: 8 | BL40: 6 | BM40: 4 | BN40: 2 | BP40: =IF($BP$14>=AT40,INDEX(Break27,1),"") -> 2 | BQ40: =IF(BQ$14>=$AT40,INDEX(Break27,COLUMNS($BP40:BP40)-COUNTIF($BP40:BP40,"")+1),"") -> 4 | BR40: =IF(BR$14>=$AT40,INDEX(Break27,COLUMNS($BP40:BQ40)-COUNTIF($BP40:BQ40,"")+1),"") -> 6 | BS40: =IF(BS$14>=$AT40,INDEX(Break27,COLUMNS($BP40:BR40)-COUNTIF($BP40:BR40,"")+1),"") -> 8 | BT40: =IF(BT$14>=$AT40,INDEX(Break27,COLUMNS($BP40:BS40)-COUNTIF($BP40:BS40,"")+1),"") -> 10 | BU40: =IF(BU$14>=$AT40,INDEX(Break27,COLUMNS($BP40:BT40)-COUNTIF($BP40:BT40,"")+1),"") -> 14 | BV40: =IF(BV$14>=$AT40,INDEX(Break27,COLUMNS($BP40:BU40)-COUNTIF($BP40:BU40,"")+1),"") -> 16 | BW40: =IF(BW$14>=$AT40,INDEX(Break27,COLUMNS($BP40:BV40)-COUNTIF($BP40:BV40,"")+1),"") -> 18 | BX40: =IF(BX$14>=$AT40,INDEX(Break27,COLUMNS($BP40:BW40)-COUNTIF($BP40:BW40,"")+1),"") -> 20 | BY40: =IF(BY$14>=$AT40,INDEX(Break27,COLUMNS($BP40:BX40)-COUNTIF($BP40:BX40,"")+1),"") -> 20 | BZ40: =IF(BZ$14>=$AT40,INDEX(Break27,COLUMNS($BP40:BY40)-COUNTIF($BP40:BY40,"")+1),"") -> 20 | CA40: =IF(CA$14>=$AT40,INDEX(Break27,COLUMNS($BP40:BZ40)-COUNTIF($BP40:BZ40,"")+1),"") -> 20 | CB40: =IF(CB$14>=$AT40,INDEX(Break27,COLUMNS($BP40:CA40)-COUNTIF($BP40:CA40,"")+1),"") -> 20 | CC40: =IF(CC$14>=$AT40,INDEX(Break27,COLUMNS($BP40:CB40)-COUNTIF($BP40:CB40,"")+1),"") -> 18 | CD40: =IF(CD$14>=$AT40,INDEX(Break27,COLUMNS($BP40:CC40)-COUNTIF($BP40:CC40,"")+1),"") -> 14 | CE40: =IF(CE$14>=$AT40,INDEX(Break27,COLUMNS($BP40:CD40)-COUNTIF($BP40:CD40,"")+1),"") -> 10 | CF40: =IF(CF$14>=$AT40,INDEX(Break27,COLUMNS($BP40:CE40)-COUNTIF($BP40:CE40,"")+1),"") -> 8 | CG40: =IF(CG$14>=$AT40,INDEX(Break27,COLUMNS($BP40:CF40)-COUNTIF($BP40:CF40,"")+1),"") -> 6 | CH40: =IF(CH$14>=$AT40,INDEX(Break27,COLUMNS($BP40:CG40)-COUNTIF($BP40:CG40,"")+1),"") -> 4 | CI40: =IF(CI$14>=$AT40,INDEX(Break27,COLUMNS($BP40:CH40)-COUNTIF($BP40:CH40,"")+1),"") -> 2 | CJ40: =IF(CJ$14>=$AT40,INDEX(Break27,COLUMNS($BP40:CI40)-COUNTIF($BP40:CI40,"")+1),"") ->  | CK40: =IF(CK$14>=$AT40,INDEX(Break27,COLUMNS($BP40:CJ40)-COUNTIF($BP40:CJ40,"")+1),"") ->  | CL40: =IF(CL$14>=$AT40,INDEX(Break27,COLUMNS($BP40:CK40)-COUNTIF($BP40:CK40,"")+1),"") ->  | CM40: =IF(CM$14>=$AT40,INDEX(Break27,COLUMNS($BP40:CL40)-COUNTIF($BP40:CL40,"")+1),"") ->  | CN40: =IF(CN$14>=$AT40,INDEX(Break27,COLUMNS($BP40:CM40)-COUNTIF($BP40:CM40,"")+1),"") ->  | CO40: =IF(CO$14>=$AT40,INDEX(Break27,COLUMNS($BP40:CN40)-COUNTIF($BP40:CN40,"")+1),"") ->  | CP40: =IF(CP$14>=$AT40,INDEX(Break27,COLUMNS($BP40:CO40)-COUNTIF($BP40:CO40,"")+1),"") ->  | CQ40: =IF(CQ$14>=$AT40,INDEX(Break27,COLUMNS($BP40:CP40)-COUNTIF($BP40:CP40,"")+1),"") ->  | CR40: =IF(CR$14>=$AT40,INDEX(Break27,COLUMNS($BP40:CQ40)-COUNTIF($BP40:CQ40,"")+1),"") ->  | CS40: =IF(CS$14>=$AT40,INDEX(Break27,COLUMNS($BP40:CR40)-COUNTIF($BP40:CR40,"")+1),"") ->  | CT40: =IF(CT$14>=$AT40,INDEX(Break27,COLUMNS($BP40:CS40)-COUNTIF($BP40:CS40,"")+1),"") ->  | CU40: =IF(CU$14>=$AT40,INDEX(Break27,COLUMNS($BP40:CT40)-COUNTIF($BP40:CT40,"")+1),"") ->  | CV40: =IF(CV$14>=$AT40,INDEX(Break27,COLUMNS($BP40:CU40)-COUNTIF($BP40:CU40,"")+1),"") ->  | CW40: =IF(CW$14>=$AT40,INDEX(Break27,COLUMNS($BP40:CV40)-COUNTIF($BP40:CV40,"")+1),"") ->  | CX40: =IF(CX$14>=$AT40,INDEX(Break27,COLUMNS($BP40:CW40)-COUNTIF($BP40:CW40,"")+1),"") ->  | CY40: =IF(CY$14>=$AT40,INDEX(Break27,COLUMNS($BP40:CX40)-COUNTIF($BP40:CX40,"")+1),"") ->  | CZ40: =IF(CZ$14>=$AT40,INDEX(Break27,COLUMNS($BP40:CY40)-COUNTIF($BP40:CY40,"")+1),"") ->  | DA40: =IF(DA$14>=$AT40,INDEX(Break27,COLUMNS($BP40:CZ40)-COUNTIF($BP40:CZ40,"")+1),"") ->  | DB40: =IF(DB$14>=$AT40,INDEX(Break27,COLUMNS($BP40:DA40)-COUNTIF($BP40:DA40,"")+1),"") ->  | DC40: =IF(DC$14>=$AT40,INDEX(Break27,COLUMNS($BP40:DB40)-COUNTIF($BP40:DB40,"")+1),"") ->  | DD40: =IF(DD$14>=$AT40,INDEX(Break27,COLUMNS($BP40:DC40)-COUNTIF($BP40:DC40,"")+1),"") ->  | DE40: =IF(DE$14>=$AT40,INDEX(Break27,COLUMNS($BP40:DD40)-COUNTIF($BP40:DD40,"")+1),"") ->  | DF40: =IF(DF$14>=$AT40,INDEX(Break27,COLUMNS($BP40:DE40)-COUNTIF($BP40:DE40,"")+1),"") ->  | DG40: =IF(DG$14>=$AT40,INDEX(Break27,COLUMNS($BP40:DF40)-COUNTIF($BP40:DF40,"")+1),"") ->  | DH40: =IF(DH$14>=$AT40,INDEX(Break27,COLUMNS($BP40:DG40)-COUNTIF($BP40:DG40,"")+1),"") ->  | DI40: =IF(DI$14>=$AT40,INDEX(Break27,COLUMNS($BP40:DH40)-COUNTIF($BP40:DH40,"")+1),"") ->  | DJ40: =IF(DJ$14>=$AT40,INDEX(Break27,COLUMNS($BP40:DI40)-COUNTIF($BP40:DI40,"")+1),"") ->  | DK40: =IF(DK$14>=$AT40,INDEX(Break27,COLUMNS($BP40:DJ40)-COUNTIF($BP40:DJ40,"")+1),"") ->  | DL40: =IF(DL$14>=$AT40,INDEX(Break27,COLUMNS($BP40:DK40)-COUNTIF($BP40:DK40,"")+1),"") ->  | DM40: =IF(DM$14>=$AT40,INDEX(Break27,COLUMNS($BP40:DL40)-COUNTIF($BP40:DL40,"")+1),"") ->  | DN40: =IF(DN$14>=$AT40,INDEX(Break27,COLUMNS($BP40:DM40)-COUNTIF($BP40:DM40,"")+1),"") ->  | DO40: =IF(DO$14>=$AT40,INDEX(Break27,COLUMNS($BP40:DN40)-COUNTIF($BP40:DN40,"")+1),"") ->  | DP40: =IF(DP$14>=$AT40,INDEX(Break27,COLUMNS($BP40:DO40)-COUNTIF($BP40:DO40,"")+1),"") ->  | DQ40: =IF(DQ$14>=$AT40,INDEX(Break27,COLUMNS($BP40:DP40)-COUNTIF($BP40:DP40,"")+1),"") ->  | DR40: =IF(DR$14>=$AT40,INDEX(Break27,COLUMNS($BP40:DQ40)-COUNTIF($BP40:DQ40,"")+1),"") ->  | DS40: =IF(DS$14>=$AT40,INDEX(Break27,COLUMNS($BP40:DR40)-COUNTIF($BP40:DR40,"")+1),"") ->  | DT40: =IF(DT$14>=$AT40,INDEX(Break27,COLUMNS($BP40:DS40)-COUNTIF($BP40:DS40,"")+1),"") ->  | DU40: =IF(DU$14>=$AT40,INDEX(Break27,COLUMNS($BP40:DT40)-COUNTIF($BP40:DT40,"")+1),"") ->  | DV40: =IF(DV$14>=$AT40,INDEX(Break27,COLUMNS($BP40:DU40)-COUNTIF($BP40:DU40,"")+1),"") ->  | DW40: =IF(DW$14>=$AT40,INDEX(Break27,COLUMNS($BP40:DV40)-COUNTIF($BP40:DV40,"")+1),"") ->  | DX40: =IF(DX$14>=$AT40,INDEX(Break27,COLUMNS($BP40:DW40)-COUNTIF($BP40:DW40,"")+1),"") ->  | DY40: =IF(DY$14>=$AT40,INDEX(Break27,COLUMNS($BP40:DX40)-COUNTIF($BP40:DX40,"")+1),"") ->  | DZ40: =IF(DZ$14>=$AT40,INDEX(Break27,COLUMNS($BP40:DY40)-COUNTIF($BP40:DY40,"")+1),"") ->  | EA40: =IF(EA$14>=$AT40,INDEX(Break27,COLUMNS($BP40:DZ40)-COUNTIF($BP40:DZ40,"")+1),"") ->  | EB40: =IF(EB$14>=$AT40,INDEX(Break27,COLUMNS($BP40:EA40)-COUNTIF($BP40:EA40,"")+1),"") ->  | EC40: =IF(EC$14>=$AT40,INDEX(Break27,COLUMNS($BP40:EB40)-COUNTIF($BP40:EB40,"")+1),"") ->  | ED40: =IF(ED$14>=$AT40,INDEX(Break27,COLUMNS($BP40:EC40)-COUNTIF($BP40:EC40,"")+1),"") ->  | EE40: =IF(EE$14>=$AT40,INDEX(Break27,COLUMNS($BP40:ED40)-COUNTIF($BP40:ED40,"")+1),"") ->  | EF40: =IF(EF$14>=$AT40,INDEX(Break27,COLUMNS($BP40:EE40)-COUNTIF($BP40:EE40,"")+1),"") ->  | EG40: =IF(EG$14>=$AT40,INDEX(Break27,COLUMNS($BP40:EF40)-COUNTIF($BP40:EF40,"")+1),"") ->  | EH40: =IF(EH$14>=$AT40,INDEX(Break27,COLUMNS($BP40:EG40)-COUNTIF($BP40:EG40,"")+1),"") ->  | EI40: =IF(EI$14>=$AT40,INDEX(Break27,COLUMNS($BP40:EH40)-COUNTIF($BP40:EH40,"")+1),"") ->  | EK40: 2028 | EL40: 25 | EM40: 0 | ES40: 0 | ET40: 0 | EU40: 0 | EV40: 0 | EW40: 0 | EX40: 0 | EY40: 0 | EZ40: 0 | FA40: 0 | FB40: 0 | FC40: 0 | FD40: 0 | FE40: 0
B41: Project 27 | C41: Project 27 | D41: Company 27 | E41: Infrastructure | F41: 20 | G41: Planning | H41: 2025 | I41: 1 | J41: 8 | K41: 2 | L41: 2027 | M41: 25 | N41: 5 | O41: 0.01 | P41: 0.99 | AO41: Project 27 | AP41: ='Master Sheet - Project Info'!$H41 -> 2025 | AQ41: ='Master Sheet - Project Info'!$I41 -> 1 | AR41: ='Master Sheet - Project Info'!$J41 -> 8 | AS41: ='Master Sheet - Project Info'!$K41 -> 2 | AT41: 2025 | AU41: 1 | AV41: 1.2 | AW41: 1.4 | AX41: 2 | AY41: 2 | AZ41: 1.4 | BA41: 1.2 | BB41: 1 | BC41: 0 | BD41: 0 | BE41: 0 | BF41: 0 | BG41: 0 | BH41: 0 | BI41: 0 | BJ41: 0 | BK41: 0 | BL41: 0 | BM41: 0 | BN41: 0 | BP41: =IF($BP$14>=AT41,INDEX(Break28,1),"") ->  | BQ41: =IF(BQ$14>=$AT41,INDEX(Break28,COLUMNS($BP41:BP41)-COUNTIF($BP41:BP41,"")+1),"") ->  | BR41: =IF(BR$14>=$AT41,INDEX(Break28,COLUMNS($BP41:BQ41)-COUNTIF($BP41:BQ41,"")+1),"") ->  | BS41: =IF(BS$14>=$AT41,INDEX(Break28,COLUMNS($BP41:BR41)-COUNTIF($BP41:BR41,"")+1),"") ->  | BT41: =IF(BT$14>=$AT41,INDEX(Break28,COLUMNS($BP41:BS41)-COUNTIF($BP41:BS41,"")+1),"") ->  | BU41: =IF(BU$14>=$AT41,INDEX(Break28,COLUMNS($BP41:BT41)-COUNTIF($BP41:BT41,"")+1),"") ->  | BV41: =IF(BV$14>=$AT41,INDEX(Break28,COLUMNS($BP41:BU41)-COUNTIF($BP41:BU41,"")+1),"") ->  | BW41: =IF(BW$14>=$AT41,INDEX(Break28,COLUMNS($BP41:BV41)-COUNTIF($BP41:BV41,"")+1),"") ->  | BX41: =IF(BX$14>=$AT41,INDEX(Break28,COLUMNS($BP41:BW41)-COUNTIF($BP41:BW41,"")+1),"") -> 1 | BY41: =IF(BY$14>=$AT41,INDEX(Break28,COLUMNS($BP41:BX41)-COUNTIF($BP41:BX41,"")+1),"") -> 1.2 | BZ41: =IF(BZ$14>=$AT41,INDEX(Break28,COLUMNS($BP41:BY41)-COUNTIF($BP41:BY41,"")+1),"") -> 1.4 | CA41: =IF(CA$14>=$AT41,INDEX(Break28,COLUMNS($BP41:BZ41)-COUNTIF($BP41:BZ41,"")+1),"") -> 2 | CB41: =IF(CB$14>=$AT41,INDEX(Break28,COLUMNS($BP41:CA41)-COUNTIF($BP41:CA41,"")+1),"") -> 2 | CC41: =IF(CC$14>=$AT41,INDEX(Break28,COLUMNS($BP41:CB41)-COUNTIF($BP41:CB41,"")+1),"") -> 1.4 | CD41: =IF(CD$14>=$AT41,INDEX(Break28,COLUMNS($BP41:CC41)-COUNTIF($BP41:CC41,"")+1),"") -> 1.2 | CE41: =IF(CE$14>=$AT41,INDEX(Break28,COLUMNS($BP41:CD41)-COUNTIF($BP41:CD41,"")+1),"") -> 1 | CF41: =IF(CF$14>=$AT41,INDEX(Break28,COLUMNS($BP41:CE41)-COUNTIF($BP41:CE41,"")+1),"") -> 0 | CG41: =IF(CG$14>=$AT41,INDEX(Break28,COLUMNS($BP41:CF41)-COUNTIF($BP41:CF41,"")+1),"") -> 0 | CH41: =IF(CH$14>=$AT41,INDEX(Break28,COLUMNS($BP41:CG41)-COUNTIF($BP41:CG41,"")+1),"") -> 0 | CI41: =IF(CI$14>=$AT41,INDEX(Break28,COLUMNS($BP41:CH41)-COUNTIF($BP41:CH41,"")+1),"") -> 0 | CJ41: =IF(CJ$14>=$AT41,INDEX(Break28,COLUMNS($BP41:CI41)-COUNTIF($BP41:CI41,"")+1),"") -> 0 | CK41: =IF(CK$14>=$AT41,INDEX(Break28,COLUMNS($BP41:CJ41)-COUNTIF($BP41:CJ41,"")+1),"") -> 0 | CL41: =IF(CL$14>=$AT41,INDEX(Break28,COLUMNS($BP41:CK41)-COUNTIF($BP41:CK41,"")+1),"") -> 0 | CM41: =IF(CM$14>=$AT41,INDEX(Break28,COLUMNS($BP41:CL41)-COUNTIF($BP41:CL41,"")+1),"") -> 0 | CN41: =IF(CN$14>=$AT41,INDEX(Break28,COLUMNS($BP41:CM41)-COUNTIF($BP41:CM41,"")+1),"") -> 0 | CO41: =IF(CO$14>=$AT41,INDEX(Break28,COLUMNS($BP41:CN41)-COUNTIF($BP41:CN41,"")+1),"") -> 0 | CP41: =IF(CP$14>=$AT41,INDEX(Break28,COLUMNS($BP41:CO41)-COUNTIF($BP41:CO41,"")+1),"") -> 0 | CQ41: =IF(CQ$14>=$AT41,INDEX(Break28,COLUMNS($BP41:CP41)-COUNTIF($BP41:CP41,"")+1),"") -> 0 | CR41: =IF(CR$14>=$AT41,INDEX(Break28,COLUMNS($BP41:CQ41)-COUNTIF($BP41:CQ41,"")+1),"") ->  | CS41: =IF(CS$14>=$AT41,INDEX(Break28,COLUMNS($BP41:CR41)-COUNTIF($BP41:CR41,"")+1),"") ->  | CT41: =IF(CT$14>=$AT41,INDEX(Break28,COLUMNS($BP41:CS41)-COUNTIF($BP41:CS41,"")+1),"") ->  | CU41: =IF(CU$14>=$AT41,INDEX(Break28,COLUMNS($BP41:CT41)-COUNTIF($BP41:CT41,"")+1),"") ->  | CV41: =IF(CV$14>=$AT41,INDEX(Break28,COLUMNS($BP41:CU41)-COUNTIF($BP41:CU41,"")+1),"") ->  | CW41: =IF(CW$14>=$AT41,INDEX(Break28,COLUMNS($BP41:CV41)-COUNTIF($BP41:CV41,"")+1),"") ->  | CX41: =IF(CX$14>=$AT41,INDEX(Break28,COLUMNS($BP41:CW41)-COUNTIF($BP41:CW41,"")+1),"") ->  | CY41: =IF(CY$14>=$AT41,INDEX(Break28,COLUMNS($BP41:CX41)-COUNTIF($BP41:CX41,"")+1),"") ->  | CZ41: =IF(CZ$14>=$AT41,INDEX(Break28,COLUMNS($BP41:CY41)-COUNTIF($BP41:CY41,"")+1),"") ->  | DA41: =IF(DA$14>=$AT41,INDEX(Break28,COLUMNS($BP41:CZ41)-COUNTIF($BP41:CZ41,"")+1),"") ->  | DB41: =IF(DB$14>=$AT41,INDEX(Break28,COLUMNS($BP41:DA41)-COUNTIF($BP41:DA41,"")+1),"") ->  | DC41: =IF(DC$14>=$AT41,INDEX(Break28,COLUMNS($BP41:DB41)-COUNTIF($BP41:DB41,"")+1),"") ->  | DD41: =IF(DD$14>=$AT41,INDEX(Break28,COLUMNS($BP41:DC41)-COUNTIF($BP41:DC41,"")+1),"") ->  | DE41: =IF(DE$14>=$AT41,INDEX(Break28,COLUMNS($BP41:DD41)-COUNTIF($BP41:DD41,"")+1),"") ->  | DF41: =IF(DF$14>=$AT41,INDEX(Break28,COLUMNS($BP41:DE41)-COUNTIF($BP41:DE41,"")+1),"") ->  | DG41: =IF(DG$14>=$AT41,INDEX(Break28,COLUMNS($BP41:DF41)-COUNTIF($BP41:DF41,"")+1),"") ->  | DH41: =IF(DH$14>=$AT41,INDEX(Break28,COLUMNS($BP41:DG41)-COUNTIF($BP41:DG41,"")+1),"") ->  | DI41: =IF(DI$14>=$AT41,INDEX(Break28,COLUMNS($BP41:DH41)-COUNTIF($BP41:DH41,"")+1),"") ->  | DJ41: =IF(DJ$14>=$AT41,INDEX(Break28,COLUMNS($BP41:DI41)-COUNTIF($BP41:DI41,"")+1),"") ->  | DK41: =IF(DK$14>=$AT41,INDEX(Break28,COLUMNS($BP41:DJ41)-COUNTIF($BP41:DJ41,"")+1),"") ->  | DL41: =IF(DL$14>=$AT41,INDEX(Break28,COLUMNS($BP41:DK41)-COUNTIF($BP41:DK41,"")+1),"") ->  | DM41: =IF(DM$14>=$AT41,INDEX(Break28,COLUMNS($BP41:DL41)-COUNTIF($BP41:DL41,"")+1),"") ->  | DN41: =IF(DN$14>=$AT41,INDEX(Break28,COLUMNS($BP41:DM41)-COUNTIF($BP41:DM41,"")+1),"") ->  | DO41: =IF(DO$14>=$AT41,INDEX(Break28,COLUMNS($BP41:DN41)-COUNTIF($BP41:DN41,"")+1),"") ->  | DP41: =IF(DP$14>=$AT41,INDEX(Break28,COLUMNS($BP41:DO41)-COUNTIF($BP41:DO41,"")+1),"") ->  | DQ41: =IF(DQ$14>=$AT41,INDEX(Break28,COLUMNS($BP41:DP41)-COUNTIF($BP41:DP41,"")+1),"") ->  | DR41: =IF(DR$14>=$AT41,INDEX(Break28,COLUMNS($BP41:DQ41)-COUNTIF($BP41:DQ41,"")+1),"") ->  | DS41: =IF(DS$14>=$AT41,INDEX(Break28,COLUMNS($BP41:DR41)-COUNTIF($BP41:DR41,"")+1),"") ->  | DT41: =IF(DT$14>=$AT41,INDEX(Break28,COLUMNS($BP41:DS41)-COUNTIF($BP41:DS41,"")+1),"") ->  | DU41: =IF(DU$14>=$AT41,INDEX(Break28,COLUMNS($BP41:DT41)-COUNTIF($BP41:DT41,"")+1),"") ->  | DV41: =IF(DV$14>=$AT41,INDEX(Break28,COLUMNS($BP41:DU41)-COUNTIF($BP41:DU41,"")+1),"") ->  | DW41: =IF(DW$14>=$AT41,INDEX(Break28,COLUMNS($BP41:DV41)-COUNTIF($BP41:DV41,"")+1),"") ->  | DX41: =IF(DX$14>=$AT41,INDEX(Break28,COLUMNS($BP41:DW41)-COUNTIF($BP41:DW41,"")+1),"") ->  | DY41: =IF(DY$14>=$AT41,INDEX(Break28,COLUMNS($BP41:DX41)-COUNTIF($BP41:DX41,"")+1),"") ->  | DZ41: =IF(DZ$14>=$AT41,INDEX(Break28,COLUMNS($BP41:DY41)-COUNTIF($BP41:DY41,"")+1),"") ->  | EA41: =IF(EA$14>=$AT41,INDEX(Break28,COLUMNS($BP41:DZ41)-COUNTIF($BP41:DZ41,"")+1),"") ->  | EB41: =IF(EB$14>=$AT41,INDEX(Break28,COLUMNS($BP41:EA41)-COUNTIF($BP41:EA41,"")+1),"") ->  | EC41: =IF(EC$14>=$AT41,INDEX(Break28,COLUMNS($BP41:EB41)-COUNTIF($BP41:EB41,"")+1),"") ->  | ED41: =IF(ED$14>=$AT41,INDEX(Break28,COLUMNS($BP41:EC41)-COUNTIF($BP41:EC41,"")+1),"") ->  | EE41: =IF(EE$14>=$AT41,INDEX(Break28,COLUMNS($BP41:ED41)-COUNTIF($BP41:ED41,"")+1),"") ->  | EF41: =IF(EF$14>=$AT41,INDEX(Break28,COLUMNS($BP41:EE41)-COUNTIF($BP41:EE41,"")+1),"") ->  | EG41: =IF(EG$14>=$AT41,INDEX(Break28,COLUMNS($BP41:EF41)-COUNTIF($BP41:EF41,"")+1),"") ->  | EH41: =IF(EH$14>=$AT41,INDEX(Break28,COLUMNS($BP41:EG41)-COUNTIF($BP41:EG41,"")+1),"") ->  | EI41: =IF(EI$14>=$AT41,INDEX(Break28,COLUMNS($BP41:EH41)-COUNTIF($BP41:EH41,"")+1),"") ->  | EK41: 2027 | EL41: 25 | EM41: 5 | ER41: 5 | ES41: 5 | ET41: 5 | EU41: 5 | EV41: 5 | EW41: 5 | EX41: 5 | EY41: 5 | EZ41: 5 | FA41: 5 | FB41: 5 | FC41: 5 | FD41: 5 | FE41: 5
B42: Project 28 | C42: Project 28 | D42: Company 28 | E42: Infrastructure | F42: 22 | G42: Approved | H42: 2023 | I42: 4 | J42: 1 | K42: 30 | L42: 2023 | M42: 25 | N42: 1 | O42: 0.01 | P42: 0.99 | AO42: Project 28 | AP42: ='Master Sheet - Project Info'!$H42 -> 2023 | AQ42: ='Master Sheet - Project Info'!$I42 -> 4 | AR42: ='Master Sheet - Project Info'!$J42 -> 1 | AS42: ='Master Sheet - Project Info'!$K42 -> 30 | AT42: 2023.75 | AU42: 30 | AV42: 0 | AW42: 0 | AX42: 0 | AY42: 0 | AZ42: 0 | BA42: 0 | BB42: 0 | BC42: 0 | BD42: 0 | BE42: 0 | BF42: 0 | BG42: 0 | BH42: 0 | BI42: 0 | BJ42: 0 | BK42: 0 | BL42: 0 | BM42: 0 | BN42: 0 | BP42: =IF($BP$14>=AT42,INDEX(Break29,1),"") ->  | BQ42: =IF(BQ$14>=$AT42,INDEX(Break29,COLUMNS($BP42:BP42)-COUNTIF($BP42:BP42,"")+1),"") ->  | BR42: =IF(BR$14>=$AT42,INDEX(Break29,COLUMNS($BP42:BQ42)-COUNTIF($BP42:BQ42,"")+1),"") ->  | BS42: =IF(BS$14>=$AT42,INDEX(Break29,COLUMNS($BP42:BR42)-COUNTIF($BP42:BR42,"")+1),"") -> 30 | BT42: =IF(BT$14>=$AT42,INDEX(Break29,COLUMNS($BP42:BS42)-COUNTIF($BP42:BS42,"")+1),"") -> 0 | BU42: =IF(BU$14>=$AT42,INDEX(Break29,COLUMNS($BP42:BT42)-COUNTIF($BP42:BT42,"")+1),"") -> 0 | BV42: =IF(BV$14>=$AT42,INDEX(Break29,COLUMNS($BP42:BU42)-COUNTIF($BP42:BU42,"")+1),"") -> 0 | BW42: =IF(BW$14>=$AT42,INDEX(Break29,COLUMNS($BP42:BV42)-COUNTIF($BP42:BV42,"")+1),"") -> 0 | BX42: =IF(BX$14>=$AT42,INDEX(Break29,COLUMNS($BP42:BW42)-COUNTIF($BP42:BW42,"")+1),"") -> 0 | BY42: =IF(BY$14>=$AT42,INDEX(Break29,COLUMNS($BP42:BX42)-COUNTIF($BP42:BX42,"")+1),"") -> 0 | BZ42: =IF(BZ$14>=$AT42,INDEX(Break29,COLUMNS($BP42:BY42)-COUNTIF($BP42:BY42,"")+1),"") -> 0 | CA42: =IF(CA$14>=$AT42,INDEX(Break29,COLUMNS($BP42:BZ42)-COUNTIF($BP42:BZ42,"")+1),"") -> 0 | CB42: =IF(CB$14>=$AT42,INDEX(Break29,COLUMNS($BP42:CA42)-COUNTIF($BP42:CA42,"")+1),"") -> 0 | CC42: =IF(CC$14>=$AT42,INDEX(Break29,COLUMNS($BP42:CB42)-COUNTIF($BP42:CB42,"")+1),"") -> 0 | CD42: =IF(CD$14>=$AT42,INDEX(Break29,COLUMNS($BP42:CC42)-COUNTIF($BP42:CC42,"")+1),"") -> 0 | CE42: =IF(CE$14>=$AT42,INDEX(Break29,COLUMNS($BP42:CD42)-COUNTIF($BP42:CD42,"")+1),"") -> 0 | CF42: =IF(CF$14>=$AT42,INDEX(Break29,COLUMNS($BP42:CE42)-COUNTIF($BP42:CE42,"")+1),"") -> 0 | CG42: =IF(CG$14>=$AT42,INDEX(Break29,COLUMNS($BP42:CF42)-COUNTIF($BP42:CF42,"")+1),"") -> 0 | CH42: =IF(CH$14>=$AT42,INDEX(Break29,COLUMNS($BP42:CG42)-COUNTIF($BP42:CG42,"")+1),"") -> 0 | CI42: =IF(CI$14>=$AT42,INDEX(Break29,COLUMNS($BP42:CH42)-COUNTIF($BP42:CH42,"")+1),"") -> 0 | CJ42: =IF(CJ$14>=$AT42,INDEX(Break29,COLUMNS($BP42:CI42)-COUNTIF($BP42:CI42,"")+1),"") -> 0 | CK42: =IF(CK$14>=$AT42,INDEX(Break29,COLUMNS($BP42:CJ42)-COUNTIF($BP42:CJ42,"")+1),"") -> 0 | CL42: =IF(CL$14>=$AT42,INDEX(Break29,COLUMNS($BP42:CK42)-COUNTIF($BP42:CK42,"")+1),"") -> 0 | CM42: =IF(CM$14>=$AT42,INDEX(Break29,COLUMNS($BP42:CL42)-COUNTIF($BP42:CL42,"")+1),"") ->  | CN42: =IF(CN$14>=$AT42,INDEX(Break29,COLUMNS($BP42:CM42)-COUNTIF($BP42:CM42,"")+1),"") ->  | CO42: =IF(CO$14>=$AT42,INDEX(Break29,COLUMNS($BP42:CN42)-COUNTIF($BP42:CN42,"")+1),"") ->  | CP42: =IF(CP$14>=$AT42,INDEX(Break29,COLUMNS($BP42:CO42)-COUNTIF($BP42:CO42,"")+1),"") ->  | CQ42: =IF(CQ$14>=$AT42,INDEX(Break29,COLUMNS($BP42:CP42)-COUNTIF($BP42:CP42,"")+1),"") ->  | CR42: =IF(CR$14>=$AT42,INDEX(Break29,COLUMNS($BP42:CQ42)-COUNTIF($BP42:CQ42,"")+1),"") ->  | CS42: =IF(CS$14>=$AT42,INDEX(Break29,COLUMNS($BP42:CR42)-COUNTIF($BP42:CR42,"")+1),"") ->  | CT42: =IF(CT$14>=$AT42,INDEX(Break29,COLUMNS($BP42:CS42)-COUNTIF($BP42:CS42,"")+1),"") ->  | CU42: =IF(CU$14>=$AT42,INDEX(Break29,COLUMNS($BP42:CT42)-COUNTIF($BP42:CT42,"")+1),"") ->  | CV42: =IF(CV$14>=$AT42,INDEX(Break29,COLUMNS($BP42:CU42)-COUNTIF($BP42:CU42,"")+1),"") ->  | CW42: =IF(CW$14>=$AT42,INDEX(Break29,COLUMNS($BP42:CV42)-COUNTIF($BP42:CV42,"")+1),"") ->  | CX42: =IF(CX$14>=$AT42,INDEX(Break29,COLUMNS($BP42:CW42)-COUNTIF($BP42:CW42,"")+1),"") ->  | CY42: =IF(CY$14>=$AT42,INDEX(Break29,COLUMNS($BP42:CX42)-COUNTIF($BP42:CX42,"")+1),"") ->  | CZ42: =IF(CZ$14>=$AT42,INDEX(Break29,COLUMNS($BP42:CY42)-COUNTIF($BP42:CY42,"")+1),"") ->  | DA42: =IF(DA$14>=$AT42,INDEX(Break29,COLUMNS($BP42:CZ42)-COUNTIF($BP42:CZ42,"")+1),"") ->  | DB42: =IF(DB$14>=$AT42,INDEX(Break29,COLUMNS($BP42:DA42)-COUNTIF($BP42:DA42,"")+1),"") ->  | DC42: =IF(DC$14>=$AT42,INDEX(Break29,COLUMNS($BP42:DB42)-COUNTIF($BP42:DB42,"")+1),"") ->  | DD42: =IF(DD$14>=$AT42,INDEX(Break29,COLUMNS($BP42:DC42)-COUNTIF($BP42:DC42,"")+1),"") ->  | DE42: =IF(DE$14>=$AT42,INDEX(Break29,COLUMNS($BP42:DD42)-COUNTIF($BP42:DD42,"")+1),"") ->  | DF42: =IF(DF$14>=$AT42,INDEX(Break29,COLUMNS($BP42:DE42)-COUNTIF($BP42:DE42,"")+1),"") ->  | DG42: =IF(DG$14>=$AT42,INDEX(Break29,COLUMNS($BP42:DF42)-COUNTIF($BP42:DF42,"")+1),"") ->  | DH42: =IF(DH$14>=$AT42,INDEX(Break29,COLUMNS($BP42:DG42)-COUNTIF($BP42:DG42,"")+1),"") ->  | DI42: =IF(DI$14>=$AT42,INDEX(Break29,COLUMNS($BP42:DH42)-COUNTIF($BP42:DH42,"")+1),"") ->  | DJ42: =IF(DJ$14>=$AT42,INDEX(Break29,COLUMNS($BP42:DI42)-COUNTIF($BP42:DI42,"")+1),"") ->  | DK42: =IF(DK$14>=$AT42,INDEX(Break29,COLUMNS($BP42:DJ42)-COUNTIF($BP42:DJ42,"")+1),"") ->  | DL42: =IF(DL$14>=$AT42,INDEX(Break29,COLUMNS($BP42:DK42)-COUNTIF($BP42:DK42,"")+1),"") ->  | DM42: =IF(DM$14>=$AT42,INDEX(Break29,COLUMNS($BP42:DL42)-COUNTIF($BP42:DL42,"")+1),"") ->  | DN42: =IF(DN$14>=$AT42,INDEX(Break29,COLUMNS($BP42:DM42)-COUNTIF($BP42:DM42,"")+1),"") ->  | DO42: =IF(DO$14>=$AT42,INDEX(Break29,COLUMNS($BP42:DN42)-COUNTIF($BP42:DN42,"")+1),"") ->  | DP42: =IF(DP$14>=$AT42,INDEX(Break29,COLUMNS($BP42:DO42)-COUNTIF($BP42:DO42,"")+1),"") ->  | DQ42: =IF(DQ$14>=$AT42,INDEX(Break29,COLUMNS($BP42:DP42)-COUNTIF($BP42:DP42,"")+1),"") ->  | DR42: =IF(DR$14>=$AT42,INDEX(Break29,COLUMNS($BP42:DQ42)-COUNTIF($BP42:DQ42,"")+1),"") ->  | DS42: =IF(DS$14>=$AT42,INDEX(Break29,COLUMNS($BP42:DR42)-COUNTIF($BP42:DR42,"")+1),"") ->  | DT42: =IF(DT$14>=$AT42,INDEX(Break29,COLUMNS($BP42:DS42)-COUNTIF($BP42:DS42,"")+1),"") ->  | DU42: =IF(DU$14>=$AT42,INDEX(Break29,COLUMNS($BP42:DT42)-COUNTIF($BP42:DT42,"")+1),"") ->  | DV42: =IF(DV$14>=$AT42,INDEX(Break29,COLUMNS($BP42:DU42)-COUNTIF($BP42:DU42,"")+1),"") ->  | DW42: =IF(DW$14>=$AT42,INDEX(Break29,COLUMNS($BP42:DV42)-COUNTIF($BP42:DV42,"")+1),"") ->  | DX42: =IF(DX$14>=$AT42,INDEX(Break29,COLUMNS($BP42:DW42)-COUNTIF($BP42:DW42,"")+1),"") ->  | DY42: =IF(DY$14>=$AT42,INDEX(Break29,COLUMNS($BP42:DX42)-COUNTIF($BP42:DX42,"")+1),"") ->  | DZ42: =IF(DZ$14>=$AT42,INDEX(Break29,COLUMNS($BP42:DY42)-COUNTIF($BP42:DY42,"")+1),"") ->  | EA42: =IF(EA$14>=$AT42,INDEX(Break29,COLUMNS($BP42:DZ42)-COUNTIF($BP42:DZ42,"")+1),"") ->  | EB42: =IF(EB$14>=$AT42,INDEX(Break29,COLUMNS($BP42:EA42)-COUNTIF($BP42:EA42,"")+1),"") ->  | EC42: =IF(EC$14>=$AT42,INDEX(Break29,COLUMNS($BP42:EB42)-COUNTIF($BP42:EB42,"")+1),"") ->  | ED42: =IF(ED$14>=$AT42,INDEX(Break29,COLUMNS($BP42:EC42)-COUNTIF($BP42:EC42,"")+1),"") ->  | EE42: =IF(EE$14>=$AT42,INDEX(Break29,COLUMNS($BP42:ED42)-COUNTIF($BP42:ED42,"")+1),"") ->  | EF42: =IF(EF$14>=$AT42,INDEX(Break29,COLUMNS($BP42:EE42)-COUNTIF($BP42:EE42,"")+1),"") ->  | EG42: =IF(EG$14>=$AT42,INDEX(Break29,COLUMNS($BP42:EF42)-COUNTIF($BP42:EF42,"")+1),"") ->  | EH42: =IF(EH$14>=$AT42,INDEX(Break29,COLUMNS($BP42:EG42)-COUNTIF($BP42:EG42,"")+1),"") ->  | EI42: =IF(EI$14>=$AT42,INDEX(Break29,COLUMNS($BP42:EH42)-COUNTIF($BP42:EH42,"")+1),"") ->  | EK42: 2023 | EL42: 25 | EM42: 1 | EN42: 1 | EO42: 1 | EP42: 1 | EQ42: 1 | ER42: 1 | ES42: 1 | ET42: 1 | EU42: 1 | EV42: 1 | EW42: 1 | EX42: 1 | EY42: 1 | EZ42: 1 | FA42: 1 | FB42: 1 | FC42: 1 | FD42: 1 | FE42: 1
B43: Project 29 | C43: Project 29 | D43: Company 29 | E43: Infrastructure | F43: 5 | G43: Construction | H43: 2023 | I43: 1 | J43: 4 | K43: 30 | L43: 2023 | M43: 25 | N43: 1 | O43: 0.01 | P43: 0.99 | AO43: Project 29 | AP43: ='Master Sheet - Project Info'!$H43 -> 2023 | AQ43: ='Master Sheet - Project Info'!$I43 -> 1 | AR43: ='Master Sheet - Project Info'!$J43 -> 4 | AS43: ='Master Sheet - Project Info'!$K43 -> 30 | AT43: 2023 | AU43: 21 | AV43: 30 | AW43: 30 | AX43: 21 | AY43: 0 | AZ43: 0 | BA43: 0 | BB43: 0 | BC43: 0 | BD43: 0 | BE43: 0 | BF43: 0 | BG43: 0 | BH43: 0 | BI43: 0 | BJ43: 0 | BK43: 0 | BL43: 0 | BM43: 0 | BN43: 0 | BP43: =IF($BP$14>=AT43,INDEX(Break30,1),"") -> 21 | BQ43: =IF(BQ$14>=$AT43,INDEX(Break30,COLUMNS($BP43:BP43)-COUNTIF($BP43:BP43,"")+1),"") -> 30 | BR43: =IF(BR$14>=$AT43,INDEX(Break30,COLUMNS($BP43:BQ43)-COUNTIF($BP43:BQ43,"")+1),"") -> 30 | BS43: =IF(BS$14>=$AT43,INDEX(Break30,COLUMNS($BP43:BR43)-COUNTIF($BP43:BR43,"")+1),"") -> 21 | BT43: =IF(BT$14>=$AT43,INDEX(Break30,COLUMNS($BP43:BS43)-COUNTIF($BP43:BS43,"")+1),"") -> 0 | BU43: =IF(BU$14>=$AT43,INDEX(Break30,COLUMNS($BP43:BT43)-COUNTIF($BP43:BT43,"")+1),"") -> 0 | BV43: =IF(BV$14>=$AT43,INDEX(Break30,COLUMNS($BP43:BU43)-COUNTIF($BP43:BU43,"")+1),"") -> 0 | BW43: =IF(BW$14>=$AT43,INDEX(Break30,COLUMNS($BP43:BV43)-COUNTIF($BP43:BV43,"")+1),"") -> 0 | BX43: =IF(BX$14>=$AT43,INDEX(Break30,COLUMNS($BP43:BW43)-COUNTIF($BP43:BW43,"")+1),"") -> 0 | BY43: =IF(BY$14>=$AT43,INDEX(Break30,COLUMNS($BP43:BX43)-COUNTIF($BP43:BX43,"")+1),"") -> 0 | BZ43: =IF(BZ$14>=$AT43,INDEX(Break30,COLUMNS($BP43:BY43)-COUNTIF($BP43:BY43,"")+1),"") -> 0 | CA43: =IF(CA$14>=$AT43,INDEX(Break30,COLUMNS($BP43:BZ43)-COUNTIF($BP43:BZ43,"")+1),"") -> 0 | CB43: =IF(CB$14>=$AT43,INDEX(Break30,COLUMNS($BP43:CA43)-COUNTIF($BP43:CA43,"")+1),"") -> 0 | CC43: =IF(CC$14>=$AT43,INDEX(Break30,COLUMNS($BP43:CB43)-COUNTIF($BP43:CB43,"")+1),"") -> 0 | CD43: =IF(CD$14>=$AT43,INDEX(Break30,COLUMNS($BP43:CC43)-COUNTIF($BP43:CC43,"")+1),"") -> 0 | CE43: =IF(CE$14>=$AT43,INDEX(Break30,COLUMNS($BP43:CD43)-COUNTIF($BP43:CD43,"")+1),"") -> 0 | CF43: =IF(CF$14>=$AT43,INDEX(Break30,COLUMNS($BP43:CE43)-COUNTIF($BP43:CE43,"")+1),"") -> 0 | CG43: =IF(CG$14>=$AT43,INDEX(Break30,COLUMNS($BP43:CF43)-COUNTIF($BP43:CF43,"")+1),"") -> 0 | CH43: =IF(CH$14>=$AT43,INDEX(Break30,COLUMNS($BP43:CG43)-COUNTIF($BP43:CG43,"")+1),"") -> 0 | CI43: =IF(CI$14>=$AT43,INDEX(Break30,COLUMNS($BP43:CH43)-COUNTIF($BP43:CH43,"")+1),"") -> 0 | CJ43: =IF(CJ$14>=$AT43,INDEX(Break30,COLUMNS($BP43:CI43)-COUNTIF($BP43:CI43,"")+1),"") ->  | CK43: =IF(CK$14>=$AT43,INDEX(Break30,COLUMNS($BP43:CJ43)-COUNTIF($BP43:CJ43,"")+1),"") ->  | CL43: =IF(CL$14>=$AT43,INDEX(Break30,COLUMNS($BP43:CK43)-COUNTIF($BP43:CK43,"")+1),"") ->  | CM43: =IF(CM$14>=$AT43,INDEX(Break30,COLUMNS($BP43:CL43)-COUNTIF($BP43:CL43,"")+1),"") ->  | CN43: =IF(CN$14>=$AT43,INDEX(Break30,COLUMNS($BP43:CM43)-COUNTIF($BP43:CM43,"")+1),"") ->  | CO43: =IF(CO$14>=$AT43,INDEX(Break30,COLUMNS($BP43:CN43)-COUNTIF($BP43:CN43,"")+1),"") ->  | CP43: =IF(CP$14>=$AT43,INDEX(Break30,COLUMNS($BP43:CO43)-COUNTIF($BP43:CO43,"")+1),"") ->  | CQ43: =IF(CQ$14>=$AT43,INDEX(Break30,COLUMNS($BP43:CP43)-COUNTIF($BP43:CP43,"")+1),"") ->  | CR43: =IF(CR$14>=$AT43,INDEX(Break30,COLUMNS($BP43:CQ43)-COUNTIF($BP43:CQ43,"")+1),"") ->  | CS43: =IF(CS$14>=$AT43,INDEX(Break30,COLUMNS($BP43:CR43)-COUNTIF($BP43:CR43,"")+1),"") ->  | CT43: =IF(CT$14>=$AT43,INDEX(Break30,COLUMNS($BP43:CS43)-COUNTIF($BP43:CS43,"")+1),"") ->  | CU43: =IF(CU$14>=$AT43,INDEX(Break30,COLUMNS($BP43:CT43)-COUNTIF($BP43:CT43,"")+1),"") ->  | CV43: =IF(CV$14>=$AT43,INDEX(Break30,COLUMNS($BP43:CU43)-COUNTIF($BP43:CU43,"")+1),"") ->  | CW43: =IF(CW$14>=$AT43,INDEX(Break30,COLUMNS($BP43:CV43)-COUNTIF($BP43:CV43,"")+1),"") ->  | CX43: =IF(CX$14>=$AT43,INDEX(Break30,COLUMNS($BP43:CW43)-COUNTIF($BP43:CW43,"")+1),"") ->  | CY43: =IF(CY$14>=$AT43,INDEX(Break30,COLUMNS($BP43:CX43)-COUNTIF($BP43:CX43,"")+1),"") ->  | CZ43: =IF(CZ$14>=$AT43,INDEX(Break30,COLUMNS($BP43:CY43)-COUNTIF($BP43:CY43,"")+1),"") ->  | DA43: =IF(DA$14>=$AT43,INDEX(Break30,COLUMNS($BP43:CZ43)-COUNTIF($BP43:CZ43,"")+1),"") ->  | DB43: =IF(DB$14>=$AT43,INDEX(Break30,COLUMNS($BP43:DA43)-COUNTIF($BP43:DA43,"")+1),"") ->  | DC43: =IF(DC$14>=$AT43,INDEX(Break30,COLUMNS($BP43:DB43)-COUNTIF($BP43:DB43,"")+1),"") ->  | DD43: =IF(DD$14>=$AT43,INDEX(Break30,COLUMNS($BP43:DC43)-COUNTIF($BP43:DC43,"")+1),"") ->  | DE43: =IF(DE$14>=$AT43,INDEX(Break30,COLUMNS($BP43:DD43)-COUNTIF($BP43:DD43,"")+1),"") ->  | DF43: =IF(DF$14>=$AT43,INDEX(Break30,COLUMNS($BP43:DE43)-COUNTIF($BP43:DE43,"")+1),"") ->  | DG43: =IF(DG$14>=$AT43,INDEX(Break30,COLUMNS($BP43:DF43)-COUNTIF($BP43:DF43,"")+1),"") ->  | DH43: =IF(DH$14>=$AT43,INDEX(Break30,COLUMNS($BP43:DG43)-COUNTIF($BP43:DG43,"")+1),"") ->  | DI43: =IF(DI$14>=$AT43,INDEX(Break30,COLUMNS($BP43:DH43)-COUNTIF($BP43:DH43,"")+1),"") ->  | DJ43: =IF(DJ$14>=$AT43,INDEX(Break30,COLUMNS($BP43:DI43)-COUNTIF($BP43:DI43,"")+1),"") ->  | DK43: =IF(DK$14>=$AT43,INDEX(Break30,COLUMNS($BP43:DJ43)-COUNTIF($BP43:DJ43,"")+1),"") ->  | DL43: =IF(DL$14>=$AT43,INDEX(Break30,COLUMNS($BP43:DK43)-COUNTIF($BP43:DK43,"")+1),"") ->  | DM43: =IF(DM$14>=$AT43,INDEX(Break30,COLUMNS($BP43:DL43)-COUNTIF($BP43:DL43,"")+1),"") ->  | DN43: =IF(DN$14>=$AT43,INDEX(Break30,COLUMNS($BP43:DM43)-COUNTIF($BP43:DM43,"")+1),"") ->  | DO43: =IF(DO$14>=$AT43,INDEX(Break30,COLUMNS($BP43:DN43)-COUNTIF($BP43:DN43,"")+1),"") ->  | DP43: =IF(DP$14>=$AT43,INDEX(Break30,COLUMNS($BP43:DO43)-COUNTIF($BP43:DO43,"")+1),"") ->  | DQ43: =IF(DQ$14>=$AT43,INDEX(Break30,COLUMNS($BP43:DP43)-COUNTIF($BP43:DP43,"")+1),"") ->  | DR43: =IF(DR$14>=$AT43,INDEX(Break30,COLUMNS($BP43:DQ43)-COUNTIF($BP43:DQ43,"")+1),"") ->  | DS43: =IF(DS$14>=$AT43,INDEX(Break30,COLUMNS($BP43:DR43)-COUNTIF($BP43:DR43,"")+1),"") ->  | DT43: =IF(DT$14>=$AT43,INDEX(Break30,COLUMNS($BP43:DS43)-COUNTIF($BP43:DS43,"")+1),"") ->  | DU43: =IF(DU$14>=$AT43,INDEX(Break30,COLUMNS($BP43:DT43)-COUNTIF($BP43:DT43,"")+1),"") ->  | DV43: =IF(DV$14>=$AT43,INDEX(Break30,COLUMNS($BP43:DU43)-COUNTIF($BP43:DU43,"")+1),"") ->  | DW43: =IF(DW$14>=$AT43,INDEX(Break30,COLUMNS($BP43:DV43)-COUNTIF($BP43:DV43,"")+1),"") ->  | DX43: =IF(DX$14>=$AT43,INDEX(Break30,COLUMNS($BP43:DW43)-COUNTIF($BP43:DW43,"")+1),"") ->  | DY43: =IF(DY$14>=$AT43,INDEX(Break30,COLUMNS($BP43:DX43)-COUNTIF($BP43:DX43,"")+1),"") ->  | DZ43: =IF(DZ$14>=$AT43,INDEX(Break30,COLUMNS($BP43:DY43)-COUNTIF($BP43:DY43,"")+1),"") ->  | EA43: =IF(EA$14>=$AT43,INDEX(Break30,COLUMNS($BP43:DZ43)-COUNTIF($BP43:DZ43,"")+1),"") ->  | EB43: =IF(EB$14>=$AT43,INDEX(Break30,COLUMNS($BP43:EA43)-COUNTIF($BP43:EA43,"")+1),"") ->  | EC43: =IF(EC$14>=$AT43,INDEX(Break30,COLUMNS($BP43:EB43)-COUNTIF($BP43:EB43,"")+1),"") ->  | ED43: =IF(ED$14>=$AT43,INDEX(Break30,COLUMNS($BP43:EC43)-COUNTIF($BP43:EC43,"")+1),"") ->  | EE43: =IF(EE$14>=$AT43,INDEX(Break30,COLUMNS($BP43:ED43)-COUNTIF($BP43:ED43,"")+1),"") ->  | EF43: =IF(EF$14>=$AT43,INDEX(Break30,COLUMNS($BP43:EE43)-COUNTIF($BP43:EE43,"")+1),"") ->  | EG43: =IF(EG$14>=$AT43,INDEX(Break30,COLUMNS($BP43:EF43)-COUNTIF($BP43:EF43,"")+1),"") ->  | EH43: =IF(EH$14>=$AT43,INDEX(Break30,COLUMNS($BP43:EG43)-COUNTIF($BP43:EG43,"")+1),"") ->  | EI43: =IF(EI$14>=$AT43,INDEX(Break30,COLUMNS($BP43:EH43)-COUNTIF($BP43:EH43,"")+1),"") ->  | EK43: 2023 | EL43: 25 | EM43: 1 | EN43: 1 | EO43: 1 | EP43: 1 | EQ43: 1 | ER43: 1 | ES43: 1 | ET43: 1 | EU43: 1 | EV43: 1 | EW43: 1 | EX43: 1 | EY43: 1 | EZ43: 1 | FA43: 1 | FB43: 1 | FC43: 1 | FD43: 1 | FE43: 1
B44: Project 30 | C44: Project 30 | D44: Company 30 | E44: Infrastructure | F44: 72 | G44: Construction | H44: 2023 | I44: 1 | J44: 4 | K44: 30 | L44: 2025 | M44: 25 | N44: 0 | O44: 0.01 | P44: 0.99 | AO44: Project 30 | AP44: ='Master Sheet - Project Info'!$H44 -> 2023 | AQ44: ='Master Sheet - Project Info'!$I44 -> 1 | AR44: ='Master Sheet - Project Info'!$J44 -> 4 | AS44: ='Master Sheet - Project Info'!$K44 -> 30 | AT44: 2023 | AU44: 21 | AV44: 30 | AW44: 30 | AX44: 21 | AY44: 0 | AZ44: 0 | BA44: 0 | BB44: 0 | BC44: 0 | BD44: 0 | BE44: 0 | BF44: 0 | BG44: 0 | BH44: 0 | BI44: 0 | BJ44: 0 | BK44: 0 | BL44: 0 | BM44: 0 | BN44: 0 | BP44: =IF($BP$14>=AT44,INDEX(Break31,1),"") -> 21 | BQ44: =IF(BQ$14>=$AT44,INDEX(Break31,COLUMNS($BP44:BP44)-COUNTIF($BP44:BP44,"")+1),"") -> 30 | BR44: =IF(BR$14>=$AT44,INDEX(Break31,COLUMNS($BP44:BQ44)-COUNTIF($BP44:BQ44,"")+1),"") -> 30 | BS44: =IF(BS$14>=$AT44,INDEX(Break31,COLUMNS($BP44:BR44)-COUNTIF($BP44:BR44,"")+1),"") -> 21 | BT44: =IF(BT$14>=$AT44,INDEX(Break31,COLUMNS($BP44:BS44)-COUNTIF($BP44:BS44,"")+1),"") -> 0 | BU44: =IF(BU$14>=$AT44,INDEX(Break31,COLUMNS($BP44:BT44)-COUNTIF($BP44:BT44,"")+1),"") -> 0 | BV44: =IF(BV$14>=$AT44,INDEX(Break31,COLUMNS($BP44:BU44)-COUNTIF($BP44:BU44,"")+1),"") -> 0 | BW44: =IF(BW$14>=$AT44,INDEX(Break31,COLUMNS($BP44:BV44)-COUNTIF($BP44:BV44,"")+1),"") -> 0 | BX44: =IF(BX$14>=$AT44,INDEX(Break31,COLUMNS($BP44:BW44)-COUNTIF($BP44:BW44,"")+1),"") -> 0 | BY44: =IF(BY$14>=$AT44,INDEX(Break31,COLUMNS($BP44:BX44)-COUNTIF($BP44:BX44,"")+1),"") -> 0 | BZ44: =IF(BZ$14>=$AT44,INDEX(Break31,COLUMNS($BP44:BY44)-COUNTIF($BP44:BY44,"")+1),"") -> 0 | CA44: =IF(CA$14>=$AT44,INDEX(Break31,COLUMNS($BP44:BZ44)-COUNTIF($BP44:BZ44,"")+1),"") -> 0 | CB44: =IF(CB$14>=$AT44,INDEX(Break31,COLUMNS($BP44:CA44)-COUNTIF($BP44:CA44,"")+1),"") -> 0 | CC44: =IF(CC$14>=$AT44,INDEX(Break31,COLUMNS($BP44:CB44)-COUNTIF($BP44:CB44,"")+1),"") -> 0 | CD44: =IF(CD$14>=$AT44,INDEX(Break31,COLUMNS($BP44:CC44)-COUNTIF($BP44:CC44,"")+1),"") -> 0 | CE44: =IF(CE$14>=$AT44,INDEX(Break31,COLUMNS($BP44:CD44)-COUNTIF($BP44:CD44,"")+1),"") -> 0 | CF44: =IF(CF$14>=$AT44,INDEX(Break31,COLUMNS($BP44:CE44)-COUNTIF($BP44:CE44,"")+1),"") -> 0 | CG44: =IF(CG$14>=$AT44,INDEX(Break31,COLUMNS($BP44:CF44)-COUNTIF($BP44:CF44,"")+1),"") -> 0 | CH44: =IF(CH$14>=$AT44,INDEX(Break31,COLUMNS($BP44:CG44)-COUNTIF($BP44:CG44,"")+1),"") -> 0 | CI44: =IF(CI$14>=$AT44,INDEX(Break31,COLUMNS($BP44:CH44)-COUNTIF($BP44:CH44,"")+1),"") -> 0 | CJ44: =IF(CJ$14>=$AT44,INDEX(Break31,COLUMNS($BP44:CI44)-COUNTIF($BP44:CI44,"")+1),"") ->  | CK44: =IF(CK$14>=$AT44,INDEX(Break31,COLUMNS($BP44:CJ44)-COUNTIF($BP44:CJ44,"")+1),"") ->  | CL44: =IF(CL$14>=$AT44,INDEX(Break31,COLUMNS($BP44:CK44)-COUNTIF($BP44:CK44,"")+1),"") ->  | CM44: =IF(CM$14>=$AT44,INDEX(Break31,COLUMNS($BP44:CL44)-COUNTIF($BP44:CL44,"")+1),"") ->  | CN44: =IF(CN$14>=$AT44,INDEX(Break31,COLUMNS($BP44:CM44)-COUNTIF($BP44:CM44,"")+1),"") ->  | CO44: =IF(CO$14>=$AT44,INDEX(Break31,COLUMNS($BP44:CN44)-COUNTIF($BP44:CN44,"")+1),"") ->  | CP44: =IF(CP$14>=$AT44,INDEX(Break31,COLUMNS($BP44:CO44)-COUNTIF($BP44:CO44,"")+1),"") ->  | CQ44: =IF(CQ$14>=$AT44,INDEX(Break31,COLUMNS($BP44:CP44)-COUNTIF($BP44:CP44,"")+1),"") ->  | CR44: =IF(CR$14>=$AT44,INDEX(Break31,COLUMNS($BP44:CQ44)-COUNTIF($BP44:CQ44,"")+1),"") ->  | CS44: =IF(CS$14>=$AT44,INDEX(Break31,COLUMNS($BP44:CR44)-COUNTIF($BP44:CR44,"")+1),"") ->  | CT44: =IF(CT$14>=$AT44,INDEX(Break31,COLUMNS($BP44:CS44)-COUNTIF($BP44:CS44,"")+1),"") ->  | CU44: =IF(CU$14>=$AT44,INDEX(Break31,COLUMNS($BP44:CT44)-COUNTIF($BP44:CT44,"")+1),"") ->  | CV44: =IF(CV$14>=$AT44,INDEX(Break31,COLUMNS($BP44:CU44)-COUNTIF($BP44:CU44,"")+1),"") ->  | CW44: =IF(CW$14>=$AT44,INDEX(Break31,COLUMNS($BP44:CV44)-COUNTIF($BP44:CV44,"")+1),"") ->  | CX44: =IF(CX$14>=$AT44,INDEX(Break31,COLUMNS($BP44:CW44)-COUNTIF($BP44:CW44,"")+1),"") ->  | CY44: =IF(CY$14>=$AT44,INDEX(Break31,COLUMNS($BP44:CX44)-COUNTIF($BP44:CX44,"")+1),"") ->  | CZ44: =IF(CZ$14>=$AT44,INDEX(Break31,COLUMNS($BP44:CY44)-COUNTIF($BP44:CY44,"")+1),"") ->  | DA44: =IF(DA$14>=$AT44,INDEX(Break31,COLUMNS($BP44:CZ44)-COUNTIF($BP44:CZ44,"")+1),"") ->  | DB44: =IF(DB$14>=$AT44,INDEX(Break31,COLUMNS($BP44:DA44)-COUNTIF($BP44:DA44,"")+1),"") ->  | DC44: =IF(DC$14>=$AT44,INDEX(Break31,COLUMNS($BP44:DB44)-COUNTIF($BP44:DB44,"")+1),"") ->  | DD44: =IF(DD$14>=$AT44,INDEX(Break31,COLUMNS($BP44:DC44)-COUNTIF($BP44:DC44,"")+1),"") ->  | DE44: =IF(DE$14>=$AT44,INDEX(Break31,COLUMNS($BP44:DD44)-COUNTIF($BP44:DD44,"")+1),"") ->  | DF44: =IF(DF$14>=$AT44,INDEX(Break31,COLUMNS($BP44:DE44)-COUNTIF($BP44:DE44,"")+1),"") ->  | DG44: =IF(DG$14>=$AT44,INDEX(Break31,COLUMNS($BP44:DF44)-COUNTIF($BP44:DF44,"")+1),"") ->  | DH44: =IF(DH$14>=$AT44,INDEX(Break31,COLUMNS($BP44:DG44)-COUNTIF($BP44:DG44,"")+1),"") ->  | DI44: =IF(DI$14>=$AT44,INDEX(Break31,COLUMNS($BP44:DH44)-COUNTIF($BP44:DH44,"")+1),"") ->  | DJ44: =IF(DJ$14>=$AT44,INDEX(Break31,COLUMNS($BP44:DI44)-COUNTIF($BP44:DI44,"")+1),"") ->  | DK44: =IF(DK$14>=$AT44,INDEX(Break31,COLUMNS($BP44:DJ44)-COUNTIF($BP44:DJ44,"")+1),"") ->  | DL44: =IF(DL$14>=$AT44,INDEX(Break31,COLUMNS($BP44:DK44)-COUNTIF($BP44:DK44,"")+1),"") ->  | DM44: =IF(DM$14>=$AT44,INDEX(Break31,COLUMNS($BP44:DL44)-COUNTIF($BP44:DL44,"")+1),"") ->  | DN44: =IF(DN$14>=$AT44,INDEX(Break31,COLUMNS($BP44:DM44)-COUNTIF($BP44:DM44,"")+1),"") ->  | DO44: =IF(DO$14>=$AT44,INDEX(Break31,COLUMNS($BP44:DN44)-COUNTIF($BP44:DN44,"")+1),"") ->  | DP44: =IF(DP$14>=$AT44,INDEX(Break31,COLUMNS($BP44:DO44)-COUNTIF($BP44:DO44,"")+1),"") ->  | DQ44: =IF(DQ$14>=$AT44,INDEX(Break31,COLUMNS($BP44:DP44)-COUNTIF($BP44:DP44,"")+1),"") ->  | DR44: =IF(DR$14>=$AT44,INDEX(Break31,COLUMNS($BP44:DQ44)-COUNTIF($BP44:DQ44,"")+1),"") ->  | DS44: =IF(DS$14>=$AT44,INDEX(Break31,COLUMNS($BP44:DR44)-COUNTIF($BP44:DR44,"")+1),"") ->  | DT44: =IF(DT$14>=$AT44,INDEX(Break31,COLUMNS($BP44:DS44)-COUNTIF($BP44:DS44,"")+1),"") ->  | DU44: =IF(DU$14>=$AT44,INDEX(Break31,COLUMNS($BP44:DT44)-COUNTIF($BP44:DT44,"")+1),"") ->  | DV44: =IF(DV$14>=$AT44,INDEX(Break31,COLUMNS($BP44:DU44)-COUNTIF($BP44:DU44,"")+1),"") ->  | DW44: =IF(DW$14>=$AT44,INDEX(Break31,COLUMNS($BP44:DV44)-COUNTIF($BP44:DV44,"")+1),"") ->  | DX44: =IF(DX$14>=$AT44,INDEX(Break31,COLUMNS($BP44:DW44)-COUNTIF($BP44:DW44,"")+1),"") ->  | DY44: =IF(DY$14>=$AT44,INDEX(Break31,COLUMNS($BP44:DX44)-COUNTIF($BP44:DX44,"")+1),"") ->  | DZ44: =IF(DZ$14>=$AT44,INDEX(Break31,COLUMNS($BP44:DY44)-COUNTIF($BP44:DY44,"")+1),"") ->  | EA44: =IF(EA$14>=$AT44,INDEX(Break31,COLUMNS($BP44:DZ44)-COUNTIF($BP44:DZ44,"")+1),"") ->  | EB44: =IF(EB$14>=$AT44,INDEX(Break31,COLUMNS($BP44:EA44)-COUNTIF($BP44:EA44,"")+1),"") ->  | EC44: =IF(EC$14>=$AT44,INDEX(Break31,COLUMNS($BP44:EB44)-COUNTIF($BP44:EB44,"")+1),"") ->  | ED44: =IF(ED$14>=$AT44,INDEX(Break31,COLUMNS($BP44:EC44)-COUNTIF($BP44:EC44,"")+1),"") ->  | EE44: =IF(EE$14>=$AT44,INDEX(Break31,COLUMNS($BP44:ED44)-COUNTIF($BP44:ED44,"")+1),"") ->  | EF44: =IF(EF$14>=$AT44,INDEX(Break31,COLUMNS($BP44:EE44)-COUNTIF($BP44:EE44,"")+1),"") ->  | EG44: =IF(EG$14>=$AT44,INDEX(Break31,COLUMNS($BP44:EF44)-COUNTIF($BP44:EF44,"")+1),"") ->  | EH44: =IF(EH$14>=$AT44,INDEX(Break31,COLUMNS($BP44:EG44)-COUNTIF($BP44:EG44,"")+1),"") ->  | EI44: =IF(EI$14>=$AT44,INDEX(Break31,COLUMNS($BP44:EH44)-COUNTIF($BP44:EH44,"")+1),"") ->  | EK44: 2025 | EL44: 25 | EM44: 0 | EP44: 0 | EQ44: 0 | ER44: 0 | ES44: 0 | ET44: 0 | EU44: 0 | EV44: 0 | EW44: 0 | EX44: 0 | EY44: 0 | EZ44: 0 | FA44: 0 | FB44: 0 | FC44: 0 | FD44: 0 | FE44: 0
B45: Project 31 | C45: Project 31 | D45: Company 31 | E45: Transport | F45: 6 | G45: Construction | H45: 2024 | I45: 1 | J45: 4 | K45: 20 | L45: 2025 | M45: 25 | N45: 0 | O45: 0.01 | P45: 0.99 | AO45: Project 31 | AP45: ='Master Sheet - Project Info'!$H45 -> 2024 | AQ45: ='Master Sheet - Project Info'!$I45 -> 1 | AR45: ='Master Sheet - Project Info'!$J45 -> 4 | AS45: ='Master Sheet - Project Info'!$K45 -> 20 | AT45: 2024 | AU45: 14 | AV45: 20 | AW45: 20 | AX45: 14 | AY45: 0 | AZ45: 0 | BA45: 0 | BB45: 0 | BC45: 0 | BD45: 0 | BE45: 0 | BF45: 0 | BG45: 0 | BH45: 0 | BI45: 0 | BJ45: 0 | BK45: 0 | BL45: 0 | BM45: 0 | BN45: 0 | BP45: =IF($BP$14>=AT45,INDEX(Break32,1),"") ->  | BQ45: =IF(BQ$14>=$AT45,INDEX(Break32,COLUMNS($BP45:BP45)-COUNTIF($BP45:BP45,"")+1),"") ->  | BR45: =IF(BR$14>=$AT45,INDEX(Break32,COLUMNS($BP45:BQ45)-COUNTIF($BP45:BQ45,"")+1),"") ->  | BS45: =IF(BS$14>=$AT45,INDEX(Break32,COLUMNS($BP45:BR45)-COUNTIF($BP45:BR45,"")+1),"") ->  | BT45: =IF(BT$14>=$AT45,INDEX(Break32,COLUMNS($BP45:BS45)-COUNTIF($BP45:BS45,"")+1),"") -> 14 | BU45: =IF(BU$14>=$AT45,INDEX(Break32,COLUMNS($BP45:BT45)-COUNTIF($BP45:BT45,"")+1),"") -> 20 | BV45: =IF(BV$14>=$AT45,INDEX(Break32,COLUMNS($BP45:BU45)-COUNTIF($BP45:BU45,"")+1),"") -> 20 | BW45: =IF(BW$14>=$AT45,INDEX(Break32,COLUMNS($BP45:BV45)-COUNTIF($BP45:BV45,"")+1),"") -> 14 | BX45: =IF(BX$14>=$AT45,INDEX(Break32,COLUMNS($BP45:BW45)-COUNTIF($BP45:BW45,"")+1),"") -> 0 | BY45: =IF(BY$14>=$AT45,INDEX(Break32,COLUMNS($BP45:BX45)-COUNTIF($BP45:BX45,"")+1),"") -> 0 | BZ45: =IF(BZ$14>=$AT45,INDEX(Break32,COLUMNS($BP45:BY45)-COUNTIF($BP45:BY45,"")+1),"") -> 0 | CA45: =IF(CA$14>=$AT45,INDEX(Break32,COLUMNS($BP45:BZ45)-COUNTIF($BP45:BZ45,"")+1),"") -> 0 | CB45: =IF(CB$14>=$AT45,INDEX(Break32,COLUMNS($BP45:CA45)-COUNTIF($BP45:CA45,"")+1),"") -> 0 | CC45: =IF(CC$14>=$AT45,INDEX(Break32,COLUMNS($BP45:CB45)-COUNTIF($BP45:CB45,"")+1),"") -> 0 | CD45: =IF(CD$14>=$AT45,INDEX(Break32,COLUMNS($BP45:CC45)-COUNTIF($BP45:CC45,"")+1),"") -> 0 | CE45: =IF(CE$14>=$AT45,INDEX(Break32,COLUMNS($BP45:CD45)-COUNTIF($BP45:CD45,"")+1),"") -> 0 | CF45: =IF(CF$14>=$AT45,INDEX(Break32,COLUMNS($BP45:CE45)-COUNTIF($BP45:CE45,"")+1),"") -> 0 | CG45: =IF(CG$14>=$AT45,INDEX(Break32,COLUMNS($BP45:CF45)-COUNTIF($BP45:CF45,"")+1),"") -> 0 | CH45: =IF(CH$14>=$AT45,INDEX(Break32,COLUMNS($BP45:CG45)-COUNTIF($BP45:CG45,"")+1),"") -> 0 | CI45: =IF(CI$14>=$AT45,INDEX(Break32,COLUMNS($BP45:CH45)-COUNTIF($BP45:CH45,"")+1),"") -> 0 | CJ45: =IF(CJ$14>=$AT45,INDEX(Break32,COLUMNS($BP45:CI45)-COUNTIF($BP45:CI45,"")+1),"") -> 0 | CK45: =IF(CK$14>=$AT45,INDEX(Break32,COLUMNS($BP45:CJ45)-COUNTIF($BP45:CJ45,"")+1),"") -> 0 | CL45: =IF(CL$14>=$AT45,INDEX(Break32,COLUMNS($BP45:CK45)-COUNTIF($BP45:CK45,"")+1),"") -> 0 | CM45: =IF(CM$14>=$AT45,INDEX(Break32,COLUMNS($BP45:CL45)-COUNTIF($BP45:CL45,"")+1),"") -> 0 | CN45: =IF(CN$14>=$AT45,INDEX(Break32,COLUMNS($BP45:CM45)-COUNTIF($BP45:CM45,"")+1),"") ->  | CO45: =IF(CO$14>=$AT45,INDEX(Break32,COLUMNS($BP45:CN45)-COUNTIF($BP45:CN45,"")+1),"") ->  | CP45: =IF(CP$14>=$AT45,INDEX(Break32,COLUMNS($BP45:CO45)-COUNTIF($BP45:CO45,"")+1),"") ->  | CQ45: =IF(CQ$14>=$AT45,INDEX(Break32,COLUMNS($BP45:CP45)-COUNTIF($BP45:CP45,"")+1),"") ->  | CR45: =IF(CR$14>=$AT45,INDEX(Break32,COLUMNS($BP45:CQ45)-COUNTIF($BP45:CQ45,"")+1),"") ->  | CS45: =IF(CS$14>=$AT45,INDEX(Break32,COLUMNS($BP45:CR45)-COUNTIF($BP45:CR45,"")+1),"") ->  | CT45: =IF(CT$14>=$AT45,INDEX(Break32,COLUMNS($BP45:CS45)-COUNTIF($BP45:CS45,"")+1),"") ->  | CU45: =IF(CU$14>=$AT45,INDEX(Break32,COLUMNS($BP45:CT45)-COUNTIF($BP45:CT45,"")+1),"") ->  | CV45: =IF(CV$14>=$AT45,INDEX(Break32,COLUMNS($BP45:CU45)-COUNTIF($BP45:CU45,"")+1),"") ->  | CW45: =IF(CW$14>=$AT45,INDEX(Break32,COLUMNS($BP45:CV45)-COUNTIF($BP45:CV45,"")+1),"") ->  | CX45: =IF(CX$14>=$AT45,INDEX(Break32,COLUMNS($BP45:CW45)-COUNTIF($BP45:CW45,"")+1),"") ->  | CY45: =IF(CY$14>=$AT45,INDEX(Break32,COLUMNS($BP45:CX45)-COUNTIF($BP45:CX45,"")+1),"") ->  | CZ45: =IF(CZ$14>=$AT45,INDEX(Break32,COLUMNS($BP45:CY45)-COUNTIF($BP45:CY45,"")+1),"") ->  | DA45: =IF(DA$14>=$AT45,INDEX(Break32,COLUMNS($BP45:CZ45)-COUNTIF($BP45:CZ45,"")+1),"") ->  | DB45: =IF(DB$14>=$AT45,INDEX(Break32,COLUMNS($BP45:DA45)-COUNTIF($BP45:DA45,"")+1),"") ->  | DC45: =IF(DC$14>=$AT45,INDEX(Break32,COLUMNS($BP45:DB45)-COUNTIF($BP45:DB45,"")+1),"") ->  | DD45: =IF(DD$14>=$AT45,INDEX(Break32,COLUMNS($BP45:DC45)-COUNTIF($BP45:DC45,"")+1),"") ->  | DE45: =IF(DE$14>=$AT45,INDEX(Break32,COLUMNS($BP45:DD45)-COUNTIF($BP45:DD45,"")+1),"") ->  | DF45: =IF(DF$14>=$AT45,INDEX(Break32,COLUMNS($BP45:DE45)-COUNTIF($BP45:DE45,"")+1),"") ->  | DG45: =IF(DG$14>=$AT45,INDEX(Break32,COLUMNS($BP45:DF45)-COUNTIF($BP45:DF45,"")+1),"") ->  | DH45: =IF(DH$14>=$AT45,INDEX(Break32,COLUMNS($BP45:DG45)-COUNTIF($BP45:DG45,"")+1),"") ->  | DI45: =IF(DI$14>=$AT45,INDEX(Break32,COLUMNS($BP45:DH45)-COUNTIF($BP45:DH45,"")+1),"") ->  | DJ45: =IF(DJ$14>=$AT45,INDEX(Break32,COLUMNS($BP45:DI45)-COUNTIF($BP45:DI45,"")+1),"") ->  | DK45: =IF(DK$14>=$AT45,INDEX(Break32,COLUMNS($BP45:DJ45)-COUNTIF($BP45:DJ45,"")+1),"") ->  | DL45: =IF(DL$14>=$AT45,INDEX(Break32,COLUMNS($BP45:DK45)-COUNTIF($BP45:DK45,"")+1),"") ->  | DM45: =IF(DM$14>=$AT45,INDEX(Break32,COLUMNS($BP45:DL45)-COUNTIF($BP45:DL45,"")+1),"") ->  | DN45: =IF(DN$14>=$AT45,INDEX(Break32,COLUMNS($BP45:DM45)-COUNTIF($BP45:DM45,"")+1),"") ->  | DO45: =IF(DO$14>=$AT45,INDEX(Break32,COLUMNS($BP45:DN45)-COUNTIF($BP45:DN45,"")+1),"") ->  | DP45: =IF(DP$14>=$AT45,INDEX(Break32,COLUMNS($BP45:DO45)-COUNTIF($BP45:DO45,"")+1),"") ->  | DQ45: =IF(DQ$14>=$AT45,INDEX(Break32,COLUMNS($BP45:DP45)-COUNTIF($BP45:DP45,"")+1),"") ->  | DR45: =IF(DR$14>=$AT45,INDEX(Break32,COLUMNS($BP45:DQ45)-COUNTIF($BP45:DQ45,"")+1),"") ->  | DS45: =IF(DS$14>=$AT45,INDEX(Break32,COLUMNS($BP45:DR45)-COUNTIF($BP45:DR45,"")+1),"") ->  | DT45: =IF(DT$14>=$AT45,INDEX(Break32,COLUMNS($BP45:DS45)-COUNTIF($BP45:DS45,"")+1),"") ->  | DU45: =IF(DU$14>=$AT45,INDEX(Break32,COLUMNS($BP45:DT45)-COUNTIF($BP45:DT45,"")+1),"") ->  | DV45: =IF(DV$14>=$AT45,INDEX(Break32,COLUMNS($BP45:DU45)-COUNTIF($BP45:DU45,"")+1),"") ->  | DW45: =IF(DW$14>=$AT45,INDEX(Break32,COLUMNS($BP45:DV45)-COUNTIF($BP45:DV45,"")+1),"") ->  | DX45: =IF(DX$14>=$AT45,INDEX(Break32,COLUMNS($BP45:DW45)-COUNTIF($BP45:DW45,"")+1),"") ->  | DY45: =IF(DY$14>=$AT45,INDEX(Break32,COLUMNS($BP45:DX45)-COUNTIF($BP45:DX45,"")+1),"") ->  | DZ45: =IF(DZ$14>=$AT45,INDEX(Break32,COLUMNS($BP45:DY45)-COUNTIF($BP45:DY45,"")+1),"") ->  | EA45: =IF(EA$14>=$AT45,INDEX(Break32,COLUMNS($BP45:DZ45)-COUNTIF($BP45:DZ45,"")+1),"") ->  | EB45: =IF(EB$14>=$AT45,INDEX(Break32,COLUMNS($BP45:EA45)-COUNTIF($BP45:EA45,"")+1),"") ->  | EC45: =IF(EC$14>=$AT45,INDEX(Break32,COLUMNS($BP45:EB45)-COUNTIF($BP45:EB45,"")+1),"") ->  | ED45: =IF(ED$14>=$AT45,INDEX(Break32,COLUMNS($BP45:EC45)-COUNTIF($BP45:EC45,"")+1),"") ->  | EE45: =IF(EE$14>=$AT45,INDEX(Break32,COLUMNS($BP45:ED45)-COUNTIF($BP45:ED45,"")+1),"") ->  | EF45: =IF(EF$14>=$AT45,INDEX(Break32,COLUMNS($BP45:EE45)-COUNTIF($BP45:EE45,"")+1),"") ->  | EG45: =IF(EG$14>=$AT45,INDEX(Break32,COLUMNS($BP45:EF45)-COUNTIF($BP45:EF45,"")+1),"") ->  | EH45: =IF(EH$14>=$AT45,INDEX(Break32,COLUMNS($BP45:EG45)-COUNTIF($BP45:EG45,"")+1),"") ->  | EI45: =IF(EI$14>=$AT45,INDEX(Break32,COLUMNS($BP45:EH45)-COUNTIF($BP45:EH45,"")+1),"") ->  | EK45: 2025 | EL45: 25 | EM45: 0 | EP45: 0 | EQ45: 0 | ER45: 0 | ES45: 0 | ET45: 0 | EU45: 0 | EV45: 0 | EW45: 0 | EX45: 0 | EY45: 0 | EZ45: 0 | FA45: 0 | FB45: 0 | FC45: 0 | FD45: 0 | FE45: 0
B46: Project 32 | C46: Project 32 | D46: Company 32 | E46: Infrastructure | F46: 4 | G46: Construction | H46: 2023 | I46: 3 | J46: 8 | K46: 20 | L46: 2025 | M46: 25 | N46: 0 | O46: 0.01 | P46: 0.99 | AO46: Project 32 | AP46: ='Master Sheet - Project Info'!$H46 -> 2023 | AQ46: ='Master Sheet - Project Info'!$I46 -> 3 | AR46: ='Master Sheet - Project Info'!$J46 -> 8 | AS46: ='Master Sheet - Project Info'!$K46 -> 20 | AT46: 2023.5 | AU46: 10 | AV46: 12 | AW46: 14 | AX46: 20 | AY46: 20 | AZ46: 14 | BA46: 12 | BB46: 10 | BC46: 0 | BD46: 0 | BE46: 0 | BF46: 0 | BG46: 0 | BH46: 0 | BI46: 0 | BJ46: 0 | BK46: 0 | BL46: 0 | BM46: 0 | BN46: 0 | BP46: =IF($BP$14>=AT46,INDEX(Break33,1),"") ->  | BQ46: =IF(BQ$14>=$AT46,INDEX(Break33,COLUMNS($BP46:BP46)-COUNTIF($BP46:BP46,"")+1),"") ->  | BR46: =IF(BR$14>=$AT46,INDEX(Break33,COLUMNS($BP46:BQ46)-COUNTIF($BP46:BQ46,"")+1),"") -> 10 | BS46: =IF(BS$14>=$AT46,INDEX(Break33,COLUMNS($BP46:BR46)-COUNTIF($BP46:BR46,"")+1),"") -> 12 | BT46: =IF(BT$14>=$AT46,INDEX(Break33,COLUMNS($BP46:BS46)-COUNTIF($BP46:BS46,"")+1),"") -> 14 | BU46: =IF(BU$14>=$AT46,INDEX(Break33,COLUMNS($BP46:BT46)-COUNTIF($BP46:BT46,"")+1),"") -> 20 | BV46: =IF(BV$14>=$AT46,INDEX(Break33,COLUMNS($BP46:BU46)-COUNTIF($BP46:BU46,"")+1),"") -> 20 | BW46: =IF(BW$14>=$AT46,INDEX(Break33,COLUMNS($BP46:BV46)-COUNTIF($BP46:BV46,"")+1),"") -> 14 | BX46: =IF(BX$14>=$AT46,INDEX(Break33,COLUMNS($BP46:BW46)-COUNTIF($BP46:BW46,"")+1),"") -> 12 | BY46: =IF(BY$14>=$AT46,INDEX(Break33,COLUMNS($BP46:BX46)-COUNTIF($BP46:BX46,"")+1),"") -> 10 | BZ46: =IF(BZ$14>=$AT46,INDEX(Break33,COLUMNS($BP46:BY46)-COUNTIF($BP46:BY46,"")+1),"") -> 0 | CA46: =IF(CA$14>=$AT46,INDEX(Break33,COLUMNS($BP46:BZ46)-COUNTIF($BP46:BZ46,"")+1),"") -> 0 | CB46: =IF(CB$14>=$AT46,INDEX(Break33,COLUMNS($BP46:CA46)-COUNTIF($BP46:CA46,"")+1),"") -> 0 | CC46: =IF(CC$14>=$AT46,INDEX(Break33,COLUMNS($BP46:CB46)-COUNTIF($BP46:CB46,"")+1),"") -> 0 | CD46: =IF(CD$14>=$AT46,INDEX(Break33,COLUMNS($BP46:CC46)-COUNTIF($BP46:CC46,"")+1),"") -> 0 | CE46: =IF(CE$14>=$AT46,INDEX(Break33,COLUMNS($BP46:CD46)-COUNTIF($BP46:CD46,"")+1),"") -> 0 | CF46: =IF(CF$14>=$AT46,INDEX(Break33,COLUMNS($BP46:CE46)-COUNTIF($BP46:CE46,"")+1),"") -> 0 | CG46: =IF(CG$14>=$AT46,INDEX(Break33,COLUMNS($BP46:CF46)-COUNTIF($BP46:CF46,"")+1),"") -> 0 | CH46: =IF(CH$14>=$AT46,INDEX(Break33,COLUMNS($BP46:CG46)-COUNTIF($BP46:CG46,"")+1),"") -> 0 | CI46: =IF(CI$14>=$AT46,INDEX(Break33,COLUMNS($BP46:CH46)-COUNTIF($BP46:CH46,"")+1),"") -> 0 | CJ46: =IF(CJ$14>=$AT46,INDEX(Break33,COLUMNS($BP46:CI46)-COUNTIF($BP46:CI46,"")+1),"") -> 0 | CK46: =IF(CK$14>=$AT46,INDEX(Break33,COLUMNS($BP46:CJ46)-COUNTIF($BP46:CJ46,"")+1),"") -> 0 | CL46: =IF(CL$14>=$AT46,INDEX(Break33,COLUMNS($BP46:CK46)-COUNTIF($BP46:CK46,"")+1),"") ->  | CM46: =IF(CM$14>=$AT46,INDEX(Break33,COLUMNS($BP46:CL46)-COUNTIF($BP46:CL46,"")+1),"") ->  | CN46: =IF(CN$14>=$AT46,INDEX(Break33,COLUMNS($BP46:CM46)-COUNTIF($BP46:CM46,"")+1),"") ->  | CO46: =IF(CO$14>=$AT46,INDEX(Break33,COLUMNS($BP46:CN46)-COUNTIF($BP46:CN46,"")+1),"") ->  | CP46: =IF(CP$14>=$AT46,INDEX(Break33,COLUMNS($BP46:CO46)-COUNTIF($BP46:CO46,"")+1),"") ->  | CQ46: =IF(CQ$14>=$AT46,INDEX(Break33,COLUMNS($BP46:CP46)-COUNTIF($BP46:CP46,"")+1),"") ->  | CR46: =IF(CR$14>=$AT46,INDEX(Break33,COLUMNS($BP46:CQ46)-COUNTIF($BP46:CQ46,"")+1),"") ->  | CS46: =IF(CS$14>=$AT46,INDEX(Break33,COLUMNS($BP46:CR46)-COUNTIF($BP46:CR46,"")+1),"") ->  | CT46: =IF(CT$14>=$AT46,INDEX(Break33,COLUMNS($BP46:CS46)-COUNTIF($BP46:CS46,"")+1),"") ->  | CU46: =IF(CU$14>=$AT46,INDEX(Break33,COLUMNS($BP46:CT46)-COUNTIF($BP46:CT46,"")+1),"") ->  | CV46: =IF(CV$14>=$AT46,INDEX(Break33,COLUMNS($BP46:CU46)-COUNTIF($BP46:CU46,"")+1),"") ->  | CW46: =IF(CW$14>=$AT46,INDEX(Break33,COLUMNS($BP46:CV46)-COUNTIF($BP46:CV46,"")+1),"") ->  | CX46: =IF(CX$14>=$AT46,INDEX(Break33,COLUMNS($BP46:CW46)-COUNTIF($BP46:CW46,"")+1),"") ->  | CY46: =IF(CY$14>=$AT46,INDEX(Break33,COLUMNS($BP46:CX46)-COUNTIF($BP46:CX46,"")+1),"") ->  | CZ46: =IF(CZ$14>=$AT46,INDEX(Break33,COLUMNS($BP46:CY46)-COUNTIF($BP46:CY46,"")+1),"") ->  | DA46: =IF(DA$14>=$AT46,INDEX(Break33,COLUMNS($BP46:CZ46)-COUNTIF($BP46:CZ46,"")+1),"") ->  | DB46: =IF(DB$14>=$AT46,INDEX(Break33,COLUMNS($BP46:DA46)-COUNTIF($BP46:DA46,"")+1),"") ->  | DC46: =IF(DC$14>=$AT46,INDEX(Break33,COLUMNS($BP46:DB46)-COUNTIF($BP46:DB46,"")+1),"") ->  | DD46: =IF(DD$14>=$AT46,INDEX(Break33,COLUMNS($BP46:DC46)-COUNTIF($BP46:DC46,"")+1),"") ->  | DE46: =IF(DE$14>=$AT46,INDEX(Break33,COLUMNS($BP46:DD46)-COUNTIF($BP46:DD46,"")+1),"") ->  | DF46: =IF(DF$14>=$AT46,INDEX(Break33,COLUMNS($BP46:DE46)-COUNTIF($BP46:DE46,"")+1),"") ->  | DG46: =IF(DG$14>=$AT46,INDEX(Break33,COLUMNS($BP46:DF46)-COUNTIF($BP46:DF46,"")+1),"") ->  | DH46: =IF(DH$14>=$AT46,INDEX(Break33,COLUMNS($BP46:DG46)-COUNTIF($BP46:DG46,"")+1),"") ->  | DI46: =IF(DI$14>=$AT46,INDEX(Break33,COLUMNS($BP46:DH46)-COUNTIF($BP46:DH46,"")+1),"") ->  | DJ46: =IF(DJ$14>=$AT46,INDEX(Break33,COLUMNS($BP46:DI46)-COUNTIF($BP46:DI46,"")+1),"") ->  | DK46: =IF(DK$14>=$AT46,INDEX(Break33,COLUMNS($BP46:DJ46)-COUNTIF($BP46:DJ46,"")+1),"") ->  | DL46: =IF(DL$14>=$AT46,INDEX(Break33,COLUMNS($BP46:DK46)-COUNTIF($BP46:DK46,"")+1),"") ->  | DM46: =IF(DM$14>=$AT46,INDEX(Break33,COLUMNS($BP46:DL46)-COUNTIF($BP46:DL46,"")+1),"") ->  | DN46: =IF(DN$14>=$AT46,INDEX(Break33,COLUMNS($BP46:DM46)-COUNTIF($BP46:DM46,"")+1),"") ->  | DO46: =IF(DO$14>=$AT46,INDEX(Break33,COLUMNS($BP46:DN46)-COUNTIF($BP46:DN46,"")+1),"") ->  | DP46: =IF(DP$14>=$AT46,INDEX(Break33,COLUMNS($BP46:DO46)-COUNTIF($BP46:DO46,"")+1),"") ->  | DQ46: =IF(DQ$14>=$AT46,INDEX(Break33,COLUMNS($BP46:DP46)-COUNTIF($BP46:DP46,"")+1),"") ->  | DR46: =IF(DR$14>=$AT46,INDEX(Break33,COLUMNS($BP46:DQ46)-COUNTIF($BP46:DQ46,"")+1),"") ->  | DS46: =IF(DS$14>=$AT46,INDEX(Break33,COLUMNS($BP46:DR46)-COUNTIF($BP46:DR46,"")+1),"") ->  | DT46: =IF(DT$14>=$AT46,INDEX(Break33,COLUMNS($BP46:DS46)-COUNTIF($BP46:DS46,"")+1),"") ->  | DU46: =IF(DU$14>=$AT46,INDEX(Break33,COLUMNS($BP46:DT46)-COUNTIF($BP46:DT46,"")+1),"") ->  | DV46: =IF(DV$14>=$AT46,INDEX(Break33,COLUMNS($BP46:DU46)-COUNTIF($BP46:DU46,"")+1),"") ->  | DW46: =IF(DW$14>=$AT46,INDEX(Break33,COLUMNS($BP46:DV46)-COUNTIF($BP46:DV46,"")+1),"") ->  | DX46: =IF(DX$14>=$AT46,INDEX(Break33,COLUMNS($BP46:DW46)-COUNTIF($BP46:DW46,"")+1),"") ->  | DY46: =IF(DY$14>=$AT46,INDEX(Break33,COLUMNS($BP46:DX46)-COUNTIF($BP46:DX46,"")+1),"") ->  | DZ46: =IF(DZ$14>=$AT46,INDEX(Break33,COLUMNS($BP46:DY46)-COUNTIF($BP46:DY46,"")+1),"") ->  | EA46: =IF(EA$14>=$AT46,INDEX(Break33,COLUMNS($BP46:DZ46)-COUNTIF($BP46:DZ46,"")+1),"") ->  | EB46: =IF(EB$14>=$AT46,INDEX(Break33,COLUMNS($BP46:EA46)-COUNTIF($BP46:EA46,"")+1),"") ->  | EC46: =IF(EC$14>=$AT46,INDEX(Break33,COLUMNS($BP46:EB46)-COUNTIF($BP46:EB46,"")+1),"") ->  | ED46: =IF(ED$14>=$AT46,INDEX(Break33,COLUMNS($BP46:EC46)-COUNTIF($BP46:EC46,"")+1),"") ->  | EE46: =IF(EE$14>=$AT46,INDEX(Break33,COLUMNS($BP46:ED46)-COUNTIF($BP46:ED46,"")+1),"") ->  | EF46: =IF(EF$14>=$AT46,INDEX(Break33,COLUMNS($BP46:EE46)-COUNTIF($BP46:EE46,"")+1),"") ->  | EG46: =IF(EG$14>=$AT46,INDEX(Break33,COLUMNS($BP46:EF46)-COUNTIF($BP46:EF46,"")+1),"") ->  | EH46: =IF(EH$14>=$AT46,INDEX(Break33,COLUMNS($BP46:EG46)-COUNTIF($BP46:EG46,"")+1),"") ->  | EI46: =IF(EI$14>=$AT46,INDEX(Break33,COLUMNS($BP46:EH46)-COUNTIF($BP46:EH46,"")+1),"") ->  | EK46: 2025 | EL46: 25 | EM46: 0 | EP46: 0 | EQ46: 0 | ER46: 0 | ES46: =IF($EL46>1,IF(AND(ES$14>=$EK46,ES$14<$EK46+$EL46),IF(ES$14=$EK46,$EM46,$EM46),"")) -> 0 | ET46: 0 | EU46: 0 | EV46: 0 | EW46: 0 | EX46: 0 | EY46: 0 | EZ46: 0 | FA46: 0 | FB46: 0 | FC46: 0 | FD46: 0 | FE46: 0
B47: Project 33 | C47: Project 33 | D47: Company 33 | E47: Infrastructure | F47: 4 | G47: Construction | H47: 2023 | I47: 4 | J47: 8 | K47: 20 | L47: 2025 | M47: 25 | N47: 0 | O47: 0.01 | P47: 0.99 | AO47: Project 33 | AP47: ='Master Sheet - Project Info'!$H47 -> 2023 | AQ47: ='Master Sheet - Project Info'!$I47 -> 4 | AR47: ='Master Sheet - Project Info'!$J47 -> 8 | AS47: ='Master Sheet - Project Info'!$K47 -> 20 | AT47: 2023.75 | AU47: 10 | AV47: 12 | AW47: 14 | AX47: 20 | AY47: 20 | AZ47: 14 | BA47: 12 | BB47: 10 | BC47: 0 | BD47: 0 | BE47: 0 | BF47: 0 | BG47: 0 | BH47: 0 | BI47: 0 | BJ47: 0 | BK47: 0 | BL47: 0 | BM47: 0 | BN47: 0 | BP47: =IF($BP$14>=AT47,INDEX(Break34,1),"") ->  | BQ47: =IF(BQ$14>=$AT47,INDEX(Break34,COLUMNS($BP47:BP47)-COUNTIF($BP47:BP47,"")+1),"") ->  | BR47: =IF(BR$14>=$AT47,INDEX(Break34,COLUMNS($BP47:BQ47)-COUNTIF($BP47:BQ47,"")+1),"") ->  | BS47: =IF(BS$14>=$AT47,INDEX(Break34,COLUMNS($BP47:BR47)-COUNTIF($BP47:BR47,"")+1),"") -> 10 | BT47: =IF(BT$14>=$AT47,INDEX(Break34,COLUMNS($BP47:BS47)-COUNTIF($BP47:BS47,"")+1),"") -> 12 | BU47: =IF(BU$14>=$AT47,INDEX(Break34,COLUMNS($BP47:BT47)-COUNTIF($BP47:BT47,"")+1),"") -> 14 | BV47: =IF(BV$14>=$AT47,INDEX(Break34,COLUMNS($BP47:BU47)-COUNTIF($BP47:BU47,"")+1),"") -> 20 | BW47: =IF(BW$14>=$AT47,INDEX(Break34,COLUMNS($BP47:BV47)-COUNTIF($BP47:BV47,"")+1),"") -> 20 | BX47: =IF(BX$14>=$AT47,INDEX(Break34,COLUMNS($BP47:BW47)-COUNTIF($BP47:BW47,"")+1),"") -> 14 | BY47: =IF(BY$14>=$AT47,INDEX(Break34,COLUMNS($BP47:BX47)-COUNTIF($BP47:BX47,"")+1),"") -> 12 | BZ47: =IF(BZ$14>=$AT47,INDEX(Break34,COLUMNS($BP47:BY47)-COUNTIF($BP47:BY47,"")+1),"") -> 10 | CA47: =IF(CA$14>=$AT47,INDEX(Break34,COLUMNS($BP47:BZ47)-COUNTIF($BP47:BZ47,"")+1),"") -> 0 | CB47: =IF(CB$14>=$AT47,INDEX(Break34,COLUMNS($BP47:CA47)-COUNTIF($BP47:CA47,"")+1),"") -> 0 | CC47: =IF(CC$14>=$AT47,INDEX(Break34,COLUMNS($BP47:CB47)-COUNTIF($BP47:CB47,"")+1),"") -> 0 | CD47: =IF(CD$14>=$AT47,INDEX(Break34,COLUMNS($BP47:CC47)-COUNTIF($BP47:CC47,"")+1),"") -> 0 | CE47: =IF(CE$14>=$AT47,INDEX(Break34,COLUMNS($BP47:CD47)-COUNTIF($BP47:CD47,"")+1),"") -> 0 | CF47: =IF(CF$14>=$AT47,INDEX(Break34,COLUMNS($BP47:CE47)-COUNTIF($BP47:CE47,"")+1),"") -> 0 | CG47: =IF(CG$14>=$AT47,INDEX(Break34,COLUMNS($BP47:CF47)-COUNTIF($BP47:CF47,"")+1),"") -> 0 | CH47: =IF(CH$14>=$AT47,INDEX(Break34,COLUMNS($BP47:CG47)-COUNTIF($BP47:CG47,"")+1),"") -> 0 | CI47: =IF(CI$14>=$AT47,INDEX(Break34,COLUMNS($BP47:CH47)-COUNTIF($BP47:CH47,"")+1),"") -> 0 | CJ47: =IF(CJ$14>=$AT47,INDEX(Break34,COLUMNS($BP47:CI47)-COUNTIF($BP47:CI47,"")+1),"") -> 0 | CK47: =IF(CK$14>=$AT47,INDEX(Break34,COLUMNS($BP47:CJ47)-COUNTIF($BP47:CJ47,"")+1),"") -> 0 | CL47: =IF(CL$14>=$AT47,INDEX(Break34,COLUMNS($BP47:CK47)-COUNTIF($BP47:CK47,"")+1),"") -> 0 | CM47: =IF(CM$14>=$AT47,INDEX(Break34,COLUMNS($BP47:CL47)-COUNTIF($BP47:CL47,"")+1),"") ->  | CN47: =IF(CN$14>=$AT47,INDEX(Break34,COLUMNS($BP47:CM47)-COUNTIF($BP47:CM47,"")+1),"") ->  | CO47: =IF(CO$14>=$AT47,INDEX(Break34,COLUMNS($BP47:CN47)-COUNTIF($BP47:CN47,"")+1),"") ->  | CP47: =IF(CP$14>=$AT47,INDEX(Break34,COLUMNS($BP47:CO47)-COUNTIF($BP47:CO47,"")+1),"") ->  | CQ47: =IF(CQ$14>=$AT47,INDEX(Break34,COLUMNS($BP47:CP47)-COUNTIF($BP47:CP47,"")+1),"") ->  | CR47: =IF(CR$14>=$AT47,INDEX(Break34,COLUMNS($BP47:CQ47)-COUNTIF($BP47:CQ47,"")+1),"") ->  | CS47: =IF(CS$14>=$AT47,INDEX(Break34,COLUMNS($BP47:CR47)-COUNTIF($BP47:CR47,"")+1),"") ->  | CT47: =IF(CT$14>=$AT47,INDEX(Break34,COLUMNS($BP47:CS47)-COUNTIF($BP47:CS47,"")+1),"") ->  | CU47: =IF(CU$14>=$AT47,INDEX(Break34,COLUMNS($BP47:CT47)-COUNTIF($BP47:CT47,"")+1),"") ->  | CV47: =IF(CV$14>=$AT47,INDEX(Break34,COLUMNS($BP47:CU47)-COUNTIF($BP47:CU47,"")+1),"") ->  | CW47: =IF(CW$14>=$AT47,INDEX(Break34,COLUMNS($BP47:CV47)-COUNTIF($BP47:CV47,"")+1),"") ->  | CX47: =IF(CX$14>=$AT47,INDEX(Break34,COLUMNS($BP47:CW47)-COUNTIF($BP47:CW47,"")+1),"") ->  | CY47: =IF(CY$14>=$AT47,INDEX(Break34,COLUMNS($BP47:CX47)-COUNTIF($BP47:CX47,"")+1),"") ->  | CZ47: =IF(CZ$14>=$AT47,INDEX(Break34,COLUMNS($BP47:CY47)-COUNTIF($BP47:CY47,"")+1),"") ->  | DA47: =IF(DA$14>=$AT47,INDEX(Break34,COLUMNS($BP47:CZ47)-COUNTIF($BP47:CZ47,"")+1),"") ->  | DB47: =IF(DB$14>=$AT47,INDEX(Break34,COLUMNS($BP47:DA47)-COUNTIF($BP47:DA47,"")+1),"") ->  | DC47: =IF(DC$14>=$AT47,INDEX(Break34,COLUMNS($BP47:DB47)-COUNTIF($BP47:DB47,"")+1),"") ->  | DD47: =IF(DD$14>=$AT47,INDEX(Break34,COLUMNS($BP47:DC47)-COUNTIF($BP47:DC47,"")+1),"") ->  | DE47: =IF(DE$14>=$AT47,INDEX(Break34,COLUMNS($BP47:DD47)-COUNTIF($BP47:DD47,"")+1),"") ->  | DF47: =IF(DF$14>=$AT47,INDEX(Break34,COLUMNS($BP47:DE47)-COUNTIF($BP47:DE47,"")+1),"") ->  | DG47: =IF(DG$14>=$AT47,INDEX(Break34,COLUMNS($BP47:DF47)-COUNTIF($BP47:DF47,"")+1),"") ->  | DH47: =IF(DH$14>=$AT47,INDEX(Break34,COLUMNS($BP47:DG47)-COUNTIF($BP47:DG47,"")+1),"") ->  | DI47: =IF(DI$14>=$AT47,INDEX(Break34,COLUMNS($BP47:DH47)-COUNTIF($BP47:DH47,"")+1),"") ->  | DJ47: =IF(DJ$14>=$AT47,INDEX(Break34,COLUMNS($BP47:DI47)-COUNTIF($BP47:DI47,"")+1),"") ->  | DK47: =IF(DK$14>=$AT47,INDEX(Break34,COLUMNS($BP47:DJ47)-COUNTIF($BP47:DJ47,"")+1),"") ->  | DL47: =IF(DL$14>=$AT47,INDEX(Break34,COLUMNS($BP47:DK47)-COUNTIF($BP47:DK47,"")+1),"") ->  | DM47: =IF(DM$14>=$AT47,INDEX(Break34,COLUMNS($BP47:DL47)-COUNTIF($BP47:DL47,"")+1),"") ->  | DN47: =IF(DN$14>=$AT47,INDEX(Break34,COLUMNS($BP47:DM47)-COUNTIF($BP47:DM47,"")+1),"") ->  | DO47: =IF(DO$14>=$AT47,INDEX(Break34,COLUMNS($BP47:DN47)-COUNTIF($BP47:DN47,"")+1),"") ->  | DP47: =IF(DP$14>=$AT47,INDEX(Break34,COLUMNS($BP47:DO47)-COUNTIF($BP47:DO47,"")+1),"") ->  | DQ47: =IF(DQ$14>=$AT47,INDEX(Break34,COLUMNS($BP47:DP47)-COUNTIF($BP47:DP47,"")+1),"") ->  | DR47: =IF(DR$14>=$AT47,INDEX(Break34,COLUMNS($BP47:DQ47)-COUNTIF($BP47:DQ47,"")+1),"") ->  | DS47: =IF(DS$14>=$AT47,INDEX(Break34,COLUMNS($BP47:DR47)-COUNTIF($BP47:DR47,"")+1),"") ->  | DT47: =IF(DT$14>=$AT47,INDEX(Break34,COLUMNS($BP47:DS47)-COUNTIF($BP47:DS47,"")+1),"") ->  | DU47: =IF(DU$14>=$AT47,INDEX(Break34,COLUMNS($BP47:DT47)-COUNTIF($BP47:DT47,"")+1),"") ->  | DV47: =IF(DV$14>=$AT47,INDEX(Break34,COLUMNS($BP47:DU47)-COUNTIF($BP47:DU47,"")+1),"") ->  | DW47: =IF(DW$14>=$AT47,INDEX(Break34,COLUMNS($BP47:DV47)-COUNTIF($BP47:DV47,"")+1),"") ->  | DX47: =IF(DX$14>=$AT47,INDEX(Break34,COLUMNS($BP47:DW47)-COUNTIF($BP47:DW47,"")+1),"") ->  | DY47: =IF(DY$14>=$AT47,INDEX(Break34,COLUMNS($BP47:DX47)-COUNTIF($BP47:DX47,"")+1),"") ->  | DZ47: =IF(DZ$14>=$AT47,INDEX(Break34,COLUMNS($BP47:DY47)-COUNTIF($BP47:DY47,"")+1),"") ->  | EA47: =IF(EA$14>=$AT47,INDEX(Break34,COLUMNS($BP47:DZ47)-COUNTIF($BP47:DZ47,"")+1),"") ->  | EB47: =IF(EB$14>=$AT47,INDEX(Break34,COLUMNS($BP47:EA47)-COUNTIF($BP47:EA47,"")+1),"") ->  | EC47: =IF(EC$14>=$AT47,INDEX(Break34,COLUMNS($BP47:EB47)-COUNTIF($BP47:EB47,"")+1),"") ->  | ED47: =IF(ED$14>=$AT47,INDEX(Break34,COLUMNS($BP47:EC47)-COUNTIF($BP47:EC47,"")+1),"") ->  | EE47: =IF(EE$14>=$AT47,INDEX(Break34,COLUMNS($BP47:ED47)-COUNTIF($BP47:ED47,"")+1),"") ->  | EF47: =IF(EF$14>=$AT47,INDEX(Break34,COLUMNS($BP47:EE47)-COUNTIF($BP47:EE47,"")+1),"") ->  | EG47: =IF(EG$14>=$AT47,INDEX(Break34,COLUMNS($BP47:EF47)-COUNTIF($BP47:EF47,"")+1),"") ->  | EH47: =IF(EH$14>=$AT47,INDEX(Break34,COLUMNS($BP47:EG47)-COUNTIF($BP47:EG47,"")+1),"") ->  | EI47: =IF(EI$14>=$AT47,INDEX(Break34,COLUMNS($BP47:EH47)-COUNTIF($BP47:EH47,"")+1),"") ->  | EK47: 2025 | EL47: 25 | EM47: 0 | EN47: =IF($EL47>1,IF(AND(EN$14>=$EK47,EN$14<$EK47+$EL47),IF(EN$14=$EK47,$EM47,$EM47),"")) ->  | EP47: 0 | EQ47: 0 | ER47: 0 | ES47: 0 | ET47: 0 | EU47: 0 | EV47: 0 | EW47: 0 | EX47: 0 | EY47: 0 | EZ47: 0 | FA47: 0 | FB47: 0 | FC47: 0 | FD47: 0 | FE47: 0
B48: Project 34 | C48: Project 34 | D48: Company 34 | E48: Infrastructure | F48: 3 | G48: Approved | H48: 2024 | I48: 1 | J48: 8 | K48: 20 | L48: 2025 | M48: 25 | N48: 0 | O48: 0.01 | P48: 0.99 | AO48: Project 34 | AP48: ='Master Sheet - Project Info'!$H48 -> 2024 | AQ48: ='Master Sheet - Project Info'!$I48 -> 1 | AR48: ='Master Sheet - Project Info'!$J48 -> 8 | AS48: ='Master Sheet - Project Info'!$K48 -> 20 | AT48: 2024 | AU48: 10 | AV48: 12 | AW48: 14 | AX48: 20 | AY48: 20 | AZ48: 14 | BA48: 12 | BB48: 10 | BC48: 0 | BD48: 0 | BE48: 0 | BF48: 0 | BG48: 0 | BH48: 0 | BI48: 0 | BJ48: 0 | BK48: 0 | BL48: 0 | BM48: 0 | BN48: 0 | BP48: =IF($BP$14>=AT48,INDEX(Break35,1),"") ->  | BQ48: =IF(BQ$14>=$AT48,INDEX(Break35,COLUMNS($BP48:BP48)-COUNTIF($BP48:BP48,"")+1),"") ->  | BR48: =IF(BR$14>=$AT48,INDEX(Break35,COLUMNS($BP48:BQ48)-COUNTIF($BP48:BQ48,"")+1),"") ->  | BS48: =IF(BS$14>=$AT48,INDEX(Break35,COLUMNS($BP48:BR48)-COUNTIF($BP48:BR48,"")+1),"") ->  | BT48: =IF(BT$14>=$AT48,INDEX(Break35,COLUMNS($BP48:BS48)-COUNTIF($BP48:BS48,"")+1),"") -> 10 | BU48: =IF(BU$14>=$AT48,INDEX(Break35,COLUMNS($BP48:BT48)-COUNTIF($BP48:BT48,"")+1),"") -> 12 | BV48: =IF(BV$14>=$AT48,INDEX(Break35,COLUMNS($BP48:BU48)-COUNTIF($BP48:BU48,"")+1),"") -> 14 | BW48: =IF(BW$14>=$AT48,INDEX(Break35,COLUMNS($BP48:BV48)-COUNTIF($BP48:BV48,"")+1),"") -> 20 | BX48: =IF(BX$14>=$AT48,INDEX(Break35,COLUMNS($BP48:BW48)-COUNTIF($BP48:BW48,"")+1),"") -> 20 | BY48: =IF(BY$14>=$AT48,INDEX(Break35,COLUMNS($BP48:BX48)-COUNTIF($BP48:BX48,"")+1),"") -> 14 | BZ48: =IF(BZ$14>=$AT48,INDEX(Break35,COLUMNS($BP48:BY48)-COUNTIF($BP48:BY48,"")+1),"") -> 12 | CA48: =IF(CA$14>=$AT48,INDEX(Break35,COLUMNS($BP48:BZ48)-COUNTIF($BP48:BZ48,"")+1),"") -> 10 | CB48: =IF(CB$14>=$AT48,INDEX(Break35,COLUMNS($BP48:CA48)-COUNTIF($BP48:CA48,"")+1),"") -> 0 | CC48: =IF(CC$14>=$AT48,INDEX(Break35,COLUMNS($BP48:CB48)-COUNTIF($BP48:CB48,"")+1),"") -> 0 | CD48: =IF(CD$14>=$AT48,INDEX(Break35,COLUMNS($BP48:CC48)-COUNTIF($BP48:CC48,"")+1),"") -> 0 | CE48: =IF(CE$14>=$AT48,INDEX(Break35,COLUMNS($BP48:CD48)-COUNTIF($BP48:CD48,"")+1),"") -> 0 | CF48: =IF(CF$14>=$AT48,INDEX(Break35,COLUMNS($BP48:CE48)-COUNTIF($BP48:CE48,"")+1),"") -> 0 | CG48: =IF(CG$14>=$AT48,INDEX(Break35,COLUMNS($BP48:CF48)-COUNTIF($BP48:CF48,"")+1),"") -> 0 | CH48: =IF(CH$14>=$AT48,INDEX(Break35,COLUMNS($BP48:CG48)-COUNTIF($BP48:CG48,"")+1),"") -> 0 | CI48: =IF(CI$14>=$AT48,INDEX(Break35,COLUMNS($BP48:CH48)-COUNTIF($BP48:CH48,"")+1),"") -> 0 | CJ48: =IF(CJ$14>=$AT48,INDEX(Break35,COLUMNS($BP48:CI48)-COUNTIF($BP48:CI48,"")+1),"") -> 0 | CK48: =IF(CK$14>=$AT48,INDEX(Break35,COLUMNS($BP48:CJ48)-COUNTIF($BP48:CJ48,"")+1),"") -> 0 | CL48: =IF(CL$14>=$AT48,INDEX(Break35,COLUMNS($BP48:CK48)-COUNTIF($BP48:CK48,"")+1),"") -> 0 | CM48: =IF(CM$14>=$AT48,INDEX(Break35,COLUMNS($BP48:CL48)-COUNTIF($BP48:CL48,"")+1),"") -> 0 | CN48: =IF(CN$14>=$AT48,INDEX(Break35,COLUMNS($BP48:CM48)-COUNTIF($BP48:CM48,"")+1),"") ->  | CO48: =IF(CO$14>=$AT48,INDEX(Break35,COLUMNS($BP48:CN48)-COUNTIF($BP48:CN48,"")+1),"") ->  | CP48: =IF(CP$14>=$AT48,INDEX(Break35,COLUMNS($BP48:CO48)-COUNTIF($BP48:CO48,"")+1),"") ->  | CQ48: =IF(CQ$14>=$AT48,INDEX(Break35,COLUMNS($BP48:CP48)-COUNTIF($BP48:CP48,"")+1),"") ->  | CR48: =IF(CR$14>=$AT48,INDEX(Break35,COLUMNS($BP48:CQ48)-COUNTIF($BP48:CQ48,"")+1),"") ->  | CS48: =IF(CS$14>=$AT48,INDEX(Break35,COLUMNS($BP48:CR48)-COUNTIF($BP48:CR48,"")+1),"") ->  | CT48: =IF(CT$14>=$AT48,INDEX(Break35,COLUMNS($BP48:CS48)-COUNTIF($BP48:CS48,"")+1),"") ->  | CU48: =IF(CU$14>=$AT48,INDEX(Break35,COLUMNS($BP48:CT48)-COUNTIF($BP48:CT48,"")+1),"") ->  | CV48: =IF(CV$14>=$AT48,INDEX(Break35,COLUMNS($BP48:CU48)-COUNTIF($BP48:CU48,"")+1),"") ->  | CW48: =IF(CW$14>=$AT48,INDEX(Break35,COLUMNS($BP48:CV48)-COUNTIF($BP48:CV48,"")+1),"") ->  | CX48: =IF(CX$14>=$AT48,INDEX(Break35,COLUMNS($BP48:CW48)-COUNTIF($BP48:CW48,"")+1),"") ->  | CY48: =IF(CY$14>=$AT48,INDEX(Break35,COLUMNS($BP48:CX48)-COUNTIF($BP48:CX48,"")+1),"") ->  | CZ48: =IF(CZ$14>=$AT48,INDEX(Break35,COLUMNS($BP48:CY48)-COUNTIF($BP48:CY48,"")+1),"") ->  | DA48: =IF(DA$14>=$AT48,INDEX(Break35,COLUMNS($BP48:CZ48)-COUNTIF($BP48:CZ48,"")+1),"") ->  | DB48: =IF(DB$14>=$AT48,INDEX(Break35,COLUMNS($BP48:DA48)-COUNTIF($BP48:DA48,"")+1),"") ->  | DC48: =IF(DC$14>=$AT48,INDEX(Break35,COLUMNS($BP48:DB48)-COUNTIF($BP48:DB48,"")+1),"") ->  | DD48: =IF(DD$14>=$AT48,INDEX(Break35,COLUMNS($BP48:DC48)-COUNTIF($BP48:DC48,"")+1),"") ->  | DE48: =IF(DE$14>=$AT48,INDEX(Break35,COLUMNS($BP48:DD48)-COUNTIF($BP48:DD48,"")+1),"") ->  | DF48: =IF(DF$14>=$AT48,INDEX(Break35,COLUMNS($BP48:DE48)-COUNTIF($BP48:DE48,"")+1),"") ->  | DG48: =IF(DG$14>=$AT48,INDEX(Break35,COLUMNS($BP48:DF48)-COUNTIF($BP48:DF48,"")+1),"") ->  | DH48: =IF(DH$14>=$AT48,INDEX(Break35,COLUMNS($BP48:DG48)-COUNTIF($BP48:DG48,"")+1),"") ->  | DI48: =IF(DI$14>=$AT48,INDEX(Break35,COLUMNS($BP48:DH48)-COUNTIF($BP48:DH48,"")+1),"") ->  | DJ48: =IF(DJ$14>=$AT48,INDEX(Break35,COLUMNS($BP48:DI48)-COUNTIF($BP48:DI48,"")+1),"") ->  | DK48: =IF(DK$14>=$AT48,INDEX(Break35,COLUMNS($BP48:DJ48)-COUNTIF($BP48:DJ48,"")+1),"") ->  | DL48: =IF(DL$14>=$AT48,INDEX(Break35,COLUMNS($BP48:DK48)-COUNTIF($BP48:DK48,"")+1),"") ->  | DM48: =IF(DM$14>=$AT48,INDEX(Break35,COLUMNS($BP48:DL48)-COUNTIF($BP48:DL48,"")+1),"") ->  | DN48: =IF(DN$14>=$AT48,INDEX(Break35,COLUMNS($BP48:DM48)-COUNTIF($BP48:DM48,"")+1),"") ->  | DO48: =IF(DO$14>=$AT48,INDEX(Break35,COLUMNS($BP48:DN48)-COUNTIF($BP48:DN48,"")+1),"") ->  | DP48: =IF(DP$14>=$AT48,INDEX(Break35,COLUMNS($BP48:DO48)-COUNTIF($BP48:DO48,"")+1),"") ->  | DQ48: =IF(DQ$14>=$AT48,INDEX(Break35,COLUMNS($BP48:DP48)-COUNTIF($BP48:DP48,"")+1),"") ->  | DR48: =IF(DR$14>=$AT48,INDEX(Break35,COLUMNS($BP48:DQ48)-COUNTIF($BP48:DQ48,"")+1),"") ->  | DS48: =IF(DS$14>=$AT48,INDEX(Break35,COLUMNS($BP48:DR48)-COUNTIF($BP48:DR48,"")+1),"") ->  | DT48: =IF(DT$14>=$AT48,INDEX(Break35,COLUMNS($BP48:DS48)-COUNTIF($BP48:DS48,"")+1),"") ->  | DU48: =IF(DU$14>=$AT48,INDEX(Break35,COLUMNS($BP48:DT48)-COUNTIF($BP48:DT48,"")+1),"") ->  | DV48: =IF(DV$14>=$AT48,INDEX(Break35,COLUMNS($BP48:DU48)-COUNTIF($BP48:DU48,"")+1),"") ->  | DW48: =IF(DW$14>=$AT48,INDEX(Break35,COLUMNS($BP48:DV48)-COUNTIF($BP48:DV48,"")+1),"") ->  | DX48: =IF(DX$14>=$AT48,INDEX(Break35,COLUMNS($BP48:DW48)-COUNTIF($BP48:DW48,"")+1),"") ->  | DY48: =IF(DY$14>=$AT48,INDEX(Break35,COLUMNS($BP48:DX48)-COUNTIF($BP48:DX48,"")+1),"") ->  | DZ48: =IF(DZ$14>=$AT48,INDEX(Break35,COLUMNS($BP48:DY48)-COUNTIF($BP48:DY48,"")+1),"") ->  | EA48: =IF(EA$14>=$AT48,INDEX(Break35,COLUMNS($BP48:DZ48)-COUNTIF($BP48:DZ48,"")+1),"") ->  | EB48: =IF(EB$14>=$AT48,INDEX(Break35,COLUMNS($BP48:EA48)-COUNTIF($BP48:EA48,"")+1),"") ->  | EC48: =IF(EC$14>=$AT48,INDEX(Break35,COLUMNS($BP48:EB48)-COUNTIF($BP48:EB48,"")+1),"") ->  | ED48: =IF(ED$14>=$AT48,INDEX(Break35,COLUMNS($BP48:EC48)-COUNTIF($BP48:EC48,"")+1),"") ->  | EE48: =IF(EE$14>=$AT48,INDEX(Break35,COLUMNS($BP48:ED48)-COUNTIF($BP48:ED48,"")+1),"") ->  | EF48: =IF(EF$14>=$AT48,INDEX(Break35,COLUMNS($BP48:EE48)-COUNTIF($BP48:EE48,"")+1),"") ->  | EG48: =IF(EG$14>=$AT48,INDEX(Break35,COLUMNS($BP48:EF48)-COUNTIF($BP48:EF48,"")+1),"") ->  | EH48: =IF(EH$14>=$AT48,INDEX(Break35,COLUMNS($BP48:EG48)-COUNTIF($BP48:EG48,"")+1),"") ->  | EI48: =IF(EI$14>=$AT48,INDEX(Break35,COLUMNS($BP48:EH48)-COUNTIF($BP48:EH48,"")+1),"") ->  | EK48: 2025 | EL48: 25 | EM48: 0 | EP48: 0 | EQ48: 0 | ER48: 0 | ES48: 0 | ET48: 0 | EU48: 0 | EV48: 0 | EW48: 0 | EX48: 0 | EY48: 0 | EZ48: 0 | FA48: 0 | FB48: 0 | FC48: 0 | FD48: =IF($EL48>1,IF(AND(FD$14>=$EK48,FD$14<$EK48+$EL48),IF(FD$14=$EK48,$EM48,$EM48),"")) -> 0 | FE48: 0
B49: Project 35 | C49: Project 35 | D49: Company 35 | E49: Infrastructure | F49: 1 | G49: Construction | H49: 2023 | I49: 1 | J49: 8 | K49: 20 | L49: 2025 | M49: 25 | N49: 0 | O49: 0.01 | P49: 0.99 | AO49: Project 35 | AP49: ='Master Sheet - Project Info'!$H49 -> 2023 | AQ49: ='Master Sheet - Project Info'!$I49 -> 1 | AR49: ='Master Sheet - Project Info'!$J49 -> 8 | AS49: ='Master Sheet - Project Info'!$K49 -> 20 | AT49: 2023 | AU49: 10 | AV49: 12 | AW49: 14 | AX49: 20 | AY49: 20 | AZ49: 14 | BA49: 12 | BB49: 10 | BC49: 0 | BD49: 0 | BE49: 0 | BF49: 0 | BG49: 0 | BH49: 0 | BI49: 0 | BJ49: 0 | BK49: 0 | BL49: 0 | BM49: 0 | BN49: 0 | BP49: =IF($BP$14>=AT49,INDEX(Break36,1),"") -> 10 | BQ49: =IF(BQ$14>=$AT49,INDEX(Break36,COLUMNS($BP49:BP49)-COUNTIF($BP49:BP49,"")+1),"") -> 12 | BR49: =IF(BR$14>=$AT49,INDEX(Break36,COLUMNS($BP49:BQ49)-COUNTIF($BP49:BQ49,"")+1),"") -> 14 | BS49: =IF(BS$14>=$AT49,INDEX(Break36,COLUMNS($BP49:BR49)-COUNTIF($BP49:BR49,"")+1),"") -> 20 | BT49: =IF(BT$14>=$AT49,INDEX(Break36,COLUMNS($BP49:BS49)-COUNTIF($BP49:BS49,"")+1),"") -> 20 | BU49: =IF(BU$14>=$AT49,INDEX(Break36,COLUMNS($BP49:BT49)-COUNTIF($BP49:BT49,"")+1),"") -> 14 | BV49: =IF(BV$14>=$AT49,INDEX(Break36,COLUMNS($BP49:BU49)-COUNTIF($BP49:BU49,"")+1),"") -> 12 | BW49: =IF(BW$14>=$AT49,INDEX(Break36,COLUMNS($BP49:BV49)-COUNTIF($BP49:BV49,"")+1),"") -> 10 | BX49: =IF(BX$14>=$AT49,INDEX(Break36,COLUMNS($BP49:BW49)-COUNTIF($BP49:BW49,"")+1),"") -> 0 | BY49: =IF(BY$14>=$AT49,INDEX(Break36,COLUMNS($BP49:BX49)-COUNTIF($BP49:BX49,"")+1),"") -> 0 | BZ49: =IF(BZ$14>=$AT49,INDEX(Break36,COLUMNS($BP49:BY49)-COUNTIF($BP49:BY49,"")+1),"") -> 0 | CA49: =IF(CA$14>=$AT49,INDEX(Break36,COLUMNS($BP49:BZ49)-COUNTIF($BP49:BZ49,"")+1),"") -> 0 | CB49: =IF(CB$14>=$AT49,INDEX(Break36,COLUMNS($BP49:CA49)-COUNTIF($BP49:CA49,"")+1),"") -> 0 | CC49: =IF(CC$14>=$AT49,INDEX(Break36,COLUMNS($BP49:CB49)-COUNTIF($BP49:CB49,"")+1),"") -> 0 | CD49: =IF(CD$14>=$AT49,INDEX(Break36,COLUMNS($BP49:CC49)-COUNTIF($BP49:CC49,"")+1),"") -> 0 | CE49: =IF(CE$14>=$AT49,INDEX(Break36,COLUMNS($BP49:CD49)-COUNTIF($BP49:CD49,"")+1),"") -> 0 | CF49: =IF(CF$14>=$AT49,INDEX(Break36,COLUMNS($BP49:CE49)-COUNTIF($BP49:CE49,"")+1),"") -> 0 | CG49: =IF(CG$14>=$AT49,INDEX(Break36,COLUMNS($BP49:CF49)-COUNTIF($BP49:CF49,"")+1),"") -> 0 | CH49: =IF(CH$14>=$AT49,INDEX(Break36,COLUMNS($BP49:CG49)-COUNTIF($BP49:CG49,"")+1),"") -> 0 | CI49: =IF(CI$14>=$AT49,INDEX(Break36,COLUMNS($BP49:CH49)-COUNTIF($BP49:CH49,"")+1),"") -> 0 | CJ49: =IF(CJ$14>=$AT49,INDEX(Break36,COLUMNS($BP49:CI49)-COUNTIF($BP49:CI49,"")+1),"") ->  | CK49: =IF(CK$14>=$AT49,INDEX(Break36,COLUMNS($BP49:CJ49)-COUNTIF($BP49:CJ49,"")+1),"") ->  | CL49: =IF(CL$14>=$AT49,INDEX(Break36,COLUMNS($BP49:CK49)-COUNTIF($BP49:CK49,"")+1),"") ->  | CM49: =IF(CM$14>=$AT49,INDEX(Break36,COLUMNS($BP49:CL49)-COUNTIF($BP49:CL49,"")+1),"") ->  | CN49: =IF(CN$14>=$AT49,INDEX(Break36,COLUMNS($BP49:CM49)-COUNTIF($BP49:CM49,"")+1),"") ->  | CO49: =IF(CO$14>=$AT49,INDEX(Break36,COLUMNS($BP49:CN49)-COUNTIF($BP49:CN49,"")+1),"") ->  | CP49: =IF(CP$14>=$AT49,INDEX(Break36,COLUMNS($BP49:CO49)-COUNTIF($BP49:CO49,"")+1),"") ->  | CQ49: =IF(CQ$14>=$AT49,INDEX(Break36,COLUMNS($BP49:CP49)-COUNTIF($BP49:CP49,"")+1),"") ->  | CR49: =IF(CR$14>=$AT49,INDEX(Break36,COLUMNS($BP49:CQ49)-COUNTIF($BP49:CQ49,"")+1),"") ->  | CS49: =IF(CS$14>=$AT49,INDEX(Break36,COLUMNS($BP49:CR49)-COUNTIF($BP49:CR49,"")+1),"") ->  | CT49: =IF(CT$14>=$AT49,INDEX(Break36,COLUMNS($BP49:CS49)-COUNTIF($BP49:CS49,"")+1),"") ->  | CU49: =IF(CU$14>=$AT49,INDEX(Break36,COLUMNS($BP49:CT49)-COUNTIF($BP49:CT49,"")+1),"") ->  | CV49: =IF(CV$14>=$AT49,INDEX(Break36,COLUMNS($BP49:CU49)-COUNTIF($BP49:CU49,"")+1),"") ->  | CW49: =IF(CW$14>=$AT49,INDEX(Break36,COLUMNS($BP49:CV49)-COUNTIF($BP49:CV49,"")+1),"") ->  | CX49: =IF(CX$14>=$AT49,INDEX(Break36,COLUMNS($BP49:CW49)-COUNTIF($BP49:CW49,"")+1),"") ->  | CY49: =IF(CY$14>=$AT49,INDEX(Break36,COLUMNS($BP49:CX49)-COUNTIF($BP49:CX49,"")+1),"") ->  | CZ49: =IF(CZ$14>=$AT49,INDEX(Break36,COLUMNS($BP49:CY49)-COUNTIF($BP49:CY49,"")+1),"") ->  | DA49: =IF(DA$14>=$AT49,INDEX(Break36,COLUMNS($BP49:CZ49)-COUNTIF($BP49:CZ49,"")+1),"") ->  | DB49: =IF(DB$14>=$AT49,INDEX(Break36,COLUMNS($BP49:DA49)-COUNTIF($BP49:DA49,"")+1),"") ->  | DC49: =IF(DC$14>=$AT49,INDEX(Break36,COLUMNS($BP49:DB49)-COUNTIF($BP49:DB49,"")+1),"") ->  | DD49: =IF(DD$14>=$AT49,INDEX(Break36,COLUMNS($BP49:DC49)-COUNTIF($BP49:DC49,"")+1),"") ->  | DE49: =IF(DE$14>=$AT49,INDEX(Break36,COLUMNS($BP49:DD49)-COUNTIF($BP49:DD49,"")+1),"") ->  | DF49: =IF(DF$14>=$AT49,INDEX(Break36,COLUMNS($BP49:DE49)-COUNTIF($BP49:DE49,"")+1),"") ->  | DG49: =IF(DG$14>=$AT49,INDEX(Break36,COLUMNS($BP49:DF49)-COUNTIF($BP49:DF49,"")+1),"") ->  | DH49: =IF(DH$14>=$AT49,INDEX(Break36,COLUMNS($BP49:DG49)-COUNTIF($BP49:DG49,"")+1),"") ->  | DI49: =IF(DI$14>=$AT49,INDEX(Break36,COLUMNS($BP49:DH49)-COUNTIF($BP49:DH49,"")+1),"") ->  | DJ49: =IF(DJ$14>=$AT49,INDEX(Break36,COLUMNS($BP49:DI49)-COUNTIF($BP49:DI49,"")+1),"") ->  | DK49: =IF(DK$14>=$AT49,INDEX(Break36,COLUMNS($BP49:DJ49)-COUNTIF($BP49:DJ49,"")+1),"") ->  | DL49: =IF(DL$14>=$AT49,INDEX(Break36,COLUMNS($BP49:DK49)-COUNTIF($BP49:DK49,"")+1),"") ->  | DM49: =IF(DM$14>=$AT49,INDEX(Break36,COLUMNS($BP49:DL49)-COUNTIF($BP49:DL49,"")+1),"") ->  | DN49: =IF(DN$14>=$AT49,INDEX(Break36,COLUMNS($BP49:DM49)-COUNTIF($BP49:DM49,"")+1),"") ->  | DO49: =IF(DO$14>=$AT49,INDEX(Break36,COLUMNS($BP49:DN49)-COUNTIF($BP49:DN49,"")+1),"") ->  | DP49: =IF(DP$14>=$AT49,INDEX(Break36,COLUMNS($BP49:DO49)-COUNTIF($BP49:DO49,"")+1),"") ->  | DQ49: =IF(DQ$14>=$AT49,INDEX(Break36,COLUMNS($BP49:DP49)-COUNTIF($BP49:DP49,"")+1),"") ->  | DR49: =IF(DR$14>=$AT49,INDEX(Break36,COLUMNS($BP49:DQ49)-COUNTIF($BP49:DQ49,"")+1),"") ->  | DS49: =IF(DS$14>=$AT49,INDEX(Break36,COLUMNS($BP49:DR49)-COUNTIF($BP49:DR49,"")+1),"") ->  | DT49: =IF(DT$14>=$AT49,INDEX(Break36,COLUMNS($BP49:DS49)-COUNTIF($BP49:DS49,"")+1),"") ->  | DU49: =IF(DU$14>=$AT49,INDEX(Break36,COLUMNS($BP49:DT49)-COUNTIF($BP49:DT49,"")+1),"") ->  | DV49: =IF(DV$14>=$AT49,INDEX(Break36,COLUMNS($BP49:DU49)-COUNTIF($BP49:DU49,"")+1),"") ->  | DW49: =IF(DW$14>=$AT49,INDEX(Break36,COLUMNS($BP49:DV49)-COUNTIF($BP49:DV49,"")+1),"") ->  | DX49: =IF(DX$14>=$AT49,INDEX(Break36,COLUMNS($BP49:DW49)-COUNTIF($BP49:DW49,"")+1),"") ->  | DY49: =IF(DY$14>=$AT49,INDEX(Break36,COLUMNS($BP49:DX49)-COUNTIF($BP49:DX49,"")+1),"") ->  | DZ49: =IF(DZ$14>=$AT49,INDEX(Break36,COLUMNS($BP49:DY49)-COUNTIF($BP49:DY49,"")+1),"") ->  | EA49: =IF(EA$14>=$AT49,INDEX(Break36,COLUMNS($BP49:DZ49)-COUNTIF($BP49:DZ49,"")+1),"") ->  | EB49: =IF(EB$14>=$AT49,INDEX(Break36,COLUMNS($BP49:EA49)-COUNTIF($BP49:EA49,"")+1),"") ->  | EC49: =IF(EC$14>=$AT49,INDEX(Break36,COLUMNS($BP49:EB49)-COUNTIF($BP49:EB49,"")+1),"") ->  | ED49: =IF(ED$14>=$AT49,INDEX(Break36,COLUMNS($BP49:EC49)-COUNTIF($BP49:EC49,"")+1),"") ->  | EE49: =IF(EE$14>=$AT49,INDEX(Break36,COLUMNS($BP49:ED49)-COUNTIF($BP49:ED49,"")+1),"") ->  | EF49: =IF(EF$14>=$AT49,INDEX(Break36,COLUMNS($BP49:EE49)-COUNTIF($BP49:EE49,"")+1),"") ->  | EG49: =IF(EG$14>=$AT49,INDEX(Break36,COLUMNS($BP49:EF49)-COUNTIF($BP49:EF49,"")+1),"") ->  | EH49: =IF(EH$14>=$AT49,INDEX(Break36,COLUMNS($BP49:EG49)-COUNTIF($BP49:EG49,"")+1),"") ->  | EI49: =IF(EI$14>=$AT49,INDEX(Break36,COLUMNS($BP49:EH49)-COUNTIF($BP49:EH49,"")+1),"") ->  | EK49: 2025 | EL49: 25 | EM49: 0 | EP49: 0 | EQ49: 0 | ER49: 0 | ES49: 0 | ET49: 0 | EU49: 0 | EV49: 0 | EW49: 0 | EX49: 0 | EY49: 0 | EZ49: 0 | FA49: 0 | FB49: 0 | FC49: 0 | FD49: 0 | FE49: 0
B50: Project 36 | C50: Project 36 | D50: Company 36 | E50: Infrastructure | F50: 1 | G50: Approved | H50: 2024 | I50: 1 | J50: 4 | K50: 30 | L50: 2025 | M50: 25 | N50: 0 | O50: 0.01 | P50: 0.99 | AO50: Project 36 | AP50: ='Master Sheet - Project Info'!$H50 -> 2024 | AQ50: ='Master Sheet - Project Info'!$I50 -> 1 | AR50: ='Master Sheet - Project Info'!$J50 -> 4 | AS50: ='Master Sheet - Project Info'!$K50 -> 30 | AT50: 2024 | AU50: 21 | AV50: 30 | AW50: 30 | AX50: 21 | AY50: 0 | AZ50: 0 | BA50: 0 | BB50: 0 | BC50: 0 | BD50: 0 | BE50: 0 | BF50: 0 | BG50: 0 | BH50: 0 | BI50: 0 | BJ50: 0 | BK50: 0 | BL50: 0 | BM50: 0 | BN50: 0 | BP50: =IF($BP$14>=AT50,INDEX(Break37,1),"") ->  | BQ50: =IF(BQ$14>=$AT50,INDEX(Break37,COLUMNS($BP50:BP50)-COUNTIF($BP50:BP50,"")+1),"") ->  | BR50: =IF(BR$14>=$AT50,INDEX(Break37,COLUMNS($BP50:BQ50)-COUNTIF($BP50:BQ50,"")+1),"") ->  | BS50: =IF(BS$14>=$AT50,INDEX(Break37,COLUMNS($BP50:BR50)-COUNTIF($BP50:BR50,"")+1),"") ->  | BT50: =IF(BT$14>=$AT50,INDEX(Break37,COLUMNS($BP50:BS50)-COUNTIF($BP50:BS50,"")+1),"") -> 21 | BU50: =IF(BU$14>=$AT50,INDEX(Break37,COLUMNS($BP50:BT50)-COUNTIF($BP50:BT50,"")+1),"") -> 30 | BV50: =IF(BV$14>=$AT50,INDEX(Break37,COLUMNS($BP50:BU50)-COUNTIF($BP50:BU50,"")+1),"") -> 30 | BW50: =IF(BW$14>=$AT50,INDEX(Break37,COLUMNS($BP50:BV50)-COUNTIF($BP50:BV50,"")+1),"") -> 21 | BX50: =IF(BX$14>=$AT50,INDEX(Break37,COLUMNS($BP50:BW50)-COUNTIF($BP50:BW50,"")+1),"") -> 0 | BY50: =IF(BY$14>=$AT50,INDEX(Break37,COLUMNS($BP50:BX50)-COUNTIF($BP50:BX50,"")+1),"") -> 0 | BZ50: =IF(BZ$14>=$AT50,INDEX(Break37,COLUMNS($BP50:BY50)-COUNTIF($BP50:BY50,"")+1),"") -> 0 | CA50: =IF(CA$14>=$AT50,INDEX(Break37,COLUMNS($BP50:BZ50)-COUNTIF($BP50:BZ50,"")+1),"") -> 0 | CB50: =IF(CB$14>=$AT50,INDEX(Break37,COLUMNS($BP50:CA50)-COUNTIF($BP50:CA50,"")+1),"") -> 0 | CC50: =IF(CC$14>=$AT50,INDEX(Break37,COLUMNS($BP50:CB50)-COUNTIF($BP50:CB50,"")+1),"") -> 0 | CD50: =IF(CD$14>=$AT50,INDEX(Break37,COLUMNS($BP50:CC50)-COUNTIF($BP50:CC50,"")+1),"") -> 0 | CE50: =IF(CE$14>=$AT50,INDEX(Break37,COLUMNS($BP50:CD50)-COUNTIF($BP50:CD50,"")+1),"") -> 0 | CF50: =IF(CF$14>=$AT50,INDEX(Break37,COLUMNS($BP50:CE50)-COUNTIF($BP50:CE50,"")+1),"") -> 0 | CG50: =IF(CG$14>=$AT50,INDEX(Break37,COLUMNS($BP50:CF50)-COUNTIF($BP50:CF50,"")+1),"") -> 0 | CH50: =IF(CH$14>=$AT50,INDEX(Break37,COLUMNS($BP50:CG50)-COUNTIF($BP50:CG50,"")+1),"") -> 0 | CI50: =IF(CI$14>=$AT50,INDEX(Break37,COLUMNS($BP50:CH50)-COUNTIF($BP50:CH50,"")+1),"") -> 0 | CJ50: =IF(CJ$14>=$AT50,INDEX(Break37,COLUMNS($BP50:CI50)-COUNTIF($BP50:CI50,"")+1),"") -> 0 | CK50: =IF(CK$14>=$AT50,INDEX(Break37,COLUMNS($BP50:CJ50)-COUNTIF($BP50:CJ50,"")+1),"") -> 0 | CL50: =IF(CL$14>=$AT50,INDEX(Break37,COLUMNS($BP50:CK50)-COUNTIF($BP50:CK50,"")+1),"") -> 0 | CM50: =IF(CM$14>=$AT50,INDEX(Break37,COLUMNS($BP50:CL50)-COUNTIF($BP50:CL50,"")+1),"") -> 0 | CN50: =IF(CN$14>=$AT50,INDEX(Break37,COLUMNS($BP50:CM50)-COUNTIF($BP50:CM50,"")+1),"") ->  | CO50: =IF(CO$14>=$AT50,INDEX(Break37,COLUMNS($BP50:CN50)-COUNTIF($BP50:CN50,"")+1),"") ->  | CP50: =IF(CP$14>=$AT50,INDEX(Break37,COLUMNS($BP50:CO50)-COUNTIF($BP50:CO50,"")+1),"") ->  | CQ50: =IF(CQ$14>=$AT50,INDEX(Break37,COLUMNS($BP50:CP50)-COUNTIF($BP50:CP50,"")+1),"") ->  | CR50: =IF(CR$14>=$AT50,INDEX(Break37,COLUMNS($BP50:CQ50)-COUNTIF($BP50:CQ50,"")+1),"") ->  | CS50: =IF(CS$14>=$AT50,INDEX(Break37,COLUMNS($BP50:CR50)-COUNTIF($BP50:CR50,"")+1),"") ->  | CT50: =IF(CT$14>=$AT50,INDEX(Break37,COLUMNS($BP50:CS50)-COUNTIF($BP50:CS50,"")+1),"") ->  | CU50: =IF(CU$14>=$AT50,INDEX(Break37,COLUMNS($BP50:CT50)-COUNTIF($BP50:CT50,"")+1),"") ->  | CV50: =IF(CV$14>=$AT50,INDEX(Break37,COLUMNS($BP50:CU50)-COUNTIF($BP50:CU50,"")+1),"") ->  | CW50: =IF(CW$14>=$AT50,INDEX(Break37,COLUMNS($BP50:CV50)-COUNTIF($BP50:CV50,"")+1),"") ->  | CX50: =IF(CX$14>=$AT50,INDEX(Break37,COLUMNS($BP50:CW50)-COUNTIF($BP50:CW50,"")+1),"") ->  | CY50: =IF(CY$14>=$AT50,INDEX(Break37,COLUMNS($BP50:CX50)-COUNTIF($BP50:CX50,"")+1),"") ->  | CZ50: =IF(CZ$14>=$AT50,INDEX(Break37,COLUMNS($BP50:CY50)-COUNTIF($BP50:CY50,"")+1),"") ->  | DA50: =IF(DA$14>=$AT50,INDEX(Break37,COLUMNS($BP50:CZ50)-COUNTIF($BP50:CZ50,"")+1),"") ->  | DB50: =IF(DB$14>=$AT50,INDEX(Break37,COLUMNS($BP50:DA50)-COUNTIF($BP50:DA50,"")+1),"") ->  | DC50: =IF(DC$14>=$AT50,INDEX(Break37,COLUMNS($BP50:DB50)-COUNTIF($BP50:DB50,"")+1),"") ->  | DD50: =IF(DD$14>=$AT50,INDEX(Break37,COLUMNS($BP50:DC50)-COUNTIF($BP50:DC50,"")+1),"") ->  | DE50: =IF(DE$14>=$AT50,INDEX(Break37,COLUMNS($BP50:DD50)-COUNTIF($BP50:DD50,"")+1),"") ->  | DF50: =IF(DF$14>=$AT50,INDEX(Break37,COLUMNS($BP50:DE50)-COUNTIF($BP50:DE50,"")+1),"") ->  | DG50: =IF(DG$14>=$AT50,INDEX(Break37,COLUMNS($BP50:DF50)-COUNTIF($BP50:DF50,"")+1),"") ->  | DH50: =IF(DH$14>=$AT50,INDEX(Break37,COLUMNS($BP50:DG50)-COUNTIF($BP50:DG50,"")+1),"") ->  | DI50: =IF(DI$14>=$AT50,INDEX(Break37,COLUMNS($BP50:DH50)-COUNTIF($BP50:DH50,"")+1),"") ->  | DJ50: =IF(DJ$14>=$AT50,INDEX(Break37,COLUMNS($BP50:DI50)-COUNTIF($BP50:DI50,"")+1),"") ->  | DK50: =IF(DK$14>=$AT50,INDEX(Break37,COLUMNS($BP50:DJ50)-COUNTIF($BP50:DJ50,"")+1),"") ->  | DL50: =IF(DL$14>=$AT50,INDEX(Break37,COLUMNS($BP50:DK50)-COUNTIF($BP50:DK50,"")+1),"") ->  | DM50: =IF(DM$14>=$AT50,INDEX(Break37,COLUMNS($BP50:DL50)-COUNTIF($BP50:DL50,"")+1),"") ->  | DN50: =IF(DN$14>=$AT50,INDEX(Break37,COLUMNS($BP50:DM50)-COUNTIF($BP50:DM50,"")+1),"") ->  | DO50: =IF(DO$14>=$AT50,INDEX(Break37,COLUMNS($BP50:DN50)-COUNTIF($BP50:DN50,"")+1),"") ->  | DP50: =IF(DP$14>=$AT50,INDEX(Break37,COLUMNS($BP50:DO50)-COUNTIF($BP50:DO50,"")+1),"") ->  | DQ50: =IF(DQ$14>=$AT50,INDEX(Break37,COLUMNS($BP50:DP50)-COUNTIF($BP50:DP50,"")+1),"") ->  | DR50: =IF(DR$14>=$AT50,INDEX(Break37,COLUMNS($BP50:DQ50)-COUNTIF($BP50:DQ50,"")+1),"") ->  | DS50: =IF(DS$14>=$AT50,INDEX(Break37,COLUMNS($BP50:DR50)-COUNTIF($BP50:DR50,"")+1),"") ->  | DT50: =IF(DT$14>=$AT50,INDEX(Break37,COLUMNS($BP50:DS50)-COUNTIF($BP50:DS50,"")+1),"") ->  | DU50: =IF(DU$14>=$AT50,INDEX(Break37,COLUMNS($BP50:DT50)-COUNTIF($BP50:DT50,"")+1),"") ->  | DV50: =IF(DV$14>=$AT50,INDEX(Break37,COLUMNS($BP50:DU50)-COUNTIF($BP50:DU50,"")+1),"") ->  | DW50: =IF(DW$14>=$AT50,INDEX(Break37,COLUMNS($BP50:DV50)-COUNTIF($BP50:DV50,"")+1),"") ->  | DX50: =IF(DX$14>=$AT50,INDEX(Break37,COLUMNS($BP50:DW50)-COUNTIF($BP50:DW50,"")+1),"") ->  | DY50: =IF(DY$14>=$AT50,INDEX(Break37,COLUMNS($BP50:DX50)-COUNTIF($BP50:DX50,"")+1),"") ->  | DZ50: =IF(DZ$14>=$AT50,INDEX(Break37,COLUMNS($BP50:DY50)-COUNTIF($BP50:DY50,"")+1),"") ->  | EA50: =IF(EA$14>=$AT50,INDEX(Break37,COLUMNS($BP50:DZ50)-COUNTIF($BP50:DZ50,"")+1),"") ->  | EB50: =IF(EB$14>=$AT50,INDEX(Break37,COLUMNS($BP50:EA50)-COUNTIF($BP50:EA50,"")+1),"") ->  | EC50: =IF(EC$14>=$AT50,INDEX(Break37,COLUMNS($BP50:EB50)-COUNTIF($BP50:EB50,"")+1),"") ->  | ED50: =IF(ED$14>=$AT50,INDEX(Break37,COLUMNS($BP50:EC50)-COUNTIF($BP50:EC50,"")+1),"") ->  | EE50: =IF(EE$14>=$AT50,INDEX(Break37,COLUMNS($BP50:ED50)-COUNTIF($BP50:ED50,"")+1),"") ->  | EF50: =IF(EF$14>=$AT50,INDEX(Break37,COLUMNS($BP50:EE50)-COUNTIF($BP50:EE50,"")+1),"") ->  | EG50: =IF(EG$14>=$AT50,INDEX(Break37,COLUMNS($BP50:EF50)-COUNTIF($BP50:EF50,"")+1),"") ->  | EH50: =IF(EH$14>=$AT50,INDEX(Break37,COLUMNS($BP50:EG50)-COUNTIF($BP50:EG50,"")+1),"") ->  | EI50: =IF(EI$14>=$AT50,INDEX(Break37,COLUMNS($BP50:EH50)-COUNTIF($BP50:EH50,"")+1),"") ->  | EK50: 2025 | EL50: 25 | EM50: 0 | EP50: 0 | EQ50: 0 | ER50: 0 | ES50: 0 | ET50: 0 | EU50: 0 | EV50: 0 | EW50: 0 | EX50: 0 | EY50: 0 | EZ50: 0 | FA50: 0 | FB50: 0 | FC50: 0 | FD50: 0 | FE50: 0
B51: Project 37 | C51: Project 37 | D51: Company 37 | E51: Infrastructure | F51: 1 | G51: Approved | H51: 2024 | I51: 1 | J51: 4 | K51: 20 | L51: 2025 | M51: 25 | N51: 0 | O51: 0.01 | P51: 0.99 | AO51: Project 37 | AP51: ='Master Sheet - Project Info'!$H51 -> 2024 | AQ51: ='Master Sheet - Project Info'!$I51 -> 1 | AR51: ='Master Sheet - Project Info'!$J51 -> 4 | AS51: ='Master Sheet - Project Info'!$K51 -> 20 | AT51: 2024 | AU51: 14 | AV51: 20 | AW51: 20 | AX51: 14 | AY51: 0 | AZ51: 0 | BA51: 0 | BB51: 0 | BC51: 0 | BD51: 0 | BE51: 0 | BF51: 0 | BG51: 0 | BH51: 0 | BI51: 0 | BJ51: 0 | BK51: 0 | BL51: 0 | BM51: 0 | BN51: 0 | BP51: =IF($BP$14>=AT51,INDEX(Break38,1),"") ->  | BQ51: =IF(BQ$14>=$AT51,INDEX(Break38,COLUMNS($BP51:BP51)-COUNTIF($BP51:BP51,"")+1),"") ->  | BR51: =IF(BR$14>=$AT51,INDEX(Break38,COLUMNS($BP51:BQ51)-COUNTIF($BP51:BQ51,"")+1),"") ->  | BS51: =IF(BS$14>=$AT51,INDEX(Break38,COLUMNS($BP51:BR51)-COUNTIF($BP51:BR51,"")+1),"") ->  | BT51: =IF(BT$14>=$AT51,INDEX(Break38,COLUMNS($BP51:BS51)-COUNTIF($BP51:BS51,"")+1),"") -> 14 | BU51: =IF(BU$14>=$AT51,INDEX(Break38,COLUMNS($BP51:BT51)-COUNTIF($BP51:BT51,"")+1),"") -> 20 | BV51: =IF(BV$14>=$AT51,INDEX(Break38,COLUMNS($BP51:BU51)-COUNTIF($BP51:BU51,"")+1),"") -> 20 | BW51: =IF(BW$14>=$AT51,INDEX(Break38,COLUMNS($BP51:BV51)-COUNTIF($BP51:BV51,"")+1),"") -> 14 | BX51: =IF(BX$14>=$AT51,INDEX(Break38,COLUMNS($BP51:BW51)-COUNTIF($BP51:BW51,"")+1),"") -> 0 | BY51: =IF(BY$14>=$AT51,INDEX(Break38,COLUMNS($BP51:BX51)-COUNTIF($BP51:BX51,"")+1),"") -> 0 | BZ51: =IF(BZ$14>=$AT51,INDEX(Break38,COLUMNS($BP51:BY51)-COUNTIF($BP51:BY51,"")+1),"") -> 0 | CA51: =IF(CA$14>=$AT51,INDEX(Break38,COLUMNS($BP51:BZ51)-COUNTIF($BP51:BZ51,"")+1),"") -> 0 | CB51: =IF(CB$14>=$AT51,INDEX(Break38,COLUMNS($BP51:CA51)-COUNTIF($BP51:CA51,"")+1),"") -> 0 | CC51: =IF(CC$14>=$AT51,INDEX(Break38,COLUMNS($BP51:CB51)-COUNTIF($BP51:CB51,"")+1),"") -> 0 | CD51: =IF(CD$14>=$AT51,INDEX(Break38,COLUMNS($BP51:CC51)-COUNTIF($BP51:CC51,"")+1),"") -> 0 | CE51: =IF(CE$14>=$AT51,INDEX(Break38,COLUMNS($BP51:CD51)-COUNTIF($BP51:CD51,"")+1),"") -> 0 | CF51: =IF(CF$14>=$AT51,INDEX(Break38,COLUMNS($BP51:CE51)-COUNTIF($BP51:CE51,"")+1),"") -> 0 | CG51: =IF(CG$14>=$AT51,INDEX(Break38,COLUMNS($BP51:CF51)-COUNTIF($BP51:CF51,"")+1),"") -> 0 | CH51: =IF(CH$14>=$AT51,INDEX(Break38,COLUMNS($BP51:CG51)-COUNTIF($BP51:CG51,"")+1),"") -> 0 | CI51: =IF(CI$14>=$AT51,INDEX(Break38,COLUMNS($BP51:CH51)-COUNTIF($BP51:CH51,"")+1),"") -> 0 | CJ51: =IF(CJ$14>=$AT51,INDEX(Break38,COLUMNS($BP51:CI51)-COUNTIF($BP51:CI51,"")+1),"") -> 0 | CK51: =IF(CK$14>=$AT51,INDEX(Break38,COLUMNS($BP51:CJ51)-COUNTIF($BP51:CJ51,"")+1),"") -> 0 | CL51: =IF(CL$14>=$AT51,INDEX(Break38,COLUMNS($BP51:CK51)-COUNTIF($BP51:CK51,"")+1),"") -> 0 | CM51: =IF(CM$14>=$AT51,INDEX(Break38,COLUMNS($BP51:CL51)-COUNTIF($BP51:CL51,"")+1),"") -> 0 | CN51: =IF(CN$14>=$AT51,INDEX(Break38,COLUMNS($BP51:CM51)-COUNTIF($BP51:CM51,"")+1),"") ->  | CO51: =IF(CO$14>=$AT51,INDEX(Break38,COLUMNS($BP51:CN51)-COUNTIF($BP51:CN51,"")+1),"") ->  | CP51: =IF(CP$14>=$AT51,INDEX(Break38,COLUMNS($BP51:CO51)-COUNTIF($BP51:CO51,"")+1),"") ->  | CQ51: =IF(CQ$14>=$AT51,INDEX(Break38,COLUMNS($BP51:CP51)-COUNTIF($BP51:CP51,"")+1),"") ->  | CR51: =IF(CR$14>=$AT51,INDEX(Break38,COLUMNS($BP51:CQ51)-COUNTIF($BP51:CQ51,"")+1),"") ->  | CS51: =IF(CS$14>=$AT51,INDEX(Break38,COLUMNS($BP51:CR51)-COUNTIF($BP51:CR51,"")+1),"") ->  | CT51: =IF(CT$14>=$AT51,INDEX(Break38,COLUMNS($BP51:CS51)-COUNTIF($BP51:CS51,"")+1),"") ->  | CU51: =IF(CU$14>=$AT51,INDEX(Break38,COLUMNS($BP51:CT51)-COUNTIF($BP51:CT51,"")+1),"") ->  | CV51: =IF(CV$14>=$AT51,INDEX(Break38,COLUMNS($BP51:CU51)-COUNTIF($BP51:CU51,"")+1),"") ->  | CW51: =IF(CW$14>=$AT51,INDEX(Break38,COLUMNS($BP51:CV51)-COUNTIF($BP51:CV51,"")+1),"") ->  | CX51: =IF(CX$14>=$AT51,INDEX(Break38,COLUMNS($BP51:CW51)-COUNTIF($BP51:CW51,"")+1),"") ->  | CY51: =IF(CY$14>=$AT51,INDEX(Break38,COLUMNS($BP51:CX51)-COUNTIF($BP51:CX51,"")+1),"") ->  | CZ51: =IF(CZ$14>=$AT51,INDEX(Break38,COLUMNS($BP51:CY51)-COUNTIF($BP51:CY51,"")+1),"") ->  | DA51: =IF(DA$14>=$AT51,INDEX(Break38,COLUMNS($BP51:CZ51)-COUNTIF($BP51:CZ51,"")+1),"") ->  | DB51: =IF(DB$14>=$AT51,INDEX(Break38,COLUMNS($BP51:DA51)-COUNTIF($BP51:DA51,"")+1),"") ->  | DC51: =IF(DC$14>=$AT51,INDEX(Break38,COLUMNS($BP51:DB51)-COUNTIF($BP51:DB51,"")+1),"") ->  | DD51: =IF(DD$14>=$AT51,INDEX(Break38,COLUMNS($BP51:DC51)-COUNTIF($BP51:DC51,"")+1),"") ->  | DE51: =IF(DE$14>=$AT51,INDEX(Break38,COLUMNS($BP51:DD51)-COUNTIF($BP51:DD51,"")+1),"") ->  | DF51: =IF(DF$14>=$AT51,INDEX(Break38,COLUMNS($BP51:DE51)-COUNTIF($BP51:DE51,"")+1),"") ->  | DG51: =IF(DG$14>=$AT51,INDEX(Break38,COLUMNS($BP51:DF51)-COUNTIF($BP51:DF51,"")+1),"") ->  | DH51: =IF(DH$14>=$AT51,INDEX(Break38,COLUMNS($BP51:DG51)-COUNTIF($BP51:DG51,"")+1),"") ->  | DI51: =IF(DI$14>=$AT51,INDEX(Break38,COLUMNS($BP51:DH51)-COUNTIF($BP51:DH51,"")+1),"") ->  | DJ51: =IF(DJ$14>=$AT51,INDEX(Break38,COLUMNS($BP51:DI51)-COUNTIF($BP51:DI51,"")+1),"") ->  | DK51: =IF(DK$14>=$AT51,INDEX(Break38,COLUMNS($BP51:DJ51)-COUNTIF($BP51:DJ51,"")+1),"") ->  | DL51: =IF(DL$14>=$AT51,INDEX(Break38,COLUMNS($BP51:DK51)-COUNTIF($BP51:DK51,"")+1),"") ->  | DM51: =IF(DM$14>=$AT51,INDEX(Break38,COLUMNS($BP51:DL51)-COUNTIF($BP51:DL51,"")+1),"") ->  | DN51: =IF(DN$14>=$AT51,INDEX(Break38,COLUMNS($BP51:DM51)-COUNTIF($BP51:DM51,"")+1),"") ->  | DO51: =IF(DO$14>=$AT51,INDEX(Break38,COLUMNS($BP51:DN51)-COUNTIF($BP51:DN51,"")+1),"") ->  | DP51: =IF(DP$14>=$AT51,INDEX(Break38,COLUMNS($BP51:DO51)-COUNTIF($BP51:DO51,"")+1),"") ->  | DQ51: =IF(DQ$14>=$AT51,INDEX(Break38,COLUMNS($BP51:DP51)-COUNTIF($BP51:DP51,"")+1),"") ->  | DR51: =IF(DR$14>=$AT51,INDEX(Break38,COLUMNS($BP51:DQ51)-COUNTIF($BP51:DQ51,"")+1),"") ->  | DS51: =IF(DS$14>=$AT51,INDEX(Break38,COLUMNS($BP51:DR51)-COUNTIF($BP51:DR51,"")+1),"") ->  | DT51: =IF(DT$14>=$AT51,INDEX(Break38,COLUMNS($BP51:DS51)-COUNTIF($BP51:DS51,"")+1),"") ->  | DU51: =IF(DU$14>=$AT51,INDEX(Break38,COLUMNS($BP51:DT51)-COUNTIF($BP51:DT51,"")+1),"") ->  | DV51: =IF(DV$14>=$AT51,INDEX(Break38,COLUMNS($BP51:DU51)-COUNTIF($BP51:DU51,"")+1),"") ->  | DW51: =IF(DW$14>=$AT51,INDEX(Break38,COLUMNS($BP51:DV51)-COUNTIF($BP51:DV51,"")+1),"") ->  | DX51: =IF(DX$14>=$AT51,INDEX(Break38,COLUMNS($BP51:DW51)-COUNTIF($BP51:DW51,"")+1),"") ->  | DY51: =IF(DY$14>=$AT51,INDEX(Break38,COLUMNS($BP51:DX51)-COUNTIF($BP51:DX51,"")+1),"") ->  | DZ51: =IF(DZ$14>=$AT51,INDEX(Break38,COLUMNS($BP51:DY51)-COUNTIF($BP51:DY51,"")+1),"") ->  | EA51: =IF(EA$14>=$AT51,INDEX(Break38,COLUMNS($BP51:DZ51)-COUNTIF($BP51:DZ51,"")+1),"") ->  | EB51: =IF(EB$14>=$AT51,INDEX(Break38,COLUMNS($BP51:EA51)-COUNTIF($BP51:EA51,"")+1),"") ->  | EC51: =IF(EC$14>=$AT51,INDEX(Break38,COLUMNS($BP51:EB51)-COUNTIF($BP51:EB51,"")+1),"") ->  | ED51: =IF(ED$14>=$AT51,INDEX(Break38,COLUMNS($BP51:EC51)-COUNTIF($BP51:EC51,"")+1),"") ->  | EE51: =IF(EE$14>=$AT51,INDEX(Break38,COLUMNS($BP51:ED51)-COUNTIF($BP51:ED51,"")+1),"") ->  | EF51: =IF(EF$14>=$AT51,INDEX(Break38,COLUMNS($BP51:EE51)-COUNTIF($BP51:EE51,"")+1),"") ->  | EG51: =IF(EG$14>=$AT51,INDEX(Break38,COLUMNS($BP51:EF51)-COUNTIF($BP51:EF51,"")+1),"") ->  | EH51: =IF(EH$14>=$AT51,INDEX(Break38,COLUMNS($BP51:EG51)-COUNTIF($BP51:EG51,"")+1),"") ->  | EI51: =IF(EI$14>=$AT51,INDEX(Break38,COLUMNS($BP51:EH51)-COUNTIF($BP51:EH51,"")+1),"") ->  | EK51: 2025 | EL51: 25 | EM51: 0 | EP51: 0 | EQ51: 0 | ER51: 0 | ES51: 0 | ET51: 0 | EU51: 0 | EV51: 0 | EW51: 0 | EX51: 0 | EY51: 0 | EZ51: 0 | FA51: 0 | FB51: 0 | FC51: 0 | FD51: 0 | FE51: 0
B52: Project 38 | C52: Project 38 | D52: Company 38 | E52: Infrastructure | F52: 5 | G52: Planning | H52: 2025 | I52: 1 | J52: 4 | K52: 4 | L52: 2026 | M52: 25 | N52: 0 | O52: 1 | P52: 0 | AO52: Project 38 | AP52: ='Master Sheet - Project Info'!$H52 -> 2025 | AQ52: ='Master Sheet - Project Info'!$I52 -> 1 | AR52: ='Master Sheet - Project Info'!$J52 -> 4 | AS52: ='Master Sheet - Project Info'!$K52 -> 4 | AT52: 2025 | AU52: 2.8 | AV52: 4 | AW52: 4 | AX52: 2.8 | AY52: 0 | AZ52: 0 | BA52: 0 | BB52: 0 | BC52: 0 | BD52: 0 | BE52: 0 | BF52: 0 | BG52: 0 | BH52: 0 | BI52: 0 | BJ52: 0 | BK52: 0 | BL52: 0 | BM52: 0 | BN52: 0 | BP52: =IF($BP$14>=AT52,INDEX(Break39,1),"") ->  | BQ52: =IF(BQ$14>=$AT52,INDEX(Break39,COLUMNS($BP52:BP52)-COUNTIF($BP52:BP52,"")+1),"") ->  | BR52: =IF(BR$14>=$AT52,INDEX(Break39,COLUMNS($BP52:BQ52)-COUNTIF($BP52:BQ52,"")+1),"") ->  | BS52: =IF(BS$14>=$AT52,INDEX(Break39,COLUMNS($BP52:BR52)-COUNTIF($BP52:BR52,"")+1),"") ->  | BT52: =IF(BT$14>=$AT52,INDEX(Break39,COLUMNS($BP52:BS52)-COUNTIF($BP52:BS52,"")+1),"") ->  | BU52: =IF(BU$14>=$AT52,INDEX(Break39,COLUMNS($BP52:BT52)-COUNTIF($BP52:BT52,"")+1),"") ->  | BV52: =IF(BV$14>=$AT52,INDEX(Break39,COLUMNS($BP52:BU52)-COUNTIF($BP52:BU52,"")+1),"") ->  | BW52: =IF(BW$14>=$AT52,INDEX(Break39,COLUMNS($BP52:BV52)-COUNTIF($BP52:BV52,"")+1),"") ->  | BX52: =IF(BX$14>=$AT52,INDEX(Break39,COLUMNS($BP52:BW52)-COUNTIF($BP52:BW52,"")+1),"") -> 2.8 | BY52: =IF(BY$14>=$AT52,INDEX(Break39,COLUMNS($BP52:BX52)-COUNTIF($BP52:BX52,"")+1),"") -> 4 | BZ52: =IF(BZ$14>=$AT52,INDEX(Break39,COLUMNS($BP52:BY52)-COUNTIF($BP52:BY52,"")+1),"") -> 4 | CA52: =IF(CA$14>=$AT52,INDEX(Break39,COLUMNS($BP52:BZ52)-COUNTIF($BP52:BZ52,"")+1),"") -> 2.8 | CB52: =IF(CB$14>=$AT52,INDEX(Break39,COLUMNS($BP52:CA52)-COUNTIF($BP52:CA52,"")+1),"") -> 0 | CC52: =IF(CC$14>=$AT52,INDEX(Break39,COLUMNS($BP52:CB52)-COUNTIF($BP52:CB52,"")+1),"") -> 0 | CD52: =IF(CD$14>=$AT52,INDEX(Break39,COLUMNS($BP52:CC52)-COUNTIF($BP52:CC52,"")+1),"") -> 0 | CE52: =IF(CE$14>=$AT52,INDEX(Break39,COLUMNS($BP52:CD52)-COUNTIF($BP52:CD52,"")+1),"") -> 0 | CF52: =IF(CF$14>=$AT52,INDEX(Break39,COLUMNS($BP52:CE52)-COUNTIF($BP52:CE52,"")+1),"") -> 0 | CG52: =IF(CG$14>=$AT52,INDEX(Break39,COLUMNS($BP52:CF52)-COUNTIF($BP52:CF52,"")+1),"") -> 0 | CH52: =IF(CH$14>=$AT52,INDEX(Break39,COLUMNS($BP52:CG52)-COUNTIF($BP52:CG52,"")+1),"") -> 0 | CI52: =IF(CI$14>=$AT52,INDEX(Break39,COLUMNS($BP52:CH52)-COUNTIF($BP52:CH52,"")+1),"") -> 0 | CJ52: =IF(CJ$14>=$AT52,INDEX(Break39,COLUMNS($BP52:CI52)-COUNTIF($BP52:CI52,"")+1),"") -> 0 | CK52: =IF(CK$14>=$AT52,INDEX(Break39,COLUMNS($BP52:CJ52)-COUNTIF($BP52:CJ52,"")+1),"") -> 0 | CL52: =IF(CL$14>=$AT52,INDEX(Break39,COLUMNS($BP52:CK52)-COUNTIF($BP52:CK52,"")+1),"") -> 0 | CM52: =IF(CM$14>=$AT52,INDEX(Break39,COLUMNS($BP52:CL52)-COUNTIF($BP52:CL52,"")+1),"") -> 0 | CN52: =IF(CN$14>=$AT52,INDEX(Break39,COLUMNS($BP52:CM52)-COUNTIF($BP52:CM52,"")+1),"") -> 0 | CO52: =IF(CO$14>=$AT52,INDEX(Break39,COLUMNS($BP52:CN52)-COUNTIF($BP52:CN52,"")+1),"") -> 0 | CP52: =IF(CP$14>=$AT52,INDEX(Break39,COLUMNS($BP52:CO52)-COUNTIF($BP52:CO52,"")+1),"") -> 0 | CQ52: =IF(CQ$14>=$AT52,INDEX(Break39,COLUMNS($BP52:CP52)-COUNTIF($BP52:CP52,"")+1),"") -> 0 | CR52: =IF(CR$14>=$AT52,INDEX(Break39,COLUMNS($BP52:CQ52)-COUNTIF($BP52:CQ52,"")+1),"") ->  | CS52: =IF(CS$14>=$AT52,INDEX(Break39,COLUMNS($BP52:CR52)-COUNTIF($BP52:CR52,"")+1),"") ->  | CT52: =IF(CT$14>=$AT52,INDEX(Break39,COLUMNS($BP52:CS52)-COUNTIF($BP52:CS52,"")+1),"") ->  | CU52: =IF(CU$14>=$AT52,INDEX(Break39,COLUMNS($BP52:CT52)-COUNTIF($BP52:CT52,"")+1),"") ->  | CV52: =IF(CV$14>=$AT52,INDEX(Break39,COLUMNS($BP52:CU52)-COUNTIF($BP52:CU52,"")+1),"") ->  | CW52: =IF(CW$14>=$AT52,INDEX(Break39,COLUMNS($BP52:CV52)-COUNTIF($BP52:CV52,"")+1),"") ->  | CX52: =IF(CX$14>=$AT52,INDEX(Break39,COLUMNS($BP52:CW52)-COUNTIF($BP52:CW52,"")+1),"") ->  | CY52: =IF(CY$14>=$AT52,INDEX(Break39,COLUMNS($BP52:CX52)-COUNTIF($BP52:CX52,"")+1),"") ->  | CZ52: =IF(CZ$14>=$AT52,INDEX(Break39,COLUMNS($BP52:CY52)-COUNTIF($BP52:CY52,"")+1),"") ->  | DA52: =IF(DA$14>=$AT52,INDEX(Break39,COLUMNS($BP52:CZ52)-COUNTIF($BP52:CZ52,"")+1),"") ->  | DB52: =IF(DB$14>=$AT52,INDEX(Break39,COLUMNS($BP52:DA52)-COUNTIF($BP52:DA52,"")+1),"") ->  | DC52: =IF(DC$14>=$AT52,INDEX(Break39,COLUMNS($BP52:DB52)-COUNTIF($BP52:DB52,"")+1),"") ->  | DD52: =IF(DD$14>=$AT52,INDEX(Break39,COLUMNS($BP52:DC52)-COUNTIF($BP52:DC52,"")+1),"") ->  | DE52: =IF(DE$14>=$AT52,INDEX(Break39,COLUMNS($BP52:DD52)-COUNTIF($BP52:DD52,"")+1),"") ->  | DF52: =IF(DF$14>=$AT52,INDEX(Break39,COLUMNS($BP52:DE52)-COUNTIF($BP52:DE52,"")+1),"") ->  | DG52: =IF(DG$14>=$AT52,INDEX(Break39,COLUMNS($BP52:DF52)-COUNTIF($BP52:DF52,"")+1),"") ->  | DH52: =IF(DH$14>=$AT52,INDEX(Break39,COLUMNS($BP52:DG52)-COUNTIF($BP52:DG52,"")+1),"") ->  | DI52: =IF(DI$14>=$AT52,INDEX(Break39,COLUMNS($BP52:DH52)-COUNTIF($BP52:DH52,"")+1),"") ->  | DJ52: =IF(DJ$14>=$AT52,INDEX(Break39,COLUMNS($BP52:DI52)-COUNTIF($BP52:DI52,"")+1),"") ->  | DK52: =IF(DK$14>=$AT52,INDEX(Break39,COLUMNS($BP52:DJ52)-COUNTIF($BP52:DJ52,"")+1),"") ->  | DL52: =IF(DL$14>=$AT52,INDEX(Break39,COLUMNS($BP52:DK52)-COUNTIF($BP52:DK52,"")+1),"") ->  | DM52: =IF(DM$14>=$AT52,INDEX(Break39,COLUMNS($BP52:DL52)-COUNTIF($BP52:DL52,"")+1),"") ->  | DN52: =IF(DN$14>=$AT52,INDEX(Break39,COLUMNS($BP52:DM52)-COUNTIF($BP52:DM52,"")+1),"") ->  | DO52: =IF(DO$14>=$AT52,INDEX(Break39,COLUMNS($BP52:DN52)-COUNTIF($BP52:DN52,"")+1),"") ->  | DP52: =IF(DP$14>=$AT52,INDEX(Break39,COLUMNS($BP52:DO52)-COUNTIF($BP52:DO52,"")+1),"") ->  | DQ52: =IF(DQ$14>=$AT52,INDEX(Break39,COLUMNS($BP52:DP52)-COUNTIF($BP52:DP52,"")+1),"") ->  | DR52: =IF(DR$14>=$AT52,INDEX(Break39,COLUMNS($BP52:DQ52)-COUNTIF($BP52:DQ52,"")+1),"") ->  | DS52: =IF(DS$14>=$AT52,INDEX(Break39,COLUMNS($BP52:DR52)-COUNTIF($BP52:DR52,"")+1),"") ->  | DT52: =IF(DT$14>=$AT52,INDEX(Break39,COLUMNS($BP52:DS52)-COUNTIF($BP52:DS52,"")+1),"") ->  | DU52: =IF(DU$14>=$AT52,INDEX(Break39,COLUMNS($BP52:DT52)-COUNTIF($BP52:DT52,"")+1),"") ->  | DV52: =IF(DV$14>=$AT52,INDEX(Break39,COLUMNS($BP52:DU52)-COUNTIF($BP52:DU52,"")+1),"") ->  | DW52: =IF(DW$14>=$AT52,INDEX(Break39,COLUMNS($BP52:DV52)-COUNTIF($BP52:DV52,"")+1),"") ->  | DX52: =IF(DX$14>=$AT52,INDEX(Break39,COLUMNS($BP52:DW52)-COUNTIF($BP52:DW52,"")+1),"") ->  | DY52: =IF(DY$14>=$AT52,INDEX(Break39,COLUMNS($BP52:DX52)-COUNTIF($BP52:DX52,"")+1),"") ->  | DZ52: =IF(DZ$14>=$AT52,INDEX(Break39,COLUMNS($BP52:DY52)-COUNTIF($BP52:DY52,"")+1),"") ->  | EA52: =IF(EA$14>=$AT52,INDEX(Break39,COLUMNS($BP52:DZ52)-COUNTIF($BP52:DZ52,"")+1),"") ->  | EB52: =IF(EB$14>=$AT52,INDEX(Break39,COLUMNS($BP52:EA52)-COUNTIF($BP52:EA52,"")+1),"") ->  | EC52: =IF(EC$14>=$AT52,INDEX(Break39,COLUMNS($BP52:EB52)-COUNTIF($BP52:EB52,"")+1),"") ->  | ED52: =IF(ED$14>=$AT52,INDEX(Break39,COLUMNS($BP52:EC52)-COUNTIF($BP52:EC52,"")+1),"") ->  | EE52: =IF(EE$14>=$AT52,INDEX(Break39,COLUMNS($BP52:ED52)-COUNTIF($BP52:ED52,"")+1),"") ->  | EF52: =IF(EF$14>=$AT52,INDEX(Break39,COLUMNS($BP52:EE52)-COUNTIF($BP52:EE52,"")+1),"") ->  | EG52: =IF(EG$14>=$AT52,INDEX(Break39,COLUMNS($BP52:EF52)-COUNTIF($BP52:EF52,"")+1),"") ->  | EH52: =IF(EH$14>=$AT52,INDEX(Break39,COLUMNS($BP52:EG52)-COUNTIF($BP52:EG52,"")+1),"") ->  | EI52: =IF(EI$14>=$AT52,INDEX(Break39,COLUMNS($BP52:EH52)-COUNTIF($BP52:EH52,"")+1),"") ->  | EK52: 2026 | EL52: 25 | EM52: 0 | EN52: =IF($EL52>1,IF(AND(EN$14>=$EK52,EN$14<$EK52+$EL52),IF(EN$14=$EK52,$EM52,$EM52),"")) ->  | EQ52: 0 | ER52: 0 | ES52: 0 | ET52: 0 | EU52: 0 | EV52: 0 | EW52: 0 | EX52: =IF($EL52>1,IF(AND(EX$14>=$EK52,EX$14<$EK52+$EL52),IF(EX$14=$EK52,$EM52,$EM52),"")) -> 0 | EY52: 0 | EZ52: 0 | FA52: 0 | FB52: 0 | FC52: 0 | FD52: 0 | FE52: 0
